Workbook

Sheet Blad1 (hidden)

Sheet Introduction
B1: Introduction Excel business case tool for direct-use of geothermal heat using slimhole-holes
B2: version: 5-12-2018
B5: General introduction
B6: This spreadsheet model is developed for Workpackage WP2.03 of the GEOCAP project. The Geothermal Capacity Building Programme - Indonesia-Netherlands (GEOCAP) is an international collaboration between Indonesian and Dutch entities with the goal to develop intimately linked geothermal programmes for education and training, research and subsurface databases and sponsored by the Dutch Ministry of Economic affairs. In workpackage WP2.03 drilling techniques were considered. One of the research questions in WP2.03: "Is the direct-use of geothermal heat in industry using slim-holes in sedimentary basins in Indonesia a sustainable alternative?". The research that was done on this topic, has been reported in: Small scale direct use of geothermal energy in sedimentary basins using slimhole drilling techniques, Indonesia, Oktober 2018, document nr.: GEOCAP/2018/REP/IF Technology/WP2.03/1. This report can be downloaded on the website of GEOCAP. This spreadsheat was used to make a quickscan analysis of the feasibility to use the slimhole drilling technique for direct use of geothermal energy. It calculates the thermal energy (direct heat) that is produced and the energy that is consumed (energy needed for pumping). How to use this spreadsheet It is needed to use two excel tabs: - Energy production & consumption - Slimhole design In the "Energy Production & Consumption" tab typical operational and reservoir parameters need to be filled in. In this tab outcomes of calculations are presented for: - electrical energy and energy costs needed for producing (pumping) the heat to surface and - thermal energy (heat) produced and heat revenues based on a specific heat price. Both outcomes can be used for the feasibility analyse of using the slimhole drilling technique in geothermal direct use applications. In the "Slimhole design" tab the well design of the Slimhole needs to be filled in. This tab calculates pressure losses during production. These losses are used in the "Energy Production & Consumption" tab to calculate the needed pump energy. The excel tabs have been locked to prevent failures during filling in the sheets. Only RED input variables can be changed. However no passwords has been used, so it can be easily be unlocked and the user is free to change this spreadsheet.
B8: Disclaimer This excel spreadsheet has been used for the feasibility study of Workpackage WP2.03 of the GEOCAP project. It is free to use and change this spreadsheet for other studies or projects. GEOCAP or parties that worked on this spreadsheet are not responsible for the outcome of this spreadsheet and will not take any liability for its outcome or any direct or indirect damages, losses of production/turnover/profit as a result of using this spreadsheet.

Sheet Energy Prod & Cons
B1: Project name | C1: Preliminary well design, slimhole Jakarta
B2: Project number | C2: 64300
B3: Date | C3: 2018-06-07
B4: Version | C4: 1.0
B6: RED = Input variable
B7: BLACK = Calculated output
B9: Energy production of Geothermal system | F9: Reservoir, well and pump caracteristics
B10: Input temperature | C10: 135 | D10: °C | F10: depth Bottom reservoir | G10: 2550 | H10: [m]
B11: Output temperature | C11: 85 | D11: °C | F11: natural water pressure | G11: ='Flow calc screen'!R10*-1 -> -8.803110797 | H11: [bar]
B12: Delta T | C12: =C10-C11 -> 50 | D12: °C
B13: Flow | C13: 80 | D13: m3/h
B14: Full load hours | C14: 8000 | D14: hours/year | F14: thickness reservoir | G14: ='Slimhole design'!D36-'Slimhole design'!D32 -> 100 | H14: [m]
B16: Thermal yield | C16: =(C10-C11)*1.1*C13/1000 -> 4.4 | D16: MWt | F16: permeability reservoir | G16: 150 | H16: [mD]
B17: Heat production | C17: =C16*C14 -> 35200 | D17: MWh | F17: transmissivity | G17: =G14*G16/1000 -> 15 | H17: [Dm]
B18: Heat production | C18: =C17*3.6 -> 126720 | D18: GJ | F18: distance between wells | G18: 1500 | H18: [m]
B19: Heat price | C19: 6 | D19: /GJ
B20: Value | C20: =C18*C19 -> 760320 | D20: per year | F20: Flow characteristics
F21: friction casing (K) | G21: 0.2 | H21: [mm]
F22: Total dissolved solids in water | G22: 50000 | H22: [ppm]
B23: Energy Consumption Geothermal system | F23: efficiency (ESP and booster) | G23: 0.65 | H23: [-]
B24: Producer (ESP)
B25: dP formation | C25: ='Slimhole design'!AM37 -> 6.617736324 | D25: bar | F25: skin borehole | G25: 0 | H25: [-]
B26: dP tubing ESP | C26: ='Slimhole design'!AM13 -> 0.4695266434 | D26: bar
B27: dP screen | C27: ='Slimhole design'!AM36 -> 1.711836467 | D27: bar
B28: dP section 1 | C28: ='Slimhole design'!AM21 -> 0.06822688185 | D28: bar
B29: dP section 2 | C29: ='Slimhole design'!AM32 -> 16.15573017 | D29: bar | F29: Schematic producer and injector
B30: dP producer total | C30: =SUM(C25:C29) -> 25.02305649 | D30: bar
B31: Pe ESP | C31: =C30/3600/G23*C13*100 -> 85.54891107 | D31: kWe
B33: Injector (booster pump)
B34: dP injection formation | C34: ='Slimhole design'!AN37 -> 10.7313695 | D34: bar
B35: dP screen | C35: ='Slimhole design'!AN36 -> 1.711836467 | D35: bar
B36: dP section 1 | C36: ='Slimhole design'!AN21 -> 0.1819383516 | D36: bar
B37: dP section 2 | C37: ='Slimhole design'!AN32 -> 16.15573017 | D37: bar
B38: dP injection total | C38: =SUM(C34:C37) -> 28.78087449 | D38: bar
B39: dP due to density increase injection water | C39: =G11 -> -8.803110797 | D39: bar
B40: dP system (pipework, HEX, filter units, etc.) | C40: 4 | D40: bar
B41: Total | C41: =C38+C39+C40 -> 23.97776369 | D41: bar
B42: Pe booster | C42: =C41/3600/G23*C13*100 -> 81.97526049 | D42: kWe
B44: Pe totaal (ESP and Booster) | C44: =C42+C31 -> 167.5241716 | D44: kWe
B46: Electricity price (buying) | C46: 45
B47: Full load hours | C47: =C14 -> 8000 | D47: hours/year
B48: Pt electricity | C48: =C47*C44/1000 -> 1340.193372 | D48: MWh
B49: Electricity costs | C49: =(C44*C47)/1000*C46 -> 60308.70176 | D49: per year
B51: cop | C51: =C17/C48 -> 26.26486649 | D51: [-]

Sheet Slimhole design
B2: =+'Energy Prod & Cons'!C1 -> Preliminary well design, slimhole Jakarta | AF2: Check strength pipes | AK2: Check pressure loss
B3: Nr. | C3: Section | D3: Depth | E3: Hole | Z3: OD | AA3: ID | AB3: Pipe Nominal weight | AC3: Grade | AD3: Wall thickness | AF3: Calculated burst | AG3: Calculated collapse | AH3: Calculated tension | AI3: Weight of casings | AK3: Section | AL3: flow velocity in pipe | AM3: Δp(dyn) Producer | AN3: Δp(dyn) Injector
D5: [m] | E5: [in] | Z5: [in] | AA5: [in] | AB5: [lb/ft] | AC5: [-] | AD5: [in] | AF5: [Mpa] | AG5: [Mpa] | AH5: [1000daN] | AI5: [kg] | AL5: m/s | AM5: bar | AN5: bar | AQ5: Casings | AR5: Hole | AS5: Nominal Weight | AT5: Inside diameter | AU5: wall thickness | AV5: OD (mm) | AW5: 0 | AX5: 5,0 | AY5: 5.5 | AZ5: 6.63 | BA5: 7 | BB5: 7.63 | BC5: 8.63 | BD5: 9.63 | BE5: 10.75 | BF5: 11.75 | BG5: 13.38 | BH5: 14 | BI5: 16
E6: [mm] | Z6: [mm] | AA6: [mm] | AB6: [kg/m] | AD6: [mm] | AF6: with SF | AG6: with SF | AH6: with SF | AQ6: OD_0 | BO6: Inside dimater
AF7: limit pipe spec | AG7: limit pipe spec | AH7: limit pipe spec | AQ7: OD_4.5 | AR7: 6.5 | AS7: 10.5 | AT7: 4.052 | AV7: 114.3 | AW7: 0 | AX7: 13 | AY7: 14 | AZ7: 20.0001 | BA7: 20.0002 | BB7: 26.4 | BC7: 28.0001 | BD7: 36.0001 | BE7: 40.5 | BF7: 47.0001 | BG7: 54.5 | BH7: 82.5 | BI7: 65.0001 | BO7: 4.052
AF8: check | AG8: check | AH8: check | AQ8: OD_5.0 | AR8: 7 | AS8: 11.6 | AT8: 4 | AV8: 127 | AX8: 15 | AY8: 15.5 | AZ8: 23.2001 | BA8: 23.0002 | BB8: 29.7 | BC8: 32.0002 | BD8: 40.0001 | BE8: 45.5 | BF8: 54 | BG8: 61 | BH8: 94.8 | BI8: 75
AK9: Total Δp | AM9: =SUM(AM13:AM37) -> 25.02305649 | AN9: =SUM(AN13:AN37) -> 28.78087449 | AQ9: OD_5.5 | AR9: 7.5 | AS9: 13.5 | AT9: 3.92 | AV9: 139.7 | AX9: 18 | AY9: 17 | AZ9: 24 | BA9: 26.0001 | BB9: 33.7 | BC9: 36 | BD9: 43.5 | BE9: 51 | BF9: 60 | BG9: 68 | BH9: 99 | BI9: 84
B10: 1 | C10: Conductor | D10: 30 | E10: =IF(Z10="OD_4.5",$AR$7,IF(Z10="OD_5.0",$AR$8,IF(Z10="OD_5.5",$AR$9,IF(Z10="OD_6.63",$AR$10,IF(Z10="OD_7.0",$AR$11,IF(Z10="OD_7.63",$AR$12,IF(Z10="OD_8.63",$AR$13,IF(Z10="OD_9.63",$AR$14,IF(Z10="OD_10.75",$AR$15,IF(Z10="OD_11.75",$AR$16,IF(Z10="OD_13.38",$AR$17,IF(Z10="OD_14.0",$AR$18,IF(Z10="OD_16.0",$AR$19,0))))))))))))) -> 14 | Z10: OD_11.75 | AA10: =AA11*0.0393700787 -> 10.84803148 | AB10: 51 | AC10: K55 | AD10: =VLOOKUP(AB10,AS24:AU127,3,FALSE) -> 0.45 | AQ10: OD_6.63 | AR10: 9 | AS10: 15.1 | AT10: 3.826 | AV10: 168.3 | AX10: 21.4 | AY10: 20 | AZ10: 28 | BA10: 29 | BB10: 35.8 | BC10: 40 | BD10: 47 | BE10: 55.5 | BF10: 65 | BG10: 72 | BH10: 114 | BI10: 94.5 | BO10: 4
E11: =E10*25.4 -> 355.6 | Z11: =VLOOKUP(Z10,AQ7:AV19,6,FALSE) -> 298.4 | AA11: =Z11-2*AD11 -> 275.54 | AB11: =AB10*0.138254954 -> 7.051002654 | AD11: =AD10*25.4 -> 11.43 | AI11: =AB11*D10 -> 211.5300796 | AQ11: OD_7.0 | AR11: 9 | AV11: 177.8 | AX11: 23.2 | AY11: 23 | AZ11: 32 | BA11: 32.0001 | BB11: 39 | BC11: 44.0001 | BD11: 53.5 | BE11: 60.7 | BF11: 71 | BG11: 77 | BI11: 109
AQ12: OD_7.63 | AR12: 10 | AV12: 193.7 | AX12: 24.1 | AY12: 26 | AZ12: 35 | BA12: 35.0001 | BB12: 42.8 | BC12: 49 | BD12: 58.4 | BE12: 65.7 | BG12: 80.7 | BI12: 128
C13: Tubing ESP | Z13: 6.75 | AA13: 6.1 | AD13: =AD14*0.0393700787 -> 0.3249999997 | AK13: Tubing | AM13: =VLOOKUP(AL38,Tubing!B10:N109,13,FALSE) -> 0.4695266434 | AQ13: OD_8.63 | AR13: 11 | AV13: 219.1 | AY13: 26.8 | BA13: 38 | BB13: 45.3 | BC13: 52 | BD13: 59.4 | BG13: 88.2
Z14: =Z13*25.4 -> 171.45 | AA14: =AA13*25.4 -> 154.94 | AD14: =(Z14-AA14)/2 -> 8.255 | AQ14: OD_9.63 | AR14: 12 | AV14: 244.5 | BA14: 41 | BB14: 47.1 | BD14: 61.1 | BO14: 3.92
AQ15: OD_10.75 | AR15: 13 | AV15: 273 | BA15: 44 | BD15: 62.8
C16: ESP | D16: 500 | O16: ESP | Z16: 6.75 | AQ16: OD_11.75 | AR16: 14 | AV16: 298.4 | BA16: 46 | BO16: 3.826
Z17: =Z16*25.4 -> 171.45 | AQ17: OD_13.38 | AR17: 16 | AV17: 339.7 | BO17: 4.494
AQ18: OD_14.0 | AR18: 16 | AV18: 355.6 | BO18: 4.408
AQ19: OD_16.0 | AR19: 18 | AV19: 406.4 | BO19: 4.276
BO20: 4.126
B21: 2 | C21: Surface casing | D21: 800 | E21: =IF(Z21="OD_4.5",$AR$7,IF(Z21="OD_5.0",$AR$8,IF(Z21="OD_5.5",$AR$9,IF(Z21="OD_6.63",$AR$10,IF(Z21="OD_7.0",$AR$11,IF(Z21="OD_7.63",$AR$12,IF(Z21="OD_8.63",$AR$13,IF(Z21="OD_9.63",$AR$14,IF(Z21="OD_10.75",$AR$15,IF(Z21="OD_11.75",$AR$16,IF(Z21="OD_13.38",$AR$17,IF(Z21="OD_14.0",$AR$18,IF(Z21="OD_16.0",$AR$19,0))))))))))))) -> 11 | Z21: OD_8.63 | AA21: =AA22*0.0393700787 -> 8.012984244 | AB21: 28.0001 | AC21: K55 | AD21: =VLOOKUP(AB21,AS43:AU127,3,FALSE) -> 0.3065 | AF21: =(((D32*0.101)-(D32-(5/(((E33/2000)^2)*3.1415926)))*0.101)+(D21*0.101))/10 -> 10.4388882 | AG21: =((1.8*D21)-(1.1*D21))/100 -> 5.6 | AH21: =(AB21*D21*0.73756214837)/1000 -> 16.52145113 | AI21: =AB22*D21 -> 3096.92203 | AK21: Section 1 | AL21: =AL38/((PI()*(AA22/2000)^2))/3600 -> 0.683032853 | AM21: =VLOOKUP(AL38,'Flow section 1 prod'!B10:N109,13,FALSE) -> 0.06822688185 | AN21: =VLOOKUP(AL38,'Flow section 1 inj'!B10:N109,13,FALSE) -> 0.1819383516 | AQ21: Grades | BO21: 4.044
C22: Section 1 | E22: =E21*25.4 -> 279.4 | Z22: =VLOOKUP(Z21,AQ7:AV19,6,FALSE) -> 219.1 | AA22: =Z22-2*AD22 -> 203.5298 | AB22: =AB21*0.138254954 -> 3.871152537 | AD22: =AD21*25.4 -> 7.7851 | AF22: =AF21*1.1 -> 11.48277702 | AG22: =AG21*1.1 -> 6.16 | AH22: =AH21*1.6 -> 26.43432181 | AR22: K55 | BO22: 4
AF23: 23.4 | AG23: 13 | AH23: 194 | AR23: L80 | BO23: 5.012
AF24: =IF(AF22<AF23, "OK", "fail") -> OK | AG24: =IF(AG22<AG23, "OK", "fail") -> OK | AH24: =IF(AH22<AH23, "OK", "fail") -> OK | AR24: N80 | BO24: 4.95
AR25: C90 | BO25: 40892
AR26: T95 | BO26: 4.778
AR27: P110 | BO27: 4.67
BO28: 4.548
BO29: 4.5
AR30: Q125 | BO30: 6.049
BO31: 5.965
B32: 3 | C32: Production casing | D32: 2500 | E32: =IF(Z32="OD_4.5",$AR$7,IF(Z32="OD_5.0",$AR$8,IF(Z32="OD_5.5",$AR$9,IF(Z32="OD_6.63",$AR$10,IF(Z32="OD_7.0",$AR$11,IF(Z32="OD_7.63",$AR$12,IF(Z32="OD_8.63",$AR$13,IF(Z32="OD_9.63",$AR$14,IF(Z32="OD_10.75",$AR$15,IF(Z32="OD_11.75",$AR$16,IF(Z32="OD_13.38",$AR$17,IF(Z32="OD_14.0",$AR$18,IF(Z32="OD_16.0",$AR$19,0))))))))))))) -> 6.5 | Z32: OD_4.5 | AA32: =AA33*0.0393700787 -> 3.918999996 | AB32: 20.0001 | AC32: K55 | AD32: =VLOOKUP(AB32,AS43:AU127,3,FALSE) -> 0.2905 | AF32: =(((D36*0.101)-(D36-(5/(((E37/2000)^2)*3.1415926)))*0.101)+(D32*0.101))/10 -> 29.66719785 | AG32: =((1.8*D32)-(1.1*D32))/100 -> 17.5 | AH32: =(AB32*D32*0.73756214837)/1000 -> 36.87829181 | AI32: =AB33*(D32-D21) -> 4700.691939 | AK32: Section 2 | AL32: =AL38/((PI()*(AA33/2000)^2))/3600 -> 2.855483432 | AM32: =VLOOKUP(AL38,'Flow section 2'!B10:N109,13,FALSE) -> 16.15573017 | AN32: =VLOOKUP(AL38,'Flow section 2'!B10:N109,13,FALSE) -> 16.15573017 | BO32: 5.921
C33: Section 2 | E33: =E32*25.4 -> 165.1 | Z33: =VLOOKUP(Z32,AQ7:AV19,6,FALSE) -> 114.3 | AA33: =Z33-2*AD33 -> 99.5426 | AB33: =AB32*0.138254954 -> 2.765112905 | AD33: =AD32*25.4 -> 7.3787 | AF33: =AF32*1.1 -> 32.63391763 | AG33: =AG32*1.1 -> 19.25 | AH33: =AH32*1.6 -> 59.00526689 | BO33: 5.791
AF34: 42 | AG34: 24 | AH34: 204 | BO34: 5.675
AF35: =IF(AF33<AF34, "OK", "fail") -> OK | AG35: =IF(AG33<AG34, "OK", "fail") -> OK | AH35: =IF(AH33<AH34, "OK", "fail") -> OK | BO35: 5.575
B36: 4 | C36: Production liner | D36: 2600 | E36: =VLOOKUP(Z36,AQ133:AU148,2,FALSE) -> 4.75 | Z36: OD_3.5 | AA36: =AA37*0.0393700787 -> 3.070866139 | AD36: =AD37*0.0393700787 -> 0.2145669289 | AK36: Screen | AL36: =AL38/((PI()*(AA37/2000)^2))/3600 -> 4.650593706 | AM36: =VLOOKUP(AL38,'Flow calc screen'!B10:N109,13,FALSE)*0.5 -> 1.711836467 | AN36: =VLOOKUP(AL38,'Flow calc screen'!B10:N109,13,FALSE)*0.5 -> 1.711836467 | BO36: 6.456
C37: Screen | E37: =E36*25.4 -> 120.65 | Z37: =VLOOKUP(Z36,AQ134:AU148,4,FALSE) -> 88.9 | AA37: =VLOOKUP(Z36,AQ134:AU148,5,FALSE) -> 78 | AD37: =(Z37-AA37)/2 -> 5.45 | AF37: weight of drill pipes | AI37: =30*D36 -> 78000 | AK37: Reservoir | AM37: =VLOOKUP(AL38,'Flow calc screen'!B10:P109,15,FALSE) -> 6.617736324 | AN37: =VLOOKUP(AL38,'Flow calc screen'!B10:Q119,16,FALSE) -> 10.7313695 | BO37: 6.366
AK38: Waterflow: | AL38: ='Energy Prod & Cons'!C13 -> 80 | AM38: [m3/h] | BO38: 6.276
C39: RED = Input variable | BO39: 6.184
C40: BLACK = Calculated output | BO40: 6.094
AQ41: Casings | AR41: Hole | AS41: Nominal Weight | AT41: Inside diameter | AU41: wall thickness | AV41: Costs | BO41: 6.004
AQ42: OD_0 | AS42: 0 | BO42: 5.92
AQ43: OD_4.5 | AS43: 10.5 | AT43: 4.052 | AU43: =(4.5-AT43)/2 -> 0.224 | AV43: =100 -> 100 | BO43: 5.82
AQ44: OD_4.5 | AS44: 11.6 | AT44: 4 | AU44: =(4.5-AT44)/2 -> 0.25 | AV44: =AV43+10 -> 110 | BO44: 5.72
AQ45: OD_4.5 | AS45: 13.5 | AT45: 3.92 | AU45: 0.29 | AV45: =AV44+10 -> 120 | BO45: 5.66
AQ46: OD_4.5 | AS46: 15.1 | AT46: 3.826 | AU46: 0.337 | AV46: 130 | BO46: 6.969
AQ47: OD_5.0 | AS47: 13 | AT47: 4.494 | AU47: =(5-AT47)/2 -> 0.253 | AV47: 140 | BO47: 6.875
AQ48: OD_5.0 | AS48: 15 | AT48: 4.408 | AU48: =(5-AT48)/2 -> 0.296 | AV48: 150 | BO48: 6.765
AQ49: OD_5.0 | AS49: 18 | AT49: 4.276 | AU49: 0.362 | AV49: 160 | BO49: 6.695
AQ50: OD_5.0 | AS50: 21.4 | AT50: 4.126 | AU50: 0.437 | AV50: 170 | BO50: 6.625
AQ51: OD_5.0 | AS51: 23.2 | AT51: 4.044 | AU51: 0.478 | AV51: 180 | BO51: 6.501
AQ52: OD_5.0 | AS52: 24.1 | AT52: 4 | AU52: 0.5 | AV52: 190 | BO52: 6.435
AQ53: OD_5.5 | AS53: 14 | AT53: 5.012 | AU53: =(5.5-AT53)/2 -> 0.244 | AV53: 200 | BO53: 6.375
AQ54: OD_5.5 | AS54: 15.5 | AT54: 4.95 | AU54: =(5.5-AT54)/2 -> 0.275 | AV54: =AV53+10 -> 210 | BO54: 8.017
AQ55: OD_5.5 | AS55: 17 | AT55: 4.892 | AU55: 0.304 | AV55: 220
AQ56: OD_5.5 | AS56: 20 | AT56: 4.778 | AU56: 0.361 | AV56: 230
AQ57: OD_5.5 | AS57: 23 | AT57: 4.67 | AU57: 0.415 | AV57: 240
AQ58: OD_5.5 | AS58: 26 | AT58: 4.548 | AU58: 0.476 | AV58: 250
AQ59: OD_5.5 | AS59: 26.8 | AT59: 4.5 | AU59: 0.5 | AV59: 260
AQ60: OD_6.63 | AS60: 20.0001 | AT60: 6.049 | AU60: =(6.63-AT60)/2 -> 0.2905 | AV60: 270
AQ61: OD_6.63 | AS61: 23.2001 | AT61: 5.965 | AU61: =(6.63-AT61)/2 -> 0.3325 | AV61: 280
AQ62: OD_6.63 | AS62: 24 | AT62: 5.921 | AU62: 0.3545 | AV62: 290
AQ63: OD_6.63 | AS63: 28 | AT63: 5.791 | AU63: 0.4195 | AV63: 300
AQ64: OD_6.63 | AS64: 32 | AT64: 5.675 | AU64: 0.4775 | AV64: 310
AQ65: OD_6.63 | AS65: 35 | AT65: 5.575 | AU65: 0.5275 | AV65: 320
AQ66: OD_7.0 | AS66: 20.0002 | AT66: 6.456 | AU66: =(7-AT66)/2 -> 0.272 | AV66: 330
AQ67: OD_7.0 | AS67: 23.0002 | AT67: 6.366 | AU67: =(7-AT67)/2 -> 0.317 | AV67: 340
AQ68: OD_7.0 | AS68: 26.0001 | AT68: 6.276 | AU68: 0.362 | AV68: 350
AQ69: OD_7.0 | AS69: 29 | AT69: 6.184 | AU69: 0.408 | AV69: 360
AQ70: OD_7.0 | AS70: 32.0001 | AT70: 6.094 | AU70: 0.453 | AV70: 370
AQ71: OD_7.0 | AS71: 35.0001 | AT71: 6.004 | AU71: 0.498 | AV71: 380
AQ72: OD_7.0 | AS72: 38 | AT72: 5.92 | AU72: 0.54 | AV72: 390
AQ73: OD_7.0 | AS73: 41 | AT73: 5.82 | AU73: 0.59 | AV73: 400
AQ74: OD_7.0 | AS74: 44 | AT74: 5.72 | AU74: 0.64 | AV74: 410
AQ75: OD_7.0 | AS75: 46 | AT75: 5.66 | AU75: 0.67 | AV75: 420
AQ76: OD_7.63 | AS76: 26.4 | AT76: 6.969 | AU76: =(7.63-AT76)/2 -> 0.3305 | AV76: 430
AQ77: OD_7.63 | AS77: 29.7 | AT77: 6.875 | AU77: =(7.63-AT77)/2 -> 0.3775 | AV77: 440
AQ78: OD_7.63 | AS78: 33.7 | AT78: 6.765 | AU78: 0.4325 | AV78: 450
AQ79: OD_7.63 | AS79: 35.8 | AT79: 6.695 | AU79: 0.4675 | AV79: 460
AQ80: OD_7.63 | AS80: 39 | AT80: 6.625 | AU80: 0.5025 | AV80: 470
AQ81: OD_7.63 | AS81: 42.8 | AT81: 6.501 | AU81: 0.5645 | AV81: 480
AQ82: OD_7.63 | AS82: 45.3 | AT82: 6.435 | AU82: 0.5975 | AV82: 490
AQ83: OD_7.63 | AS83: 47.1 | AT83: 6.375 | AU83: 0.6275 | AV83: 500
AQ84: OD_8.63 | AS84: 28.0001 | AT84: 8.017 | AU84: =(8.63-AT84)/2 -> 0.3065 | AV84: 510
AQ85: OD_8.63 | AS85: 32.0002 | AT85: 7.921 | AU85: =(8.63-AT85)/2 -> 0.3545 | AV85: 520
AQ86: OD_8.63 | AS86: 36 | AT86: 7.825 | AU86: 0.4025 | AV86: 530
AQ87: OD_8.63 | AS87: 40 | AT87: 7.725 | AU87: 0.4525 | AV87: 540
AQ88: OD_8.63 | AS88: 44.0001 | AT88: 7.625 | AU88: 0.5025 | AV88: 550
AQ89: OD_8.63 | AS89: 49 | AT89: 7.511 | AU89: 0.5595 | AV89: 560
AQ90: OD_8.63 | AS90: 52 | AT90: 7.435 | AU90: 0.5975 | AV90: 570
AQ91: OD_9.63 | AS91: 36.0001 | AT91: 8.921 | AU91: =(9.63-AT91)/2 -> 0.3545 | AV91: 580
AQ92: OD_9.63 | AS92: 40.0001 | AT92: 8.835 | AU92: =(9.63-AT92)/2 -> 0.3975 | AV92: 590
AQ93: OD_9.63 | AS93: 43.5 | AT93: 8.755 | AU93: 0.4375 | AV93: 600
AQ94: OD_9.63 | AS94: 47 | AT94: 8.681 | AU94: 0.4745 | AV94: 610
AQ95: OD_9.63 | AS95: 53.5 | AT95: 8.535 | AU95: 0.5475 | AV95: 620
AQ96: OD_9.63 | AS96: 58.4 | AT96: 8.435 | AU96: 0.5975 | AV96: 630
AQ97: OD_9.63 | AS97: 59.4 | AT97: 8.407 | AU97: 0.6115 | AV97: 640
AQ98: OD_9.63 | AS98: 61.1 | AT98: 8.375 | AU98: 0.6275 | AV98: 650
AQ99: OD_9.63 | AS99: 62.8 | AT99: 8.625 | AU99: 0.5025 | AV99: 660
AQ100: OD_10.75 | AS100: 40.5 | AT100: 10.05 | AU100: =(10.75-AT100)/2 -> 0.35 | AV100: 670
AQ101: OD_10.75 | AS101: 45.5 | AT101: 9.95 | AU101: =(10.75-AT101)/2 -> 0.4 | AV101: 680
AQ102: OD_10.75 | AS102: 51 | AT102: 9.85 | AU102: 0.45 | AV102: 690
AQ103: OD_10.75 | AS103: 55.5 | AT103: 9.76 | AU103: 0.495 | AV103: 700
AQ104: OD_10.75 | AS104: 60.7 | AT104: 9.66 | AU104: 0.545 | AV104: 710
AQ105: OD_10.75 | AS105: 65.7 | AT105: 9.56 | AU105: 0.595 | AV105: 720
AQ106: OD_11.75 | AS106: 47.0001 | AT106: 11 | AU106: =(11.75-AT106)/2 -> 0.375 | AV106: 730
AQ107: OD_11.75 | AS107: 54 | AT107: 10.88 | AU107: =(11.75-AT107)/2 -> 0.435 | AV107: 740
AQ108: OD_11.75 | AS108: 60 | AT108: 10.772 | AU108: 0.489 | AV108: 750
AQ109: OD_11.75 | AS109: 65 | AT109: 10.682 | AU109: 0.534 | AV109: =AV108+10 -> 760
AQ110: OD_11.75 | AS110: 71 | AT110: 10.586 | AU110: 0.582 | AV110: 770
AQ111: OD_13.38 | AS111: 54.5 | AT111: 12.615 | AU111: =(13.38-AT111)/2 -> 0.3825 | AV111: 780
AQ112: OD_13.38 | AS112: 61 | AT112: 12.515 | AU112: =(13.38-AT112)/2 -> 0.4325 | AV112: 790
AQ113: OD_13.38 | AS113: 68 | AT113: 12.415 | AU113: 0.4825 | AV113: 800
AQ114: OD_13.38 | AS114: 72 | AT114: 12.347 | AU114: 0.5165 | AV114: 810
AQ115: OD_13.38 | AS115: 77 | AT115: 12.275 | AU115: 0.5525 | AV115: 820
AQ116: OD_13.38 | AS116: 80.7 | AT116: 12.215 | AU116: 0.5825 | AV116: 830
AQ117: OD_13.38 | AS117: 88.2 | AT117: 12.375 | AU117: 0.5025 | AV117: 840
AQ118: OD_14.0 | AS118: 82.5 | AT118: 12.876 | AU118: =(14-AT118)/2 -> 0.562 | AV118: 850
AQ119: OD_14.0 | AS119: 94.8 | AT119: 12.688 | AU119: =(14-AT119)/2 -> 0.656 | AV119: 860
AQ120: OD_14.0 | AS120: 99 | AT120: 12.624 | AU120: 0.688 | AV120: 870
AQ121: OD_14.0 | AS121: 114 | AT121: 12.4 | AU121: 0.8 | AV121: 880
AQ122: OD_16.0 | AS122: 65.0001 | AT122: 15.25 | AU122: =(16-AT122)/2 -> 0.375 | AV122: 890
AQ123: OD_16.0 | AS123: 75 | AT123: 15.124 | AU123: =(16-AT123)/2 -> 0.438 | AV123: 900
AQ124: OD_16.0 | AS124: 84 | AT124: 15.01 | AU124: 0.495 | AV124: 910
AQ125: OD_16.0 | AS125: 94.5 | AT125: 14.876 | AU125: 0.562 | AV125: 920
AQ126: OD_16.0 | AS126: 109 | AT126: 14.688 | AU126: 0.656 | AV126: 930
AQ127: OD_16.0 | AS127: 128 | AT127: 14.438 | AU127: 0.781 | AV127: 940
AQ131: Screens
AQ132: OD | AR132: Hole | AS132: Hole | AT132: Outside diameter | AU132: Inside diameter | AV132: Space
AP133: Screen | AQ133: inch | AR133: inch | AS133: mm | AT133: mm | AU133: mm | AV133: mm
AP134: Open hole | AQ134: OD_2.375 | AR134: 3.75 | AS134: =AR134*25.4 -> 95.25 | AT134: 60.3 | AU134: 50 | AV134: =(AS134-AT134)/2 -> 17.475
AQ135: OD_3.5 | AR135: 4.75 | AS135: =AR135*25.4 -> 120.65 | AT135: 88.9 | AU135: 78 | AV135: =(AS135-AT135)/2 -> 15.875
AQ136: OD_4.0 | AR136: 5.875 | AS136: 149.225 | AT136: 101.6 | AU136: 88 | AV136: 23.8125
AQ137: OD_4.5 | AR137: 5,875 | AS137: 149.225 | AT137: 114.3 | AU137: 101 | AV137: 17.4625
AQ138: OD_5.0 | AR138: 5,875 | AS138: 149.225 | AT138: 127 | AU138: 114 | AV138: 11.1125
AQ139: OD_5.5 | AR139: 6,75 | AS139: 171.45 | AT139: 139 | AU139: 127 | AV139: 16.225
AQ140: OD_6.625 | AR140: 7,875 | AS140: 200.025 | AT140: 168 | AU140: 156 | AV140: 16.0125
AQ141: OD_7.0 | AR141: 7,875 | AS141: 200.025 | AT141: 177.8 | AU141: 164 | AV141: 11.1125
AQ142: OD_7.625 | AR142: 8,5 | AS142: 215.9 | AT142: 193 | AU142: 177 | AV142: 11.45
AQ143: OD_8.625 | AR143: 9,5 | AS143: 241.3 | AT143: 219.1 | AU143: 205 | AV143: 11.1
AQ144: OD_9.625 | AR144: 10,625 | AS144: 269.875 | AT144: 244.5 | AU144: 230 | AV144: 12.6875
AQ145: OD_10.75 | AR145: 12,25 | AS145: 311.15 | AT145: 273.1 | AU145: 256 | AV145: 19.025
AQ146: OD_12.75 | AR146: 14,75 | AS146: 374.65 | AT146: 323.9 | AU146: 305 | AV146: 25.375
AQ147: OD_14.0 | AR147: 16 | AS147: 406.4 | AT147: 355.6 | AU147: 336 | AV147: 25.4
AQ148: OD_16.0 | AR148: 18 | AS148: 457.2 | AT148: 406.4 | AU148: 387 | AV148: 25.4
AQ150: OD | AS150: Gunstigste bereik | AT150: max debiet
AP151: ESP | AQ151: 3.38 | AS151: 2 - 17,5 m3/h | AT151: 21
AQ152: 4 | AS152: 2,9 - 37,5 m3/h | AT152: 46
AQ153: 5.38 | AS153: 9,2 - 37,5 m3/h | AT153: 46
AQ154: 5.62 | AS154: 66 - 121 m3/h | AT154: 154
AQ155: 6.75 | AS155: 37,5 - 250 m3/h | AT155: 300

Sheet Tubing (hidden)
B1: Tin | C1: ='Energy Prod & Cons'!C10 -> 135 | D1: [°C] | F1: dikte | G1: ='Energy Prod & Cons'!G14 -> 100 | H1: [m] | L1: COP cooling | R1: depth | S1: Temp | T1: Pressure | U1: w (mass frac) | V1: Rho(T,P) | W1: Rho(C,T,P) | X1: A | Y1: visc (C,T) | Z1: visc (C,T)
B2: Tuit | C2: ='Energy Prod & Cons'!C11 -> 85 | D2: [°C] | F2: perm | G2: ='Energy Prod & Cons'!G16 -> 150 | H2: [mD] | L2: Max Pinj | M2: ='Energy Prod & Cons'!G10*(0.135-('Flow section 1 prod'!W4*9.8/100000)) -> 90.53111146 | N2: 0,025x diepte | R2: [m-mv] | S2: [°C] | T2: (MPa) | U2: [kg/kg] | V2: [g/cm³] | W2: [kg/m³] | X2: [-] | Y2: [kg/ms] | Z2: [cp]
B3: n | C3: ='Energy Prod & Cons'!G23 -> 0.65 | D3: [-] | F3: L | G3: ='Energy Prod & Cons'!G18 -> 1500 | H3: [m] | Q3: productie, reservoir | R3: ='Energy Prod & Cons'!G10 -> 2550 | S3: =C1 -> 135 | T3: =R3/100 -> 25.5 | U3: =C5/1000000 -> 0.05 | V3: =1+0.000001*(-80*S3-3.3*S3^2+0.00175*S3^3+489*T3-2*T3*S3+0.016*S3^2*T3-0.000013*S3^3*T3-0.333*T3^2-0.002*S3*T3^2) -> 0.9451757412 | W3: =(V3+U3*(0.668+0.44*U3+(0.000001*(300*T3-2400*T3*U3+(S3*(80+3*S3-3300*U3-13*T3+47*T3*U3))))))*1000 -> 980.2321099 | X3: =(0.42*(U3^0.8-0.17)^2+0.045)*S3^0.8 -> 2.410185461 | Y3: =(0.1+0.333*U3+(1.65+91.9*U3^3)*EXP(-X3))/1000 -> 0.000265849316 | Z3: =Y3*1000 -> 0.265849316
B4: skin | C4: ='Energy Prod & Cons'!G25 -> 0 | D4: [-] | F4: trans | G4: ='Energy Prod & Cons'!G17 -> 15 | H4: [Dm] | Q4: injectie | R4: =R3 -> 2550 | S4: =C2 -> 85 | T4: =R4/100 -> 25.5 | U4: =U3 -> 0.05 | V4: =1+0.000001*(-80*S4-3.3*S4^2+0.00175*S4^3+489*T4-2*T4*S4+0.016*S4^2*T4-0.000013*S4^3*T4-0.333*T4^2-0.002*S4*T4^2) -> 0.9809838606 | W4: =(V4+U4*(0.668+0.44*U4+(0.000001*(300*T4-2400*T4*U4+(S4*(80+3*S4-3300*U4-13*T4+47*T4*U4))))))*1000 -> 1015.281667 | X4: =(0.42*(U4^0.8-0.17)^2+0.045)*S4^0.8 -> 1.664633338 | Y4: =(0.1+0.333*U4+(1.65+91.9*U4^3)*EXP(-X4))/1000 -> 0.0004311031902 | Z4: =Y4*1000 -> 0.4311031902
B5: TDS | C5: ='Energy Prod & Cons'!G22 -> 50000 | D5: [ppm] | AB5: =W3/W4 -> 0.9654779969
A6: 1 | B6: 2 | C6: 3 | D6: 4 | E6: 5 | F6: 6 | G6: 7 | H6: 8 | I6: 9 | J6: 10 | K6: 11 | L6: 12 | M6: 13 | N6: 14 | O6: 15 | P6: 16 | Q6: 17 | R6: 18 | S6: 19 | T6: 20 | U6: 21 | V6: 22 | W6: 23 | X6: 24 | Y6: 25 | Z6: 26 | AA6: 27 | AB6: 28 | AC6: 29
A7: Flow | B7: Q | C7: diameter | D7: lengte | E7: K | F7: rho_l | G7: mu_l_prod | H7: mu_l_inj | I7: inw. dia. | J7: A | K7: v | L7: Re | M7: frictie getal | N7: dP_prod_frict | O7: dP_inj_fric | P7: dP_prod_form | Q7: dP_inj_form | R7: dgws | S7: dPtot | T7: dP ESP | U7: dP Booster | V7: ESP min depth | W7: Pe ESP | X7: Pe Booster | Y7: Pe pump tot | Z7: Pt | AA7: COP
A8: m/s (lower casing) | B8: [m3/h] | C8: [mm] | D8: [m] | E8: [mm] | F8: [kg/m3] | G8: [kg/ms] | H8: [kg/ms] | I8: [mm] | J8: [m2] | K8: [m/s] | L8: [-] | M8: [-] | N8: [bar] | O8: [bar] | P8: [bar] | Q8: [bar] | R8: [bar] | S8: [bar] | T8: [bar] | U8: [bar] | V8: [m[ | W8: [kWe] | X8: [kWe] | Y8: [kWe] | Z8: [MW] | AA8: [-] | AB8: Pinj | AC8: COP
B9: 0
A10: =B10/J10/3600 -> 0.03683159473 | B10: 2.5 | C10: ='Slimhole design'!AA14 -> 154.94 | D10: ='Slimhole design'!D16 -> 500 | E10: ='Energy Prod & Cons'!G21 -> 0.2 | F10: =W3 -> 980.2321099 | G10: =Y3 -> 0.000265849316 | H10: =Y4 -> 0.0004311031902 | I10: =C10 -> 154.94 | J10: =PI()*(I10/2000)^2 -> 0.0188545853 | K10: =B10/J10/3600 -> 0.03683159473 | L10: =(F10*K10*I10)/G10/1000 -> 21041.53663 | M10: =(1.14-2*LOG((E10/1000)/(I10/1000)+(21.25/L10^0.9)))^-2 -> 0.0284298636 | N10: =(0.5*F10*K10^2*D10/(I10/1000)*M10/100000) -> 0.0006099878779 | O10: =(0.5*F10*K10^2*D10/(I10/1000)*M10/100000) -> 0.0006099878779 | P10: =(B10/3600)*G10/2/PI()/G$4/0.000000000001*(LN(G$3/(C10/2000))+C$4)/100000 -> 0.1933600791 | Q10: =(B10/3600)*H10/2/PI()/G$4/0.000000000001*(LN(G$3/(C10/2000))+C$4)/100000 -> 0.3135541148 | R10: ='Energy Prod & Cons'!G10*(1-'Flow section 1 prod'!AB5)/10 -> 8.803110797 | S10: =O10+N10+P10+Q10-R10 -> -8.294976627 | T10: =N10+P10 -> 0.1939700669 | U10: =O10+Q10-R10 -> -8.488946694 | V10: =T10*(F10/100) -> 1.90135688 | W10: =T10/3600/C$3*B10*100 -> 0.02072329775 | X10: =U10/3600/C$3*B10*100 -> -0.9069387494 | Y10: =X10+W10 -> -0.8862154516 | Z10: =B10*(C$1-C$2)*1.1/1000 -> 0.1375 | AA10: =Z10/(W10/1000) -> 6635.044367 | AB10: =Q10 -> 0.3135541148 | AC10: =AA10 -> 6635.044367
A11: =B11/J11/3600 -> 0.07366318946 | B11: =B10+2.5 -> 5 | C11: =C10 -> 154.94 | D11: 500 | E11: 0.2 | F11: 980.2321099 | G11: =G10 -> 0.000265849316 | H11: =H10 -> 0.0004311031902 | I11: 154.94 | J11: =PI()*(I11/2000)^2 -> 0.0188545853 | K11: =B11/J11/3600 -> 0.07366318946 | L11: 42083.07326 | M11: 0.02552085221 | N11: 0.002190289859 | O11: 0.002190289859 | P11: =(B11/3600)*G11/2/PI()/G$4/0.000000000001*(LN(G$3/(C11/2000))+C$4)/100000 -> 0.3867201581 | Q11: =(B11/3600)*H11/2/PI()/G$4/0.000000000001*(LN(G$3/(C11/2000))+C$4)/100000 -> 0.6271082296 | R11: =R10 -> 8.803110797 | S11: =O11+N11+P11+Q11-R11 -> -7.78490183 | T11: =N11+P11 -> 0.388910448 | U11: =O11+Q11-R11 -> -8.173812278 | V11: 3.81222509 | W11: 0.08310052307 | X11: -1.746541085 | Y11: =X11+W11 -> -1.663440562 | Z11: =B11*(C$1-C$2)*1.1/1000 -> 0.275 | AA11: =Z11/(W11/1000) -> 3309.245115 | AB11: =Q11 -> 0.6271082296 | AC11: 3309.245115
A12: 0.1104947842 | B12: =B11+2.5 -> 7.5 | C12: 154.94 | D12: 500 | E12: 0.2 | F12: 980.2321099 | G12: 0.000265849316 | H12: 0.0004311031902 | I12: 154.94 | J12: =PI()*(I12/2000)^2 -> 0.0188545853 | K12: =B12/J12/3600 -> 0.1104947842 | L12: 63124.6099 | M12: 0.02430972726 | N12: 0.004694280365 | O12: 0.004694280365 | P12: =(B12/3600)*G12/2/PI()/G$4/0.000000000001*(LN(G$3/(C12/2000))+C$4)/100000 -> 0.5800802372 | Q12: 0.9406623444 | R12: =R11 -> 8.803110797 | S12: -7.272979655 | T12: 0.5847745176 | U12: -7.857754172 | V12: 5.732147592 | W12: 0.18742773 | X12: -2.518510953 | Y12: -2.331083223 | Z12: =B12*(C$1-C$2)*1.1/1000 -> 0.4125 | AA12: =Z12/(W12/1000) -> 2200.848295 | AB12: 0.9406623444 | AC12: 2200.848295
A13: 0.1473263789 | B13: 10 | C13: 154.94 | D13: 500 | E13: 0.2 | F13: 980.2321099 | G13: 0.000265849316 | H13: 0.0004311031902 | I13: 154.94 | J13: 0.0188545853 | K13: 0.1473263789 | L13: 84166.14653 | M13: 0.02362702751 | N13: 0.008111020481 | O13: 0.008111020481 | P13: 0.7734403163 | Q13: 1.254216459 | R13: 8.803110797 | S13: -6.759231981 | T13: 0.7815513367 | U13: -7.540783317 | V13: 7.661017158 | W13: 0.3339962978 | X13: -3.222556973 | Y13: -2.888560675 | Z13: 0.55 | AA13: 1646.72484 | AB13: 1.254216459 | AC13: 1646.72484
A14: 0.1841579736 | B14: 12.5 | C14: 154.94 | D14: 500 | E14: 0.2 | F14: 980.2321099 | G14: 0.000265849316 | H14: 0.0004311031902 | I14: 154.94 | J14: 0.0188545853 | K14: 0.1841579736 | L14: 105207.6832 | M14: 0.02318370391 | N14: 0.012435672 | O14: 0.012435672 | P14: 0.9668003953 | Q14: 1.567770574 | R14: 8.803110797 | S14: -6.243668484 | T14: 0.9792360673 | U14: -7.222904551 | V14: 9.598786364 | W14: 0.5230961898 | X14: -3.858389183 | Y14: -3.335292993 | Z14: 0.6875 | AA14: 1314.289825 | AB14: 1.567770574 | AC14: 1314.289825
A15: 0.2209895684 | B15: 15 | C15: 154.94 | D15: 500 | E15: 0.2 | F15: 980.2321099 | G15: 0.000265849316 | H15: 0.0004311031902 | I15: 154.94 | J15: 0.0188545853 | K15: 0.2209895684 | L15: 126249.2198 | M15: 0.02287065642 | N15: 0.01766556609 | O15: 0.01766556609 | P15: 1.160160474 | Q15: 1.881324689 | R15: 8.803110797 | S15: -5.726294502 | T15: 1.17782604 | U15: -6.904120542 | V15: 11.54542905 | W15: 0.7550166926 | X15: -4.425718296 | Y15: -3.670701604 | Z15: 0.825 | AA15: 1092.691073 | AB15: 1.881324689 | AC15: 1092.691073
A16: 0.2578211631 | B16: 17.5 | C16: 154.94 | D16: 500 | E16: 0.2 | F16: 980.2321099 | G16: 0.000265849316 | H16: 0.0004311031902 | I16: 154.94 | J16: 0.0188545853 | K16: 0.2578211631 | L16: 147290.7564 | M16: 0.02263689206 | N16: 0.02379903285 | O16: 0.02379903285 | P16: 1.353520553 | Q16: 2.194878804 | R16: 8.803110797 | S16: -5.207113374 | T16: 1.377319586 | U16: -6.584432961 | V16: 13.50092884 | W16: 1.030046699 | X16: -4.924255419 | Y16: -3.89420872 | Z16: 0.9625 | AA16: 934.4236536 | AB16: 2.194878804 | AC16: 934.4236536
A17: 0.2946527578 | B17: 20 | C17: 154.94 | D17: 500 | E17: 0.2 | F17: 980.2321099 | G17: 0.000265849316 | H17: 0.0004311031902 | I17: 154.94 | J17: 0.0188545853 | K17: 0.2946527578 | L17: 168332.2931 | M17: 0.02245518644 | N17: 0.03083493716 | O17: 0.03083493716 | P17: 1.546880633 | Q17: 2.508432918 | R17: 8.803110797 | S17: -4.686127372 | T17: 1.57771557 | U17: -6.263842941 | V17: 15.46527462 | W17: 1.348474846 | X17: -5.353711916 | Y17: -4.00523707 | Z17: 1.1 | AA17: 815.7363879 | AB17: 2.508432918 | AC17: 815.7363879
A18: 0.3314843526 | B18: 22.5 | C18: 154.94 | D18: 500 | E18: 0.2 | F18: 980.2321099 | G18: 0.000265849316 | H18: 0.0004311031902 | I18: 154.94 | J18: 0.0188545853 | K18: 0.3314843526 | L18: 189373.8297 | M18: 0.02230960688 | N18: 0.03877246074 | O18: 0.03877246074 | P18: 1.740240712 | Q18: 2.821987033 | R18: 8.803110797 | S18: -4.163338131 | T18: 1.779013172 | U18: -5.942351303 | V18: 17.43845836 | W18: 1.710589589 | X18: -5.71379933 | Y18: -4.003209741 | Z18: 1.2375 | AA18: 723.4347783 | AB18: 2.821987033 | AC18: 723.4347783
A19: 0.3683159473 | B19: 25 | C19: 154.94 | D19: 500 | E19: 0.2 | F19: 980.2321099 | G19: 0.000265849316 | H19: 0.0004311031902 | I19: 154.94 | J19: 0.0188545853 | K19: 0.3683159473 | L19: 210415.3663 | M19: 0.0221901766 | N19: 0.04761098725 | O19: 0.04761098725 | P19: 1.933600791 | Q19: 3.135541148 | R19: 8.803110797 | S19: -3.638746884 | T19: 1.981211778 | U19: -5.619958662 | V19: 19.42047401 | W19: 2.11667925 | X19: -6.004229339 | Y19: -3.88755009 | Z19: 1.375 | AA19: 649.6024374 | AB19: 3.135541148 | AC19: 649.6024374
A20: 0.405147542 | B20: 27.5 | C20: 154.94 | D20: 500 | E20: 0.2 | F20: 980.2321099 | G20: 0.000265849316 | H20: 0.0004311031902 | I20: 154.94 | J20: 0.0188545853 | K20: 0.405147542 | L20: 231456.903 | M20: 0.02209031452 | N20: 0.05735003642 | O20: 0.05735003642 | P20: 2.12696087 | Q20: 3.449095263 | R20: 8.803110797 | S20: -3.112354592 | T20: 2.184310906 | U20: -5.296665498 | V20: 21.41131688 | W20: 2.567032048 | X20: -6.224713726 | Y20: -3.657681678 | Z20: 1.5125 | AA20: 589.2018377 | AB20: 3.449095263 | AC20: 589.2018377
A21: 0.4419791367 | B21: 30 | C21: 154.94 | D21: 500 | E21: 0.2 | F21: 980.2321099 | G21: 0.000265849316 | H21: 0.0004311031902 | I21: 154.94 | J21: 0.0188545853 | K21: 0.4419791367 | L21: 252498.4396 | M21: 0.02200549603 | N21: 0.0679892238 | O21: 0.0679892238 | P21: 2.320320949 | Q21: 3.762649378 | R21: 8.803110797 | S21: -2.584162023 | T21: 2.388310173 | U21: -4.972472196 | V21: 23.4109832 | W21: 3.061936119 | X21: -6.374964353 | Y21: -3.313028235 | Z21: 1.65 | AA21: 538.8747302 | AB21: 3.762649378 | AC21: 538.8747302
A22: 0.4788107315 | B22: 32.5 | C22: 154.94 | D22: 500 | E22: 0.2 | F22: 980.2321099 | G22: 0.000265849316 | H22: 0.0004311031902 | I22: 154.94 | J22: 0.0188545853 | K22: 0.4788107315 | L22: 273539.9762 | M22: 0.02193250363 | N22: 0.07952823478 | O22: 0.07952823478 | P22: 2.513681028 | Q22: 4.076203492 | R22: 8.803110797 | S22: -2.054169807 | T22: 2.593209263 | U22: -4.64737907 | V22: 25.41946987 | W22: 3.601679531 | X22: -6.454693152 | Y22: -2.853013621 | Z22: 1.7875 | AA22: 496.2962375 | AB22: 4.076203492 | AC22: 496.2962375
A23: 0.5156423262 | B23: 35 | C23: 154.94 | D23: 500 | E23: 0.2 | F23: 980.2321099 | G23: 0.000265849316 | H23: 0.0004311031902 | I23: 154.94 | J23: 0.0188545853 | K23: 0.5156423262 | L23: 294581.5128 | M23: 0.02186898415 | N23: 0.09196680723 | O23: 0.09196680723 | P23: 2.707041107 | Q23: 4.389757607 | R23: 8.803110797 | S23: -1.522378468 | T23: 2.799007914 | U23: -4.321386383 | V23: 27.43677433 | W23: 4.186550299 | X23: -6.463612111 | Y23: -2.277061812 | Z23: 1.925 | AA23: 459.8057739 | AB23: 4.389757607 | AC23: 459.8057739
A24: 0.5524739209 | B24: 37.5 | C24: 154.94 | D24: 500 | E24: 0.2 | F24: 980.2321099 | G24: 0.000265849316 | H24: 0.0004311031902 | I24: 154.94 | J24: 0.0188545853 | K24: 0.5524739209 | L24: 315623.0495 | M24: 0.02181317525 | N24: 0.1053047193 | O24: 0.1053047193 | P24: 2.900401186 | Q24: 4.703311722 | R24: 8.803110797 | S24: -0.9887884503 | T24: 3.005705905 | U24: -3.994494356 | V24: 29.46289441 | W24: 4.816836387 | X24: -6.401433262 | Y24: -1.584596875 | Z24: 2.0625 | AA24: 428.1856045 | AB24: 4.703311722 | AC24: 428.1856045
A25: 0.5893055157 | B25: 40 | C25: 154.94 | D25: 500 | E25: 0.2 | F25: 980.2321099 | G25: 0.000265849316 | H25: 0.0004311031902 | I25: 154.94 | J25: 0.0188545853 | K25: 0.5893055157 | L25: 336664.5861 | M25: 0.02176372994 | N25: 0.119541781 | O25: 0.119541781 | P25: 3.093761265 | Q25: 5.016865837 | R25: 8.803110797 | S25: -0.4534001331 | T25: 3.213303046 | U25: -3.666703179 | V25: 31.49782825 | W25: 5.49282572 | X25: -6.267868682 | Y25: -0.7750429625 | Z25: 2.2 | AA25: 400.5224473 | AB25: 5.016865837 | AC25: 400.5224473
A26: 0.6261371104 | B26: 42.5 | C26: 154.94 | D26: 500 | E26: 0.2 | F26: 980.2321099 | G26: 0.000265849316 | H26: 0.0004311031902 | I26: 154.94 | J26: 0.0188545853 | K26: 0.6261371104 | L26: 357706.1227 | M26: 0.02171960041 | N26: 0.1346778275 | O26: 0.1346778275 | P26: 3.287121344 | Q26: 5.330419952 | R26: 8.803110797 | S26: 0.08378615374 | T26: 3.421799172 | U26: -3.338013018 | V26: 33.54157422 | W26: 6.214806188 | X26: -6.062630481 | Y26: 0.1521757066 | Z26: 2.3375 | AA26: 376.1179238 | AB26: 5.330419952 | AC26: 376.1179238
A27: 0.6629687051 | B27: 45 | C27: =C26 -> 154.94 | D27: 500 | E27: 0.2 | F27: 980.2321099 | G27: 0.000265849316 | H27: 0.0004311031902 | I27: 154.94 | J27: 0.0188545853 | K27: 0.6629687051 | L27: 378747.6594 | M27: 0.02167995885 | N27: 0.1507127145 | O27: 0.1507127145 | P27: 3.480481423 | Q27: 5.643974066 | R27: 8.803110797 | S27: 0.6227701217 | T27: 3.631194138 | U27: -3.008424016 | V27: 35.59413091 | W27: 6.983065649 | X27: -5.7854308 | Y27: 1.197634849 | Z27: 2.475 | AA27: 354.4288604 | AB27: 5.643974066 | AC27: 354.4288604
A28: 0.6998002998 | B28: 47.5 | C28: 154.94 | D28: 500 | E28: 0.2 | F28: 980.2321099 | G28: 0.000265849316 | H28: 0.0004311031902 | I28: 154.94 | J28: 0.0188545853 | K28: 0.6998002998 | L28: 399789.196 | M28: 0.02164414232 | N28: 0.1676463148 | O28: 0.1676463148 | P28: 3.673841502 | Q28: 5.957528181 | R28: 8.803110797 | S28: 1.163551516 | T28: 3.841487817 | U28: -2.677936301 | V28: 37.65549708 | W28: 7.797891936 | X28: -5.435981807 | Y28: 2.361910129 | Z28: 2.6125 | AA28: 335.0264432 | AB28: 5.957528181 | AC28: 335.0264432
A29: 0.7366318946 | B29: 50 | C29: 154.94 | D29: 500 | E29: 0.2 | F29: 980.2321099 | G29: 0.000265849316 | H29: 0.0004311031902 | I29: 154.94 | J29: 0.0188545853 | K29: 0.7366318946 | L29: 420830.7326 | M29: 0.02161161344 | N29: 0.1854785152 | O29: 0.1854785152 | P29: 3.867201581 | Q29: 6.271082296 | R29: 8.803110797 | S29: 1.706130111 | T29: 4.052680096 | U29: -2.346549986 | V29: 39.72567162 | W29: 8.659572856 | X29: -5.013995696 | Y29: 3.64557716 | Z29: 2.75 | AA29: 317.5676267 | AB29: 6.271082296 | AC29: 317.5676267
A30: 0.7734634893 | B30: 52.5 | C30: 154.94 | D30: 500 | E30: 0.2 | F30: 980.2321099 | G30: 0.000265849316 | H30: 0.0004311031902 | I30: 154.94 | J30: 0.0188545853 | K30: 0.7734634893 | L30: 441872.2693 | M30: 0.02158193182 | N30: 0.2042092142 | O30: 0.2042092142 | P30: 4.06056166 | Q30: 6.584636411 | R30: 8.803110797 | S30: 2.250505703 | T30: 4.264770875 | U30: -2.014265172 | V30: 41.80465353 | W30: 9.568396193 | X30: -4.519184681 | Y30: 5.049211512 | Z30: 2.8875 | AA30: 301.7747114 | AB30: 6.584636411 | AC30: 301.7747114
A31: 0.810295084 | B31: 55 | C31: 154.94 | D31: 500 | E31: 0.2 | F31: 980.2321099 | G31: 0.000265849316 | H31: 0.0004311031902 | I31: 154.94 | J31: 0.0188545853 | K31: 0.810295084 | L31: 462913.8059 | M31: 0.02155473305 | N31: 0.2238383206 | O31: 0.2238383206 | P31: 4.253921739 | Q31: 6.898190526 | R31: 8.803110797 | S31: 2.796678109 | T31: 4.47776006 | U31: -1.681081951 | V31: 43.89244191 | W31: 10.52464971 | X31: -3.951260995 | Y31: 6.573388718 | Z31: 3.025 | AA31: 287.4204921 | AB31: 6.898190526 | AC31: 287.4204921
A32: 0.8471266788 | B32: 57.5 | C32: 154.94 | D32: 500 | E32: 0.2 | F32: 980.2321099 | G32: 0.000265849316 | H32: 0.0004311031902 | I32: 154.94 | J32: 0.0188545853 | K32: 0.8471266788 | L32: 483955.3425 | M32: 0.02152971288 | N32: 0.2443657516 | O32: 0.2443657516 | P32: 4.447281819 | Q32: 7.21174464 | R32: 8.803110797 | S32: 3.344647165 | T32: 4.69164757 | U32: -1.347000405 | V32: 45.98903597 | W32: 11.52862117 | X32: -3.309936892 | Y32: 8.218684274 | Z32: 3.1625 | AA32: 274.31728 | AB32: 7.21174464 | AC32: 274.31728
A33: 0.8839582735 | B33: 60 | C33: 154.94 | D33: 500 | E33: 0.2 | F33: 980.2321099 | G33: 0.000265849316 | H33: 0.0004311031902 | I33: 154.94 | J33: 0.0188545853 | K33: 0.8839582735 | L33: 504996.8792 | M33: 0.02150661524 | N33: 0.2657914322 | O33: 0.2657914322 | P33: 4.640641898 | Q33: 7.525298755 | R33: 8.803110797 | S33: 3.89441272 | T33: 4.90643333 | U33: -1.01202061 | V33: 48.09443495 | W33: 12.58059828 | X33: -2.59492464 | Y33: 9.985673642 | Z33: 3.3 | AA33: 262.3086698 | AB33: 7.525298755 | AC33: 262.3086698
A34: 0.9207898682 | B34: 62.5 | C34: 154.94 | D34: 500 | E34: 0.2 | F34: 980.2321099 | G34: 0.000265849316 | H34: 0.0004311031902 | I34: 154.94 | J34: 0.0188545853 | K34: 0.9207898682 | L34: 526038.4158 | M34: 0.02148522301 | N34: 0.2881152935 | O34: 0.2881152935 | P34: 4.834001977 | Q34: 7.83885287 | R34: 8.803110797 | S34: 4.445974637 | T34: 5.12211727 | U34: -0.6761426335 | V34: 50.20863819 | W34: 13.68086878 | X34: -1.805936521 | Y34: 11.87493226 | Z34: 3.4375 | AA34: 251.2632828 | AB34: 7.83885287 | AC34: 251.2632828
A35: 0.9576214629 | B35: 65 | C35: 154.94 | D35: 500 | E35: 0.2 | F35: 980.2321099 | G35: 0.000265849316 | H35: 0.0004311031902 | I35: 154.94 | J35: 0.0188545853 | K35: 0.9576214629 | L35: 547079.9524 | M35: 0.02146535087 | N35: 0.3113372723 | O35: 0.3113372723 | P35: 5.027362056 | Q35: 8.152406985 | R35: 8.803110797 | S35: 4.999332788 | T35: 5.338699328 | U35: -0.3393665398 | V35: 52.33164507 | W35: 14.82972036 | X35: -0.9426848328 | Y35: 13.88703552 | Z35: 3.575 | AA35: 241.0699537 | AB35: 8.152406985 | AC35: 241.0699537
A36: 0.9944530577 | B36: 67.5 | C36: 154.94 | D36: 500 | E36: 0.2 | F36: 980.2321099 | G36: 0.000265849316 | H36: 0.0004311031902 | I36: 154.94 | J36: 0.0188545853 | K36: 0.9944530577 | L36: 568121.4891 | M36: 0.02144683962 | N36: 0.3354573107 | O36: 0.3354573107 | P36: 5.220722135 | Q36: 8.4659611 | R36: 8.803110797 | S36: 5.554487059 | T36: 5.556179445 | U36: -0.001692386656 | V36: 54.46345501 | W36: 16.02744071 | X36: -0.004881884585 | Y36: 16.02255882 | Z36: 3.7125 | AA36: 231.6339875 | AB36: 8.4659611 | AC36: 231.6339875
A37: 1.031284652 | B37: 70 | C37: 154.94 | D37: 500 | E37: 0.2 | F37: 980.2321099 | G37: 0.000265849316 | H37: 0.0004311031902 | I37: 154.94 | J37: 0.0188545853 | K37: 1.031284652 | L37: 589163.0257 | M37: 0.02142955175 | N37: 0.3604753548 | O37: 0.3604753548 | P37: 5.414082214 | Q37: 8.779515214 | R37: 8.803110797 | S37: 6.111437341 | T37: 5.774557569 | U37: 0.3368797723 | V37: 56.60406749 | W37: 17.27431751 | X37: 1.007760003 | Y37: 18.28207752 | Z37: 3.85 | AA37: 222.8742176 | AB37: 8.779515214 | AC37: 222.8742176
A38: 1.068116247 | B38: 72.5 | C38: 154.94 | D38: 500 | E38: 0.2 | F38: 980.2321099 | G38: 0.000265849316 | H38: 0.0004311031902 | I38: 154.94 | J38: 0.0188545853 | K38: 1.068116247 | L38: 610204.5623 | M38: 0.02141336781 | N38: 0.3863913549 | O38: 0.3863913549 | P38: 5.607442293 | Q38: 9.093069329 | R38: 8.803110797 | S38: 6.670183535 | T38: 5.993833648 | U38: 0.6763498872 | V38: 58.75348203 | W38: 18.57063844 | X38: 2.095528497 | Y38: 20.66616694 | Z38: 3.9875 | AA38: 214.7206739 | AB38: 9.093069329 | AC38: 214.7206739
A39: 1.104947842 | B39: 75 | C39: 154.94 | D39: 500 | E39: 0.2 | F39: 980.2321099 | G39: 0.000265849316 | H39: 0.0004311031902 | I39: 154.94 | J39: 0.0188545853 | K39: 1.104947842 | L39: 631246.099 | M39: 0.02139818354 | N39: 0.4132052646 | O39: 0.4132052646 | P39: 5.800802372 | Q39: 9.406623444 | R39: 8.803110797 | S39: 7.230725548 | T39: 6.214007637 | U39: 1.016717912 | V39: 60.91169817 | W39: 19.91669114 | X39: 3.258711256 | Y39: 23.1754024 | Z39: 4.125 | AA39: 207.1127162 | AB39: 9.406623444 | AC39: 207.1127162
A40: 1.141779437 | B40: 77.5 | C40: 154.94 | D40: 500 | E40: 0.2 | F40: 980.2321099 | G40: 0.000265849316 | H40: 0.0004311031902 | I40: 154.94 | J40: 0.0188545853 | K40: 1.141779437 | L40: 652287.6356 | M40: 0.02138390755 | N40: 0.4409170409 | O40: 0.4409170409 | P40: 5.994162451 | Q40: 9.720177559 | R40: 8.803110797 | S40: 7.793063295 | T40: 6.435079492 | U40: 1.357983803 | V40: 63.07871548 | W40: 21.31276327 | X40: 4.497595928 | Y40: 25.8103592 | Z40: 4.2625 | AA40: 199.9975294 | AB40: 9.720177559 | AC40: 199.9975294
A41: 1.178611031 | B41: 80 | C41: 154.94 | D41: 500 | E41: 0.2 | F41: 980.2321099 | G41: 0.000265849316 | H41: 0.0004311031902 | I41: 154.94 | J41: 0.0188545853 | K41: 1.178611031 | L41: 673329.1722 | M41: 0.02137045931 | N41: 0.4695266434 | O41: 0.4695266434 | P41: 6.18752253 | Q41: 10.03373167 | R41: 8.803110797 | S41: 8.357196694 | T41: 6.657049173 | U41: 1.70014752 | V41: 65.25453357 | W41: 22.75914247 | X41: 5.812470154 | Y41: 28.57161263 | Z41: 4.4 | AA41: 193.3289009 | AB41: 10.03373167 | AC41: 193.3289009
A42: 1.215442626 | B42: 82.5 | C42: 154.94 | D42: 500 | E42: 0.2 | F42: 980.2321099 | G42: 0.000265849316 | H42: 0.0004311031902 | I42: 154.94 | J42: 0.0188545853 | K42: 1.215442626 | L42: 694370.7089 | M42: 0.02135776765 | N42: 0.4990340343 | O42: 0.4990340343 | P42: 6.380882609 | Q42: 10.34728579 | R42: 8.803110797 | S42: 8.923125669 | T42: 6.879916643 | U42: 2.043209026 | V42: 67.43915208 | W42: 24.25611637 | X42: 7.203621565 | Y42: 31.45973794 | Z42: 4.5375 | AA42: 187.0662199 | AB42: 10.34728579 | AC42: 187.0662199
A43: 1.252274221 | B43: 85 | C43: =C42 -> 154.94 | D43: 500 | E43: 0.2 | F43: 980.2321099 | G43: 0.000265849316 | H43: 0.0004311031902 | I43: 154.94 | J43: 0.0188545853 | K43: 1.252274221 | L43: 715412.2455 | M43: 0.02134576938 | N43: 0.529439178 | O43: 0.529439178 | P43: 6.574242688 | Q43: 10.6608399 | R43: 8.803110797 | S43: 9.490850151 | T43: 7.103681866 | U43: 2.387168284 | V43: 69.63257064 | W43: 25.80397259 | X43: 8.671337785 | Y43: 34.47531038 | Z43: 4.675 | AA43: 181.1736539 | AB43: 10.6608399 | AC43: 181.1736539
A44: 1.289105816 | B44: 87.5 | C44: 154.94 | D44: 500 | E44: 0.2 | F44: 980.2321099 | G44: 0.000265849316 | H44: 0.0004311031902 | I44: 154.94 | J44: 0.0188545853 | K44: 1.289105816 | L44: 736453.7821 | M44: 0.02133440824 | N44: 0.5607420414 | O44: 0.5607420414 | P44: 6.767602767 | Q44: 10.97439402 | R44: 8.803110797 | S44: 10.06037007 | T44: 7.328344809 | U44: 2.732025262 | V44: 71.83478894 | W44: 27.40299875 | X44: 10.21590643 | Y44: 37.61890518 | Z44: 4.8125 | AA44: 175.6194657 | AB44: 10.97439402 | AC44: 175.6194657
A45: 1.32593741 | B45: 90 | C45: 154.94 | D45: 500 | E45: 0.2 | F45: 980.2321099 | G45: 0.000265849316 | H45: 0.0004311031902 | I45: 154.94 | J45: 0.0188545853 | K45: 1.32593741 | L45: 757495.3188 | M45: 0.02132363393 | N45: 0.5929425928 | O45: 0.5929425928 | P45: 6.960962846 | Q45: 11.28794813 | R45: 8.803110797 | S45: 10.63168537 | T45: 7.553905439 | U45: 3.077779929 | V45: 74.04580667 | W45: 29.05348246 | X45: 11.83761511 | Y45: 40.89109757 | Z45: 4.95 | AA45: 170.3754449 | AB45: 11.28794813 | AC45: 170.3754449
A46: 1.362769005 | B46: 92.5 | C46: 154.94 | D46: 500 | E46: 0.2 | F46: 980.2321099 | G46: 0.000265849316 | H46: 0.0004311031902 | I46: 154.94 | J46: 0.0188545853 | K46: 1.362769005 | L46: 778536.8554 | M46: 0.02131340135 | N46: 0.6260408027 | O46: 0.6260408027 | P46: 7.154322925 | Q46: 11.60150225 | R46: 8.803110797 | S46: 11.20479598 | T46: 7.780363728 | U46: 3.424432253 | V46: 76.26562353 | W46: 30.75571132 | X46: 13.53675143 | Y46: 44.29246275 | Z46: 5.0875 | AA46: 165.416431 | AB46: 11.60150225 | AC46: 165.416431
A47: 1.3996006 | B47: 95 | C47: 154.94 | D47: 500 | E47: 0.2 | F47: 980.2321099 | G47: 0.000265849316 | H47: 0.0004311031902 | I47: 154.94 | J47: 0.0188545853 | K47: 1.3996006 | L47: 799578.392 | M47: 0.02130366995 | N47: 0.6600366429 | O47: 0.6600366429 | P47: 7.347683004 | Q47: 11.91505636 | R47: 8.803110797 | S47: 11.77970186 | T47: 8.007719647 | U47: 3.771982208 | V47: 78.49423926 | W47: 32.50997293 | X47: 15.31360298 | Y47: 47.82357591 | Z47: 5.225 | AA47: 160.7199124 | AB47: 11.91505636 | AC47: 160.7199124
A48: 1.436432194 | B48: 97.5 | C48: 154.94 | D48: 500 | E48: 0.2 | F48: 980.2321099 | G48: 0.000265849316 | H48: 0.0004311031902 | I48: 154.94 | J48: 0.0188545853 | K48: 1.436432194 | L48: 820619.9287 | M48: 0.02129440317 | N48: 0.6949300868 | O48: 0.6949300868 | P48: 7.541043084 | Q48: 12.22861048 | R48: 8.803110797 | S48: 12.35640294 | T48: 8.23597317 | U48: 4.120429767 | V48: 80.73165358 | W48: 34.31655488 | X48: 17.16845736 | Y48: 51.48501224 | Z48: 5.3625 | AA48: 156.2656863 | AB48: 12.22861048 | AC48: 156.2656863
A49: 1.473263789 | B49: 100 | C49: 154.94 | D49: 500 | E49: 0.2 | F49: 980.2321099 | G49: 0.000265849316 | H49: 0.0004311031902 | I49: 154.94 | J49: 0.0188545853 | K49: 1.473263789 | L49: 841661.4653 | M49: 0.02128556794 | N49: 0.7307211092 | O49: 0.7307211092 | P49: 7.734403163 | Q49: 12.54216459 | R49: 8.803110797 | S49: 12.93489918 | T49: 8.465124272 | U49: 4.469774904 | V49: 82.97786626 | W49: 36.17574475 | X49: 19.10160216 | Y49: 55.27734691 | Z49: 5.5 | AA49: 152.0355707 | AB49: 12.54216459 | AC49: 152.0355707
A50: 1.510095384 | B50: 102.5 | C50: 154.94 | D50: 500 | E50: 0.2 | F50: 980.2321099 | G50: 0.000265849316 | H50: 0.0004311031902 | I50: 154.94 | J50: 0.0188545853 | K50: 1.510095384 | L50: 862703.0019 | M50: 0.02127713429 | N50: 0.7674096862 | O50: 0.7674096862 | P50: 7.927763242 | Q50: 12.85571871 | R50: 8.803110797 | S50: 13.51519052 | T50: 8.695172928 | U50: 4.820017596 | V50: 85.23287705 | W50: 38.08783013 | X50: 21.11332494 | Y50: 59.20115507 | Z50: 5.6375 | AA50: 148.0131575 | AB50: 12.85571871 | AC50: 148.0131575
A51: 1.546926979 | B51: 105 | C51: 154.94 | D51: 500 | E51: 0.2 | F51: 980.2321099 | G51: 0.000265849316 | H51: 0.0004311031902 | I51: 154.94 | J51: 0.0188545853 | K51: 1.546926979 | L51: 883744.5385 | M51: 0.02126907499 | N51: 0.8049957948 | O51: 0.8049957948 | P51: 8.121123321 | Q51: 13.16927282 | R51: 8.803110797 | S51: 14.09727694 | T51: 8.926119116 | U51: 5.17115782 | V51: 87.49668574 | W51: 40.0530986 | X51: 23.20391329 | Y51: 63.25701189 | Z51: 5.775 | AA51: 144.1836013 | AB51: 13.16927282 | AC51: 144.1836013
A52: 1.583758573 | B52: 107.5 | C52: 154.94 | D52: 500 | E52: 0.2 | F52: 980.2321099 | G52: 0.000265849316 | H52: 0.0004311031902 | I52: 154.94 | J52: 0.0188545853 | K52: 1.583758573 | L52: 904786.0752 | M52: 0.02126136523 | N52: 0.8434794135 | O52: 0.8434794135 | P52: 8.3144834 | Q52: 13.48282694 | R52: 8.803110797 | S52: 14.68115837 | T52: 9.157962813 | U52: 5.523195553 | V52: 89.76929211 | W52: 42.07183771 | X52: 25.37365478 | Y52: 67.4454925 | Z52: 5.9125 | AA52: 140.5334381 | AB52: 13.48282694 | AC52: 140.5334381
A53: 1.620590168 | B53: 110 | C53: 154.94 | D53: 500 | E53: 0.2 | F53: 980.2321099 | G53: 0.000265849316 | H53: 0.0004311031902 | I53: 154.94 | J53: 0.0188545853 | K53: 1.620590168 | L53: 925827.6118 | M53: 0.02125398235 | N53: 0.8828605214 | O53: 0.8828605214 | P53: 8.507843479 | Q53: 13.79638105 | R53: 8.803110797 | S53: 15.26683478 | T53: 9.390704 | U53: 5.876130776 | V53: 92.05069596 | W53: 44.14433504 | X53: 27.62283698 | Y53: 71.76717202 | Z53: 6.05 | AA53: 137.0504277 | AB53: 13.79638105 | AC53: 137.0504277
A54: 1.657421763 | B54: 112.5 | C54: 154.94 | D54: 500 | E54: 0.2 | F54: 980.2321099 | G54: 0.000265849316 | H54: 0.0004311031902 | I54: 154.94 | J54: 0.0188545853 | K54: 1.657421763 | L54: 946869.1484 | M54: 0.02124690566 | N54: 0.9231390989 | O54: 0.9231390989 | P54: 8.701203558 | Q54: 14.10993517 | R54: 8.803110797 | S54: 15.85430612 | T54: 9.624342657 | U54: 6.229963468 | V54: 94.34089709 | W54: 46.27087816 | X54: 29.95174744 | Y54: 76.2226256 | Z54: 6.1875 | AA54: 133.7234184 | AB54: 14.10993517 | AC54: 133.7234184
A55: 1.694253358 | B55: 115 | C55: 154.94 | D55: 500 | E55: 0.2 | F55: 980.2321099 | G55: 0.000265849316 | H55: 0.0004311031902 | I55: 154.94 | J55: 0.0188545853 | K55: 1.694253358 | L55: 967910.6851 | M55: 0.02124011617 | N55: 0.9643151269 | O55: 0.9643151269 | P55: 8.894563637 | Q55: 14.42348928 | R55: 8.803110797 | S55: 16.44357237 | T55: 9.858878764 | U55: 6.584693611 | V55: 96.63989532 | W55: 48.45175461 | X55: 32.36067373 | Y55: 80.81242834 | Z55: 6.325 | AA55: 130.5422281 | AB55: 14.42348928 | AC55: 130.5422281
A56: 1.731084952 | B56: 117.5 | C56: 154.94 | D56: 500 | E56: 0.2 | F56: 980.2321099 | G56: 0.000265849316 | H56: 0.0004311031902 | I56: 154.94 | J56: 0.0188545853 | K56: 1.731084952 | L56: 988952.2217 | M56: 0.02123359643 | N56: 1.006388587 | O56: 1.006388587 | P56: 9.087923716 | Q56: 14.7370434 | R56: 8.803110797 | S56: 17.03463349 | T56: 10.0943123 | U56: 6.940321186 | V56: 98.94769048 | W56: 50.68725195 | X56: 34.84990339 | Y56: 85.53715534 | Z56: 6.4625 | AA56: 127.4975413 | AB56: 14.7370434 | AC56: 127.4975413
A57: 1.767916547 | B57: 120 | C57: 154.94 | D57: 500 | E57: 0.2 | F57: 980.2321099 | G57: 0.000265849316 | H57: 0.0004311031902 | I57: 154.94 | J57: 0.0188545853 | K57: 1.767916547 | L57: 1009993.758 | M57: 0.02122733042 | N57: 1.049359463 | O57: 1.049359463 | P57: 9.281283795 | Q57: 15.05059751 | R57: 8.803110797 | S57: 17.62748943 | T57: 10.33064326 | U57: 7.296846177 | V57: 101.2642824 | W57: 52.97765773 | X57: 37.41972398 | Y57: 90.39738172 | Z57: 6.6 | AA57: 124.5808192 | AB57: 15.05059751 | AC57: 124.5808192
A58: 1.804748142 | B58: 122.5 | C58: 154.94 | D58: 500 | E58: 0.2 | F58: 980.2321099 | G58: 0.000265849316 | H58: 0.0004311031902 | I58: 154.94 | J58: 0.0188545853 | K58: 1.804748142 | L58: 1031035.295 | M58: 0.02122130336 | N58: 1.093227737 | O58: 1.093227737 | P58: 9.474643874 | Q58: 15.36415163 | R58: 8.803110797 | S58: 18.22214018 | T58: 10.56787161 | U58: 7.654268566 | V58: 103.5896709 | W58: 55.32325951 | X58: 40.07042305 | Y58: 95.39368255 | Z58: 6.7375 | AA58: 121.7842199 | AB58: 15.36415163 | AC58: 121.7842199
A59: 1.841579736 | B59: 125 | C59: =C58 -> 154.94 | D59: 500 | E59: 0.2 | F59: 980.2321099 | G59: 0.000265849316 | H59: 0.0004311031902 | I59: 154.94 | J59: 0.0188545853 | K59: 1.841579736 | L59: 1052076.832 | M59: 0.02121550159 | N59: 1.137993394 | O59: 1.137993394 | P59: 9.668003953 | Q59: 15.67770574 | R59: 8.803110797 | S59: 18.81858568 | T59: 10.80599735 | U59: 8.012588337 | V59: 105.9238558 | W59: 57.72434481 | X59: 42.80228813 | Y59: 100.5266329 | Z59: 6.875 | AA59: 119.100529 | AB59: 15.67770574 | AC59: 119.100529
A60: 1.878411331 | B60: 127.5 | C60: 154.94 | D60: 500 | E60: 0.2 | F60: 980.2321099 | G60: 0.000265849316 | H60: 0.0004311031902 | I60: 154.94 | J60: 0.0188545853 | K60: 1.878411331 | L60: 1073118.368 | M60: 0.0212099125 | N60: 1.183656418 | O60: 1.183656418 | P60: 9.861364032 | Q60: 15.99125985 | R60: 8.803110797 | S60: 19.41682593 | T60: 11.04502045 | U60: 8.371805476 | V60: 108.266837 | W60: 60.18120117 | X60: 45.61560676 | Y60: 105.7968079 | Z60: 7.0125 | AA60: 116.523098 | AB60: 15.99125985 | AC60: 116.523098
A61: 1.915242926 | B61: 130 | C61: 154.94 | D61: 500 | E61: 0.2 | F61: 980.2321099 | G61: 0.000265849316 | H61: 0.0004311031902 | I61: 154.94 | J61: 0.0188545853 | K61: 1.915242926 | L61: 1094159.905 | M61: 0.0212045244 | N61: 1.230216795 | O61: 1.230216795 | P61: 10.05472411 | Q61: 16.30481397 | R61: 8.803110797 | S61: 20.01686087 | T61: 11.28494091 | U61: 8.731919968 | V61: 110.6186144 | W61: 62.69411615 | X61: 48.51066649 | Y61: 111.2047826 | Z61: 7.15 | AA61: 114.0457899 | AB61: 16.30481397 | AC61: 114.0457899
A62: 1.952074521 | B62: 132.5 | C62: 154.94 | D62: 500 | E62: 0.2 | F62: 980.2321099 | G62: 0.000265849316 | H62: 0.0004311031902 | I62: 154.94 | J62: 0.0188545853 | K62: 1.952074521 | L62: 1115201.442 | M62: 0.02119932647 | N62: 1.27767451 | O62: 1.27767451 | P62: 10.24808419 | Q62: 16.61836808 | R62: 8.803110797 | S62: 20.6186905 | T62: 11.5257587 | U62: 9.092931798 | V62: 112.9791877 | W62: 65.26337726 | X62: 51.48775484 | Y62: 116.7511321 | Z62: 7.2875 | AA62: 111.6629311 | AB62: 16.61836808 | AC62: 111.6629311
A63: 1.988906115 | B63: 135 | C63: 154.94 | D63: 500 | E63: 0.2 | F63: 980.2321099 | G63: 0.000265849316 | H63: 0.0004311031902 | I63: 154.94 | J63: 0.0188545853 | K63: 1.988906115 | L63: 1136242.978 | M63: 0.02119430863 | N63: 1.32602955 | O63: 1.32602955 | P63: 10.44144427 | Q63: 16.9319222 | R63: 8.803110797 | S63: 21.22231477 | T63: 11.76747382 | U63: 9.454840953 | V63: 115.3485569 | W63: 67.88927204 | X63: 54.54715934 | Y63: 122.4364314 | Z63: 7.425 | AA63: 109.3692682 | AB63: 16.9319222 | AC63: 109.3692682
A64: 2.02573771 | B64: 137.5 | C64: 154.94 | D64: 500 | E64: 0.2 | F64: 980.2321099 | G64: 0.000265849316 | H64: 0.0004311031902 | I64: 154.94 | J64: 0.0188545853 | K64: 2.02573771 | L64: 1157284.515 | M64: 0.02118946153 | N64: 1.375281902 | O64: 1.375281902 | P64: 10.63480435 | Q64: 17.24547631 | R64: 8.803110797 | S64: 21.82773367 | T64: 12.01008625 | U64: 9.817647419 | V64: 117.7267219 | W64: 70.57208801 | X64: 57.68916753 | Y64: 128.2612555 | Z64: 7.5625 | AA64: 107.1599298 | AB64: 17.24547631 | AC64: 107.1599298
A65: 2.062569305 | B65: 140 | C65: 154.94 | D65: 500 | E65: 0.2 | F65: 980.2321099 | G65: 0.000265849316 | H65: 0.0004311031902 | I65: 154.94 | J65: 0.0188545853 | K65: 2.062569305 | L65: 1178326.051 | M65: 0.02118477645 | N65: 1.425431553 | O65: 1.425431553 | P65: 10.82816443 | Q65: 17.55903043 | R65: 8.803110797 | S65: 22.43494716 | T65: 12.25359598 | U65: 10.18135118 | V65: 120.1136824 | W65: 73.3121127 | X65: 60.91406692 | Y65: 134.2261796 | Z65: 7.7 | AA65: 105.0303929 | AB65: 17.55903043 | AC65: 105.0303929
A66: 2.0994009 | B66: 142.5 | C66: 154.94 | D66: 500 | E66: 0.2 | F66: 980.2321099 | G66: 0.000265849316 | H66: 0.0004311031902 | I66: 154.94 | J66: 0.0188545853 | K66: 2.0994009 | L66: 1199367.588 | M66: 0.02118024525 | N66: 1.47647849 | O66: 1.47647849 | P66: 11.02152451 | Q66: 17.87258454 | R66: 8.803110797 | S66: 23.04395523 | T66: 12.498003 | U66: 10.54595224 | V66: 122.5094385 | W66: 76.10963363 | X66: 64.22214503 | Y66: 140.3317787 | Z66: 7.8375 | AA66: 102.9764515 | AB66: 17.87258454 | AC66: 102.9764515
A67: 2.136232494 | B67: 145 | C67: 154.94 | D67: 500 | E67: 0.2 | F67: 980.2321099 | G67: 0.000265849316 | H67: 0.0004311031902 | I67: 154.94 | J67: 0.0188545853 | K67: 2.136232494 | L67: 1220409.125 | M67: 0.02117586036 | N67: 1.528422703 | O67: 1.528422703 | P67: 11.21488459 | Q67: 18.18613866 | R67: 8.803110797 | S67: 23.65475785 | T67: 12.74330729 | U67: 10.91145056 | V67: 124.9139899 | W67: 78.96493833 | X67: 67.61368939 | Y67: 146.5786277 | Z67: 7.975 | AA67: 100.9941902 | AB67: 18.18613866 | AC67: 100.9941902
A68: 2.173064089 | B68: 147.5 | C68: 154.94 | D68: 500 | E68: 0.2 | F68: 980.2321099 | G68: 0.000265849316 | H68: 0.0004311031902 | I68: 154.94 | J68: 0.0188545853 | K68: 2.173064089 | L68: 1241450.661 | M68: 0.02117161466 | N68: 1.581264179 | O68: 1.581264179 | P68: 11.40824466 | Q68: 18.49969277 | R68: 8.803110797 | S68: 24.267355 | T68: 12.98950884 | U68: 11.27784615 | V68: 127.3273366 | W68: 81.87831429 | X68: 71.08898752 | Y68: 152.9673018 | Z68: 8.1125 | AA68: 99.07995872 | AB68: 18.49969277 | AC68: 99.07995872
A69: 2.209895684 | B69: 150 | C69: 154.94 | D69: 500 | E69: 0.2 | F69: 980.2321099 | G69: 0.000265849316 | H69: 0.0004311031902 | I69: 154.94 | J69: 0.0188545853 | K69: 2.209895684 | L69: 1262492.198 | M69: 0.02116750154 | N69: 1.635002907 | O69: 1.635002907 | P69: 11.60160474 | Q69: 18.81324689 | R69: 8.803110797 | S69: 24.88174665 | T69: 13.23660765 | U69: 11.645139 | V69: 129.7494785 | W69: 84.85004905 | X69: 74.64832691 | Y69: 159.498376 | Z69: 8.25 | AA69: 97.2303504 | AB69: 18.81324689 | AC69: 97.2303504
A70: 2.246727278 | B70: 152.5 | C70: 154.94 | D70: 500 | E70: 0.2 | F70: 980.2321099 | G70: 0.000265849316 | H70: 0.0004311031902 | I70: 154.94 | J70: 0.0188545853 | K70: 2.246727278 | L70: 1283533.735 | M70: 0.02116351476 | N70: 1.689638878 | O70: 1.689638878 | P70: 11.79496482 | Q70: 19.126801 | R70: 8.803110797 | S70: 25.49793278 | T70: 13.4846037 | U70: 12.01332908 | V70: 132.1804154 | W70: 87.8804301 | X70: 78.2919951 | Y70: 166.1724252 | Z70: 8.3875 | AA70: 95.44218196 | AB70: 19.126801 | AC70: 95.44218196
A71: 2.283558873 | B71: 155 | C71: 154.94 | D71: 500 | E71: 0.2 | F71: 980.2321099 | G71: 0.000265849316 | H71: 0.0004311031902 | I71: 154.94 | J71: 0.0188545853 | K71: 2.283558873 | L71: 1304575.271 | M71: 0.02115964849 | N71: 1.74517208 | O71: 1.74517208 | P71: 11.9883249 | Q71: 19.44035512 | R71: 8.803110797 | S71: 26.11591338 | T71: 13.73349698 | U71: 12.3824164 | V71: 134.6201472 | W71: 90.96974497 | X71: 82.02027958 | Y71: 172.9900245 | Z71: 8.525 | AA71: 93.71247554 | AB71: 19.44035512 | AC71: 93.71247554
A72: 2.320390468 | B72: 157.5 | C72: 154.94 | D72: 500 | E72: 0.2 | F72: 980.2321099 | G72: 0.000265849316 | H72: 0.0004311031902 | I72: 154.94 | J72: 0.0188545853 | K72: 2.320390468 | L72: 1325616.808 | M72: 0.02115589726 | N72: 1.801602504 | O72: 1.801602504 | P72: 12.18168498 | Q72: 19.75390923 | R72: 8.803110797 | S72: 26.73568842 | T72: 13.98328748 | U72: 12.75240094 | V72: 137.0686739 | W72: 94.11828115 | X72: 85.83346786 | Y72: 179.951749 | Z72: 8.6625 | AA72: 92.03844242 | AB72: 19.75390923 | AC72: 92.03844242
A73: 2.357222063 | B73: 160 | C73: 154.94 | D73: 500 | E73: 0.2 | F73: 980.2321099 | G73: 0.000265849316 | H73: 0.0004311031902 | I73: 154.94 | J73: 0.0188545853 | K73: 2.357222063 | L73: 1346658.344 | M73: 0.02115225592 | N73: 1.858930139 | O73: 1.858930139 | P73: 12.37504506 | Q73: 20.06746335 | R73: 8.803110797 | S73: 27.35725789 | T73: 14.2339752 | U73: 13.12328269 | V73: 139.5259954 | W73: 97.32632615 | X73: 89.73184745 | Y73: 187.0581736 | Z73: 8.8 | AA73: 90.4174682 | AB73: 20.06746335 | AC73: 90.4174682
A74: 2.394053657 | B74: 162.5 | C74: 154.94 | D74: 500 | E74: 0.2 | F74: 980.2321099 | G74: 0.000265849316 | H74: 0.0004311031902 | I74: 154.94 | J74: 0.0188545853 | K74: 2.394053657 | L74: =(F74*K74*I74)/G74/1000 -> 1367699.881 | M74: =(1.14-2*LOG((E74/1000)/(I74/1000)+(21.25/L74^0.9)))^-2 -> 0.02114871963 | N74: =(0.5*F74*K74^2*D74/(I74/1000)*M74/100000) -> 1.917154978 | O74: =(0.5*F74*K74^2*D74/(I74/1000)*M74/100000) -> 1.917154978 | P74: 12.56840514 | Q74: 20.38101746 | R74: 8.803110797 | S74: 27.98062176 | T74: 14.48556012 | U74: 13.49506164 | V74: =T74*(F74/100) -> 141.9921116 | W74: =T74/3600/C$3*B74*100 -> 100.5941675 | X74: =U74/3600/C$3*B74*100 -> 93.71570585 | Y74: 194.3098733 | Z74: 8.9375 | AA74: 88.84709943 | AB74: 20.38101746 | AC74: =AA74 -> 88.84709943
A75: =B75/J75/3600 -> 2.430885252 | B75: 165 | C75: =C74 -> 154.94 | D75: 500 | E75: 0.2 | F75: 980.2321099 | G75: 0.000265849316 | H75: 0.0004311031902 | I75: 154.94 | J75: 0.0188545853 | K75: 2.430885252 | L75: 1388741.418 | M75: 0.02114528383 | N75: 1.976277009 | O75: 1.976277009 | P75: 12.76176522 | Q75: =(B75/3600)*H75/2/PI()/G$4/0.000000000001*(LN(G$3/(C75/2000))+C$4)/100000 -> 20.69457158 | R75: 8.803110797 | S75: =O75+N75+P75+Q75-R75 -> 28.60578002 | T75: =N75+P75 -> 14.73804223 | U75: =O75+Q75-R75 -> 13.86773779 | V75: 144.4670223 | W75: 103.9220926 | X75: 97.78533057 | Y75: =X75+W75 -> 201.7074232 | Z75: 9.075 | AA75: 87.32503138 | AB75: =Q75 -> 20.69457158 | AC75: 87.32503138
A76: 2.467716847 | B76: =B75+2.5 -> 167.5 | C76: 154.94 | D76: 500 | E76: 0.2 | F76: 980.2321099 | G76: 0.000265849316 | H76: 0.0004311031902 | I76: 154.94 | J76: =PI()*(I76/2000)^2 -> 0.0188545853 | K76: =B76/J76/3600 -> 2.467716847 | L76: 1409782.954 | M76: 0.02114194421 | N76: 2.036296226 | O76: 2.036296226 | P76: =(B76/3600)*G76/2/PI()/G$4/0.000000000001*(LN(G$3/(C76/2000))+C$4)/100000 -> 12.9551253 | Q76: 21.00812569 | R76: =R75 -> 8.803110797 | S76: 29.23273264 | T76: 14.99142152 | U76: 14.24131112 | V76: 146.9507275 | W76: 107.3103891 | X76: 101.9410091 | Y76: 209.2513982 | Z76: =B76*(C$1-C$2)*1.1/1000 -> 9.2125 | AA76: =Z76/(W76/1000) -> 85.84909697 | AB76: 21.00812569 | AC76: 85.84909697
A77: 2.504548442 | B77: 170 | C77: 154.94 | D77: 500 | E77: 0.2 | F77: 980.2321099 | G77: 0.000265849316 | H77: 0.0004311031902 | I77: 154.94 | J77: 0.0188545853 | K77: 2.504548442 | L77: 1430824.491 | M77: 0.02113869674 | N77: 2.097212618 | O77: 2.097212618 | P77: 13.14848538 | Q77: 21.32167981 | R77: 8.803110797 | S77: 29.86147962 | T77: 15.24569799 | U77: 14.61578163 | V77: 149.4432271 | W77: 110.7593444 | X77: 106.1830289 | Y77: 216.9423733 | Z77: 9.35 | AA77: 84.41725662 | AB77: 21.32167981 | AC77: 84.41725662
A78: 2.541380036 | B78: 172.5 | C78: 154.94 | D78: 500 | E78: 0.2 | F78: 980.2321099 | G78: 0.000265849316 | H78: 0.0004311031902 | I78: 154.94 | J78: 0.0188545853 | K78: 2.541380036 | L78: 1451866.028 | M78: 0.02113553757 | N78: 2.159026178 | O78: 2.159026178 | P78: 13.34184546 | Q78: 21.63523392 | R78: 8.803110797 | S78: 30.49202094 | T78: 15.50087163 | U78: 14.9911493 | V78: 151.9445211 | W78: 114.269246 | X78: 110.5116776 | Y78: 224.7809236 | Z78: 9.4875 | AA78: 83.02758905 | AB78: 21.63523392 | AC78: 83.02758905
A79: 2.578211631 | B79: 175 | C79: 154.94 | D79: 500 | E79: 0.2 | F79: 980.2321099 | G79: 0.000265849316 | H79: 0.0004311031902 | I79: 154.94 | J79: 0.0188545853 | K79: 2.578211631 | L79: 1472907.564 | M79: 0.0211324631 | N79: 2.221736898 | O79: 2.221736898 | P79: 13.53520553 | Q79: 21.94878804 | R79: 8.803110797 | S79: 31.12435657 | T79: 15.75694243 | U79: 15.36741414 | V79: 154.4546093 | W79: 117.8403814 | X79: 114.9272425 | Y79: 232.7676239 | Z79: 9.625 | AA79: 81.67828279 | AB79: 21.94878804 | AC79: 81.67828279
A80: 2.615043226 | B80: 177.5 | C80: 154.94 | D80: 500 | E80: 0.2 | F80: 980.2321099 | G80: 0.000265849316 | H80: 0.0004311031902 | I80: 154.94 | J80: 0.0188545853 | K80: 2.615043226 | L80: 1493949.101 | M80: 0.02112946991 | N80: 2.28534477 | O80: 2.28534477 | P80: 13.72856561 | Q80: 22.26234215 | R80: 8.803110797 | S80: 31.75848651 | T80: 16.01391038 | U80: 15.74457612 | V80: 156.9734916 | W80: 121.4730382 | X80: 119.4300112 | Y80: 240.9030494 | Z80: 9.7625 | AA80: 80.36762847 | AB80: 22.26234215 | AC80: 80.36762847
A81: 2.65187482 | B81: 180 | C81: 154.94 | D81: 500 | E81: 0.2 | F81: 980.2321099 | G81: 0.000265849316 | H81: 0.0004311031902 | I81: 154.94 | J81: 0.0188545853 | K81: 2.65187482 | L81: 1514990.638 | M81: 0.02112655476 | N81: 2.349849786 | O81: 2.349849786 | P81: 13.92192569 | Q81: 22.57589627 | R81: 8.803110797 | S81: 32.39441073 | T81: 16.27177548 | U81: 16.12263525 | V81: 159.5011681 | W81: 125.1675037 | X81: 124.0202712 | Y81: 249.1877749 | Z81: 9.9 | AA81: 79.0940117 | AB81: 22.57589627 | AC81: 79.0940117
A82: 2.688706415 | B82: 182.5 | C82: 154.94 | D82: 500 | E82: 0.2 | F82: 980.2321099 | G82: 0.000265849316 | H82: 0.0004311031902 | I82: 154.94 | J82: 0.0188545853 | K82: 2.688706415 | L82: 1536032.174 | M82: 0.02112371458 | N82: 2.415251938 | O82: 2.415251938 | P82: 14.11528577 | Q82: 22.88945038 | R82: 8.803110797 | S82: 33.03212923 | T82: 16.53053771 | U82: 16.50159152 | V82: 162.0376386 | W82: 128.9240655 | X82: 128.6983099 | Y82: 257.6223754 | Z82: 10.0375 | AA82: 77.8559066 | AB82: 22.88945038 | AC82: 77.8559066
A83: 2.72553801 | B83: 185 | C83: 154.94 | D83: 500 | E83: 0.2 | F83: 980.2321099 | G83: 0.000265849316 | H83: 0.0004311031902 | I83: 154.94 | J83: 0.0188545853 | K83: 2.72553801 | L83: 1557073.711 | M83: 0.02112094647 | N83: 2.48155122 | O83: 2.48155122 | P83: 14.30864585 | Q83: 23.2030045 | R83: 8.803110797 | S83: 33.67164199 | T83: 16.79019707 | U83: 16.88144492 | V83: 164.582903 | W83: 132.743011 | X83: 133.464415 | Y83: 266.207426 | Z83: 10.175 | AA83: 76.65186981 | AB83: 23.2030045 | AC83: 76.65186981
A84: 2.762369605 | B84: 187.5 | C84: 154.94 | D84: 500 | E84: 0.2 | F84: 980.2321099 | G84: 0.000265849316 | H84: 0.0004311031902 | I84: 154.94 | J84: 0.0188545853 | K84: 2.762369605 | L84: 1578115.247 | M84: 0.02111824767 | N84: 2.548747625 | O84: 2.548747625 | P84: 14.50200593 | Q84: 23.51655861 | R84: 8.803110797 | S84: 34.31294899 | T84: 17.05075355 | U84: 17.26219544 | V84: 167.1369613 | W84: 136.6246278 | X84: 138.3188737 | Y84: 274.9435015 | Z84: 10.3125 | AA84: 75.48053497 | AB84: 23.51655861 | AC84: 75.48053497
A85: 2.799201199 | B85: 190 | C85: 154.94 | D85: 500 | E85: 0.2 | F85: 980.2321099 | G85: 0.000265849316 | H85: 0.0004311031902 | I85: 154.94 | J85: 0.0188545853 | K85: 2.799201199 | L85: 1599156.784 | M85: 0.02111561557 | N85: 2.616841145 | O85: 2.616841145 | P85: 14.69536601 | Q85: 23.83011273 | R85: 8.803110797 | S85: 34.95605023 | T85: 17.31220715 | U85: 17.64384307 | V85: 169.6998135 | W85: 140.5692034 | X85: 143.2619737 | Y85: 283.8311771 | Z85: 10.45 | AA85: 74.34060767 | AB85: 23.83011273 | AC85: 74.34060767
A86: 2.836032794 | B86: 192.5 | C86: 154.94 | D86: 500 | E86: 0.2 | F86: 980.2321099 | G86: 0.000265849316 | H86: 0.0004311031902 | I86: 154.94 | J86: 0.0188545853 | K86: 2.836032794 | L86: 1620198.321 | M86: 0.02111304769 | N86: 2.685831774 | O86: 2.685831774 | P86: 14.88872609 | Q86: 24.14366684 | R86: 8.803110797 | S86: 35.60094568 | T86: 17.57455786 | U86: 18.02638782 | V86: 172.2714593 | W86: 144.5770251 | X86: 148.2940023 | Y86: 292.8710275 | Z86: 10.5875 | AA86: 73.23086078 | AB86: 24.14366684 | AC86: 73.23086078
A87: 2.872864389 | B87: 195 | C87: 154.94 | D87: 500 | E87: 0.2 | F87: 980.2321099 | G87: 0.000265849316 | H87: 0.0004311031902 | I87: 154.94 | J87: 0.0188545853 | K87: 2.872864389 | L87: 1641239.857 | M87: 0.02111054165 | N87: 2.755719505 | O87: 2.755719505 | P87: 15.08208617 | Q87: 24.45722095 | R87: 8.803110797 | S87: 36.24763534 | T87: 17.83780567 | U87: 18.40982966 | V87: 174.8518989 | W87: 148.6483806 | X87: 153.4152472 | Y87: 302.0636278 | Z87: 10.725 | AA87: 72.1501301 | AB87: 24.45722095 | AC87: 72.1501301
A88: 2.909695984 | B88: 197.5 | C88: 154.94 | D88: 500 | E88: 0.2 | F88: 980.2321099 | G88: 0.000265849316 | H88: 0.0004311031902 | I88: 154.94 | J88: 0.0188545853 | K88: 2.909695984 | L88: 1662281.394 | M88: 0.02110809522 | N88: 2.826504333 | O88: 2.826504333 | P88: 15.27544625 | Q88: 24.77077507 | R88: 8.803110797 | S88: 36.89611918 | T88: 18.10195058 | U88: 18.79416861 | V88: 177.4411321 | W88: 152.7835572 | X88: 158.6259957 | Y88: 311.4095529 | Z88: 10.8625 | AA88: 71.09731045 | AB88: 24.77077507 | AC88: 71.09731045
A89: 2.946527578 | B89: =B88+2.5 -> 200 | C89: 154.94 | D89: 500 | E89: 0.2 | F89: 980.2321099 | G89: 0.000265849316 | H89: 0.0004311031902 | I89: 154.94 | J89: =PI()*(I89/2000)^2 -> 0.0188545853 | K89: =B89/J89/3600 -> 2.946527578 | L89: 1683322.931 | M89: 0.02110570625 | N89: 2.89818625 | O89: 2.89818625 | P89: =(B89/3600)*G89/2/PI()/G$4/0.000000000001*(LN(G$3/(C89/2000))+C$4)/100000 -> 15.46880633 | Q89: 25.08432918 | R89: =R88 -> 8.803110797 | S89: 37.54639721 | T89: 18.36699258 | U89: 19.17940464 | V89: 180.0391589 | W89: 156.9828425 | X89: 163.9265354 | Y89: 320.9093779 | Z89: =B89*(C$1-C$2)*1.1/1000 -> 11 | AA89: =Z89/(W89/1000) -> 70.0713519 | AB89: 25.08432918 | AC89: 70.0713519
A90: 2.983359173 | B90: =B89+2.5 -> 202.5 | C90: 154.94 | D90: 500 | E90: 0.2 | F90: 980.2321099 | G90: 0.000265849316 | H90: 0.0004311031902 | I90: 154.94 | J90: =PI()*(I90/2000)^2 -> 0.0188545853 | K90: =B90/J90/3600 -> 2.983359173 | L90: 1704364.467 | M90: 0.02110337271 | N90: 2.970765251 | O90: 2.970765251 | P90: =(B90/3600)*G90/2/PI()/G$4/0.000000000001*(LN(G$3/(C90/2000))+C$4)/100000 -> 15.6621664 | Q90: 25.3978833 | R90: =R89 -> 8.803110797 | S90: 38.19846941 | T90: 18.63293166 | U90: 19.56553775 | V90: 182.6459791 | W90: 161.2465239 | X90: 169.3171536 | Y90: 330.5636776 | Z90: =B90*(C$1-C$2)*1.1/1000 -> 11.1375 | AA90: =Z90/(W90/1000) -> 69.07125641 | AB90: 25.3978833 | AC90: 69.07125641
A91: 3.020190768 | B91: 205 | C91: =C90 -> 154.94 | D91: 500 | E91: 0.2 | F91: 980.2321099 | G91: 0.000265849316 | H91: 0.0004311031902 | I91: 154.94 | J91: 0.0188545853 | K91: 3.020190768 | L91: 1725406.004 | M91: 0.02110109266 | N91: 3.04424133 | O91: 3.04424133 | P91: 15.85552648 | Q91: 25.71143741 | R91: 8.803110797 | S91: 38.85233576 | T91: 18.89976781 | U91: 19.95256795 | V91: 185.2615928 | W91: 165.574889 | X91: 174.798138 | Y91: 340.373027 | Z91: 11.275 | AA91: 68.09607466 | AB91: 25.71143741 | AC91: 68.09607466
A92: 3.057022362 | B92: 207.5 | C92: 154.94 | D92: 500 | E92: 0.2 | F92: 980.2321099 | G92: 0.000265849316 | H92: 0.0004311031902 | I92: 154.94 | J92: 0.0188545853 | K92: 3.057022362 | L92: 1746447.54 | M92: 0.02109886425 | N92: 3.118614481 | O92: 3.118614481 | P92: 16.04888656 | Q92: 26.02499153 | R92: 8.803110797 | S92: 39.50799626 | T92: 19.16750104 | U92: 20.34049521 | V92: 187.8859999 | W92: 169.9682251 | X92: 180.3697759 | Y92: 350.338001 | Z92: 11.4125 | AA92: 67.14490309 | AB92: 26.02499153 | AC92: 67.14490309
A93: 3.093853957 | B93: 210 | C93: 154.94 | D93: 500 | E93: 0.2 | F93: 980.2321099 | G93: 0.000265849316 | H93: 0.0004311031902 | I93: 154.94 | J93: 0.0188545853 | K93: 3.093853957 | L93: 1767489.077 | M93: 0.02109668572 | N93: 3.193884698 | O93: 3.193884698 | P93: 16.24224664 | Q93: 26.33854564 | R93: 8.803110797 | S93: 40.16545088 | T93: 19.43613134 | U93: 20.72931954 | V93: 190.5192003 | W93: 174.4268197 | X93: 186.0323549 | Y93: 360.4591746 | Z93: 11.55 | AA93: 66.21688121 | AB93: 26.33854564 | AC93: 66.21688121
A94: 3.130685552 | B94: 212.5 | C94: 154.94 | D94: 500 | E94: 0.2 | F94: 980.2321099 | G94: 0.000265849316 | H94: 0.0004311031902 | I94: 154.94 | J94: 0.0188545853 | K94: 3.130685552 | L94: 1788530.614 | M94: 0.02109455537 | N94: 3.270051976 | O94: 3.270051976 | P94: 16.43560672 | Q94: 26.65209976 | R94: 8.803110797 | S94: 40.82469963 | T94: 19.7056587 | U94: 21.11904094 | V94: 193.161194 | W94: 178.9509604 | X94: 191.7861624 | Y94: 370.7371228 | Z94: 11.6875 | AA94: 65.31118902 | AB94: 26.65209976 | AC94: 65.31118902
A95: 3.167517147 | B95: 215 | C95: 154.94 | D95: 500 | E95: 0.2 | F95: 980.2321099 | G95: 0.000265849316 | H95: 0.0004311031902 | I95: 154.94 | J95: 0.0188545853 | K95: 3.167517147 | L95: 1809572.15 | M95: 0.02109247161 | N95: 3.34711631 | O95: 3.34711631 | P95: 16.6289668 | Q95: 26.96565387 | R95: 8.803110797 | S95: 41.4857425 | T95: 19.97608311 | U95: 21.50965939 | V95: 195.811981 | W95: 183.5409346 | X95: 197.6314858 | Y95: 381.1724204 | Z95: 11.825 | AA95: 64.42704473 | AB95: 26.96565387 | AC95: 64.42704473
A96: 3.204348741 | B96: 217.5 | C96: 154.94 | D96: 500 | E96: 0.2 | F96: 980.2321099 | G96: 0.000265849316 | H96: 0.0004311031902 | I96: 154.94 | J96: 0.0188545853 | K96: 3.204348741 | L96: 1830613.687 | M96: 0.02109043289 | N96: 3.425077695 | O96: 3.425077695 | P96: 16.82232688 | Q96: 27.27920799 | R96: 8.803110797 | S96: 42.14857946 | T96: 20.24740457 | U96: 21.90117489 | V96: 198.4715611 | W96: 188.1970297 | X96: 203.5686127 | Y96: 391.7656424 | Z96: 11.9625 | AA96: 63.56370247 | AB96: 27.27920799 | AC96: 63.56370247
A97: 3.241180336 | B97: 220 | C97: 154.94 | D97: 500 | E97: 0.2 | F97: 980.2321099 | G97: 0.000265849316 | H97: 0.0004311031902 | I97: 154.94 | J97: 0.0188545853 | K97: 3.241180336 | L97: 1851655.224 | M97: 0.02108843774 | N97: 3.503936124 | O97: 3.503936124 | P97: 17.01568696 | Q97: 27.5927621 | R97: 8.803110797 | S97: 42.81321051 | T97: 20.51962308 | U97: 22.29358743 | V97: 201.1399343 | W97: 192.9195332 | X97: 209.5978305 | Y97: 402.5173638 | Z97: 12.1 | AA97: 62.72045032 | AB97: 27.5927621 | AC97: 62.72045032
A98: 3.278011931 | B98: 222.5 | C98: 154.94 | D98: 500 | E98: 0.2 | F98: 980.2321099 | G98: 0.000265849316 | H98: 0.0004311031902 | I98: 154.94 | J98: 0.0188545853 | K98: 3.278011931 | L98: 1872696.76 | M98: 0.02108648476 | N98: 3.583691594 | O98: 3.583691594 | P98: 17.20904704 | Q98: 27.90631622 | R98: 8.803110797 | S98: 43.47963565 | T98: 20.79273863 | U98: 22.68689701 | V98: 203.8171006 | W98: 197.7087327 | X98: 215.7194267 | Y98: 413.4281594 | Z98: 12.2375 | AA98: 61.89660837 | AB98: 27.90631622 | AC98: 61.89660837
A99: 3.314843526 | B99: 225 | C99: 154.94 | D99: 500 | E99: 0.2 | F99: 980.2321099 | G99: 0.000265849316 | H99: 0.0004311031902 | I99: 154.94 | J99: 0.0188545853 | K99: 3.314843526 | L99: 1893738.297 | M99: 0.0210845726 | N99: 3.664344099 | O99: 3.664344099 | P99: 17.40240712 | Q99: 28.21987033 | R99: 8.803110797 | S99: 44.14785485 | T99: 21.06675121 | U99: 23.08110363 | V99: 206.5030599 | W99: 202.5649155 | X99: 221.9336888 | Y99: 424.4986043 | Z99: 12.375 | AA99: 61.09152697 | AB99: 28.21987033 | AC99: 61.09152697
A100: 3.35167512 | B100: 227.5 | C100: 154.94 | D100: 500 | E100: 0.2 | F100: 980.2321099 | G100: 0.000265849316 | H100: 0.0004311031902 | I100: 154.94 | J100: 0.0188545853 | K100: 3.35167512 | L100: 1914779.834 | M100: 0.02108269997 | N100: 3.745893635 | O100: 3.745893635 | P100: 17.59576719 | Q100: 28.53342445 | R100: 8.803110797 | S100: 44.81786811 | T100: 21.34166083 | U100: 23.47620728 | V100: 209.1978122 | W100: 207.4883692 | X100: 228.2409042 | Y100: 435.7292733 | Z100: 12.5125 | AA100: 60.30458502 | AB100: 28.53342445 | AC100: 60.30458502
A101: 3.388506715 | B101: 230 | C101: 154.94 | D101: 500 | E101: 0.2 | F101: 980.2321099 | G101: 0.000265849316 | H101: 0.0004311031902 | I101: 154.94 | J101: 0.0188545853 | K101: 3.388506715 | L101: 1935821.37 | M101: 0.02108086564 | N101: 3.828340196 | O101: 3.828340196 | P101: 17.78912727 | Q101: 28.84697856 | R101: 8.803110797 | S101: 45.48967543 | T101: 21.61746747 | U101: 23.87220796 | V101: 211.9013575 | W101: 212.4793811 | X101: 234.6413603 | Y101: 447.1207414 | Z101: 12.65 | AA101: 59.53518847 | AB101: 28.84697856 | AC101: 59.53518847
A102: 3.42533831 | B102: 232.5 | C102: 154.94 | D102: 500 | E102: 0.2 | F102: 980.2321099 | G102: 0.000265849316 | H102: 0.0004311031902 | I102: 154.94 | J102: 0.0188545853 | K102: 3.42533831 | L102: 1956862.907 | M102: 0.02107906842 | N102: 3.911683778 | O102: 3.911683778 | P102: 17.98248735 | Q102: 29.16053268 | R102: 8.803110797 | S102: 46.16327679 | T102: 21.89417113 | U102: 24.26910566 | V102: 214.6136956 | W102: 217.5382388 | X102: 241.1353447 | Y102: 458.6735835 | Z102: 12.7875 | AA102: 58.78276881 | AB102: 29.16053268 | AC102: 58.78276881
A103: 3.462169904 | B103: 235 | C103: 154.94 | D103: 500 | E103: 0.2 | F103: 980.2321099 | G103: 0.000265849316 | H103: 0.0004311031902 | I103: 154.94 | J103: 0.0188545853 | K103: 3.462169904 | L103: 1977904.443 | M103: 0.02107730718 | N103: 3.995924377 | O103: 3.995924377 | P103: 18.17584743 | Q103: 29.47408679 | R103: 8.803110797 | S103: 46.83867218 | T103: 22.17177181 | U103: 24.66690037 | V103: 217.3348266 | W103: 222.6652297 | X103: 247.7231448 | Y103: 470.3883745 | Z103: 12.925 | AA103: 58.04678178 | AB103: 29.47408679 | AC103: 58.04678178
A104: 3.499001499 | B104: 237.5 | C104: 154.94 | D104: 500 | E104: 0.2 | F104: 980.2321099 | G104: 0.000265849316 | H104: 0.0004311031902 | I104: 154.94 | J104: 0.0188545853 | K104: 3.499001499 | L104: 1998945.98 | M104: 0.02107558084 | N104: 4.081061989 | O104: 4.081061989 | P104: 18.36920751 | Q104: 29.78764091 | R104: 8.803110797 | S104: 47.5158616 | T104: 22.4502695 | U104: 25.0655921 | V104: 220.0647504 | W104: 227.8606413 | X104: 254.405048 | Y104: 482.2656893 | Z104: 13.0625 | AA104: 57.32670603 | AB104: 29.78764091 | AC104: 57.32670603
A105: 3.535833094 | B105: 240 | C105: 154.94 | D105: 500 | E105: 0.2 | F105: 980.2321099 | G105: 0.000265849316 | H105: 0.0004311031902 | I105: 154.94 | J105: 0.0188545853 | K105: 3.535833094 | L105: 2019987.517 | M105: 0.02107388834 | N105: 4.167096608 | O105: 4.167096608 | P105: 18.56256759 | Q105: 30.10119502 | R105: 8.803110797 | S105: 48.19484503 | T105: 22.7296642 | U105: 25.46518083 | V105: 222.803467 | W105: 233.124761 | X105: 261.1813419 | Y105: 494.3061029 | Z105: 13.2 | AA105: 56.62204196 | AB105: 30.10119502 | AC105: 56.62204196
A106: 3.572664689 | B106: 242.5 | C106: 154.94 | D106: 500 | E106: 0.2 | F106: 980.2321099 | G106: 0.000265849316 | H106: 0.0004311031902 | I106: 154.94 | J106: 0.0188545853 | K106: 3.572664689 | L106: 2041029.053 | M106: 0.02107222868 | N106: 4.254028231 | O106: 4.254028231 | P106: 18.75592767 | Q106: 30.41474914 | R106: 8.803110797 | S106: 48.87562247 | T106: 23.0099559 | U106: 25.86566657 | V106: 225.5509762 | W106: 238.4578763 | X106: 268.0523138 | Y106: 506.5101901 | Z106: 13.3375 | AA106: 55.93231059 | AB106: 30.41474914 | AC106: 55.93231059
A107: 3.609496283 | B107: 245 | C107: =C106 -> 154.94 | D107: 500 | E107: 0.2 | F107: 980.2321099 | G107: 0.000265849316 | H107: 0.0004311031902 | I107: 154.94 | J107: 0.0188545853 | K107: 3.609496283 | L107: 2062070.59 | M107: 0.02107060091 | N107: 4.341856854 | O107: 4.341856854 | P107: 18.94928775 | Q107: 30.72830325 | R107: 8.803110797 | S107: 49.55819391 | T107: 23.2911446 | U107: 26.26704931 | V107: 228.3072782 | W107: 243.8602747 | X107: 275.0182513 | Y107: 518.878526 | Z107: 13.475 | AA107: 55.2570525 | AB107: 30.72830325 | AC107: 55.2570525
A108: 3.646327878 | B108: 247.5 | C108: 154.94 | D108: 500 | E108: 0.2 | F108: 980.2321099 | G108: 0.000265849316 | H108: 0.0004311031902 | I108: 154.94 | J108: 0.0188545853 | K108: 3.646327878 | L108: 2083112.127 | M108: 0.02106900409 | N108: 4.430582472 | O108: 4.430582472 | P108: 19.14264783 | Q108: 31.04185737 | R108: 8.803110797 | S108: 50.24255934 | T108: 23.5732303 | U108: 26.66932904 | V108: 231.0723727 | W108: 249.3322436 | X108: 282.0794418 | Y108: 531.4116853 | Z108: 13.6125 | AA108: 54.59582686 | AB108: 31.04185737 | AC108: 54.59582686
A109: 3.683159473 | B109: 250 | C109: 154.94 | D109: 500 | E109: 0.2 | F109: 980.2321099 | G109: 0.000265849316 | H109: 0.0004311031902 | I109: 154.94 | J109: 0.0188545853 | K109: 3.683159473 | L109: 2104153.663 | M109: 0.02106743734 | N109: 4.520205082 | O109: 4.520205082 | P109: 19.33600791 | Q109: 31.35541148 | R109: 8.803110797 | S109: 50.92871875 | T109: 23.85621299 | U109: 27.07250576 | V109: 233.8462599 | W109: 254.8740704 | X109: 289.2361727 | Y109: 544.1102431 | Z109: 13.75 | AA109: 53.9482105 | AB109: 31.35541148 | AC109: 53.9482105
A110: 3.719991068 | B110: 252.5 | C110: 154.94 | D110: 500 | E110: 0.2 | F110: 980.2321099 | G110: 0.000265849316 | H110: 0.0004311031902 | I110: 154.94 | J110: 0.0188545853 | K110: 3.719991068 | L110: 2125195.2 | M110: 0.02106589979 | N110: 4.610724679 | O110: 4.610724679 | P110: 19.52936799 | Q110: 31.6689656 | R110: 8.803110797 | S110: 51.61667214 | T110: 24.14009266 | U110: 27.47657948 | V110: 236.6289397 | W110: 260.4860426 | X110: 296.4887315 | Y110: 556.9747742 | Z110: 13.8875 | AA110: 53.31379701 | AB110: 31.6689656 | AC110: 53.31379701
A111: 3.756822662 | B111: 255 | C111: 154.94 | D111: 500 | E111: 0.2 | F111: 980.2321099 | G111: 0.000265849316 | H111: 0.0004311031902 | I111: 154.94 | J111: 0.0188545853 | K111: 3.756822662 | L111: 2146236.736 | M111: 0.02106439063 | N111: 4.70214126 | O111: 4.70214126 | P111: 19.72272806 | Q111: 31.98251971 | R111: 8.803110797 | S111: 52.3064195 | T111: 24.42486932 | U111: 27.88155017 | V111: 239.4204119 | W111: 266.1684478 | X111: 303.8374057 | Y111: 570.0058535 | Z111: 14.025 | AA111: 52.69219593 | AB111: 31.98251971 | AC111: 52.69219593
A112: 3.793654257 | B112: 257.5 | C112: 154.94 | D112: 500 | E112: 0.2 | F112: 980.2321099 | G112: 0.000265849316 | H112: 0.0004311031902 | I112: 154.94 | J112: 0.0188545853 | K112: 3.793654257 | L112: 2167278.273 | M112: 0.02106290906 | N112: 4.794454821 | O112: 4.794454821 | P112: 19.91608814 | Q112: 32.29607382 | R112: 8.803110797 | S112: 52.99796081 | T112: 24.71054296 | U112: 28.28741785 | V112: 242.2206767 | W112: 271.9215732 | X112: 311.2824827 | Y112: 583.204056 | Z112: 14.1625 | AA112: 52.083032 | AB112: 32.29607382 | AC112: 52.083032
A113: 3.830485852 | B113: 260 | C113: 154.94 | D113: 500 | E113: 0.2 | F113: 980.2321099 | G113: 0.000265849316 | H113: 0.0004311031902 | I113: 154.94 | J113: 0.0188545853 | K113: 3.830485852 | L113: 2188319.81 | M113: 0.02106145432 | N113: 4.887665358 | O113: 4.887665358 | P113: 20.10944822 | Q113: 32.60962794 | R113: 8.803110797 | S113: 53.69129608 | T113: 24.99711358 | U113: 28.6941825 | V113: 245.0297339 | W113: 277.7457065 | X113: 318.82425 | Y113: 596.5699565 | Z113: 14.3 | AA113: 51.4859444 | AB113: 32.60962794 | AC113: 51.4859444
A114: 3.867317447 | B114: 262.5 | C114: 154.94 | D114: 500 | E114: 0.2 | F114: 980.2321099 | G114: 0.000265849316 | H114: 0.0004311031902 | I114: 154.94 | J114: 0.0188545853 | K114: 3.867317447 | L114: 2209361.346 | M114: 0.02106002568 | N114: 4.981772868 | O114: 4.981772868 | P114: 20.3028083 | Q114: 32.92318205 | R114: 8.803110797 | S114: 54.38642529 | T114: 25.28458117 | U114: 29.10184412 | V114: 247.8475835 | W114: 283.6411349 | X114: 326.462995 | Y114: 610.1041299 | Z114: 14.4375 | AA114: 50.90058607 | AB114: 32.92318205 | AC114: 50.90058607
A115: 3.904149041 | B115: 265 | C115: 154.94 | D115: 500 | E115: 0.2 | F115: 980.2321099 | G115: 0.000265849316 | H115: 0.0004311031902 | I115: 154.94 | J115: 0.0188545853 | K115: 3.904149041 | L115: 2230402.883 | M115: 0.02105862243 | N115: 5.076777347 | O115: 5.076777347 | P115: 20.49616838 | Q115: 33.23673617 | R115: 8.803110797 | S115: 55.08334845 | T115: 25.57294573 | U115: 29.51040272 | V115: 250.6742255 | W115: 289.6081461 | X115: 334.1990051 | Y115: 623.8071512 | Z115: 14.575 | AA115: 50.32662305 | AB115: 33.23673617 | AC115: 50.32662305
A116: 3.940980636 | B116: 267.5 | C116: 154.94 | D116: 500 | E116: 0.2 | F116: 980.2321099 | G116: 0.000265849316 | H116: 0.0004311031902 | I116: 154.94 | J116: 0.0188545853 | K116: 3.940980636 | L116: 2251444.42 | M116: 0.02105724388 | N116: 5.172678791 | O116: 5.172678791 | P116: 20.68952846 | Q116: 33.55029028 | R116: 8.803110797 | S116: 55.78206553 | T116: 25.86220725 | U116: 29.91985828 | V116: 253.5096598 | W116: 295.6470273 | X116: 342.0325679 | Y116: 637.6795953 | Z116: 14.7125 | AA116: 49.76373391 | AB116: 33.55029028 | AC116: 49.76373391
A117: 3.977812231 | B117: 270 | C117: 154.94 | D117: 500 | E117: 0.2 | F117: 980.2321099 | G117: 0.000265849316 | H117: 0.0004311031902 | I117: 154.94 | J117: 0.0188545853 | K117: 3.977812231 | L117: 2272485.956 | M117: 0.02105588937 | N117: 5.269477198 | O117: 5.269477198 | P117: 20.88288854 | Q117: 33.8638444 | R117: 8.803110797 | S117: 56.48257654 | T117: 26.15236574 | U117: 30.3302108 | V117: 256.3538865 | W117: 301.7580662 | X117: 349.9639708 | Y117: 651.722037 | Z117: 14.85 | AA117: 49.21160911 | AB117: 33.8638444 | AC117: 49.21160911
A118: 4.014643825 | B118: 272.5 | C118: 154.94 | D118: 500 | E118: 0.2 | F118: 980.2321099 | G118: 0.000265849316 | H118: 0.0004311031902 | I118: 154.94 | J118: 0.0188545853 | K118: 4.014643825 | L118: 2293527.493 | M118: 0.02105455828 | N118: 5.367172563 | O118: 5.367172563 | P118: 21.07624862 | Q118: 34.17739851 | R118: 8.803110797 | S118: 57.18488146 | T118: 26.44342118 | U118: 30.74146028 | V118: 259.2069054 | W118: 307.9415501 | X118: 357.9935011 | Y118: 665.9350512 | Z118: 14.9875 | AA118: 48.6699505 | AB118: 34.17739851 | AC118: 48.6699505
A119: 4.05147542 | B119: 275 | C119: 154.94 | D119: 500 | E119: 0.2 | F119: 980.2321099 | G119: 0.000265849316 | H119: 0.0004311031902 | I119: 154.94 | J119: 0.0188545853 | K119: 4.05147542 | L119: 2314569.03 | M119: 0.02105324999 | N119: 5.465764884 | O119: 5.465764884 | P119: 21.2696087 | Q119: 34.49095263 | R119: 8.803110797 | S119: 57.8889803 | T119: 26.73537358 | U119: 31.15360672 | V119: 262.0687166 | W119: 314.1977664 | X119: 366.1214464 | Y119: 680.3192129 | Z119: 15.125 | AA119: 48.13847078 | AB119: 34.49095263 | AC119: 48.13847078
A120: 4.088307015 | B120: 277.5 | C120: 154.94 | D120: 500 | E120: 0.2 | F120: 980.2321099 | G120: 0.000265849316 | H120: 0.0004311031902 | I120: 154.94 | J120: 0.0188545853 | K120: 4.088307015 | L120: 2335610.566 | M120: 0.02105196391 | N120: 5.565254158 | O120: 5.565254158 | P120: 21.46296878 | Q120: 34.80450674 | R120: 8.803110797 | S120: 58.59487304 | T120: 27.02822293 | U120: 31.5666501 | V120: 264.9393199 | W120: 320.5270027 | X120: 374.3480942 | Y120: 694.8750969 | Z120: 15.2625 | AA120: 47.61689302 | AB120: 34.80450674 | AC120: 47.61689302
A121: 4.12513861 | B121: 280 | C121: 154.94 | D121: 500 | E121: 0.2 | F121: 980.2321099 | G121: 0.000265849316 | H121: 0.0004311031902 | I121: 154.94 | J121: 0.0188545853 | K121: 4.12513861 | L121: 2356652.103 | M121: 0.02105069946 | N121: 5.66564038 | O121: 5.66564038 | P121: 21.65632886 | Q121: 35.11806086 | R121: 8.803110797 | S121: 59.30255968 | T121: 27.32196924 | U121: 31.98059044 | V121: 267.8187155 | W121: 326.9295464 | X121: 382.6737318 | Y121: 709.6032782 | Z121: 15.4 | AA121: 47.10495019 | AB121: 35.11806086 | AC121: 47.10495019
A122: 4.161970204 | B122: 282.5 | C122: 154.94 | D122: 500 | E122: 0.2 | F122: 980.2321099 | G122: 0.000265849316 | H122: 0.0004311031902 | I122: 154.94 | J122: 0.0188545853 | K122: 4.161970204 | L122: 2377693.639 | M122: 0.02104945611 | N122: 5.766923548 | O122: 5.766923548 | P122: 21.84968893 | Q122: 35.43161497 | R122: 8.803110797 | S122: 60.01204021 | T122: 27.61661248 | U122: 32.39542772 | V122: 270.7069032 | W122: 333.4056849 | X122: 391.0986467 | Y122: 724.5043316 | Z122: 15.5375 | AA122: 46.60238474 | AB122: 35.43161497 | AC122: 46.60238474
A123: 4.198801799 | B123: 285 | C123: =C122 -> 154.94 | D123: 500 | E123: 0.2 | F123: 980.2321099 | G123: 0.000265849316 | H123: 0.0004311031902 | I123: 154.94 | J123: 0.0188545853 | K123: 4.198801799 | L123: 2398735.176 | M123: 0.0210482333 | N123: 5.869103659 | O123: 5.869103659 | P123: 22.04304901 | Q123: 35.74516909 | R123: 8.803110797 | S123: 60.72331462 | T123: 27.91215267 | U123: 32.81116195 | V123: 273.6038831 | W123: 339.9557056 | X123: 399.6231263 | Y123: 739.5788319 | Z123: 15.675 | AA123: 46.10894814 | AB123: 35.74516909 | AC123: 46.10894814
A124: 4.235633394 | B124: 287.5 | C124: 154.94 | D124: 500 | E124: 0.2 | F124: 980.2321099 | G124: 0.000265849316 | H124: 0.0004311031902 | I124: 154.94 | J124: 0.0188545853 | K124: 4.235633394 | L124: 2419776.713 | M124: 0.02104703054 | N124: 5.97218071 | O124: 5.97218071 | P124: 22.23640909 | Q124: 36.0587232 | R124: 8.803110797 | S124: 61.43638292 | T124: 28.2085898 | U124: 33.22779312 | V124: 276.509655 | W124: 346.5798961 | X124: 408.2474581 | Y124: 754.8273542 | Z124: 15.8125 | AA124: 45.62440055 | AB124: 36.0587232 | AC124: 45.62440055
A125: 4.272464989 | B125: 290 | C125: 154.94 | D125: 500 | E125: 0.2 | F125: 980.2321099 | G125: 0.000265849316 | H125: 0.0004311031902 | I125: 154.94 | J125: 0.0188545853 | K125: 4.272464989 | L125: 2440818.249 | M125: 0.02104584732 | N125: 6.076154698 | O125: 6.076154698 | P125: 22.42976917 | Q125: 36.37227732 | R125: 8.803110797 | S125: 62.15124509 | T125: 28.50592387 | U125: 33.64532122 | V125: 279.424219 | W125: 353.2785437 | X125: 416.9719296 | Y125: 770.2504733 | Z125: 15.95 | AA125: 45.14851039 | AB125: 36.37227732 | AC125: 45.14851039
A126: 4.309296583 | B126: 292.5 | C126: 154.94 | D126: 500 | E126: 0.2 | F126: 980.2321099 | G126: 0.000265849316 | H126: 0.0004311031902 | I126: 154.94 | J126: 0.0188545853 | K126: 4.309296583 | L126: 2461859.786 | M126: 0.02104468317 | N126: 6.181025619 | O126: 6.181025619 | P126: 22.62312925 | Q126: 36.68583143 | R126: 8.803110797 | S126: 62.86790112 | T126: 28.80415487 | U126: 34.06374625 | V126: 282.347575 | W126: 360.0519359 | X126: 425.7968282 | Y126: 785.848764 | Z126: 16.0875 | AA126: 44.68105403 | AB126: 36.68583143 | AC126: 44.68105403
A127: 4.346128178 | B127: 295 | C127: 154.94 | D127: 500 | E127: 0.2 | F127: 980.2321099 | G127: 0.000265849316 | H127: 0.0004311031902 | I127: 154.94 | J127: 0.0188545853 | K127: 4.346128178 | L127: 2482901.323 | M127: 0.02104353761 | N127: 6.286793472 | O127: 6.286793472 | P127: 22.81648933 | Q127: 36.99938555 | R127: 8.803110797 | S127: 63.58635102 | T127: 29.1032828 | U127: 34.48306822 | V127: 285.2797231 | W127: 366.9003601 | X127: 434.7224413 | Y127: 801.6228014 | Z127: 16.225 | AA127: 44.22181541 | AB127: 36.99938555 | AC127: 44.22181541
A128: 4.382959773 | B128: 297.5 | C128: 154.94 | D128: 500 | E128: 0.2 | F128: 980.2321099 | G128: 0.000265849316 | H128: 0.0004311031902 | I128: 154.94 | J128: 0.0188545853 | K128: 4.382959773 | L128: 2503942.859 | M128: 0.0210424102 | N128: 6.393458252 | O128: 6.393458252 | P128: 23.00984941 | Q128: 37.31293966 | R128: 8.803110797 | S128: 64.30659478 | T128: 29.40330766 | U128: 34.90328712 | V128: 288.2206631 | W128: 373.8241038 | X128: 443.7490563 | Y128: 817.5731601 | Z128: 16.3625 | AA128: 43.77058577 | AB128: 37.31293966 | AC128: 43.77058577
A129: 4.419791367 | B129: 300 | C129: 154.94 | D129: 500 | E129: 0.2 | F129: 980.2321099 | G129: 0.000265849316 | H129: 0.0004311031902 | I129: 154.94 | J129: 0.0188545853 | K129: 4.419791367 | L129: 2524984.396 | M129: 0.0210413005 | N129: 6.501019958 | O129: 6.501019958 | P129: 23.20320949 | Q129: 37.62649378 | R129: 8.803110797 | S129: 65.02863238 | T129: 29.70422945 | U129: 35.32440294 | V129: 291.170395 | W129: 380.8234544 | X129: 452.8769607 | Y129: 833.7004152 | Z129: 16.5 | AA129: 43.3271633 | AB129: 37.62649378 | AC129: 43.3271633
A130: 4.456622962 | B130: 302.5 | C130: 154.94 | D130: 500 | E130: 0.2 | F130: 980.2321099 | G130: 0.000265849316 | H130: 0.0004311031902 | I130: 154.94 | J130: 0.0188545853 | K130: 4.456622962 | L130: 2546025.932 | M130: 0.0210402081 | N130: 6.609478587 | O130: 6.609478587 | P130: 23.39656957 | Q130: 37.94004789 | R130: 8.803110797 | S130: 65.75246384 | T130: 30.00604815 | U130: 35.74641568 | V130: 294.1289189 | W130: 387.8986994 | X130: 462.106442 | Y130: 850.0051415 | Z130: 16.6375 | AA130: 42.89135288 | AB130: 37.94004789 | AC130: 42.89135288
A131: 4.493454557 | B131: 305 | C131: 154.94 | D131: 500 | E131: 0.2 | F131: 980.2321099 | G131: 0.000265849316 | H131: 0.0004311031902 | I131: 154.94 | J131: 0.0188545853 | K131: 4.493454557 | L131: 2567067.469 | M131: 0.02103913258 | N131: 6.718834136 | O131: 6.718834136 | P131: 23.58992965 | Q131: 38.25360201 | R131: 8.803110797 | S131: 66.47808913 | T131: 30.30876378 | U131: 36.16932534 | V131: 297.0962347 | W131: 395.0501262 | X131: 471.4377876 | Y131: 866.4879138 | Z131: 16.775 | AA131: 42.4629658 | AB131: 38.25360201 | AC131: 42.4629658
A132: 4.530286152 | B132: 307.5 | C132: 154.94 | D132: 500 | E132: 0.2 | F132: 980.2321099 | G132: 0.000265849316 | H132: 0.0004311031902 | I132: 154.94 | J132: 0.0188545853 | K132: 4.530286152 | L132: 2588109.006 | M132: 0.02103807354 | N132: 6.829086602 | O132: 6.829086602 | P132: 23.78328973 | Q132: 38.56715612 | R132: 8.803110797 | S132: 67.20550825 | T132: 30.61237633 | U132: 36.59313193 | V132: 300.0723424 | W132: 402.2780222 | X132: 480.8712849 | Y132: 883.1493072 | Z132: 16.9125 | AA132: 42.0418195 | AB132: 38.56715612 | AC132: 42.0418195
A133: 4.567117746 | B133: 310 | C133: 154.94 | D133: 500 | E133: 0.2 | F133: 980.2321099 | G133: 0.000265849316 | H133: 0.0004311031902 | I133: 154.94 | J133: 0.0188545853 | K133: 4.567117746 | L133: 2609150.542 | M133: 0.02103703061 | N133: 6.940235982 | O133: 6.940235982 | P133: 23.9766498 | Q133: 38.88071024 | R133: 8.803110797 | S133: 67.93472121 | T133: 30.91688579 | U133: 37.01783542 | V133: 303.0572419 | W133: 409.5826749 | X133: 490.4072214 | Y133: 899.9898963 | Z133: 17.05 | AA133: 41.62773731 | AB133: 38.88071024 | AC133: 41.62773731
A134: 4.603949341 | B134: 312.5 | C134: 154.94 | D134: 500 | E134: 0.2 | F134: 980.2321099 | G134: 0.000265849316 | H134: 0.0004311031902 | I134: 154.94 | J134: 0.0188545853 | K134: 4.603949341 | L134: 2630192.079 | M134: 0.02103600341 | N134: 7.052282275 | O134: 7.052282275 | P134: 24.17000988 | Q134: 39.19426435 | R134: 8.803110797 | S134: 68.66572799 | T134: 31.22229216 | U134: 37.44343583 | V134: 306.0509332 | W134: 416.9643718 | X134: 500.0458845 | Y134: 917.0102562 | Z134: 17.1875 | AA134: 41.22054824 | AB134: 39.19426435 | AC134: 41.22054824
A135: 4.640780936 | B135: 315 | C135: 154.94 | D135: 500 | E135: 0.2 | F135: 980.2321099 | G135: 0.000265849316 | H135: 0.0004311031902 | I135: 154.94 | J135: 0.0188545853 | K135: 4.640780936 | L135: 2651233.616 | M135: 0.02103499159 | N135: 7.165225477 | O135: 7.165225477 | P135: 24.36336996 | Q135: 39.50781847 | R135: 8.803110797 | S135: 69.39852858 | T135: 31.52859544 | U135: 37.86993314 | V135: 309.0534163 | W135: 424.4234001 | X135: 509.7875616 | Y135: 934.2109617 | Z135: 17.325 | AA135: 40.82008672 | AB135: 39.50781847 | AC135: 40.82008672
A136: 4.677612531 | B136: 317.5 | C136: 154.94 | D136: 500 | E136: 0.2 | F136: 980.2321099 | G136: 0.000265849316 | H136: 0.0004311031902 | I136: 154.94 | J136: 0.0188545853 | K136: 4.677612531 | L136: 2672275.152 | M136: 0.0210339948 | N136: 7.279065586 | O136: 7.279065586 | P136: 24.55673004 | Q136: 39.82137258 | R136: 8.803110797 | S136: 70.133123 | T136: 31.83579563 | U136: 38.29732737 | V136: 312.0646912 | W136: 431.9600475 | X136: 519.6325402 | Y136: 951.5925877 | Z136: 17.4625 | AA136: 40.42619242 | AB136: 39.82137258 | AC136: 40.42619242
A137: 4.714444125 | B137: 320 | C137: 154.94 | D137: 500 | E137: 0.2 | F137: 980.2321099 | G137: 0.000265849316 | H137: 0.0004311031902 | I137: 154.94 | J137: 0.0188545853 | K137: 4.714444125 | L137: 2693316.689 | M137: 0.02103301269 | N137: 7.3938026 | O137: 7.3938026 | P137: 24.75009012 | Q137: 40.13492669 | R137: 8.803110797 | S137: 70.86951122 | T137: 32.14389272 | U137: 38.7256185 | V137: 315.0847578 | W137: 439.5746013 | X137: 529.5811077 | Y137: 969.155709 | Z137: 17.6 | AA137: 40.03871003 | AB137: 40.13492669 | AC137: 40.03871003
A138: 4.75127572 | B138: 322.5 | C138: 154.94 | D138: 500 | E138: 0.2 | F138: 980.2321099 | G138: 0.000265849316 | H138: 0.0004311031902 | I138: 154.94 | J138: 0.0188545853 | K138: 4.75127572 | L138: =(F138*K138*I138)/G138/1000 -> 2714358.226 | M138: =(1.14-2*LOG((E138/1000)/(I138/1000)+(21.25/L138^0.9)))^-2 -> 0.02103204494 | N138: =(0.5*F138*K138^2*D138/(I138/1000)*M138/100000) -> 7.509436515 | O138: =(0.5*F138*K138^2*D138/(I138/1000)*M138/100000) -> 7.509436515 | P138: 24.9434502 | Q138: 40.44848081 | R138: 8.803110797 | S138: 71.60769324 | T138: 32.45288671 | U138: 39.15480653 | V138: =T138*(F138/100) -> 318.1136162 | W138: =T138/3600/C$3*B138*100 -> 447.267349 | X138: =U138/3600/C$3*B138*100 -> 539.6335515 | Y138: 986.9009005 | Z138: 17.7375 | AA138: 39.65748906 | AB138: 40.44848081 | AC138: =AA138 -> 39.65748906
A139: =B139/J139/3600 -> 4.788107315 | B139: 325 | C139: =C138 -> 154.94 | D139: 500 | E139: 0.2 | F139: 980.2321099 | G139: 0.000265849316 | H139: 0.0004311031902 | I139: 154.94 | J139: 0.0188545853 | K139: 4.788107315 | L139: 2735399.762 | M139: 0.02103109124 | N139: 7.625967331 | O139: 7.625967331 | P139: 25.13681028 | Q139: =(B139/3600)*H139/2/PI()/G$4/0.000000000001*(LN(G$3/(C139/2000))+C$4)/100000 -> 40.76203492 | R139: 8.803110797 | S139: =O139+N139+P139+Q139-R139 -> 72.34766907 | T139: =N139+P139 -> 32.76277761 | U139: =O139+Q139-R139 -> 39.58489146 | V139: 321.1512662 | W139: 455.0385779 | X139: 549.7901591 | Y139: =X139+W139 -> 1004.828737 | Z139: 17.875 | AA139: 39.28238367 | AB139: =Q139 -> 40.76203492 | AC139: 39.28238367
A140: 4.824938909 | B140: 327.5 | C140: 154.94 | D140: 500 | E140: 0.2 | F140: 980.2321099 | G140: 0.000265849316 | H140: 0.0004311031902 | I140: 154.94 | J140: 0.0188545853 | K140: 4.824938909 | L140: 2756441.299 | M140: 0.02103015127 | N140: 7.743395044 | O140: 7.743395044 | P140: 25.33017036 | Q140: 41.07558904 | R140: 8.803110797 | S140: 73.08943869 | T140: 33.0735654 | U140: 40.01587329 | V140: 324.197708 | W140: 462.8885756 | X140: 560.051218 | Y140: 1022.939794 | Z140: 18.0125 | AA140: 38.91325245 | AB140: 41.07558904 | AC140: 38.91325245
A141: 4.861770504 | B141: 330 | C141: 154.94 | D141: 500 | E141: 0.2 | F141: 980.2321099 | G141: 0.000265849316 | H141: 0.0004311031902 | I141: 154.94 | J141: 0.0188545853 | K141: 4.861770504 | L141: 2777482.835 | M141: 0.02102922473 | N141: 7.861719652 | O141: 7.861719652 | P141: 25.52353044 | Q141: 41.38914315 | R141: 8.803110797 | S141: 73.8330021 | T141: 33.38525009 | U141: 40.44775201 | V141: 327.2529414 | W141: 470.8176295 | X141: 570.4170155 | Y141: 1041.234645 | Z141: 18.15 | AA141: 38.54995834 | AB141: 41.38914315 | AC141: 38.54995834
A142: 4.898602099 | B142: 332.5 | C142: 154.94 | D142: 500 | E142: 0.2 | F142: 980.2321099 | G142: 0.000265849316 | H142: 0.0004311031902 | I142: 154.94 | J142: 0.0188545853 | K142: 4.898602099 | L142: 2798524.372 | M142: 0.02102831133 | N142: 7.980941153 | O142: 7.980941153 | P142: 25.71689052 | Q142: 41.70269727 | R142: 8.803110797 | S142: 74.57835929 | T142: 33.69783167 | U142: 40.88052762 | V142: 330.3169664 | W142: 478.8260269 | X142: 580.8878391 | Y142: 1059.713866 | Z142: 18.2875 | AA142: 38.19236836 | AB142: 41.70269727 | AC142: 38.19236836
A143: 4.935433694 | B143: 335 | C143: 154.94 | D143: 500 | E143: 0.2 | F143: 980.2321099 | G143: 0.000265849316 | H143: 0.0004311031902 | I143: 154.94 | J143: 0.0188545853 | K143: 4.935433694 | L143: 2819565.909 | M143: 0.02102741079 | N143: 8.101059545 | O143: 8.101059545 | P143: 25.91025059 | Q143: 42.01625138 | R143: 8.803110797 | S143: 75.32551027 | T143: 34.01131014 | U143: 41.31420013 | V143: 333.389783 | W143: 486.9140554 | X143: 591.4639762 | Y143: 1078.378032 | Z143: 18.425 | AA143: 37.84035354 | AB143: 42.01625138 | AC143: 37.84035354
A144: 4.972265288 | B144: 337.5 | C144: 154.94 | D144: 500 | E144: 0.2 | F144: 980.2321099 | G144: 0.000265849316 | H144: 0.0004311031902 | I144: 154.94 | J144: 0.0188545853 | K144: 4.972265288 | L144: 2840607.445 | M144: 0.02102652284 | N144: 8.222074824 | O144: 8.222074824 | P144: 26.10361067 | Q144: 42.3298055 | R144: 8.803110797 | S144: 76.07445502 | T144: 34.3256855 | U144: 41.74876953 | V144: 336.4713912 | W144: 495.0820024 | X144: 602.1457143 | Y144: 1097.227717 | Z144: 18.5625 | AA144: 37.49378873 | AB144: 42.3298055 | AC144: 37.49378873
A145: 5.009096883 | B145: 340 | C145: 154.94 | D145: 500 | E145: 0.2 | F145: 980.2321099 | G145: 0.000265849316 | H145: 0.0004311031902 | I145: 154.94 | J145: 0.0188545853 | K145: 5.009096883 | L145: 2861648.982 | M145: 0.02102564721 | N145: 8.34398699 | O145: 8.34398699 | P145: 26.29697075 | Q145: 42.64335961 | R145: 8.803110797 | S145: 76.82519355 | T145: 34.64095774 | U145: 42.18423581 | V145: 339.561791 | W145: 503.3301552 | X145: 612.9333408 | Y145: 1116.263496 | Z145: 18.7 | AA145: 37.15255247 | AB145: 42.64335961 | AC145: 37.15255247
A146: 5.045928478 | B146: 342.5 | C146: 154.94 | D146: 500 | E146: 0.2 | F146: 980.2321099 | G146: 0.000265849316 | H146: 0.0004311031902 | I146: 154.94 | J146: 0.0188545853 | K146: 5.045928478 | L146: 2882690.519 | M146: 0.02102478364 | N146: 8.46679604 | O146: 8.46679604 | P146: 26.49033083 | Q146: 42.95691373 | R146: 8.803110797 | S146: 77.57772584 | T146: 34.95712687 | U146: 42.62059897 | V146: 342.6609823 | W146: 511.6588014 | X146: 623.8271431 | Y146: 1135.485945 | Z146: 18.8375 | AA146: 36.81652685 | AB146: 42.95691373 | AC146: 36.81652685
A147: 5.082760073 | B147: 345 | C147: 154.94 | D147: 500 | E147: 0.2 | F147: 980.2321099 | G147: 0.000265849316 | H147: 0.0004311031902 | I147: 154.94 | J147: 0.0188545853 | K147: 5.082760073 | L147: 2903732.055 | M147: 0.02102393188 | N147: 8.590501972 | O147: 8.590501972 | P147: 26.68369091 | Q147: 43.27046784 | R147: 8.803110797 | S147: 78.3320519 | T147: 35.27419288 | U147: 43.05785902 | V147: 345.7689652 | W147: 520.0682284 | X147: 634.8274086 | Y147: 1154.895637 | Z147: 18.975 | AA147: 36.4855974 | AB147: 43.27046784 | AC147: 36.4855974
A148: 5.119591667 | B148: 347.5 | C148: 154.94 | D148: 500 | E148: 0.2 | F148: 980.2321099 | G148: 0.000265849316 | H148: 0.0004311031902 | I148: 154.94 | J148: 0.0188545853 | K148: 5.119591667 | L148: 2924773.592 | M148: 0.02102309168 | N148: 8.715104784 | O148: 8.715104784 | P148: 26.87705099 | Q148: 43.58402196 | R148: 8.803110797 | S148: 79.08817172 | T148: 35.59215577 | U148: 43.49601594 | V148: 348.8857395 | W148: 528.5587236 | X148: 645.9344248 | Y148: 1174.493148 | Z148: 19.1125 | AA148: 36.15965294 | AB148: 43.58402196 | AC148: 36.15965294
A149: 5.156423262 | B149: 350 | C149: 154.94 | D149: 500 | E149: 0.2 | F149: 980.2321099 | G149: 0.000265849316 | H149: 0.0004311031902 | I149: 154.94 | J149: 0.0188545853 | K149: 5.156423262 | L149: 2945815.128 | M149: 0.0210222628 | N149: 8.840604473 | O149: 8.840604473 | P149: 27.07041107 | Q149: 43.89757607 | R149: 8.803110797 | S149: 79.84608529 | T149: 35.91101554 | U149: 43.93506975 | V149: 352.0113053 | W149: 537.1305743 | X149: 657.1484791 | Y149: 1194.279053 | Z149: 19.25 | AA149: 35.83858547 | AB149: 43.89757607 | AC149: 35.83858547
A150: 5.193254857 | B150: 352.5 | C150: 154.94 | D150: 500 | E150: 0.2 | F150: 980.2321099 | G150: 0.000265849316 | H150: 0.0004311031902 | I150: 154.94 | J150: 0.0188545853 | K150: 5.193254857 | L150: 2966856.665 | M150: 0.02102144502 | N150: 8.967001038 | O150: 8.967001038 | P150: 27.26377115 | Q150: 44.21113019 | R150: 8.803110797 | S150: 80.60579261 | T150: 36.23077219 | U150: 44.37502043 | V150: 355.1456626 | W150: 545.7840682 | X150: 668.469859 | Y150: 1214.253927 | Z150: 19.3875 | AA150: 35.5222901 | AB150: 44.21113019 | AC150: 35.5222901
A151: 5.230086451 | B151: 355 | C151: 154.94 | D151: 500 | E151: 0.2 | F151: 980.2321099 | G151: 0.000265849316 | H151: 0.0004311031902 | I151: 154.94 | J151: 0.0188545853 | K151: 5.230086451 | L151: 2987898.202 | M151: 0.02102063811 | N151: 9.094294477 | O151: 9.094294477 | P151: 27.45713123 | Q151: 44.5246843 | R151: 8.803110797 | S151: 81.36729369 | T151: 36.5514257 | U151: 44.81586798 | V151: 358.2888114 | W151: 554.5194925 | X151: 679.8988519 | Y151: 1234.418344 | Z151: 19.525 | AA151: 35.21066484 | AB151: 44.5246843 | AC151: 35.21066484
A152: 5.266918046 | B152: 357.5 | C152: 154.94 | D152: 500 | E152: 0.2 | F152: 980.2321099 | G152: 0.000265849316 | H152: 0.0004311031902 | I152: 154.94 | J152: 0.0188545853 | K152: 5.266918046 | L152: 3008939.738 | M152: 0.02101984185 | N152: 9.222484787 | O152: 9.222484787 | P152: 27.65049131 | Q152: 44.83823842 | R152: 8.803110797 | S152: 82.1305885 | T152: 36.87297609 | U152: 45.25761241 | V152: 361.4407516 | W152: 563.3371348 | X152: 691.4357451 | Y152: 1254.77288 | Z152: 19.6625 | AA152: 34.90361062 | AB152: 44.83823842 | AC152: 34.90361062
A153: 5.303749641 | B153: 360 | C153: 154.94 | D153: 500 | E153: 0.2 | F153: 980.2321099 | G153: 0.000265849316 | H153: 0.0004311031902 | I153: 154.94 | J153: 0.0188545853 | K153: 5.303749641 | L153: 3029981.275 | M153: 0.02101905603 | N153: 9.351571967 | O153: 9.351571967 | P153: 27.84385139 | Q153: 45.15179253 | R153: 8.803110797 | S153: 82.89567705 | T153: 37.19542335 | U153: 45.7002537 | V153: 364.6014831 | W153: 572.2372823 | X153: 703.0808262 | Y153: 1275.318109 | Z153: 19.8 | AA153: 34.60103109 | AB153: 45.15179253 | AC153: 34.60103109
A154: 5.340581236 | B154: =B153+2.5 -> 362.5 | C154: 154.94 | D154: 500 | E154: 0.2 | F154: 980.2321099 | G154: 0.000265849316 | H154: 0.0004311031902 | I154: 154.94 | J154: =PI()*(I154/2000)^2 -> 0.0188545853 | K154: =B154/J154/3600 -> 5.340581236 | L154: 3051022.812 | M154: 0.02101828043 | N154: 9.481556015 | O154: 9.481556015 | P154: =(B154/3600)*G154/2/PI()/G$4/0.000000000001*(LN(G$3/(C154/2000))+C$4)/100000 -> 28.03721146 | Q154: 45.46534665 | R154: =R153 -> 8.803110797 | S154: 83.66255934 | T154: 37.51876748 | U154: 46.14379186 | V154: 367.7710061 | W154: 581.2202227 | X154: 714.8343825 | Y154: 1296.054605 | Z154: =B154*(C$1-C$2)*1.1/1000 -> 19.9375 | AA154: =Z154/(W154/1000) -> 34.30283259 | AB154: 45.46534665 | AC154: 34.30283259
A155: 5.37741283 | B155: 365 | C155: =C154 -> 154.94 | D155: 500 | E155: 0.2 | F155: 980.2321099 | G155: 0.000265849316 | H155: 0.0004311031902 | I155: 154.94 | J155: 0.0188545853 | K155: 5.37741283 | L155: 3072064.348 | M155: 0.02101751487 | N155: 9.612436929 | O155: 9.612436929 | P155: 28.23057154 | Q155: 45.77890076 | R155: 8.803110797 | S155: 84.43123537 | T155: 37.84300847 | U155: 46.58822689 | V155: 370.9493204 | W155: 590.2862433 | X155: 726.6967015 | Y155: 1316.982945 | Z155: 20.075 | AA155: 34.00892402 | AB155: 45.77890076 | AC155: 34.00892402
A156: 5.414244425 | B156: 367.5 | C156: 154.94 | D156: 500 | E156: 0.2 | F156: 980.2321099 | G156: 0.000265849316 | H156: 0.0004311031902 | I156: 154.94 | J156: 0.0188545853 | K156: 5.414244425 | L156: 3093105.885 | M156: 0.02101675913 | N156: 9.744214706 | O156: 9.744214706 | P156: 28.42393162 | Q156: 46.09245488 | R156: 8.803110797 | S156: 85.20170511 | T156: 38.16814633 | U156: 47.03355879 | V156: 374.1364261 | W156: 599.4356315 | X156: 738.6680707 | Y156: 1338.103702 | Z156: 20.2125 | AA156: 33.71921678 | AB156: 46.09245488 | AC156: 33.71921678
A157: 5.45107602 | B157: 370 | C157: 154.94 | D157: 500 | E157: 0.2 | F157: 980.2321099 | G157: 0.000265849316 | H157: 0.0004311031902 | I157: 154.94 | J157: 0.0188545853 | K157: 5.45107602 | L157: 3114147.422 | M157: 0.02101601303 | N157: 9.876889346 | O157: 9.876889346 | P157: 28.6172917 | Q157: 46.40600899 | R157: 8.803110797 | S157: 85.97396859 | T157: 38.49418105 | U157: 47.47978754 | V157: 377.3323231 | W157: 608.6686747 | X157: 750.7487773 | Y157: 1359.417452 | Z157: 20.35 | AA157: 33.43362464 | AB157: 46.40600899 | AC157: 33.43362464
A158: 5.487907615 | B158: 372.5 | C158: 154.94 | D158: 500 | E158: 0.2 | F158: 980.2321099 | G158: 0.000265849316 | H158: 0.0004311031902 | I158: 154.94 | J158: 0.0188545853 | K158: 5.487907615 | L158: 3135188.958 | M158: 0.02101527639 | N158: 10.01046085 | O158: 10.01046085 | P158: 28.81065178 | Q158: 46.71956311 | R158: 8.803110797 | S158: 86.74802578 | T158: 38.82111263 | U158: 47.92691316 | V158: 380.5370114 | W158: 617.9856604 | X158: 762.939109 | Y158: 1380.924769 | Z158: 20.4875 | AA158: 33.15206373 | AB158: 46.71956311 | AC158: 33.15206373
A159: 5.524739209 | B159: 375 | C159: 154.94 | D159: 500 | E159: 0.2 | F159: 980.2321099 | G159: 0.000265849316 | H159: 0.0004311031902 | I159: 154.94 | J159: 0.0188545853 | K159: 5.524739209 | L159: 3156230.495 | M159: 0.02101454902 | N159: 10.14492921 | O159: 10.14492921 | P159: 29.00401186 | Q159: 47.03311722 | R159: 8.803110797 | S159: 87.52387669 | T159: 39.14894107 | U159: 48.37493563 | V159: 383.750491 | W159: 627.386876 | X159: 775.239353 | Y159: 1402.626229 | Z159: 20.625 | AA159: 32.87445241 | AB159: 47.03311722 | AC159: 32.87445241
A160: 5.561570804 | B160: 377.5 | C160: 154.94 | D160: 500 | E160: 0.2 | F160: 980.2321099 | G160: 0.000265849316 | H160: 0.0004311031902 | I160: 154.94 | J160: 0.0188545853 | K160: 5.561570804 | L160: 3177272.031 | M160: 0.02101383074 | N160: 10.28029442 | O160: 10.28029442 | P160: 29.19737194 | Q160: 47.34667134 | R160: 8.803110797 | S160: 88.30152132 | T160: 39.47766636 | U160: 48.82385496 | V160: 386.9727619 | W160: 636.872609 | X160: 787.6497969 | Y160: 1424.522406 | Z160: 20.7625 | AA160: 32.6007112 | AB160: 47.34667134 | AC160: 32.6007112
A161: 5.598402399 | B161: 380 | C161: 154.94 | D161: 500 | E161: 0.2 | F161: 980.2321099 | G161: 0.000265849316 | H161: 0.0004311031902 | I161: 154.94 | J161: 0.0188545853 | K161: 5.598402399 | L161: 3198313.568 | M161: 0.02101312138 | N161: 10.41655649 | O161: 10.41655649 | P161: 29.39073202 | Q161: 47.66022545 | R161: 8.803110797 | S161: 89.08095965 | T161: 39.80728851 | U161: 49.27367114 | V161: 390.2038241 | W161: 646.4431467 | X161: 800.170728 | Y161: 1446.613875 | Z161: 20.9 | AA161: 32.33076274 | AB161: 47.66022545 | AC161: 32.33076274
A162: 5.635233993 | B162: 382.5 | C162: 154.94 | D162: 500 | E162: 0.2 | F162: 980.2321099 | G162: 0.000265849316 | H162: 0.0004311031902 | I162: 154.94 | J162: 0.0188545853 | K162: 5.635233993 | L162: 3219355.105 | M162: 0.02101242078 | N162: 10.55371542 | O162: 10.55371542 | P162: 29.5840921 | Q162: 47.97377956 | R162: 8.803110797 | S162: 89.8621917 | T162: 40.13780751 | U162: 49.72438418 | V162: 393.4436775 | W162: 656.0987766 | X162: 812.8024338 | Y162: 1468.90121 | Z162: 21.0375 | AA162: 32.06453167 | AB162: 47.97377956 | AC162: 32.06453167
A163: 5.672065588 | B163: 385 | C163: 154.94 | D163: 500 | E163: 0.2 | F163: 980.2321099 | G163: 0.000265849316 | H163: 0.0004311031902 | I163: 154.94 | J163: 0.0188545853 | K163: 5.672065588 | L163: 3240396.641 | M163: 0.02101172877 | N163: 10.69177119 | O163: 10.69177119 | P163: 29.77745218 | Q163: 48.28733368 | R163: 8.803110797 | S163: 90.64521744 | T163: 40.46922337 | U163: 50.17599407 | V163: 396.6923221 | W163: 665.8397862 | X163: 825.5452016 | Y163: 1491.384988 | Z163: 21.175 | AA163: 31.80194461 | AB163: 48.28733368 | AC163: 31.80194461
A164: 5.708897183 | B164: 387.5 | C164: 154.94 | D164: 500 | E164: 0.2 | F164: 980.2321099 | G164: 0.000265849316 | H164: 0.0004311031902 | I164: 154.94 | J164: 0.0188545853 | K164: 5.708897183 | L164: 3261438.178 | M164: 0.02101104518 | N164: 10.83072382 | O164: 10.83072382 | P164: 29.97081226 | Q164: 48.60088779 | R164: 8.803110797 | S164: 91.43003688 | T164: 40.80153607 | U164: 50.62850081 | V164: 399.9497579 | W164: 675.6664627 | X164: 838.399319 | Y164: 1514.065782 | Z164: 21.3125 | AA164: 31.54293009 | AB164: 48.60088779 | AC164: 31.54293009
A165: 5.745728778 | B165: 390 | C165: 154.94 | D165: 500 | E165: 0.2 | F165: 980.2321099 | G165: 0.000265849316 | H165: 0.0004311031902 | I165: 154.94 | J165: 0.0188545853 | K165: 5.745728778 | L165: 3282479.715 | M165: 0.02101036987 | N165: 10.97057329 | O165: 10.97057329 | P165: 30.16417233 | Q165: 48.91444191 | R165: 8.803110797 | S165: 92.21665002 | T165: 41.13474562 | U165: 51.0819044 | V165: 403.2159849 | W165: 685.5790937 | X165: 851.3650734 | Y165: 1536.944167 | Z165: 21.45 | AA165: 31.28741847 | AB165: 48.91444191 | AC165: 31.28741847
A166: 5.782560372 | B166: 392.5 | C166: 154.94 | D166: 500 | E166: 0.2 | F166: 980.2321099 | G166: 0.000265849316 | H166: 0.0004311031902 | I166: 154.94 | J166: 0.0188545853 | K166: 5.782560372 | L166: 3303521.251 | M166: 0.02100970269 | N166: 11.11131961 | O166: 11.11131961 | P166: 30.35753241 | Q166: 49.22799602 | R166: 8.803110797 | S166: 93.00505686 | T166: 41.46885202 | U166: 51.53620484 | V166: 406.4910031 | W166: 695.5779666 | X166: 864.442752 | Y166: 1560.020719 | Z166: 21.5875 | AA166: 31.03534188 | AB166: 49.22799602 | AC166: 31.03534188
A167: 5.819391967 | B167: 395 | C167: 154.94 | D167: 500 | E167: 0.2 | F167: 980.2321099 | G167: 0.000265849316 | H167: 0.0004311031902 | I167: 154.94 | J167: 0.0188545853 | K167: 5.819391967 | L167: 3324562.788 | M167: 0.02100904348 | N167: 11.25296277 | O167: 11.25296277 | P167: 30.55089249 | Q167: 49.54155014 | R167: 8.803110797 | S167: 93.79525738 | T167: 41.80385527 | U167: 51.99140211 | V167: 409.7748125 | W167: 705.6633688 | X167: 877.6326425 | Y167: 1583.296011 | Z167: 21.725 | AA167: 30.7866342 | AB167: 49.54155014 | AC167: 30.7866342
A168: 5.856223562 | B168: 397.5 | C168: 154.94 | D168: 500 | E168: 0.2 | F168: 980.2321099 | G168: 0.000265849316 | H168: 0.0004311031902 | I168: 154.94 | J168: 0.0188545853 | K168: 5.856223562 | L168: 3345604.325 | M168: 0.0210083921 | N168: 11.39550278 | O168: 11.39550278 | P168: 30.74425257 | Q168: 49.85510425 | R168: 8.803110797 | S168: 94.58725159 | T168: 42.13975535 | U168: 52.44749624 | V168: 413.067413 | W168: 715.8355877 | X168: 890.9350322 | Y168: 1606.77062 | Z168: 21.8625 | AA168: 30.54123094 | AB168: 49.85510425 | AC168: 30.54123094
A169: 5.893055157 | B169: 400 | C169: 154.94 | D169: 500 | E169: 0.2 | F169: 980.2321099 | G169: 0.000265849316 | H169: 0.0004311031902 | I169: 154.94 | J169: 0.0188545853 | K169: 5.893055157 | L169: 3366645.861 | M169: 0.0210077484 | N169: 11.53893963 | O169: 11.53893963 | P169: 30.93761265 | Q169: 50.16865837 | R169: 8.803110797 | S169: 95.38103948 | T169: 42.47655228 | U169: 52.9044872 | V169: 416.3688047 | W169: 726.0949108 | X169: 904.3502086 | Y169: 1630.445119 | Z169: 22 | AA169: 30.29906927 | AB169: 50.16865837 | AC169: 30.29906927
A170: 5.929886751 | B170: 402.5 | C170: 154.94 | D170: 500 | E170: 0.2 | F170: 980.2321099 | G170: 0.000265849316 | H170: 0.0004311031902 | I170: 154.94 | J170: 0.0188545853 | K170: 5.929886751 | L170: 3387687.398 | M170: 0.02100711226 | N170: 11.68327332 | O170: 11.68327332 | P170: 31.13097273 | Q170: 50.48221248 | R170: 8.803110797 | S170: 96.17662106 | T170: 42.81424605 | U170: 53.36237501 | V170: 419.6789874 | W170: 736.4416254 | X170: 917.878459 | Y170: 1654.320084 | Z170: 22.1375 | AA170: 30.06008791 | AB170: 50.48221248 | AC170: 30.06008791
A171: 5.966718346 | B171: 405 | C171: =C170 -> 154.94 | D171: 500 | E171: 0.2 | F171: 980.2321099 | G171: 0.000265849316 | H171: 0.0004311031902 | I171: 154.94 | J171: 0.0188545853 | K171: 5.966718346 | L171: 3408728.934 | M171: 0.02100648353 | N171: 11.82850385 | O171: 11.82850385 | P171: 31.32433281 | Q171: 50.7957666 | R171: 8.803110797 | S171: 96.97399631 | T171: 43.15283666 | U171: 53.82115965 | V171: 422.9979613 | W171: 746.8760191 | X171: 931.5200709 | Y171: 1678.39609 | Z171: 22.275 | AA171: 29.82422709 | AB171: 50.7957666 | AC171: 29.82422709
A172: 6.003549941 | B172: 407.5 | C172: 154.94 | D172: 500 | E172: 0.2 | F172: 980.2321099 | G172: 0.000265849316 | H172: 0.0004311031902 | I172: 154.94 | J172: 0.0188545853 | K172: 6.003549941 | L172: 3429770.471 | M172: 0.02100586209 | N172: 11.97463121 | O172: 11.97463121 | P172: 31.51769289 | Q172: 51.10932071 | R172: 8.803110797 | S172: 97.77316523 | T172: 43.4923241 | U172: 54.28084113 | V172: 426.3257262 | W172: 757.3983791 | X172: 945.2753316 | Y172: 1702.673711 | Z172: 22.4125 | AA172: 29.59142852 | AB172: 51.10932071 | AC172: 29.59142852
A173: 6.040381536 | B173: 410 | C173: 154.94 | D173: 500 | E173: 0.2 | F173: 980.2321099 | G173: 0.000265849316 | H173: 0.0004311031902 | I173: 154.94 | J173: 0.0188545853 | K173: 6.040381536 | L173: 3450812.008 | M173: 0.02100524781 | N173: 12.12165541 | O173: 12.12165541 | P173: 31.71105297 | Q173: 51.42287483 | R173: 8.803110797 | S173: 98.57412782 | T173: 43.83270838 | U173: 54.74141944 | V173: 429.6622822 | W173: 768.008993 | X173: 959.1445287 | Y173: 1727.153522 | Z173: 22.55 | AA173: 29.36163535 | AB173: 51.42287483 | AC173: 29.36163535
A174: 6.07721313 | B174: 412.5 | C174: 154.94 | D174: 500 | E174: 0.2 | F174: 980.2321099 | G174: 0.000265849316 | H174: 0.0004311031902 | I174: 154.94 | J174: 0.0188545853 | K174: 6.07721313 | L174: 3471853.544 | M174: 0.02100464056 | N174: 12.26957645 | O174: 12.26957645 | P174: 31.90441305 | Q174: 51.73642894 | R174: 8.803110797 | S174: 99.37688409 | T174: 44.17398949 | U174: 55.20289459 | V174: 433.0076293 | W174: 778.7081481 | X174: 973.1279496 | Y174: 1751.836098 | Z174: 22.6875 | AA174: 29.1347921 | AB174: 51.73642894 | AC174: 29.1347921
A175: 6.114044725 | B175: 415 | C175: 154.94 | D175: 500 | E175: 0.2 | F175: 980.2321099 | G175: 0.000265849316 | H175: 0.0004311031902 | I175: 154.94 | J175: 0.0188545853 | K175: 6.114044725 | L175: 3492895.081 | M175: 0.02100404022 | N175: 12.41839432 | O175: 12.41839432 | P175: 32.09777312 | Q175: 52.04998306 | R175: 8.803110797 | S175: 100.181434 | T175: 44.51616744 | U175: 55.66526658 | V175: 436.3617674 | W175: 789.4961319 | X175: 987.2258816 | Y175: 1776.722014 | Z175: 22.825 | AA175: 28.91084462 | AB175: 52.04998306 | AC175: 28.91084462
A176: 6.15087632 | B176: 417.5 | C176: 154.94 | D176: 500 | E176: 0.2 | F176: 980.2321099 | G176: 0.000265849316 | H176: 0.0004311031902 | I176: 154.94 | J176: 0.0188545853 | K176: 6.15087632 | L176: 3513936.618 | M176: 0.02100344667 | N176: 12.56810901 | O176: 12.56810901 | P176: 32.2911332 | Q176: 52.36353717 | R176: 8.803110797 | S176: 100.9877776 | T176: 44.85924222 | U176: 56.12853539 | V176: 439.7246965 | W176: 800.3732319 | X176: 1001.438612 | Y176: 1801.811844 | Z176: 22.9625 | AA176: 28.68974009 | AB176: 52.36353717 | AC176: 28.68974009
A177: 6.187707914 | B177: 420 | C177: 154.94 | D177: 500 | E177: 0.2 | F177: 980.2321099 | G177: 0.000265849316 | H177: 0.0004311031902 | I177: 154.94 | J177: 0.0188545853 | K177: 6.187707914 | L177: 3534978.154 | M177: 0.02100285979 | N177: 12.71872054 | O177: 12.71872054 | P177: 32.48449328 | Q177: 52.67709129 | R177: 8.803110797 | S177: 101.7959149 | T177: 45.20321382 | U177: 56.59270103 | V177: 443.0964166 | W177: 811.3397353 | X177: 1015.766429 | Y177: 1827.106164 | Z177: 23.1 | AA177: 28.47142694 | AB177: 52.67709129 | AC177: 28.47142694
A178: 6.224539509 | B178: 422.5 | C178: 154.94 | D178: 500 | E178: 0.2 | F178: 980.2321099 | G178: 0.000265849316 | H178: 0.0004311031902 | I178: 154.94 | J178: 0.0188545853 | K178: 6.224539509 | L178: 3556019.691 | M178: 0.02100227947 | N178: 12.8702289 | O178: 12.8702289 | P178: 32.67785336 | Q178: 52.9906454 | R178: 8.803110797 | S178: 102.6058458 | T178: 45.54808226 | U178: 57.0577635 | V178: 446.4769278 | W178: 822.3959297 | X178: 1030.209619 | Y178: 1852.605548 | Z178: 23.2375 | AA178: 28.25585483 | AB178: 52.9906454 | AC178: 28.25585483
A179: 6.261371104 | B179: 425 | C179: 154.94 | D179: 500 | E179: 0.2 | F179: 980.2321099 | G179: 0.000265849316 | H179: 0.0004311031902 | I179: 154.94 | J179: 0.0188545853 | K179: 6.261371104 | L179: 3577061.227 | M179: 0.02100170561 | N179: 13.02263408 | O179: 13.02263408 | P179: 32.87121344 | Q179: 53.30419952 | R179: 8.803110797 | S179: 103.4175703 | T179: 45.89384752 | U179: 57.5237228 | V179: 449.8662299 | W179: 833.5421024 | X179: 1044.76847 | Y179: 1878.310572 | Z179: 23.375 | AA179: 28.04297459 | AB179: 53.30419952 | AC179: 28.04297459
A180: 6.298202699 | B180: 427.5 | C180: 154.94 | D180: 500 | E180: 0.2 | F180: 980.2321099 | G180: 0.000265849316 | H180: 0.0004311031902 | I180: 154.94 | J180: 0.0188545853 | K180: 6.298202699 | L180: 3598102.764 | M180: 0.02100113808 | N180: 13.17593609 | O180: 13.17593609 | P180: 33.06457352 | Q180: 53.61775363 | R180: 8.803110797 | S180: 104.2310885 | T180: 46.24050961 | U180: 57.99057892 | V180: 453.264323 | W180: 844.7785409 | X180: 1059.443269 | Y180: 1904.22181 | Z180: 23.5125 | AA180: 27.83273824 | AB180: 53.61775363 | AC180: 27.83273824
A181: 6.335034293 | B181: 430 | C181: 154.94 | D181: 500 | E181: 0.2 | F181: 980.2321099 | G181: 0.000265849316 | H181: 0.0004311031902 | I181: 154.94 | J181: 0.0188545853 | K181: 6.335034293 | L181: 3619144.301 | M181: 0.02100057678 | N181: 13.33013492 | O181: 13.33013492 | P181: 33.2579336 | Q181: 53.93130775 | R181: 8.803110797 | S181: 105.0464004 | T181: 46.58806852 | U181: 58.45833187 | V181: 456.671207 | W181: 856.1055326 | X181: 1074.234304 | Y181: 1930.339836 | Z181: 23.65 | AA181: 27.62509889 | AB181: 53.93130775 | AC181: 27.62509889
A182: 6.371865888 | B182: 432.5 | C182: 154.94 | D182: 500 | E182: 0.2 | F182: 980.2321099 | G182: 0.000265849316 | H182: 0.0004311031902 | I182: 154.94 | J182: 0.0188545853 | K182: 6.371865888 | L182: 3640185.837 | M182: 0.02100002162 | N182: 13.48523057 | O182: 13.48523057 | P182: 33.45129368 | Q182: 54.24486186 | R182: 8.803110797 | S182: 105.8635059 | T182: 46.93652425 | U182: 58.92698164 | V182: 460.086882 | W182: 867.5233649 | X182: 1089.141861 | Y182: 1956.665226 | Z182: 23.7875 | AA182: 27.42001076 | AB182: 54.24486186 | AC182: 27.42001076
A183: 6.408697483 | B183: 435 | C183: 154.94 | D183: 500 | E183: 0.2 | F183: 980.2321099 | G183: 0.000265849316 | H183: 0.0004311031902 | I183: 154.94 | J183: 0.0188545853 | K183: 6.408697483 | L183: 3661227.374 | M183: 0.02099947248 | N183: 13.64122305 | O183: 13.64122305 | P183: 33.64465376 | Q183: 54.55841598 | R183: 8.803110797 | S183: 106.682405 | T183: 47.28587681 | U183: 59.39652823 | V183: 463.5113479 | W183: 879.0323252 | X183: 1104.16623 | Y183: 1983.198555 | Z183: 23.925 | AA183: 27.21742911 | AB183: 54.55841598 | AC183: 27.21742911
A184: 6.445529078 | B184: 437.5 | C184: 154.94 | D184: 500 | E184: 0.2 | F184: 980.2321099 | G184: 0.000265849316 | H184: 0.0004311031902 | I184: 154.94 | J184: 0.0188545853 | K184: 6.445529078 | L184: 3682268.911 | M184: 0.02099892928 | N184: 13.79811234 | O184: 13.79811234 | P184: 33.83801384 | Q184: 54.87197009 | R184: 8.803110797 | S184: 107.5030978 | T184: 47.63612618 | U184: 59.86697164 | V184: 466.9446047 | W184: 890.632701 | X184: 1119.307696 | Y184: 2009.940397 | Z184: 24.0625 | AA184: 27.01731025 | AB184: 54.87197009 | AC184: 27.01731025
A185: 6.482360672 | B185: 440 | C185: 154.94 | D185: 500 | E185: 0.2 | F185: 980.2321099 | G185: 0.000265849316 | H185: 0.0004311031902 | I185: 154.94 | J185: 0.0188545853 | K185: 6.482360672 | L185: 3703310.447 | M185: 0.0209983919 | N185: 13.95589846 | O185: 13.95589846 | P185: 34.03137392 | Q185: 55.18552421 | R185: 8.803110797 | S185: 108.3255842 | T185: 47.98727237 | U185: 60.33831187 | V185: 470.3866525 | W185: 902.3247797 | X185: 1134.566548 | Y185: 2036.891328 | Z185: 24.2 | AA185: 26.81961146 | AB185: 55.18552421 | AC185: 26.81961146
A186: 6.519192267 | B186: 442.5 | C186: 154.94 | D186: 500 | E186: 0.2 | F186: 980.2321099 | G186: 0.000265849316 | H186: 0.0004311031902 | I186: 154.94 | J186: 0.0188545853 | K186: 6.519192267 | L186: 3724351.984 | M186: 0.02099786026 | N186: 14.11458139 | O186: 14.11458139 | P186: 34.22473399 | Q186: 55.49907832 | R186: 8.803110797 | S186: 109.1498643 | T186: 48.33931538 | U186: 60.81054891 | V186: 473.8374911 | W186: 914.1088486 | X186: 1149.943072 | Y186: 2064.051921 | Z186: 24.3375 | AA186: 26.62429101 | AB186: 55.49907832 | AC186: 26.62429101
A187: 6.556023862 | B187: 445 | C187: =C186 -> 154.94 | D187: 500 | E187: 0.2 | F187: 980.2321099 | G187: 0.000265849316 | H187: 0.0004311031902 | I187: 154.94 | J187: 0.0188545853 | K187: 6.556023862 | L187: 3745393.521 | M187: 0.02099733427 | N187: 14.27416114 | O187: 14.27416114 | P187: 34.41809407 | Q187: 55.81263244 | R187: 8.803110797 | S187: 109.975938 | T187: 48.69225521 | U187: 61.28368277 | V187: 477.2971206 | W187: 925.9851952 | X187: 1165.437557 | Y187: 2091.422752 | Z187: 24.475 | AA187: 26.43130811 | AB187: 55.81263244 | AC187: 26.43130811
A188: 6.592855456 | B188: 447.5 | C188: 154.94 | D188: 500 | E188: 0.2 | F188: 980.2321099 | G188: 0.000265849316 | H188: 0.0004311031902 | I188: 154.94 | J188: 0.0188545853 | K188: 6.592855456 | L188: 3766435.057 | M188: 0.02099681382 | N188: 14.4346377 | O188: 14.4346377 | P188: 34.61145415 | Q188: 56.12618655 | R188: 8.803110797 | S188: 110.8038053 | T188: 49.04609185 | U188: 61.75771345 | V188: 480.765541 | W188: 937.954107 | X188: 1181.050289 | Y188: 2119.004396 | Z188: 24.6125 | AA188: 26.24062288 | AB188: 56.12618655 | AC188: 26.24062288
A189: 6.629687051 | B189: 450 | C189: 154.94 | D189: 500 | E189: 0.2 | F189: 980.2321099 | G189: 0.000265849316 | H189: 0.0004311031902 | I189: 154.94 | J189: 0.0188545853 | K189: 6.629687051 | L189: 3787476.594 | M189: 0.02099629884 | N189: 14.59601107 | O189: 14.59601107 | P189: 34.80481423 | Q189: 56.43974066 | R189: 8.803110797 | S189: 111.6334662 | T189: 49.4008253 | U189: 62.23264094 | V189: 484.2427522 | W189: 950.0158712 | X189: 1196.781557 | Y189: 2146.797428 | Z189: 24.75 | AA189: 26.05219634 | AB189: 56.43974066 | AC189: 26.05219634
A190: 6.666518646 | B190: 452.5 | C190: 154.94 | D190: 500 | E190: 0.2 | F190: 980.2321099 | G190: 0.000265849316 | H190: 0.0004311031902 | I190: 154.94 | J190: 0.0188545853 | K190: 6.666518646 | L190: 3808518.13 | M190: 0.02099578924 | N190: 14.75828126 | O190: 14.75828126 | P190: 34.99817431 | Q190: 56.75329478 | R190: 8.803110797 | S190: 112.4649208 | T190: 49.75645557 | U190: 62.70846524 | V190: 487.7287543 | W190: 962.1707754 | X190: 1212.631646 | Y190: 2174.802422 | Z190: 24.8875 | AA190: 25.86599036 | AB190: 56.75329478 | AC190: 25.86599036
A191: 6.703350241 | B191: 455 | C191: 154.94 | D191: 500 | E191: 0.2 | F191: 980.2321099 | G191: 0.000265849316 | H191: 0.0004311031902 | I191: 154.94 | J191: 0.0188545853 | K191: 6.703350241 | L191: 3829559.667 | M191: 0.02099528493 | N191: 14.92144826 | O191: 14.92144826 | P191: 35.19153439 | Q191: 57.06684889 | R191: 8.803110797 | S191: 113.298169 | T191: 50.11298265 | U191: 63.18518635 | V191: 491.2235472 | W191: 974.419107 | X191: 1228.600846 | Y191: 2203.019953 | Z191: 25.025 | AA191: 25.68196767 | AB191: 57.06684889 | AC191: 25.68196767
A192: 6.740181835 | B192: 457.5 | C192: 154.94 | D192: 500 | E192: 0.2 | F192: 980.2321099 | G192: 0.000265849316 | H192: 0.0004311031902 | I192: 154.94 | J192: 0.0188545853 | K192: 6.740181835 | L192: 3850601.204 | M192: 0.02099478583 | N192: 15.08551207 | O192: 15.08551207 | P192: 35.38489447 | Q192: 57.38040301 | R192: 8.803110797 | S192: 114.1332108 | T192: 50.47040653 | U192: 63.66280428 | V192: 494.7271309 | W192: 986.7611534 | X192: 1244.689443 | Y192: 2231.450596 | Z192: 25.1625 | AA192: 25.5000918 | AB192: 57.38040301 | AC192: 25.5000918
A193: 6.77701343 | B193: 460 | C193: 154.94 | D193: 500 | E193: 0.2 | F193: 980.2321099 | G193: 0.000265849316 | H193: 0.0004311031902 | I193: 154.94 | J193: 0.0188545853 | K193: 6.77701343 | L193: 3871642.74 | M193: 0.02099429185 | N193: 15.25047268 | O193: 15.25047268 | P193: 35.57825455 | Q193: 57.69395712 | R193: 8.803110797 | S193: 114.9700462 | T193: 50.82872723 | U193: 64.14131901 | V193: 498.2395054 | W193: 999.1972019 | X193: 1260.897724 | Y193: 2260.094926 | Z193: 25.3 | AA193: 25.32032711 | AB193: 57.69395712 | AC193: 25.32032711
A194: 6.813845025 | B194: 462.5 | C194: 154.94 | D194: 500 | E194: 0.2 | F194: 980.2321099 | G194: 0.000265849316 | H194: 0.0004311031902 | I194: 154.94 | J194: 0.0188545853 | K194: 6.813845025 | L194: 3892684.277 | M194: 0.02099380292 | N194: 15.4163301 | O194: 15.4163301 | P194: 35.77161463 | Q194: 58.00751124 | R194: 8.803110797 | S194: 115.8086753 | T194: 51.18794473 | U194: 64.62073055 | V194: 501.7606707 | W194: 1011.72754 | X194: 1277.225978 | Y194: 2288.953518 | Z194: 25.4375 | AA194: 25.1426387 | AB194: 58.00751124 | AC194: 25.1426387
A195: 6.85067662 | B195: 465 | C195: 154.94 | D195: 500 | E195: 0.2 | F195: 980.2321099 | G195: 0.000265849316 | H195: 0.0004311031902 | I195: 154.94 | J195: 0.0188545853 | K195: 6.85067662 | L195: 3913725.814 | M195: 0.02099331896 | N195: 15.58308433 | O195: 15.58308433 | P195: 35.96497471 | Q195: 58.32106535 | R195: 8.803110797 | S195: 116.6490979 | T195: 51.54805904 | U195: 65.10103889 | V195: 505.2906268 | W195: 1024.352455 | X195: 1293.674491 | Y195: 2318.026946 | Z195: 25.575 | AA195: 24.96699243 | AB195: 58.32106535 | AC195: 24.96699243
A196: 6.887508214 | B196: 467.5 | C196: 154.94 | D196: 500 | E196: 0.2 | F196: 980.2321099 | G196: 0.000265849316 | H196: 0.0004311031902 | I196: 154.94 | J196: 0.0188545853 | K196: 6.887508214 | L196: 3934767.35 | M196: 0.02099283989 | N196: 15.75073537 | O196: 15.75073537 | P196: 36.15833479 | Q196: 58.63461947 | R196: 8.803110797 | S196: 117.4913142 | T196: 51.90907015 | U196: 65.58224404 | V196: 508.8293736 | W196: 1037.072235 | X196: 1310.243551 | Y196: 2347.315786 | Z196: 25.7125 | AA196: 24.79335492 | AB196: 58.63461947 | AC196: 24.79335492
A197: 6.924339809 | B197: 470 | C197: 154.94 | D197: 500 | E197: 0.2 | F197: 980.2321099 | G197: 0.000265849316 | H197: 0.0004311031902 | I197: 154.94 | J197: 0.0188545853 | K197: 6.924339809 | L197: 3955808.887 | M197: 0.02099236563 | N197: 15.91928321 | O197: 15.91928321 | P197: 36.35169486 | Q197: 58.94817358 | R197: 8.803110797 | S197: 118.3353241 | T197: 52.27097807 | U197: 66.06434599 | V197: 512.3769112 | W197: 1049.887166 | X197: 1326.933445 | Y197: 2376.820612 | Z197: 25.85 | AA197: 24.62169348 | AB197: 58.94817358 | AC197: 24.62169348
A198: 6.961171404 | B198: 472.5 | C198: 154.94 | D198: 500 | E198: 0.2 | F198: 980.2321099 | G198: 0.000265849316 | H198: 0.0004311031902 | I198: 154.94 | J198: 0.0188545853 | K198: 6.961171404 | L198: 3976850.423 | M198: 0.02099189612 | N198: 16.08872785 | O198: 16.08872785 | P198: 36.54505494 | Q198: 59.2617277 | R198: 8.803110797 | S198: 119.1811275 | T198: 52.63378279 | U198: 66.54734475 | V198: 515.9332396 | W198: 1062.797537 | X198: 1343.744461 | Y198: 2406.541998 | Z198: 25.9875 | AA198: 24.45197612 | AB198: 59.2617277 | AC198: 24.45197612
A199: 6.998002998 | B199: 475 | C199: 154.94 | D199: 500 | E199: 0.2 | F199: 980.2321099 | G199: 0.000265849316 | H199: 0.0004311031902 | I199: 154.94 | J199: 0.0188545853 | K199: 6.998002998 | L199: 3997891.96 | M199: 0.02099143128 | N199: 16.25906929 | O199: 16.25906929 | P199: 36.73841502 | Q199: 59.57528181 | R199: 8.803110797 | S199: 120.0287246 | T199: 52.99748431 | U199: 67.0312403 | V199: 519.4983587 | W199: 1075.803635 | X199: 1360.676887 | Y199: 2436.480521 | Z199: 26.125 | AA199: 24.28417154 | AB199: 59.57528181 | AC199: 24.28417154
A200: 7.034834593 | B200: 477.5 | C200: 154.94 | D200: 500 | E200: 0.2 | F200: 980.2321099 | G200: 0.000265849316 | H200: 0.0004311031902 | I200: 154.94 | J200: 0.0188545853 | K200: 7.034834593 | L200: 4018933.497 | M200: 0.02099097104 | N200: 16.43030753 | O200: 16.43030753 | P200: 36.9317751 | Q200: 59.88883593 | R200: 8.803110797 | S200: 120.8781153 | T200: 53.36208263 | U200: 67.51603266 | V200: 523.0722685 | W200: 1088.905746 | X200: 1377.731008 | Y200: 2466.636754 | Z200: 26.2625 | AA200: 24.11824907 | AB200: 59.88883593 | AC200: 24.11824907
... 49 more rows

Sheet Flow section 1 prod (hidden)
B1: Tin | C1: ='Energy Prod & Cons'!C10 -> 135 | D1: [°C] | F1: dikte | G1: ='Energy Prod & Cons'!G14 -> 100 | H1: [m] | L1: COP cooling | R1: depth | S1: Temp | T1: Pressure | U1: w (mass frac) | V1: Rho(T,P) | W1: Rho(C,T,P) | X1: A | Y1: visc (C,T) | Z1: visc (C,T)
B2: Tuit | C2: ='Energy Prod & Cons'!C11 -> 85 | D2: [°C] | F2: perm | G2: ='Energy Prod & Cons'!G16 -> 150 | H2: [mD] | L2: Max Pinj | M2: ='Energy Prod & Cons'!G10*(0.135-('Flow section 1 prod'!W4*9.8/100000)) -> 90.53111146 | N2: 0,025x diepte | R2: [m-mv] | S2: [°C] | T2: (MPa) | U2: [kg/kg] | V2: [g/cm³] | W2: [kg/m³] | X2: [-] | Y2: [kg/ms] | Z2: [cp]
B3: n | C3: ='Energy Prod & Cons'!G23 -> 0.65 | D3: [-] | F3: L | G3: ='Energy Prod & Cons'!G18 -> 1500 | H3: [m] | Q3: productie, reservoir | R3: ='Energy Prod & Cons'!G10 -> 2550 | S3: =C1 -> 135 | T3: =R3/100 -> 25.5 | U3: =C5/1000000 -> 0.05 | V3: =1+0.000001*(-80*S3-3.3*S3^2+0.00175*S3^3+489*T3-2*T3*S3+0.016*S3^2*T3-0.000013*S3^3*T3-0.333*T3^2-0.002*S3*T3^2) -> 0.9451757412 | W3: =(V3+U3*(0.668+0.44*U3+(0.000001*(300*T3-2400*T3*U3+(S3*(80+3*S3-3300*U3-13*T3+47*T3*U3))))))*1000 -> 980.2321099 | X3: =(0.42*(U3^0.8-0.17)^2+0.045)*S3^0.8 -> 2.410185461 | Y3: =(0.1+0.333*U3+(1.65+91.9*U3^3)*EXP(-X3))/1000 -> 0.000265849316 | Z3: =Y3*1000 -> 0.265849316
B4: skin | C4: ='Energy Prod & Cons'!G25 -> 0 | D4: [-] | F4: trans | G4: ='Energy Prod & Cons'!G17 -> 15 | H4: [Dm] | Q4: injectie | R4: =R3 -> 2550 | S4: =C2 -> 85 | T4: =R4/100 -> 25.5 | U4: =U3 -> 0.05 | V4: =1+0.000001*(-80*S4-3.3*S4^2+0.00175*S4^3+489*T4-2*T4*S4+0.016*S4^2*T4-0.000013*S4^3*T4-0.333*T4^2-0.002*S4*T4^2) -> 0.9809838606 | W4: =(V4+U4*(0.668+0.44*U4+(0.000001*(300*T4-2400*T4*U4+(S4*(80+3*S4-3300*U4-13*T4+47*T4*U4))))))*1000 -> 1015.281667 | X4: =(0.42*(U4^0.8-0.17)^2+0.045)*S4^0.8 -> 1.664633338 | Y4: =(0.1+0.333*U4+(1.65+91.9*U4^3)*EXP(-X4))/1000 -> 0.0004311031902 | Z4: =Y4*1000 -> 0.4311031902
B5: TDS | C5: ='Energy Prod & Cons'!G22 -> 50000 | D5: [ppm] | AB5: =W3/W4 -> 0.9654779969
A6: 1 | B6: 2 | C6: 3 | D6: 4 | E6: 5 | F6: 6 | G6: 7 | H6: 8 | I6: 9 | J6: 10 | K6: 11 | L6: 12 | M6: 13 | N6: 14 | O6: 15 | P6: 16 | Q6: 17 | R6: 18 | S6: 19 | T6: 20 | U6: 21 | V6: 22 | W6: 23 | X6: 24 | Y6: 25 | Z6: 26 | AA6: 27 | AB6: 28 | AC6: 29
A7: Flow | B7: Q | C7: diameter | D7: lengte | E7: K | F7: rho_l | G7: mu_l_prod | H7: mu_l_inj | I7: inw. dia. | J7: A | K7: v | L7: Re | M7: frictie getal | N7: dP_prod_frict | O7: dP_inj_fric | P7: dP_prod_form | Q7: dP_inj_form | R7: dgws | S7: dPtot | T7: dP ESP | U7: dP Booster | V7: ESP min depth | W7: Pe ESP | X7: Pe Booster | Y7: Pe pump tot | Z7: Pt | AA7: COP
A8: m/s (lower casing) | B8: [m3/h] | C8: [mm] | D8: [m] | E8: [mm] | F8: [kg/m3] | G8: [kg/ms] | H8: [kg/ms] | I8: [mm] | J8: [m2] | K8: [m/s] | L8: [-] | M8: [-] | N8: [bar] | O8: [bar] | P8: [bar] | Q8: [bar] | R8: [bar] | S8: [bar] | T8: [bar] | U8: [bar] | V8: [m[ | W8: [kWe] | X8: [kWe] | Y8: [kWe] | Z8: [MW] | AA8: [-] | AB8: Pinj | AC8: COP
B9: 0
A10: =B10/J10/3600 -> 0.02134477666 | B10: 2.5 | C10: ='Slimhole design'!AA22 -> 203.5298 | D10: ='Slimhole design'!D21-'Slimhole design'!D16 -> 300 | E10: ='Energy Prod & Cons'!G21 -> 0.2 | F10: =W3 -> 980.2321099 | G10: =Y3 -> 0.000265849316 | H10: =Y4 -> 0.0004311031902 | I10: =C10 -> 203.5298 | J10: =PI()*(I10/2000)^2 -> 0.03253463157 | K10: =B10/J10/3600 -> 0.02134477666 | L10: =(F10*K10*I10)/G10/1000 -> 16018.17368 | M10: =(1.14-2*LOG((E10/1000)/(I10/1000)+(21.25/L10^0.9)))^-2 -> 0.02933804826 | N10: =(0.5*F10*K10^2*D10/(I10/1000)*M10/100000) -> 9.656208318e-05 | O10: =(0.5*F10*K10^2*D10/(I10/1000)*M10/100000) -> 9.656208318e-05 | P10: =(B10/3600)*G10/2/PI()/G$4/0.000000000001*(LN(G$3/(C10/2000))+C$4)/100000 -> 0.1880168269 | Q10: =(B10/3600)*H10/2/PI()/G$4/0.000000000001*(LN(G$3/(C10/2000))+C$4)/100000 -> 0.304889458 | R10: ='Energy Prod & Cons'!G10*(1-'Flow section 1 prod'!AB5)/10 -> 8.803110797 | S10: =O10+N10+P10+Q10-R10 -> -8.310011388 | T10: =N10+P10 -> 0.1881133889 | U10: =O10+Q10-R10 -> -8.498124777 | V10: =T10*(F10/100) -> 1.843947841 | W10: =T10/3600/C$3*B10*100 -> 0.02009758429 | X10: =U10/3600/C$3*B10*100 -> -0.9079193138 | Y10: =X10+W10 -> -0.8878217295 | Z10: =B10*(C$1-C$2)*1.1/1000 -> 0.1375 | AA10: =Z10/(W10/1000) -> 6841.618278 | AB10: =Q10 -> 0.304889458 | AC10: =AA10 -> 6841.618278
A11: =B11/J11/3600 -> 0.04268955331 | B11: =B10+2.5 -> 5 | C11: =C10 -> 203.5298 | D11: 300 | E11: 0.2 | F11: 980.2321099 | G11: =G10 -> 0.000265849316 | H11: =H10 -> 0.0004311031902 | I11: 203.5298 | J11: =PI()*(I11/2000)^2 -> 0.03253463157 | K11: =B11/J11/3600 -> 0.04268955331 | L11: 32036.34736 | M11: 0.02577351789 | N11: 0.0003393197197 | O11: 0.0003393197197 | P11: =(B11/3600)*G11/2/PI()/G$4/0.000000000001*(LN(G$3/(C11/2000))+C$4)/100000 -> 0.3760336537 | Q11: =(B11/3600)*H11/2/PI()/G$4/0.000000000001*(LN(G$3/(C11/2000))+C$4)/100000 -> 0.6097789161 | R11: =R10 -> 8.803110797 | S11: =O11+N11+P11+Q11-R11 -> -7.816619588 | T11: =N11+P11 -> 0.3763729734 | U11: =O11+Q11-R11 -> -8.192992561 | V11: 3.689328739 | W11: 0.08042157552 | X11: -1.750639436 | Y11: =X11+W11 -> -1.670217861 | Z11: =B11*(C$1-C$2)*1.1/1000 -> 0.275 | AA11: =Z11/(W11/1000) -> 3419.480385 | AB11: =Q11 -> 0.6097789161 | AC11: 3419.480385
A12: 0.06403432997 | B12: =B11+2.5 -> 7.5 | C12: 203.5298 | D12: 300 | E12: 0.2 | F12: 980.2321099 | G12: 0.000265849316 | H12: 0.0004311031902 | I12: 203.5298 | J12: =PI()*(I12/2000)^2 -> 0.03253463157 | K12: =B12/J12/3600 -> 0.06403432997 | L12: 48054.52104 | M12: 0.02423738384 | N12: 0.0007179656355 | O12: 0.0007179656355 | P12: =(B12/3600)*G12/2/PI()/G$4/0.000000000001*(LN(G$3/(C12/2000))+C$4)/100000 -> 0.5640504806 | Q12: 0.9146683741 | R12: =R11 -> 8.803110797 | S12: -7.322956011 | T12: 0.5647684462 | U12: -7.887724457 | V12: 5.536041656 | W12: 0.1810155276 | X12: -2.528116813 | Y12: -2.347101286 | Z12: =B12*(C$1-C$2)*1.1/1000 -> 0.4125 | AA12: =Z12/(W12/1000) -> 2278.81003 | AB12: 0.9146683741 | AC12: 2278.81003
A13: 0.08537910662 | B13: 10 | C13: 203.5298 | D13: 300 | E13: 0.2 | F13: 980.2321099 | G13: 0.000265849316 | H13: 0.0004311031902 | I13: 203.5298 | J13: 0.03253463157 | K13: 0.08537910662 | L13: 64072.69473 | M13: 0.02335043715 | N13: 0.001229675176 | O13: 0.001229675176 | P13: 0.7520673074 | Q13: 1.219557832 | R13: 8.803110797 | S13: -6.829026307 | T13: 0.7532969826 | U13: -7.58232329 | V13: 7.384058907 | W13: 0.3219217874 | X13: -3.240309098 | Y13: -2.918387311 | Z13: 0.55 | AA13: 1708.48952 | AB13: 1.219557832 | AC13: 1708.48952
A14: 0.1067238833 | B14: 12.5 | C14: 203.5298 | D14: 300 | E14: 0.2 | F14: 980.2321099 | G14: 0.000265849316 | H14: 0.0004311031902 | I14: 203.5298 | J14: 0.03253463157 | K14: 0.1067238833 | L14: 80090.86841 | M14: 0.02276409735 | N14: 0.001873121076 | O14: 0.001873121076 | P14: 0.9400841343 | Q14: 1.52444729 | R14: 8.803110797 | S14: -6.33483313 | T14: 0.9419572553 | U14: -7.276790386 | V14: 9.233367479 | W14: 0.5031822945 | X14: -3.887174351 | Y14: -3.383992057 | Z14: 0.6875 | AA14: 1366.304036 | AB14: 1.52444729 | AC14: 1366.304036
A15: 0.1280686599 | B15: 15 | C15: 203.5298 | D15: 300 | E15: 0.2 | F15: 980.2321099 | G15: 0.000265849316 | H15: 0.0004311031902 | I15: 203.5298 | J15: 0.03253463157 | K15: 0.1280686599 | L15: 96109.04209 | M15: 0.022344266 | N15: 0.002647548968 | O15: 0.002647548968 | P15: 1.128100961 | Q15: 1.829336748 | R15: 8.803110797 | S15: -5.84037799 | T15: 1.13074851 | U15: -6.9711265 | V15: 11.08395998 | W15: 0.7248387885 | X15: -4.468670833 | Y15: -3.743832045 | Z15: 0.825 | AA15: 1138.184122 | AB15: 1.829336748 | AC15: 1138.184122
A16: 0.1494134366 | B16: 17.5 | C16: 203.5298 | D16: 300 | E16: 0.2 | F16: 980.2321099 | G16: 0.000265849316 | H16: 0.0004311031902 | I16: 203.5298 | J16: 0.03253463157 | K16: 0.1494134366 | L16: 112127.2158 | M16: 0.02202724391 | N16: 0.003552480057 | O16: 0.003552480057 | P16: 1.316117788 | Q16: 2.134226206 | R16: 8.803110797 | S16: -5.345661843 | T16: 1.319670268 | U16: -6.665332111 | V16: 12.93583171 | W16: 0.9869328928 | X16: -4.98475692 | Y16: -3.997824028 | Z16: 0.9625 | AA16: 975.2436129 | AB16: 2.134226206 | AC16: 975.2436129
A17: 0.1707582132 | B17: 20 | C17: 203.5298 | D17: 300 | E17: 0.2 | F17: 980.2321099 | G17: 0.000265849316 | H17: 0.0004311031902 | I17: 203.5298 | J17: 0.03253463157 | K17: 0.1707582132 | L17: 128145.3895 | M17: 0.02177854909 | N17: 0.004587587122 | O17: 0.004587587122 | P17: 1.504134615 | Q17: 2.439115664 | R17: 8.803110797 | S17: -4.850685344 | T17: 1.508722202 | U17: -6.359407546 | V17: 14.78897947 | W17: 1.289506156 | X17: -5.435391065 | Y17: -4.145884909 | Z17: 1.1 | AA17: 853.0397434 | AB17: 2.439115664 | AC17: 853.0397434
A18: 0.1921029899 | B18: 22.5 | C18: 203.5298 | D18: 300 | E18: 0.2 | F18: 980.2321099 | G18: 0.000265849316 | H18: 0.0004311031902 | I18: 203.5298 | J18: 0.03253463157 | K18: 0.1921029899 | L18: 144163.5631 | M18: 0.02157775881 | N18: 0.005752634228 | O18: 0.005752634228 | P18: 1.692151442 | Q18: 2.744005122 | R18: 8.803110797 | S18: -4.355448965 | T18: 1.697904076 | U18: -6.05335304 | V18: 16.64340095 | W18: 1.632600073 | X18: -5.82053177 | Y18: -4.187931697 | Z18: 1.2375 | AA18: 757.9933509 | AB18: 2.744005122 | AC18: 757.9933509
A19: 0.2134477666 | B19: 25 | C19: 203.5298 | D19: 300 | E19: 0.2 | F19: 980.2321099 | G19: 0.000265849316 | H19: 0.0004311031902 | I19: 203.5298 | J19: 0.03253463157 | K19: 0.2134477666 | L19: 160181.7368 | M19: 0.02141195082 | N19: 0.007047444184 | O19: 0.007047444184 | P19: 1.880168269 | Q19: 3.04889458 | R19: 8.803110797 | S19: -3.85995306 | T19: 1.887215713 | U19: -5.747168772 | V19: 18.4990944 | W19: 2.016256103 | X19: -6.140137577 | Y19: -4.123881474 | Z19: 1.375 | AA19: 681.9570181 | AB19: 3.04889458 | AC19: 681.9570181
A20: 0.2347925432 | B20: 27.5 | C20: 203.5298 | D20: 300 | E20: 0.2 | F20: 980.2321099 | G20: 0.000265849316 | H20: 0.0004311031902 | I20: 203.5298 | J20: 0.03253463157 | K20: 0.2347925432 | L20: 176199.9105 | M20: 0.02127252271 | N20: 0.00847187958 | O20: 0.00847187958 | P20: 2.068185095 | Q20: 3.353784038 | R20: 8.803110797 | S20: -3.364197904 | T20: 2.076656975 | U20: -5.440854879 | V20: 20.35605848 | W20: 2.440515676 | X20: -6.394167059 | Y20: -3.953651383 | Z20: 1.5125 | AA20: 619.7460705 | AB20: 3.353784038 | AC20: 619.7460705
A21: 0.2561373199 | B21: 30 | C21: 203.5298 | D21: 300 | E21: 0.2 | F21: 980.2321099 | G21: 0.000265849316 | H21: 0.0004311031902 | I21: 203.5298 | J21: 0.03253463157 | K21: 0.2561373199 | L21: 192218.0842 | M21: 0.02115351205 | N21: 0.01002583106 | O21: 0.01002583106 | P21: 2.256201922 | Q21: 3.658673496 | R21: 8.803110797 | S21: -2.868183716 | T21: 2.266227753 | U21: -5.13441147 | V21: 22.21429212 | W21: 2.905420197 | X21: -6.582578807 | Y21: -3.677158611 | Z21: 1.65 | AA21: 567.9040856 | AB21: 3.658673496 | AC21: 567.9040856
A22: 0.2774820965 | B22: 32.5 | C22: 203.5298 | D22: 300 | E22: 0.2 | F22: 980.2321099 | G22: 0.000265849316 | H22: 0.0004311031902 | I22: 203.5298 | J22: 0.03253463157 | K22: 0.2774820965 | L22: 208236.2579 | M22: 0.02105064811 | N22: 0.0117092097 | O22: 0.0117092097 | P22: 2.444218749 | Q22: 3.963562954 | R22: 8.803110797 | S22: -2.371910674 | T22: 2.455927959 | U22: -4.827838633 | V22: 24.07379445 | W22: 3.411011054 | X22: -6.705331435 | Y22: -3.294320381 | Z22: 1.7875 | AA22: 524.0381728 | AB22: 3.963562954 | AC22: 524.0381728
A23: 0.2988268732 | B23: 35 | C23: 203.5298 | D23: 300 | E23: 0.2 | F23: 980.2321099 | G23: 0.000265849316 | H23: 0.0004311031902 | I23: 203.5298 | J23: 0.03253463157 | K23: 0.2988268732 | L23: 224254.4315 | M23: 0.02096078711 | N23: 0.01352194192 | O23: 0.01352194192 | P23: 2.632235576 | Q23: 4.268452413 | R23: 8.803110797 | S23: -1.875378925 | T23: 2.645757518 | U23: -4.521136443 | V23: 25.93456474 | W23: 3.957329621 | X23: -6.762383568 | Y23: -2.805053947 | Z23: 1.925 | AA23: 486.4391356 | AB23: 4.268452413 | AC23: 486.4391356
A24: 0.3201716498 | B24: 37.5 | C24: 203.5298 | D24: 300 | E24: 0.2 | F24: 980.2321099 | G24: 0.000265849316 | H24: 0.0004311031902 | I24: 203.5298 | J24: 0.03253463157 | K24: 0.3201716498 | L24: 240272.6052 | M24: 0.02088156075 | N24: 0.01546396585 | O24: 0.01546396585 | P24: 2.820252403 | Q24: 4.573341871 | R24: 8.803110797 | S24: -1.378588592 | T24: 2.835716369 | U24: -4.214304961 | V24: 27.79660239 | W24: 4.544417257 | X24: -6.753693847 | Y24: -2.20927659 | Z24: 2.0625 | AA24: 453.8535709 | AB24: 4.573341871 | AC24: 453.8535709
A25: 0.3415164265 | B25: 40 | C25: 203.5298 | D25: 300 | E25: 0.2 | F25: 980.2321099 | G25: 0.000265849316 | H25: 0.0004311031902 | I25: 203.5298 | J25: 0.03253463157 | K25: 0.3415164265 | L25: 256290.7789 | M25: 0.02081114928 | N25: 0.01753522882 | O25: 0.01753522882 | P25: 3.00826923 | Q25: 4.878231329 | R25: 8.803110797 | S25: -0.8815397811 | T25: 3.025804458 | U25: -3.90734424 | V25: 29.65990689 | W25: 5.172315314 | X25: -6.679220922 | Y25: -1.506905609 | Z25: 2.2 | AA25: 425.3414316 | AB25: 4.878231329 | AC25: 425.3414316
A26: 0.3628612032 | B26: 42.5 | C26: 203.5298 | D26: 300 | E26: 0.2 | F26: 980.2321099 | G26: 0.000265849316 | H26: 0.0004311031902 | I26: 203.5298 | J26: 0.03253463157 | K26: 0.3628612032 | L26: 272308.9526 | M26: 0.02074813022 | N26: 0.01973568549 | O26: 0.01973568549 | P26: 3.196286057 | Q26: 5.183120787 | R26: 8.803110797 | S26: -0.3842325829 | T26: 3.216021742 | U26: -3.600254325 | V26: 31.52447778 | W26: 5.84106513 | X26: -6.538923453 | Y26: -0.6978583237 | Z26: 2.3375 | AA26: 400.1838617 | AB26: 5.183120787 | AC26: 400.1838617
A27: 0.3842059798 | B27: 45 | C27: =C26 -> 203.5298 | D27: 300 | E27: 0.2 | F27: 980.2321099 | G27: 0.000265849316 | H27: 0.0004311031902 | I27: 203.5298 | J27: 0.03253463157 | K27: 0.3842059798 | L27: 288327.1263 | M27: 0.02069137479 | N27: 0.02206529638 | O27: 0.02206529638 | P27: 3.384302883 | Q27: 5.488010245 | R27: 8.803110797 | S27: 0.1133329237 | T27: 3.40636818 | U27: -3.293035256 | V27: 33.39031468 | W27: 6.550708038 | X27: -6.332760108 | Y27: 0.2179479303 | Z27: 2.475 | AA27: 377.8217539 | AB27: 5.488010245 | AC27: 377.8217539
A28: 0.4055507565 | B28: 47.5 | C28: 203.5298 | D28: 300 | E28: 0.2 | F28: 980.2321099 | G28: 0.000265849316 | H28: 0.0004311031902 | I28: 203.5298 | J28: 0.03253463157 | K28: 0.4055507565 | L28: 304345.3 | M28: 0.02063997533 | N28: 0.02452402688 | O28: 0.02452402688 | P28: 3.57231971 | Q28: 5.792899703 | R28: 8.803110797 | S28: 0.6111566696 | T28: 3.596843737 | U28: -2.985687067 | V28: 35.25741726 | W28: 7.301285364 | X28: -6.06068956 | Y28: 1.240595804 | Z28: 2.6125 | AA28: 357.8137095 | AB28: 5.792899703 | AC28: 357.8137095
A29: 0.4268955331 | B29: 50 | C29: 203.5298 | D29: 300 | E29: 0.2 | F29: 980.2321099 | G29: 0.000265849316 | H29: 0.0004311031902 | I29: 203.5298 | J29: 0.03253463157 | K29: 0.4268955331 | L29: 320363.4736 | M29: 0.02059319329 | N29: 0.02711184638 | O29: 0.02711184638 | P29: 3.760336537 | Q29: 6.097789161 | R29: 8.803110797 | S29: 1.109238594 | T29: 3.787448383 | U29: -2.67820979 | V29: 37.1257852 | W29: 8.092838426 | X29: -5.722670491 | Y29: 2.370167935 | Z29: 2.75 | AA29: 339.8066111 | AB29: 6.097789161 | AC29: 339.8066111
A30: 0.4482403098 | B30: 52.5 | C30: 203.5298 | D30: 300 | E30: 0.2 | F30: 980.2321099 | G30: 0.000265849316 | H30: 0.0004311031902 | I30: 203.5298 | J30: 0.03253463157 | K30: 0.4482403098 | L30: 336381.6473 | M30: 0.02055042136 | N30: 0.0298287276 | O30: 0.0298287276 | P30: 3.948353364 | Q30: 6.402678619 | R30: 8.803110797 | S30: 1.607578641 | T30: 3.978182092 | U30: -2.370603451 | V30: 38.99541825 | W30: 8.925408539 | X30: -5.318661588 | Y30: 3.606746951 | Z30: 2.8875 | AA30: 323.514603 | AB30: 6.402678619 | AC30: 323.514603
A31: 0.4695850864 | B31: 55 | C31: 203.5298 | D31: 300 | E31: 0.2 | F31: 980.2321099 | G31: 0.000265849316 | H31: 0.0004311031902 | I31: 203.5298 | J31: 0.03253463157 | K31: 0.4695850864 | L31: 352399.821 | M31: 0.02051115532 | N31: 0.03267464612 | O31: 0.03267464612 | P31: 4.136370191 | Q31: 6.707568077 | R31: 8.803110797 | S31: 2.106176763 | T31: 4.169044837 | U31: -2.062868074 | V31: 40.86631617 | W31: 9.79903701 | X31: -4.848621542 | Y31: 4.950415468 | Z31: 3.025 | AA31: 308.703804 | AB31: 6.707568077 | AC31: 308.703804
A32: 0.4909298631 | B32: 57.5 | C32: 203.5298 | D32: 300 | E32: 0.2 | F32: 980.2321099 | G32: 0.000265849316 | H32: 0.0004311031902 | I32: 203.5298 | J32: 0.03253463157 | K32: 0.4909298631 | L32: 368417.9947 | M32: 0.02047497296 | N32: 0.03564957991 | O32: 0.03564957991 | P32: 4.324387018 | Q32: 7.012457535 | R32: 8.803110797 | S32: 2.605032915 | T32: 4.360036598 | U32: -1.755003682 | V32: 42.73847873 | W32: 10.71376514 | X32: -4.312509048 | Y32: 6.401256095 | Z32: 3.1625 | AA32: 295.1810085 | AB32: 7.012457535 | AC32: 295.1810085
A33: 0.5122746397 | B33: 60 | C33: 203.5298 | D33: 300 | E33: 0.2 | F33: 980.2321099 | G33: 0.000265849316 | H33: 0.0004311031902 | I33: 203.5298 | J33: 0.03253463157 | K33: 0.5122746397 | L33: 384436.1684 | M33: 0.02044151792 | N33: 0.03875350905 | O33: 0.03875350905 | P33: 4.512403844 | Q33: 7.317346993 | R33: 8.803110797 | S33: 3.104147058 | T33: 4.551157354 | U33: -1.447010295 | V33: 44.61190575 | W33: 11.66963424 | X33: -3.710282808 | Y33: 7.959351432 | Z33: 3.3 | AA33: 282.7852126 | AB33: 7.317346993 | AC33: 282.7852126
A34: 0.5336194164 | B34: 62.5 | C34: 203.5298 | D34: 300 | E34: 0.2 | F34: 980.2321099 | G34: 0.000265849316 | H34: 0.0004311031902 | I34: 203.5298 | J34: 0.03253463157 | K34: 0.5336194164 | L34: 400454.342 | M34: 0.02041048727 | N34: 0.04198641537 | O34: 0.04198641537 | P34: 4.700420671 | Q34: 7.622236451 | R34: 8.803110797 | S34: 3.603519156 | T34: 4.742407087 | U34: -1.138887931 | V34: 46.48659705 | W34: 12.66668559 | X34: -3.041901524 | Y34: 9.62478407 | Z34: 3.4375 | AA34: 271.3811734 | AB34: 7.622236451 | AC34: 271.3811734
A35: 0.5549641931 | B35: 65 | C35: 203.5298 | D35: 300 | E35: 0.2 | F35: 980.2321099 | G35: 0.000265849316 | H35: 0.0004311031902 | I35: 203.5298 | J35: 0.03253463157 | K35: 0.5549641931 | L35: 416472.5157 | M35: 0.02038162177 | N35: 0.04534828231 | O35: 0.04534828231 | P35: 4.888437498 | Q35: 7.927125909 | R35: 8.803110797 | S35: 4.103149175 | T35: 4.93378578 | U35: -0.8306366058 | V35: 48.36255246 | W35: 13.7049605 | X35: -2.307323905 | Y35: 11.3976366 | Z35: 3.575 | AA35: 260.8544548 | AB35: 7.927125909 | AC35: 260.8544548
A36: 0.5763089697 | B36: 67.5 | C36: 203.5298 | D36: 300 | E36: 0.2 | F36: 980.2321099 | G36: 0.000265849316 | H36: 0.0004311031902 | I36: 203.5298 | J36: 0.03253463157 | K36: 0.5763089697 | L36: 432490.6894 | M36: 0.02035469825 | N36: 0.04883909464 | O36: 0.04883909464 | P36: 5.076454325 | Q36: 8.232015367 | R36: 8.803110797 | S36: 4.603037084 | T36: 5.12529342 | U36: -0.5222563354 | V36: 50.23977183 | W36: 14.78450025 | X36: -1.50650866 | Y36: 13.27799159 | Z36: 3.7125 | AA36: 251.1075747 | AB36: 8.232015367 | AC36: 251.1075747
A37: 0.5976537464 | B37: 70 | C37: 203.5298 | D37: 300 | E37: 0.2 | F37: 980.2321099 | G37: 0.000265849316 | H37: 0.0004311031902 | I37: 203.5298 | J37: 0.03253463157 | K37: 0.5976537464 | L37: 448508.8631 | M37: 0.02032952347 | N37: 0.05245883835 | O37: 0.05245883835 | P37: 5.264471152 | Q37: 8.536904825 | R37: 8.803110797 | S37: 5.103182857 | T37: 5.31692999 | U37: -0.2137471337 | V37: 52.11825503 | W37: 15.90534612 | X37: -0.6394145024 | Y37: 15.26593162 | Z37: 3.85 | AA37: 242.0569769 | AB37: 8.536904825 | AC37: 242.0569769
A38: 0.618998523 | B38: 72.5 | C38: 203.5298 | D38: 300 | E38: 0.2 | F38: 980.2321099 | G38: 0.000265849316 | H38: 0.0004311031902 | I38: 203.5298 | J38: 0.03253463157 | K38: 0.618998523 | L38: 464527.0368 | M38: 0.02030592929 | N38: 0.0562075005 | O38: 0.0562075005 | P38: 5.452487979 | Q38: 8.841794283 | R38: 8.803110797 | S38: 5.603586466 | T38: 5.508695479 | U38: 0.09489098653 | V38: 53.99800193 | W38: 17.06753941 | X38: 0.2939998514 | Y38: 17.36153926 | Z38: 3.9875 | AA38: 233.6306309 | AB38: 8.841794283 | AC38: 233.6306309
A39: 0.6403432997 | B39: 75 | C39: 203.5298 | D39: 300 | E39: 0.2 | F39: 980.2321099 | G39: 0.000265849316 | H39: 0.0004311031902 | I39: 203.5298 | J39: 0.03253463157 | K39: 0.6403432997 | L39: 480545.2104 | M39: 0.02028376862 | N39: 0.06008506911 | O39: 0.06008506911 | P39: 5.640504806 | Q39: 9.146683741 | R39: 8.803110797 | S39: 6.104247888 | T39: 5.700589875 | U39: 0.4036580132 | V39: 55.87901241 | W39: 18.27112139 | X39: 1.293775683 | Y39: 19.56489708 | Z39: 4.125 | AA39: 225.7661099 | AB39: 9.146683741 | AC39: 225.7661099
A40: 0.6616880763 | B40: 77.5 | C40: 203.5298 | D40: 300 | E40: 0.2 | F40: 980.2321099 | G40: 0.000265849316 | H40: 0.0004311031902 | I40: 203.5298 | J40: 0.03253463157 | K40: 0.6616880763 | L40: 496563.3841 | M40: 0.02026291228 | N40: 0.06409153302 | O40: 0.06409153302 | P40: 5.828521632 | Q40: 9.451573199 | R40: 8.803110797 | S40: 6.605167101 | T40: 5.892613165 | U40: 0.7125539351 | V40: 57.76128636 | W40: 19.51613335 | X40: 2.359954272 | Y40: 21.87608762 | Z40: 4.2625 | AA40: 218.4090426 | AB40: 9.451573199 | AC40: 218.4090426
A41: 0.683032853 | B41: 80 | C41: 203.5298 | D41: 300 | E41: 0.2 | F41: 980.2321099 | G41: 0.000265849316 | H41: 0.0004311031902 | I41: 203.5298 | J41: 0.03253463157 | K41: 0.683032853 | L41: 512581.5578 | M41: 0.02024324629 | N41: 0.06822688185 | O41: 0.06822688185 | P41: 6.016538459 | Q41: 9.756462657 | R41: 8.803110797 | S41: 7.106344083 | T41: 6.084765341 | U41: 1.021578742 | V41: 59.64482369 | W41: 20.80261655 | X41: 3.492576896 | Y41: 24.29519345 | Z41: 4.4 | AA41: 211.5118543 | AB41: 9.756462657 | AC41: 211.5118543
A42: 0.7043776297 | B42: 82.5 | C42: 203.5298 | D42: 300 | E42: 0.2 | F42: 980.2321099 | G42: 0.000265849316 | H42: 0.0004311031902 | I42: 203.5298 | J42: 0.03253463157 | K42: 0.7043776297 | L42: 528599.7315 | M42: 0.02022466971 | N42: 0.07249110592 | O42: 0.07249110592 | P42: 6.204555286 | Q42: 10.06135212 | R42: 8.803110797 | S42: 7.607778816 | T42: 6.277046392 | U42: 1.330732424 | V42: 61.52962429 | W42: 22.13061228 | X42: 4.691684829 | Y42: 26.82229711 | Z42: 4.5375 | AA42: 205.0327367 | AB42: 10.06135212 | AC42: 205.0327367
A43: 0.7257224063 | B43: 85 | C43: =C42 -> 203.5298 | D43: 300 | E43: 0.2 | F43: 980.2321099 | G43: 0.000265849316 | H43: 0.0004311031902 | I43: 203.5298 | J43: 0.03253463157 | K43: 0.7257224063 | L43: 544617.9052 | M43: 0.02020709281 | N43: 0.07688419613 | O43: 0.07688419613 | P43: 6.392572113 | Q43: 10.36624157 | R43: 8.803110797 | S43: 8.109471281 | T43: 6.469456309 | U43: 1.640014972 | V43: 63.41568808 | W43: 23.50016181 | X43: 5.957319344 | Y43: 29.45748115 | Z43: 4.675 | AA43: 198.9348005 | AB43: 10.36624157 | AC43: 198.9348005
A44: 0.747067183 | B44: 87.5 | C44: 203.5298 | D44: 300 | E44: 0.2 | F44: 980.2321099 | G44: 0.000265849316 | H44: 0.0004311031902 | I44: 203.5298 | J44: 0.03253463157 | K44: 0.747067183 | L44: 560636.0789 | M44: 0.02019043553 | N44: 0.08140614397 | O44: 0.08140614397 | P44: 6.58058894 | Q44: 10.67113103 | R44: 8.803110797 | S44: 8.611421462 | T44: 6.661995084 | U44: 1.949426378 | V44: 65.30301497 | W44: 24.9113064 | X44: 7.289521713 | Y44: 32.20082812 | Z44: 4.8125 | AA44: 193.1853722 | AB44: 10.67113103 | AC44: 193.1853722
A45: 0.7684119596 | B45: 90 | C45: 203.5298 | D45: 300 | E45: 0.2 | F45: 980.2321099 | G45: 0.000265849316 | H45: 0.0004311031902 | I45: 203.5298 | J45: 0.03253463157 | K45: 0.7684119596 | L45: 576654.2525 | M45: 0.02017462623 | N45: 0.08605694142 | O45: 0.08605694142 | P45: 6.768605767 | Q45: 10.97602049 | R45: 8.803110797 | S45: 9.113629342 | T45: 6.854662708 | U45: 2.258966634 | V45: 67.19160489 | W45: 26.36408734 | X45: 8.688333207 | Y45: 35.05242055 | Z45: 4.95 | AA45: 187.755409 | AB45: 10.97602049 | AC45: 187.755409
A46: 0.7897567363 | B46: 92.5 | C46: 203.5298 | D46: 300 | E46: 0.2 | F46: 980.2321099 | G46: 0.000265849316 | H46: 0.0004311031902 | I46: 203.5298 | J46: 0.03253463157 | K46: 0.7897567363 | L46: 592672.4262 | M46: 0.02015960059 | N46: 0.09083658096 | O46: 0.09083658096 | P46: 6.956622594 | Q46: 11.28090995 | R46: 8.803110797 | S46: 9.616094906 | T46: 7.047459175 | U46: 2.568635731 | V46: 69.08145776 | W46: 27.85854588 | X46: 10.15379509 | Y46: 38.01234097 | Z46: 5.0875 | AA46: 182.6190075 | AB46: 11.28090995 | AC46: 182.6190075
A47: 0.8111015129 | B47: 95 | C47: 203.5298 | D47: 300 | E47: 0.2 | F47: 980.2321099 | G47: 0.000265849316 | H47: 0.0004311031902 | I47: 203.5298 | J47: 0.03253463157 | K47: 0.8111015129 | L47: 608690.5999 | M47: 0.02014530069 | N47: 0.09574505546 | O47: 0.09574505546 | P47: 7.14463942 | Q47: 11.58579941 | R47: 8.803110797 | S47: 10.11881814 | T47: 7.240384476 | U47: 2.878433664 | V47: 70.97257352 | W47: 29.3947233 | X47: 11.68594864 | Y47: 41.08067193 | Z47: 5.225 | AA47: 177.7529915 | AB47: 11.58579941 | AC47: 177.7529915
A48: 0.8324462896 | B48: 97.5 | C48: 203.5298 | D48: 300 | E48: 0.2 | F48: 980.2321099 | G48: 0.000265849316 | H48: 0.0004311031902 | I48: 203.5298 | J48: 0.03253463157 | K48: 0.8324462896 | L48: 624708.7736 | M48: 0.02013167424 | N48: 0.1007823582 | O48: 0.1007823582 | P48: 7.332656247 | Q48: 11.89068886 | R48: 8.803110797 | S48: 10.62179903 | T48: 7.433438605 | U48: 3.188360425 | V48: 72.86495208 | W48: 30.97266086 | X48: 13.2848351 | Y48: 44.25749596 | Z48: 5.3625 | AA48: 173.1365615 | AB48: 11.89068886 | AC48: 173.1365615
A49: 0.8537910662 | B49: 100 | C49: 203.5298 | D49: 300 | E49: 0.2 | F49: 980.2321099 | G49: 0.000265849316 | H49: 0.0004311031902 | I49: 203.5298 | J49: 0.03253463157 | K49: 0.8537910662 | L49: 640726.9473 | M49: 0.02011867391 | N49: 0.1059484828 | O49: 0.1059484828 | P49: 7.520673074 | Q49: 12.19557832 | R49: 8.803110797 | S49: 11.12503756 | T49: 7.626621557 | U49: 3.498416007 | V49: 74.7585934 | W49: 32.59239982 | X49: 14.95049576 | Y49: 47.54289557 | Z49: 5.5 | AA49: 168.7509981 | AB49: 12.19557832 | AC49: 168.7509981
A50: 0.8751358429 | B50: 102.5 | C50: 203.5298 | D50: 300 | E50: 0.2 | F50: 980.2321099 | G50: 0.000265849316 | H50: 0.0004311031902 | I50: 203.5298 | J50: 0.03253463157 | K50: 0.8751358429 | L50: 656745.1209 | M50: 0.02010625672 | N50: 0.1112434232 | O50: 0.1112434232 | P50: 7.708689901 | Q50: 12.50046778 | R50: 8.803110797 | S50: 11.62853373 | T50: 7.819933324 | U50: 3.808600406 | V50: 76.65349742 | W50: 34.25398144 | X50: 16.68297186 | Y50: 50.9369533 | Z50: 5.6375 | AA50: 164.5794084 | AB50: 12.50046778 | AC50: 164.5794084
A51: 0.8964806196 | B51: 105 | C51: 203.5298 | D51: 300 | E51: 0.2 | F51: 980.2321099 | G51: 0.000265849316 | H51: 0.0004311031902 | I51: 203.5298 | J51: 0.03253463157 | K51: 0.8964806196 | L51: 672763.2946 | M51: 0.02009438359 | N51: 0.1166671737 | O51: 0.1166671737 | P51: 7.896706728 | Q51: 12.80535724 | R51: 8.803110797 | S51: 12.13228752 | T51: 8.013373902 | U51: 4.118913614 | V51: 78.54966407 | W51: 35.95744699 | X51: 18.48230468 | Y51: 54.43975167 | Z51: 5.775 | AA51: 160.606508 | AB51: 12.80535724 | AC51: 160.606508
A52: 0.9178253962 | B52: 107.5 | C52: 203.5298 | D52: 300 | E52: 0.2 | F52: 980.2321099 | G52: 0.000265849316 | H52: 0.0004311031902 | I52: 203.5298 | J52: 0.03253463157 | K52: 0.9178253962 | L52: 688781.4683 | M52: 0.0200830189 | N52: 0.1222197288 | O52: 0.1222197288 | P52: 8.084723555 | Q52: 13.1102467 | R52: 8.803110797 | S52: 12.63629891 | T52: 8.206943284 | U52: 4.429355627 | V52: 80.44709331 | W52: 37.70283773 | X52: 20.34853547 | Y52: 58.0513732 | Z52: 5.9125 | AA52: 156.8184348 | AB52: 13.1102467 | AC52: 156.8184348
A53: 0.9391701729 | B53: 110 | C53: 203.5298 | D53: 300 | E53: 0.2 | F53: 980.2321099 | G53: 0.000265849316 | H53: 0.0004311031902 | I53: 203.5298 | J53: 0.03253463157 | K53: 0.9391701729 | L53: 704799.642 | M53: 0.02007213007 | N53: 0.1279010834 | O53: 0.1279010834 | P53: 8.272740382 | Q53: 13.41513615 | R53: 8.803110797 | S53: 13.1405679 | T53: 8.400641465 | U53: 4.73992644 | V53: 82.34578508 | W53: 39.49019492 | X53: 22.28170549 | Y53: 61.77190041 | Z53: 6.05 | AA53: 153.2025864 | AB53: 13.41513615 | AC53: 153.2025864
A54: 0.9605149495 | B54: 112.5 | C54: 203.5298 | D54: 300 | E54: 0.2 | F54: 980.2321099 | G54: 0.000265849316 | H54: 0.0004311031902 | I54: 203.5298 | J54: 0.03253463157 | K54: 0.9605149495 | L54: 720817.8157 | M54: 0.0200616873 | N54: 0.1337112325 | O54: 0.1337112325 | P54: 8.460757208 | Q54: 13.72002561 | R54: 8.803110797 | S54: 13.64509449 | T54: 8.594468441 | U54: 5.050626047 | V54: 84.24573934 | W54: 41.31955981 | X54: 24.281856 | Y54: 65.60141581 | Z54: 6.1875 | AA54: 149.7474811 | AB54: 13.72002561 | AC54: 149.7474811
A55: 0.9818597262 | B55: 115 | C55: 203.5298 | D55: 300 | E55: 0.2 | F55: 980.2321099 | G55: 0.000265849316 | H55: 0.0004311031902 | I55: 203.5298 | J55: 0.03253463157 | K55: 0.9818597262 | L55: 736835.9894 | M55: 0.02005166323 | N55: 0.1396501714 | O55: 0.1396501714 | P55: 8.648774035 | Q55: 14.02491507 | R55: 8.803110797 | S55: 14.14987865 | T55: 8.788424207 | U55: 5.361454444 | V55: 86.14695603 | W55: 43.19097367 | X55: 26.34902825 | Y55: 69.54000192 | Z55: 6.325 | AA55: 146.4426352 | AB55: 14.02491507 | AC55: 146.4426352
A56: 1.003204503 | B56: 117.5 | C56: 203.5298 | D56: 300 | E56: 0.2 | F56: 980.2321099 | G56: 0.000265849316 | H56: 0.0004311031902 | I56: 203.5298 | J56: 0.03253463157 | K56: 1.003204503 | L56: 752854.163 | M56: 0.02004203272 | N56: 0.1457178955 | O56: 0.1457178955 | P56: 8.836790862 | Q56: 14.32980453 | R56: 8.803110797 | S56: 14.65492038 | T56: 8.982508758 | U56: 5.672411626 | V56: 88.04943512 | W56: 45.10447774 | X56: 28.48326351 | Y56: 73.58774124 | Z56: 6.4625 | AA56: 143.2784576 | AB56: 14.32980453 | AC56: 143.2784576
A57: 1.024549279 | B57: 120 | C57: 203.5298 | D57: 300 | E57: 0.2 | F57: 980.2321099 | G57: 0.000265849316 | H57: 0.0004311031902 | I57: 203.5298 | J57: 0.03253463157 | K57: 1.024549279 | L57: 768872.3367 | M57: 0.02003277264 | N57: 0.1519144006 | O57: 0.1519144006 | P57: 9.024807689 | Q57: 14.63469399 | R57: 8.803110797 | S57: 15.16021968 | T57: 9.17672209 | U57: 5.983497589 | V57: 89.95317656 | W57: 47.06011328 | X57: 30.68460302 | Y57: 77.7447163 | Z57: 6.6 | AA57: 140.2461562 | AB57: 14.63469399 | AC57: 140.2461562
A58: 1.045894056 | B58: 122.5 | C58: 203.5298 | D58: 300 | E58: 0.2 | F58: 980.2321099 | G58: 0.000265849316 | H58: 0.0004311031902 | I58: 203.5298 | J58: 0.03253463157 | K58: 1.045894056 | L58: 784890.5104 | M58: 0.02002386162 | N58: 0.1582396826 | O58: 0.1582396826 | P58: 9.212824516 | Q58: 14.93958344 | R58: 8.803110797 | S58: 15.66577653 | T58: 9.371064198 | U58: 6.294712329 | V58: 91.85818032 | W58: 49.05792155 | X58: 32.95308805 | Y58: 82.0110096 | Z58: 6.7375 | AA58: 137.3376569 | AB58: 14.93958344 | AC58: 137.3376569
A59: 1.067238833 | B59: 125 | C59: =C58 -> 203.5298 | D59: 300 | E59: 0.2 | F59: 980.2321099 | G59: 0.000265849316 | H59: 0.0004311031902 | I59: 203.5298 | J59: 0.03253463157 | K59: 1.067238833 | L59: 800908.6841 | M59: 0.02001527994 | N59: 0.1646937374 | O59: 0.1646937374 | P59: 9.400841343 | Q59: 15.2444729 | R59: 8.803110797 | S59: 16.17159092 | T59: 9.56553508 | U59: 6.606055842 | V59: 93.76444634 | W59: 51.0979438 | X59: 35.28875984 | Y59: 86.38670364 | Z59: 6.875 | AA59: 134.5455314 | AB59: 15.2444729 | AC59: 134.5455314
A60: 1.088583609 | B60: 127.5 | C60: 203.5298 | D60: 300 | E60: 0.2 | F60: 980.2321099 | G60: 0.000265849316 | H60: 0.0004311031902 | I60: 203.5298 | J60: 0.03253463157 | K60: 1.088583609 | L60: 816926.8578 | M60: 0.02000700934 | N60: 0.1712765612 | O60: 0.1712765612 | P60: 9.58885817 | Q60: 15.54936236 | R60: 8.803110797 | S60: 16.67766285 | T60: 9.760134731 | U60: 6.917528124 | V60: 95.6719746 | W60: 53.18022129 | X60: 37.69165965 | Y60: 90.87188094 | Z60: 7.0125 | AA60: 131.8629338 | AB60: 15.54936236 | AC60: 131.8629338
A61: 1.109928386 | B61: 130 | C61: 203.5298 | D61: 300 | E61: 0.2 | F61: 980.2321099 | G61: 0.000265849316 | H61: 0.0004311031902 | I61: 203.5298 | J61: 0.03253463157 | K61: 1.109928386 | L61: 832945.0314 | M61: 0.01999903292 | N61: 0.1779881505 | O61: 0.1779881505 | P61: 9.776874996 | Q61: 15.85425182 | R61: 8.803110797 | S61: 17.18399232 | T61: 9.954863147 | U61: 7.229129171 | V61: 97.58076507 | W61: 55.30479526 | X61: 40.16182873 | Y61: 95.46662399 | Z61: 7.15 | AA61: 129.2835452 | AB61: 15.85425182 | AC61: 129.2835452
A62: 1.131273163 | B62: 132.5 | C62: 203.5298 | D62: 300 | E62: 0.2 | F62: 980.2321099 | G62: 0.000265849316 | H62: 0.0004311031902 | I62: 203.5298 | J62: 0.03253463157 | K62: 1.131273163 | L62: 848963.2051 | M62: 0.01999133496 | N62: 0.1848285017 | O62: 0.1848285017 | P62: 9.964891823 | Q62: 16.15914128 | R62: 8.803110797 | S62: 17.69057931 | T62: 10.14972032 | U62: 7.540858981 | V62: 99.49081769 | W62: 57.47170697 | X62: 42.69930833 | Y62: 100.1710153 | Z62: 7.2875 | AA62: 126.8015235 | AB62: 16.15914128 | AC62: 126.8015235
A63: 1.152617939 | B63: 135 | C63: 203.5298 | D63: 300 | E63: 0.2 | F63: 980.2321099 | G63: 0.000265849316 | H63: 0.0004311031902 | I63: 203.5298 | J63: 0.03253463157 | K63: 1.152617939 | L63: 864981.3788 | M63: 0.01998390089 | N63: 0.1917976115 | O63: 0.1917976115 | P63: 10.15290865 | Q63: 16.46403073 | R63: 8.803110797 | S63: 18.19742381 | T63: 10.34470626 | U63: 7.852717548 | V63: 101.4021325 | W63: 59.68099766 | X63: 45.3041397 | Y63: 104.9851374 | Z63: 7.425 | AA63: 124.4114591 | AB63: 16.46403073 | AC63: 124.4114591
A64: 1.173962716 | B64: 137.5 | C64: 203.5298 | D64: 300 | E64: 0.2 | F64: 980.2321099 | G64: 0.000265849316 | H64: 0.0004311031902 | I64: 203.5298 | J64: 0.03253463157 | K64: 1.173962716 | L64: 880999.5525 | M64: 0.0199767171 | N64: 0.1988954766 | O64: 0.1988954766 | P64: 10.34092548 | Q64: 16.76892019 | R64: 8.803110797 | S64: 18.70452583 | T64: 10.53982095 | U64: 8.164704872 | V64: 103.3147093 | W64: 61.93270859 | X64: 47.9763641 | Y64: 109.9090727 | Z64: 7.5625 | AA64: 122.1083362 | AB64: 16.76892019 | AC64: 122.1083362
A65: 1.195307493 | B65: 140 | C65: 203.5298 | D65: 300 | E65: 0.2 | F65: 980.2321099 | G65: 0.000265849316 | H65: 0.0004311031902 | I65: 203.5298 | J65: 0.03253463157 | K65: 1.195307493 | L65: 897017.7262 | M65: 0.01996977096 | N65: 0.2061220939 | O65: 0.2061220939 | P65: 10.5289423 | Q65: 17.07380965 | R65: 8.803110797 | S65: 19.21188534 | T65: 10.7350644 | U65: 8.476820947 | V65: 105.2285482 | W65: 64.22688101 | X65: 50.71602276 | Y65: 114.9429038 | Z65: 7.7 | AA65: 119.8874969 | AB65: 17.07380965 | AC65: 119.8874969
A66: 1.216652269 | B66: 142.5 | C66: 203.5298 | D66: 300 | E66: 0.2 | F66: 980.2321099 | G66: 0.000265849316 | H66: 0.0004311031902 | I66: 203.5298 | J66: 0.03253463157 | K66: 1.216652269 | L66: 913035.8999 | M66: 0.01996305064 | N66: 0.2134774604 | O66: 0.2134774604 | P66: 10.71695913 | Q66: 17.37869911 | R66: 8.803110797 | S66: 19.71950236 | T66: 10.93043659 | U66: 8.789065771 | V66: 107.1436492 | W66: 66.56355616 | X66: 53.52315694 | Y66: 120.0867131 | Z66: 7.8375 | AA66: 117.7446106 | AB66: 17.37869911 | AC66: 117.7446106
A67: 1.237997046 | B67: 145 | C67: 203.5298 | D67: 300 | E67: 0.2 | F67: 980.2321099 | G67: 0.000265849316 | H67: 0.0004311031902 | I67: 203.5298 | J67: 0.03253463157 | K67: 1.237997046 | L67: 929054.0735 | M67: 0.01995654512 | N67: 0.2209615731 | O67: 0.2209615731 | P67: 10.90497596 | Q67: 17.68358857 | R67: 8.803110797 | S67: 20.22737687 | T67: 11.12593753 | U67: 9.101439342 | V67: 109.0600122 | W67: 68.9427753 | X67: 56.39780789 | Y67: 125.3405832 | Z67: 7.975 | AA67: 115.675645 | AB67: 17.68358857 | AC67: 115.675645
A68: 1.259341823 | B68: 147.5 | C68: 203.5298 | D68: 300 | E68: 0.2 | F68: 980.2321099 | G68: 0.000265849316 | H68: 0.0004311031902 | I68: 203.5298 | J68: 0.03253463157 | K68: 1.259341823 | L68: 945072.2472 | M68: 0.01995024407 | N68: 0.2285744294 | O68: 0.2285744294 | P68: 11.09299278 | Q68: 17.98847802 | R68: 8.803110797 | S68: 20.73550887 | T68: 11.32156721 | U68: 9.413941656 | V68: 110.9776372 | W68: 71.36457966 | X68: 59.34001685 | Y68: 130.7045965 | Z68: 8.1125 | AA68: 113.6768414 | AB68: 17.98847802 | AC68: 113.6768414
A69: 1.280686599 | B69: 150 | C69: 203.5298 | D69: 300 | E69: 0.2 | F69: 980.2321099 | G69: 0.000265849316 | H69: 0.0004311031902 | I69: 203.5298 | J69: 0.03253463157 | K69: 1.280686599 | L69: 961090.4209 | M69: 0.01994413784 | N69: 0.2363160264 | O69: 0.2363160264 | P69: 11.28100961 | Q69: 18.29336748 | R69: 8.803110797 | S69: 21.24389835 | T69: 11.51732564 | U69: 9.726572712 | V69: 112.8965241 | W69: 73.8290105 | X69: 62.34982507 | Y69: 136.1788356 | Z69: 8.25 | AA69: 111.7446915 | AB69: 18.29336748 | AC69: 111.7446915
A70: 1.302031376 | B70: 152.5 | C70: 203.5298 | D70: 300 | E70: 0.2 | F70: 980.2321099 | G70: 0.000265849316 | H70: 0.0004311031902 | I70: 203.5298 | J70: 0.03253463157 | K70: 1.302031376 | L70: 977108.5946 | M70: 0.01993821736 | N70: 0.2441863616 | O70: 0.2441863616 | P70: 11.46902644 | Q70: 18.59825694 | R70: 8.803110797 | S70: 21.7525453 | T70: 11.7132128 | U70: 10.0393325 | V70: 114.816673 | W70: 76.33610906 | X70: 65.4272738 | Y70: 141.7633829 | Z70: 8.3875 | AA70: 109.8759172 | AB70: 18.59825694 | AC70: 109.8759172
A71: 1.323376153 | B71: 155 | C71: 203.5298 | D71: 300 | E71: 0.2 | F71: 980.2321099 | G71: 0.000265849316 | H71: 0.0004311031902 | I71: 203.5298 | J71: 0.03253463157 | K71: 1.323376153 | L71: 993126.7683 | M71: 0.01993247413 | N71: 0.2521854325 | O71: 0.2521854325 | P71: 11.65704326 | Q71: 18.9031464 | R71: 8.803110797 | S71: 22.26144973 | T71: 11.9092287 | U71: 10.35222103 | V71: 116.7380837 | W71: 78.88591659 | X71: 68.57240428 | Y71: 147.4583209 | Z71: 8.525 | AA71: 108.0674519 | AB71: 18.9031464 | AC71: 108.0674519
A72: 1.344720929 | B72: 157.5 | C72: 203.5298 | D72: 300 | E72: 0.2 | F72: 980.2321099 | G72: 0.000265849316 | H72: 0.0004311031902 | I72: 203.5298 | J72: 0.03253463157 | K72: 1.344720929 | L72: 1009144.942 | M72: 0.01992690018 | N72: 0.2603132365 | O72: 0.2603132365 | P72: 11.84506009 | Q72: 19.20803586 | R72: 8.803110797 | S72: 22.77061162 | T72: 12.10537333 | U72: 10.6652383 | V72: 118.6607564 | W72: 81.47847432 | X72: 71.78525776 | Y72: 153.2637321 | Z72: 8.6625 | AA72: 106.3164237 | AB72: 19.20803586 | AC72: 106.3164237
A73: 1.366065706 | B73: 160 | C73: 203.5298 | D73: 300 | E73: 0.2 | F73: 980.2321099 | G73: 0.000265849316 | H73: 0.0004311031902 | I73: 203.5298 | J73: 0.03253463157 | K73: 1.366065706 | L73: 1025163.116 | M73: 0.01992148799 | N73: 0.2685697714 | O73: 0.2685697714 | P73: 12.03307692 | Q73: 19.51292531 | R73: 8.803110797 | S73: 23.28003098 | T73: 12.30164669 | U73: 10.97838429 | V73: 120.5846909 | W73: 84.11382352 | X73: 75.06587548 | Y73: 159.179699 | Z73: 8.8 | AA73: 104.6201401 | AB73: 19.51292531 | AC73: 104.6201401
A74: 1.387410483 | B74: 162.5 | C74: 203.5298 | D74: 300 | E74: 0.2 | F74: 980.2321099 | G74: 0.000265849316 | H74: 0.0004311031902 | I74: 203.5298 | J74: 0.03253463157 | K74: 1.387410483 | L74: =(F74*K74*I74)/G74/1000 -> 1041181.289 | M74: =(1.14-2*LOG((E74/1000)/(I74/1000)+(21.25/L74^0.9)))^-2 -> 0.01991623049 | N74: =(0.5*F74*K74^2*D74/(I74/1000)*M74/100000) -> 0.2769550349 | O74: =(0.5*F74*K74^2*D74/(I74/1000)*M74/100000) -> 0.2769550349 | P74: 12.22109375 | Q74: 19.81781477 | R74: 8.803110797 | S74: 23.78970779 | T74: 12.49804878 | U74: 11.29165901 | V74: =T74*(F74/100) -> 122.5098873 | W74: =T74/3600/C$3*B74*100 -> 86.79200542 | X74: =U74/3600/C$3*B74*100 -> 78.41429868 | Y74: 165.2063041 | Z74: 8.9375 | AA74: 102.9760743 | AB74: 19.81781477 | AC74: =AA74 -> 102.9760743
A75: =B75/J75/3600 -> 1.408755259 | B75: 165 | C75: =C74 -> 203.5298 | D75: 300 | E75: 0.2 | F75: 980.2321099 | G75: 0.000265849316 | H75: 0.0004311031902 | I75: 203.5298 | J75: 0.03253463157 | K75: 1.408755259 | L75: 1057199.463 | M75: 0.01991112103 | N75: 0.2854690246 | O75: 0.2854690246 | P75: 12.40911057 | Q75: =(B75/3600)*H75/2/PI()/G$4/0.000000000001*(LN(G$3/(C75/2000))+C$4)/100000 -> 20.12270423 | R75: 8.803110797 | S75: =O75+N75+P75+Q75-R75 -> 24.29964205 | T75: =N75+P75 -> 12.6945796 | U75: =O75+Q75-R75 -> 11.60506246 | V75: 124.4363454 | W75: 89.51306126 | X75: 81.83056861 | Y75: =X75+W75 -> 171.3436299 | Z75: 9.075 | AA75: 101.3818528 | AB75: =Q75 -> 20.12270423 | AC75: 101.3818528
A76: 1.430100036 | B76: =B75+2.5 -> 167.5 | C76: 203.5298 | D76: 300 | E76: 0.2 | F76: 980.2321099 | G76: 0.000265849316 | H76: 0.0004311031902 | I76: 203.5298 | J76: =PI()*(I76/2000)^2 -> 0.03253463157 | K76: =B76/J76/3600 -> 1.430100036 | L76: 1073217.637 | M76: 0.01990615334 | N76: 0.2941117385 | O76: 0.2941117385 | P76: =(B76/3600)*G76/2/PI()/G$4/0.000000000001*(LN(G$3/(C76/2000))+C$4)/100000 -> 12.5971274 | Q76: 20.42759369 | R76: =R75 -> 8.803110797 | S76: 24.80983377 | T76: 12.89123914 | U76: 11.91859463 | V76: 126.3640654 | W76: 92.27703229 | X76: 85.31472652 | Y76: 177.5917588 | Z76: =B76*(C$1-C$2)*1.1/1000 -> 9.2125 | AA76: =Z76/(W76/1000) -> 99.83524363 | AB76: 20.42759369 | AC76: 99.83524363
A77: 1.451444813 | B77: 170 | C77: 203.5298 | D77: 300 | E77: 0.2 | F77: 980.2321099 | G77: 0.000265849316 | H77: 0.0004311031902 | I77: 203.5298 | J77: 0.03253463157 | K77: 1.451444813 | L77: 1089235.81 | M77: 0.01990132148 | N77: 0.3028831745 | O77: 0.3028831745 | P77: 12.78514423 | Q77: 20.73248315 | R77: 8.803110797 | S77: 25.32028292 | T77: 13.0880274 | U77: 12.23225552 | V77: 128.2930471 | W77: 95.08395975 | X77: 88.86681364 | Y77: 183.9507734 | Z77: 9.35 | AA77: 98.33414621 | AB77: 20.73248315 | AC77: 98.33414621
A78: 1.472789589 | B78: 172.5 | C78: 203.5298 | D78: 300 | E78: 0.2 | F78: 980.2321099 | G78: 0.000265849316 | H78: 0.0004311031902 | I78: 203.5298 | J78: 0.03253463157 | K78: 1.472789589 | L78: 1105253.984 | M78: 0.01989661987 | N78: 0.3117833305 | O78: 0.3117833305 | P78: 12.97316105 | Q78: 21.0373726 | R78: 8.803110797 | S78: 25.83098952 | T78: 13.28494438 | U78: 12.54604514 | V78: 130.2232906 | W78: 97.93388488 | X78: 92.48687121 | Y78: 190.4207561 | Z78: 9.4875 | AA78: 96.8765817 | AB78: 21.0373726 | AC78: 96.8765817
A79: 1.494134366 | B79: 175 | C79: 203.5298 | D79: 300 | E79: 0.2 | F79: 980.2321099 | G79: 0.000265849316 | H79: 0.0004311031902 | I79: 203.5298 | J79: 0.03253463157 | K79: 1.494134366 | L79: 1121272.158 | M79: 0.01989204321 | N79: 0.3208122047 | O79: 0.3208122047 | P79: 13.16117788 | Q79: 21.34226206 | R79: 8.803110797 | S79: 26.34195355 | T79: 13.48199008 | U79: 12.85996347 | V79: 132.1547959 | W79: 100.8268489 | X79: 96.17494048 | Y79: 197.0017894 | Z79: 9.625 | AA79: 95.46068436 | AB79: 21.34226206 | AC79: 95.46068436
A80: 1.515479143 | B80: 177.5 | C80: 203.5298 | D80: 300 | E80: 0.2 | F80: 980.2321099 | G80: 0.000265849316 | H80: 0.0004311031902 | I80: 203.5298 | J80: 0.03253463157 | K80: 1.515479143 | L80: 1137290.331 | M80: 0.0198875865 | N80: 0.3299697949 | O80: 0.3299697949 | P80: 13.34919471 | Q80: 21.64715152 | R80: 8.803110797 | S80: 26.85317502 | T80: 13.6791645 | U80: 13.17401052 | V80: 134.0875628 | W80: 103.7628931 | X80: 99.93106269 | Y80: 203.6939558 | Z80: 9.7625 | AA80: 94.08469354 | AB80: 21.64715152 | AC80: 94.08469354
A81: 1.536823919 | B81: 180 | C81: 203.5298 | D81: 300 | E81: 0.2 | F81: 980.2321099 | G81: 0.000265849316 | H81: 0.0004311031902 | I81: 203.5298 | J81: 0.03253463157 | K81: 1.536823919 | L81: 1153308.505 | M81: 0.019883245 | N81: 0.3392560995 | O81: 0.3392560995 | P81: 13.53721153 | Q81: 21.95204098 | R81: 8.803110797 | S81: 27.36465391 | T81: 13.87646763 | U81: 13.48818628 | V81: 136.0215915 | W81: 106.7420587 | X81: 103.7552791 | Y81: 210.4973378 | Z81: 9.9 | AA81: 92.74694642 | AB81: 21.95204098 | AC81: 92.74694642
A82: 1.558168696 | B82: 182.5 | C82: 203.5298 | D82: 300 | E82: 0.2 | F82: 980.2321099 | G82: 0.000265849316 | H82: 0.0004311031902 | I82: 203.5298 | J82: 0.03253463157 | K82: 1.558168696 | L82: 1169326.679 | M82: 0.01987901423 | N82: 0.3486711166 | O82: 0.3486711166 | P82: 13.72522836 | Q82: 22.25693044 | R82: 8.803110797 | S82: 27.87639023 | T82: 14.07389948 | U82: 13.80249076 | V82: 137.9568818 | W82: 109.7643869 | X82: 107.6476309 | Y82: 217.4120178 | Z82: 10.0375 | AA82: 91.44587128 | AB82: 22.25693044 | AC82: 91.44587128
A83: 1.579513473 | B83: 185 | C83: 203.5298 | D83: 300 | E83: 0.2 | F83: 980.2321099 | G83: 0.000265849316 | H83: 0.0004311031902 | I83: 203.5298 | J83: 0.03253463157 | K83: 1.579513473 | L83: 1185344.852 | M83: 0.01987488992 | N83: 0.3582148444 | O83: 0.3582148444 | P83: 13.91324519 | Q83: 22.56181989 | R83: 8.803110797 | S83: 28.38838397 | T83: 14.27146003 | U83: 14.11692394 | V83: 139.8934338 | W83: 112.8299191 | X83: 111.6081594 | Y83: 224.4380784 | Z83: 10.175 | AA83: 90.17998139 | AB83: 22.56181989 | AC83: 90.17998139
A84: 1.600858249 | B84: 187.5 | C84: 203.5298 | D84: 300 | E84: 0.2 | F84: 980.2321099 | G84: 0.000265849316 | H84: 0.0004311031902 | I84: 203.5298 | J84: 0.03253463157 | K84: 1.600858249 | L84: 1201363.026 | M84: 0.01987086803 | N84: 0.3678872813 | O84: 0.3678872813 | P84: 14.10126201 | Q84: 22.86670935 | R84: 8.803110797 | S84: 28.90063513 | T84: 14.4691493 | U84: 14.43148584 | V84: 141.8312474 | W84: 115.9386963 | X84: 115.6369057 | Y84: 231.575602 | Z84: 10.3125 | AA84: 88.94786927 | AB84: 22.86670935 | AC84: 88.94786927
A85: 1.622203026 | B85: 190 | C85: 203.5298 | D85: 300 | E85: 0.2 | F85: 980.2321099 | G85: 0.000265849316 | H85: 0.0004311031902 | I85: 203.5298 | J85: 0.03253463157 | K85: 1.622203026 | L85: 1217381.2 | M85: 0.01986694473 | N85: 0.3776884255 | O85: 0.3776884255 | P85: 14.28927884 | Q85: 23.17159881 | R85: 8.803110797 | S85: 29.41314371 | T85: 14.66696727 | U85: 14.74617644 | V85: 143.7703227 | W85: 119.0907599 | X85: 119.7339113 | Y85: 238.8246711 | Z85: 10.45 | AA85: 87.74820156 | AB85: 23.17159881 | AC85: 87.74820156
A86: 1.643547803 | B86: 192.5 | C86: 203.5298 | D86: 300 | E86: 0.2 | F86: 980.2321099 | G86: 0.000265849316 | H86: 0.0004311031902 | I86: 203.5298 | J86: 0.03253463157 | K86: 1.643547803 | L86: 1233399.373 | M86: 0.01986311637 | N86: 0.3876182755 | O86: 0.3876182755 | P86: 14.47729567 | Q86: 23.47648827 | R86: 8.803110797 | S86: 29.92590969 | T86: 14.86491394 | U86: 15.06099575 | V86: 145.7106596 | W86: 122.286151 | X86: 123.8992172 | Y86: 246.1853682 | Z86: 10.5875 | AA86: 86.57971415 | AB86: 23.47648827 | AC86: 86.57971415
A87: 1.664892579 | B87: 195 | C87: 203.5298 | D87: 300 | E87: 0.2 | F87: 980.2321099 | G87: 0.000265849316 | H87: 0.0004311031902 | I87: 203.5298 | J87: 0.03253463157 | K87: 1.664892579 | L87: 1249417.547 | M87: 0.01985937949 | N87: 0.3976768296 | O87: 0.3976768296 | P87: 14.66531249 | Q87: 23.78137773 | R87: 8.803110797 | S87: 30.43893308 | T87: 15.06298932 | U87: 15.37594376 | V87: 147.6522581 | W87: 125.524911 | X87: 128.1328647 | Y87: 253.6577757 | Z87: 10.725 | AA87: 85.44120774 | AB87: 23.78137773 | AC87: 85.44120774
A88: 1.686237356 | B88: 197.5 | C88: 203.5298 | D88: 300 | E88: 0.2 | F88: 980.2321099 | G88: 0.000265849316 | H88: 0.0004311031902 | I88: 203.5298 | J88: 0.03253463157 | K88: 1.686237356 | L88: 1265435.721 | M88: 0.01985573078 | N88: 0.4078640863 | O88: 0.4078640863 | P88: 14.85332932 | Q88: 24.08626718 | R88: 8.803110797 | S88: 30.95221388 | T88: 15.26119341 | U88: 15.69102047 | V88: 149.5951181 | W88: 128.8070811 | X88: 132.434895 | Y88: 261.2419761 | Z88: 10.8625 | AA88: 84.33154378 | AB88: 24.08626718 | AC88: 84.33154378
A89: 1.707582132 | B89: =B88+2.5 -> 200 | C89: 203.5298 | D89: 300 | E89: 0.2 | F89: 980.2321099 | G89: 0.000265849316 | H89: 0.0004311031902 | I89: 203.5298 | J89: =PI()*(I89/2000)^2 -> 0.03253463157 | K89: =B89/J89/3600 -> 1.707582132 | L89: 1281453.895 | M89: 0.01985216712 | N89: 0.4181800442 | O89: 0.4181800442 | P89: =(B89/3600)*G89/2/PI()/G$4/0.000000000001*(LN(G$3/(C89/2000))+C$4)/100000 -> 15.04134615 | Q89: 24.39115664 | R89: =R88 -> 8.803110797 | S89: 31.46575208 | T89: 15.45952619 | U89: 16.00622589 | V89: 151.5392398 | W89: 132.1327025 | X89: 136.8053495 | Y89: 268.938052 | Z89: =B89*(C$1-C$2)*1.1/1000 -> 11 | AA89: =Z89/(W89/1000) -> 83.24964064 | AB89: 24.39115664 | AC89: 83.24964064
A90: 1.728926909 | B90: =B89+2.5 -> 202.5 | C90: 203.5298 | D90: 300 | E90: 0.2 | F90: 980.2321099 | G90: 0.000265849316 | H90: 0.0004311031902 | I90: 203.5298 | J90: =PI()*(I90/2000)^2 -> 0.03253463157 | K90: =B90/J90/3600 -> 1.728926909 | L90: 1297472.068 | M90: 0.0198486855 | N90: 0.4286247018 | O90: 0.4286247018 | P90: =(B90/3600)*G90/2/PI()/G$4/0.000000000001*(LN(G$3/(C90/2000))+C$4)/100000 -> 15.22936298 | Q90: 24.6960461 | R90: =R89 -> 8.803110797 | S90: 31.97954768 | T90: 15.65798768 | U90: 16.32156001 | V90: 153.484623 | W90: 135.5018164 | X90: 141.2442693 | Y90: 276.7460857 | Z90: =B90*(C$1-C$2)*1.1/1000 -> 11.1375 | AA90: =Z90/(W90/1000) -> 82.1944701 | AB90: 24.6960461 | AC90: 82.1944701
A91: 1.750271686 | B91: 205 | C91: =C90 -> 203.5298 | D91: 300 | E91: 0.2 | F91: 980.2321099 | G91: 0.000265849316 | H91: 0.0004311031902 | I91: 203.5298 | J91: 0.03253463157 | K91: 1.750271686 | L91: 1313490.242 | M91: 0.01984528308 | N91: 0.4391980575 | O91: 0.4391980575 | P91: 15.4173798 | Q91: 25.00093556 | R91: 8.803110797 | S91: 32.49360068 | T91: 15.85657786 | U91: 16.63702282 | V91: 155.4312677 | W91: 138.9144642 | X91: 145.7516956 | Y91: 284.6661598 | Z91: 11.275 | AA91: 81.16505411 | AB91: 25.00093556 | AC91: 81.16505411
A92: 1.771616462 | B92: 207.5 | C92: 203.5298 | D92: 300 | E92: 0.2 | F92: 980.2321099 | G92: 0.000265849316 | H92: 0.0004311031902 | I92: 203.5298 | J92: 0.03253463157 | K92: 1.771616462 | L92: 1329508.416 | M92: 0.01984195713 | N92: 0.4499001101 | O92: 0.4499001101 | P92: 15.60539663 | Q92: 25.30582502 | R92: 8.803110797 | S92: 33.00791107 | T92: 16.05529674 | U92: 16.95261433 | V92: 157.379174 | W92: 142.3706869 | X92: 150.3276698 | Y92: 292.6983567 | Z92: 11.4125 | AA92: 80.16046174 | AB92: 25.30582502 | AC92: 80.16046174
A93: 1.792961239 | B93: 210 | C93: 203.5298 | D93: 300 | E93: 0.2 | F93: 980.2321099 | G93: 0.000265849316 | H93: 0.0004311031902 | I93: 203.5298 | J93: 0.03253463157 | K93: 1.792961239 | L93: 1345526.589 | M93: 0.01983870507 | N93: 0.4607308583 | O93: 0.4607308583 | P93: 15.79341346 | Q93: 25.61071448 | R93: 8.803110797 | S93: 33.52247885 | T93: 16.25414431 | U93: 17.26833454 | V93: 159.3283418 | W93: 145.8705259 | X93: 154.972233 | Y93: 300.8427589 | Z93: 11.55 | AA93: 79.1798064 | AB93: 25.61071448 | AC93: 79.1798064
A94: 1.814306016 | B94: 212.5 | C94: 203.5298 | D94: 300 | E94: 0.2 | F94: 980.2321099 | G94: 0.000265849316 | H94: 0.0004311031902 | I94: 203.5298 | J94: 0.03253463157 | K94: 1.814306016 | L94: 1361544.763 | M94: 0.0198355244 | N94: 0.4716903005 | O94: 0.4716903005 | P94: 15.98143028 | Q94: 25.91560393 | R94: 8.803110797 | S94: 34.03730402 | T94: 16.45312058 | U94: 17.58418344 | V94: 161.278771 | W94: 149.4140224 | X94: 159.6854265 | Y94: 309.0994489 | Z94: 11.6875 | AA94: 78.22224322 | AB94: 25.91560393 | AC94: 78.22224322
A95: 1.835650792 | B95: 215 | C95: 203.5298 | D95: 300 | E95: 0.2 | F95: 980.2321099 | G95: 0.000265849316 | H95: 0.0004311031902 | I95: 203.5298 | J95: 0.03253463157 | K95: 1.835650792 | L95: 1377562.937 | M95: 0.01983241277 | N95: 0.4827784356 | O95: 0.4827784356 | P95: 16.16944711 | Q95: 26.22049339 | R95: 8.803110797 | S95: 34.55238657 | T95: 16.65222554 | U95: 17.90016103 | V95: 163.2304618 | W95: 153.0012176 | X95: 164.4672915 | Y95: 317.4685091 | Z95: 11.825 | AA95: 77.28696663 | AB95: 26.22049339 | AC95: 77.28696663
A96: 1.856995569 | B96: 217.5 | C96: 203.5298 | D96: 300 | E96: 0.2 | F96: 980.2321099 | G96: 0.000265849316 | H96: 0.0004311031902 | I96: 203.5298 | J96: 0.03253463157 | K96: 1.856995569 | L96: 1393581.11 | M96: 0.01982936792 | N96: 0.4939952623 | O96: 0.4939952623 | P96: 16.35746394 | Q96: 26.52538285 | R96: 8.803110797 | S96: 35.06772651 | T96: 16.8514592 | U96: 18.21626731 | V96: 165.1834141 | W96: 156.6321528 | X96: 169.3178693 | Y96: 325.9500221 | Z96: 11.9625 | AA96: 76.37320809 | AB96: 26.52538285 | AC96: 76.37320809
A97: 1.878340346 | B97: 220 | C97: 203.5298 | D97: 300 | E97: 0.2 | F97: 980.2321099 | G97: 0.000265849316 | H97: 0.0004311031902 | I97: 203.5298 | J97: 0.03253463157 | K97: 1.878340346 | L97: 1409599.284 | M97: 0.01982638767 | N97: 0.5053407794 | O97: 0.5053407794 | P97: 16.54548076 | Q97: 26.83027231 | R97: 8.803110797 | S97: 35.58332383 | T97: 17.05082154 | U97: 18.53250229 | V97: 167.1376278 | W97: 160.3068692 | X97: 174.237201 | Y97: 334.5440702 | Z97: 12.1 | AA97: 75.480234 | AB97: 26.83027231 | AC97: 75.480234
A98: 1.899685122 | B98: 222.5 | C98: 203.5298 | D98: 300 | E98: 0.2 | F98: 980.2321099 | G98: 0.000265849316 | H98: 0.0004311031902 | I98: 203.5298 | J98: 0.03253463157 | K98: 1.899685122 | L98: 1425617.458 | M98: 0.01982346996 | N98: 0.5168149856 | O98: 0.5168149856 | P98: 16.73349759 | Q98: 27.13516177 | R98: 8.803110797 | S98: 36.09917853 | T98: 17.25031258 | U98: 18.84886595 | V98: 169.0931029 | W98: 164.025408 | X98: 179.225328 | Y98: 343.250736 | Z98: 12.2375 | AA98: 74.60734374 | AB98: 27.13516177 | AC98: 74.60734374
A99: 1.921029899 | B99: 225 | C99: 203.5298 | D99: 300 | E99: 0.2 | F99: 980.2321099 | G99: 0.000265849316 | H99: 0.0004311031902 | I99: 203.5298 | J99: 0.03253463157 | K99: 1.921029899 | L99: 1441635.631 | M99: 0.0198206128 | N99: 0.5284178798 | O99: 0.5284178798 | P99: 16.92151442 | Q99: 27.44005122 | R99: 8.803110797 | S99: 36.6152906 | T99: 17.4499323 | U99: 19.16535831 | V99: 171.0498395 | W99: 167.7878105 | X99: 184.2822914 | Y99: 352.0701019 | Z99: 12.375 | AA99: 73.75386782 | AB99: 27.44005122 | AC99: 73.75386782
A100: 1.942374676 | B100: 227.5 | C100: 203.5298 | D100: 300 | E100: 0.2 | F100: 980.2321099 | G100: 0.000265849316 | H100: 0.0004311031902 | I100: 203.5298 | J100: 0.03253463157 | K100: 1.942374676 | L100: 1457653.805 | M100: 0.01981781429 | N100: 0.5401494607 | O100: 0.5401494607 | P100: 17.10953124 | Q100: 27.74494068 | R100: 8.803110797 | S100: 37.13166005 | T100: 17.6496807 | U100: 19.48197935 | V100: 173.0078376 | W100: 171.594118 | X100: 189.4081325 | Y100: 361.0022505 | Z100: 12.5125 | AA100: 72.91916616 | AB100: 27.74494068 | AC100: 72.91916616
A101: 1.963719452 | B101: 230 | C101: 203.5298 | D101: 300 | E101: 0.2 | F101: 980.2321099 | G101: 0.000265849316 | H101: 0.0004311031902 | I101: 203.5298 | J101: 0.03253463157 | K101: 1.963719452 | L101: 1473671.979 | M101: 0.01981507262 | N101: 0.5520097274 | O101: 0.5520097274 | P101: 17.29754807 | Q101: 28.04983014 | R101: 8.803110797 | S101: 37.64828687 | T101: 17.8495578 | U101: 19.79872907 | V101: 174.967097 | W101: 175.4443715 | X101: 194.6028926 | Y101: 370.0472641 | Z101: 12.65 | AA101: 72.10262655 | AB101: 28.04983014 | AC101: 72.10262655
A102: 1.985064229 | B102: 232.5 | C102: 203.5298 | D102: 300 | E102: 0.2 | F102: 980.2321099 | G102: 0.000265849316 | H102: 0.0004311031902 | I102: 203.5298 | J102: 0.03253463157 | K102: 1.985064229 | L102: 1489690.152 | M102: 0.01981238604 | N102: 0.5639986786 | O102: 0.5639986786 | P102: 17.4855649 | Q102: 28.3547196 | R102: 8.803110797 | S102: 38.16517105 | T102: 18.04956358 | U102: 20.11560748 | V102: 176.9276179 | W102: 179.3386125 | X102: 199.8666128 | Y102: 379.2052252 | Z102: 12.7875 | AA102: 71.30366308 | AB102: 28.3547196 | AC102: 71.30366308
A103: 2.006409006 | B103: 235 | C103: 203.5298 | D103: 300 | E103: 0.2 | F103: 980.2321099 | G103: 0.000265849316 | H103: 0.0004311031902 | I103: 203.5298 | J103: 0.03253463157 | K103: 2.006409006 | L103: 1505708.326 | M103: 0.01980975288 | N103: 0.5761163133 | O103: 0.5761163133 | P103: 17.67358172 | Q103: 28.65960906 | R103: 8.803110797 | S103: 38.68231261 | T103: 18.24969804 | U103: 20.43261457 | V103: 178.8894001 | W103: 183.276882 | X103: 205.1993344 | Y103: 388.4762164 | Z103: 12.925 | AA103: 70.52171479 | AB103: 28.65960906 | AC103: 70.52171479
A104: 2.027753782 | B104: 237.5 | C104: 203.5298 | D104: 300 | E104: 0.2 | F104: 980.2321099 | G104: 0.000265849316 | H104: 0.0004311031902 | I104: 203.5298 | J104: 0.03253463157 | K104: 2.027753782 | L104: 1521726.5 | M104: 0.01980717153 | N104: 0.5883626304 | O104: 0.5883626304 | P104: 17.86159855 | Q104: 28.96449851 | R104: 8.803110797 | S104: 39.19971153 | T104: 18.44996118 | U104: 20.74975035 | V104: 180.8524438 | W104: 187.2592214 | X104: 210.6010986 | Y104: 397.86032 | Z104: 13.0625 | AA104: 69.75624433 | AB104: 28.96449851 | AC104: 69.75624433
A105: 2.049098559 | B105: 240 | C105: 203.5298 | D105: 300 | E105: 0.2 | F105: 980.2321099 | G105: 0.000265849316 | H105: 0.0004311031902 | I105: 203.5298 | J105: 0.03253463157 | K105: 2.049098559 | L105: 1537744.673 | M105: 0.01980464045 | N105: 0.6007376289 | O105: 0.6007376289 | P105: 18.04961538 | Q105: 29.26938797 | R105: 8.803110797 | S105: 39.71736781 | T105: 18.65035301 | U105: 21.0670148 | V105: 182.8167488 | W105: 191.2856719 | X105: 216.0719467 | Y105: 407.3576186 | Z105: 13.2 | AA105: 69.00673674 | AB105: 29.26938797 | AC105: 69.00673674
A106: 2.070443336 | B106: 242.5 | C106: 203.5298 | D106: 300 | E106: 0.2 | F106: 980.2321099 | G106: 0.000265849316 | H106: 0.0004311031902 | I106: 203.5298 | J106: 0.03253463157 | K106: 2.070443336 | L106: 1553762.847 | M106: 0.01980215816 | N106: 0.6132413078 | O106: 0.6132413078 | P106: 18.2376322 | Q106: 29.57427743 | R106: 8.803110797 | S106: 40.23528145 | T106: 18.85087351 | U106: 21.38440794 | V106: 184.7823152 | W106: 195.3562746 | X106: 221.6119199 | Y106: 416.9681945 | Z106: 13.3375 | AA106: 68.2726983 | AB106: 29.57427743 | AC106: 68.2726983
A107: 2.091788112 | B107: 245 | C107: =C106 -> 203.5298 | D107: 300 | E107: 0.2 | F107: 980.2321099 | G107: 0.000265849316 | H107: 0.0004311031902 | I107: 203.5298 | J107: 0.03253463157 | K107: 2.091788112 | L107: 1569781.021 | M107: 0.01979972323 | N107: 0.625873666 | O107: 0.625873666 | P107: 18.42564903 | Q107: 29.87916689 | R107: 8.803110797 | S107: 40.75345245 | T107: 19.0515227 | U107: 21.70192976 | V107: 186.7491429 | W107: 199.471071 | X107: 227.2210594 | Y107: 426.6921304 | Z107: 13.475 | AA107: 67.55365544 | AB107: 29.87916689 | AC107: 67.55365544
A108: 2.113132889 | B108: 247.5 | C108: 203.5298 | D108: 300 | E108: 0.2 | F108: 980.2321099 | G108: 0.000265849316 | H108: 0.0004311031902 | I108: 203.5298 | J108: 0.03253463157 | K108: 2.113132889 | L108: 1585799.194 | M108: 0.01979733431 | N108: 0.6386347026 | O108: 0.6386347026 | P108: 18.61366586 | Q108: 30.18405635 | R108: 8.803110797 | S108: 41.27188081 | T108: 19.25230056 | U108: 22.01958025 | V108: 188.717232 | W108: 203.6301021 | X108: 232.8994065 | Y108: 436.5295086 | Z108: 13.6125 | AA108: 66.84915374 | AB108: 30.18405635 | AC108: 66.84915374
A109: 2.134477666 | B109: 250 | C109: 203.5298 | D109: 300 | E109: 0.2 | F109: 980.2321099 | G109: 0.000265849316 | H109: 0.0004311031902 | I109: 203.5298 | J109: 0.03253463157 | K109: 2.134477666 | L109: 1601817.368 | M109: 0.01979499007 | N109: 0.6515244167 | O109: 0.6515244167 | P109: 18.80168269 | Q109: 30.4889458 | R109: 8.803110797 | S109: 41.79056653 | T109: 19.4532071 | U109: 22.33735942 | V109: 190.6865824 | W109: 207.8334092 | X109: 238.6470024 | Y109: 446.4804116 | Z109: 13.75 | AA109: 66.15875692 | AB109: 30.4889458 | AC109: 66.15875692
A110: 2.155822442 | B110: 252.5 | C110: 203.5298 | D110: 300 | E110: 0.2 | F110: 980.2321099 | G110: 0.000265849316 | H110: 0.0004311031902 | I110: 203.5298 | J110: 0.03253463157 | K110: 2.155822442 | L110: 1617835.542 | M110: 0.01979268926 | N110: 0.6645428072 | O110: 0.6645428072 | P110: 18.98969951 | Q110: 30.79383526 | R110: 8.803110797 | S110: 42.30950959 | T110: 19.65424232 | U110: 22.65526727 | V110: 192.6571942 | W110: 212.0810336 | X110: 244.4638883 | Y110: 456.5449219 | Z110: 13.8875 | AA110: 65.48204602 | AB110: 30.79383526 | AC110: 65.48204602
A111: 2.177167219 | B111: 255 | C111: 203.5298 | D111: 300 | E111: 0.2 | F111: 980.2321099 | G111: 0.000265849316 | H111: 0.0004311031902 | I111: 203.5298 | J111: 0.03253463157 | K111: 2.177167219 | L111: 1633853.716 | M111: 0.01979043065 | N111: 0.6776898733 | O111: 0.6776898733 | P111: 19.17771634 | Q111: 31.09872472 | R111: 8.803110797 | S111: 42.82871001 | T111: 19.85540621 | U111: 22.9733038 | V111: 194.6290673 | W111: 216.3730164 | X111: 250.3501055 | Y111: 466.7231219 | Z111: 14.025 | AA111: 64.81861848 | AB111: 31.09872472 | AC111: 64.81861848
A112: 2.198511996 | B112: 257.5 | C112: 203.5298 | D112: 300 | E112: 0.2 | F112: 980.2321099 | G112: 0.000265849316 | H112: 0.0004311031902 | I112: 203.5298 | J112: 0.03253463157 | K112: 2.198511996 | L112: 1649871.889 | M112: 0.01978821307 | N112: 0.6909656141 | O112: 0.6909656141 | P112: 19.36573317 | Q112: 31.40361418 | R112: 8.803110797 | S112: 43.34816777 | T112: 20.05669878 | U112: 23.29146899 | V112: 196.6022016 | W112: 220.709399 | X112: 256.3056951 | Y112: 477.0150941 | Z112: 14.1625 | AA112: 64.16808739 | AB112: 31.40361418 | AC112: 64.16808739
A113: 2.219856772 | B113: 260 | C113: 203.5298 | D113: 300 | E113: 0.2 | F113: 980.2321099 | G113: 0.000265849316 | H113: 0.0004311031902 | I113: 203.5298 | J113: 0.03253463157 | K113: 2.219856772 | L113: 1665890.063 | M113: 0.01978603541 | N113: 0.7043700287 | O113: 0.7043700287 | P113: 19.55374999 | Q113: 31.70850364 | R113: 8.803110797 | S113: 43.86788289 | T113: 20.25812002 | U113: 23.60976287 | V113: 198.5765973 | W113: 225.0902225 | X113: 262.3306985 | Y113: 487.420921 | Z113: 14.3 | AA113: 63.53008071 | AB113: 31.70850364 | AC113: 63.53008071
A114: 2.241201549 | B114: 262.5 | C114: 203.5298 | D114: 300 | E114: 0.2 | F114: 980.2321099 | G114: 0.000265849316 | H114: 0.0004311031902 | I114: 203.5298 | J114: 0.03253463157 | K114: 2.241201549 | L114: 1681908.237 | M114: 0.01978389656 | N114: 0.7179031162 | O114: 0.7179031162 | P114: 19.74176682 | Q114: 32.01339309 | R114: 8.803110797 | S114: 44.38785535 | T114: 20.45966994 | U114: 23.92818541 | V114: 200.5522543 | W114: 229.5155281 | X114: 268.4251569 | Y114: 497.940685 | Z114: 14.4375 | AA114: 62.90424059 | AB114: 32.01339309 | AC114: 62.90424059
A115: 2.262546326 | B115: 265 | C115: 203.5298 | D115: 300 | E115: 0.2 | F115: 980.2321099 | G115: 0.000265849316 | H115: 0.0004311031902 | I115: 203.5298 | J115: 0.03253463157 | K115: 2.262546326 | L115: 1697926.41 | M115: 0.01978179548 | N115: 0.7315648757 | O115: 0.7315648757 | P115: 19.92978365 | Q115: 32.31828255 | R115: 8.803110797 | S115: 44.90808515 | T115: 20.66134852 | U115: 24.24673663 | V115: 202.5291726 | W115: 233.9853572 | X115: 274.5891114 | Y115: 508.5744686 | Z115: 14.575 | AA115: 62.29022266 | AB115: 32.31828255 | AC115: 62.29022266
A116: 2.283891102 | B116: 267.5 | C116: 203.5298 | D116: 300 | E116: 0.2 | F116: 980.2321099 | G116: 0.000265849316 | H116: 0.0004311031902 | I116: 203.5298 | J116: 0.03253463157 | K116: 2.283891102 | L116: 1713944.584 | M116: 0.01977973116 | N116: 0.7453553065 | O116: 0.7453553065 | P116: 20.11780047 | Q116: 32.62317201 | R116: 8.803110797 | S116: 45.4285723 | T116: 20.86315578 | U116: 24.56541652 | V116: 204.5073521 | W116: 238.4997509 | X116: 280.8226034 | Y116: 519.3223543 | Z116: 14.7125 | AA116: 61.68769546 | AB116: 32.62317201 | AC116: 61.68769546
A117: 2.305235879 | B117: 270 | C117: 203.5298 | D117: 300 | E117: 0.2 | F117: 980.2321099 | G117: 0.000265849316 | H117: 0.0004311031902 | I117: 203.5298 | J117: 0.03253463157 | K117: 2.305235879 | L117: 1729962.758 | M117: 0.01977770264 | N117: 0.7592744076 | O117: 0.7592744076 | P117: 20.3058173 | Q117: 32.92806147 | R117: 8.803110797 | S117: 45.94931679 | T117: 21.06509171 | U117: 24.88422508 | V117: 206.4867929 | W117: 243.0587505 | X117: 287.125674 | Y117: 530.1844245 | Z117: 14.85 | AA117: 61.09633976 | AB117: 32.92806147 | AC117: 61.09633976
A118: 2.326580656 | B118: 272.5 | C118: 203.5298 | D118: 300 | E118: 0.2 | F118: 980.2321099 | G118: 0.000265849316 | H118: 0.0004311031902 | I118: 203.5298 | J118: 0.03253463157 | K118: 2.326580656 | L118: 1745980.931 | M118: 0.01977570896 | N118: 0.7733221784 | O118: 0.7733221784 | P118: 20.49383413 | Q118: 33.23295093 | R118: 8.803110797 | S118: 46.47031861 | T118: 21.26715631 | U118: 25.20316231 | V118: 208.467495 | W118: 247.6623971 | X118: 293.4983645 | Y118: 541.1607616 | Z118: 14.9875 | AA118: 60.51584808 | AB118: 33.23295093 | AC118: 60.51584808
A119: 2.347925432 | B119: 275 | C119: 203.5298 | D119: 300 | E119: 0.2 | F119: 980.2321099 | G119: 0.000265849316 | H119: 0.0004311031902 | I119: 203.5298 | J119: 0.03253463157 | K119: 2.347925432 | L119: 1761999.105 | M119: 0.01977374923 | N119: 0.787498618 | O119: 0.787498618 | P119: 20.68185095 | Q119: 33.53784038 | R119: 8.803110797 | S119: 46.99157778 | T119: 21.46934957 | U119: 25.5222282 | V119: 210.4494583 | W119: 252.3107321 | X119: 299.9407161 | Y119: 552.2514482 | Z119: 15.125 | AA119: 59.9459241 | AB119: 33.53784038 | AC119: 59.9459241
A120: 2.369270209 | B120: 277.5 | C120: 203.5298 | D120: 300 | E120: 0.2 | F120: 980.2321099 | G120: 0.000265849316 | H120: 0.0004311031902 | I120: 203.5298 | J120: 0.03253463157 | K120: 2.369270209 | L120: 1778017.279 | M120: 0.01977182257 | N120: 0.8018037256 | O120: 0.8018037256 | P120: 20.86986778 | Q120: 33.84272984 | R120: 8.803110797 | S120: 47.51309428 | T120: 21.67167151 | U120: 25.84142277 | V120: 212.4326829 | W120: 257.0037967 | X120: 306.45277 | Y120: 563.4565667 | Z120: 15.2625 | AA120: 59.38628221 | AB120: 33.84272984 | AC120: 59.38628221
A121: 2.390614985 | B121: 280 | C121: 203.5298 | D121: 300 | E121: 0.2 | F121: 980.2321099 | G121: 0.000265849316 | H121: 0.0004311031902 | I121: 203.5298 | J121: 0.03253463157 | K121: 2.390614985 | L121: 1794035.452 | M121: 0.01976992814 | N121: 0.8162375005 | O121: 0.8162375005 | P121: 21.05788461 | Q121: 34.1476193 | R121: 8.803110797 | S121: 48.03486811 | T121: 21.87412211 | U121: 26.160746 | V121: 214.4171687 | W121: 261.7416321 | X121: 313.0345676 | Y121: 574.7761996 | Z121: 15.4 | AA121: 58.83664696 | AB121: 34.1476193 | AC121: 58.83664696
A122: 2.411959762 | B122: 282.5 | C122: 203.5298 | D122: 300 | E122: 0.2 | F122: 980.2321099 | G122: 0.000265849316 | H122: 0.0004311031902 | I122: 203.5298 | J122: 0.03253463157 | K122: 2.411959762 | L122: 1810053.626 | M122: 0.01976806511 | N122: 0.8307999419 | O122: 0.8307999419 | P122: 21.24590143 | Q122: 34.45250876 | R122: 8.803110797 | S122: 48.55689928 | T122: 22.07670138 | U122: 26.4801979 | V122: 216.4029157 | W122: 266.5242794 | X122: 319.6861499 | Y122: 586.2104293 | Z122: 15.5375 | AA122: 58.29675267 | AB122: 34.45250876 | AC122: 58.29675267
A123: 2.433304539 | B123: 285 | C123: =C122 -> 203.5298 | D123: 300 | E123: 0.2 | F123: 980.2321099 | G123: 0.000265849316 | H123: 0.0004311031902 | I123: 203.5298 | J123: 0.03253463157 | K123: 2.433304539 | L123: 1826071.8 | M123: 0.0197662327 | N123: 0.845491049 | O123: 0.845491049 | P123: 21.43391826 | Q123: 34.75739822 | R123: 8.803110797 | S123: 49.07918778 | T123: 22.27940931 | U123: 26.79977847 | V123: 218.389924 | W123: 271.3517801 | X123: 326.4075583 | Y123: 597.7593383 | Z123: 15.675 | AA123: 57.766343 | AB123: 34.75739822 | AC123: 57.766343
A124: 2.454649315 | B124: 287.5 | C124: 203.5298 | D124: 300 | E124: 0.2 | F124: 980.2321099 | G124: 0.000265849316 | H124: 0.0004311031902 | I124: 203.5298 | J124: 0.03253463157 | K124: 2.454649315 | L124: 1842089.973 | M124: 0.01976443015 | N124: 0.8603108212 | O124: 0.8603108212 | P124: 21.62193509 | Q124: 35.06228767 | R124: 8.803110797 | S124: 49.60173361 | T124: 22.48224591 | U124: 27.1194877 | V124: 220.3781934 | W124: 276.2241752 | X124: 333.1988339 | Y124: 609.4230091 | Z124: 15.8125 | AA124: 57.24517049 | AB124: 35.06228767 | AC124: 57.24517049
A125: 2.475994092 | B125: 290 | C125: 203.5298 | D125: 300 | E125: 0.2 | F125: 980.2321099 | G125: 0.000265849316 | H125: 0.0004311031902 | I125: 203.5298 | J125: 0.03253463157 | K125: 2.475994092 | L125: 1858108.147 | M125: 0.01976265672 | N125: 0.8752592578 | O125: 0.8752592578 | P125: 21.80995191 | Q125: 35.36717713 | R125: 8.803110797 | S125: 50.12453677 | T125: 22.68521117 | U125: 27.43932559 | V125: 222.3677241 | W125: 281.141506 | X125: 340.060018 | Y125: 621.201524 | Z125: 15.95 | AA125: 56.73299623 | AB125: 35.36717713 | AC125: 56.73299623
A126: 2.497338869 | B126: 292.5 | C126: 203.5298 | D126: 300 | E126: 0.2 | F126: 980.2321099 | G126: 0.000265849316 | H126: 0.0004311031902 | I126: 203.5298 | J126: 0.03253463157 | K126: 2.497338869 | L126: 1874126.321 | M126: 0.0197609117 | N126: 0.890336358 | O126: 0.890336358 | P126: 21.99796874 | Q126: 35.67206659 | R126: 8.803110797 | S126: 50.64759725 | T126: 22.8883051 | U126: 27.75929215 | V126: 224.358516 | W126: 286.1038137 | X126: 346.9911519 | Y126: 633.0949656 | Z126: 16.0875 | AA126: 56.2295895 | AB126: 35.67206659 | AC126: 56.2295895
A127: 2.518683645 | B127: 295 | C127: 203.5298 | D127: 300 | E127: 0.2 | F127: 980.2321099 | G127: 0.000265849316 | H127: 0.0004311031902 | I127: 203.5298 | J127: 0.03253463157 | K127: 2.518683645 | L127: 1890144.494 | M127: 0.01975919439 | N127: 0.9055421211 | O127: 0.9055421211 | P127: 22.18598557 | Q127: 35.97695605 | R127: 8.803110797 | S127: 51.17091506 | T127: 23.09152769 | U127: 28.07938737 | V127: 226.3505691 | W127: 291.1111397 | X127: 353.9922767 | Y127: 645.1034164 | Z127: 16.225 | AA127: 55.73472735 | AB127: 35.97695605 | AC127: 55.73472735
A128: 2.540028422 | B128: 297.5 | C128: 203.5298 | D128: 300 | E128: 0.2 | F128: 980.2321099 | G128: 0.000265849316 | H128: 0.0004311031902 | I128: 203.5298 | J128: 0.03253463157 | K128: 2.540028422 | L128: 1906162.668 | M128: 0.01975750414 | N128: 0.9208765466 | O128: 0.9208765466 | P128: 22.3740024 | Q128: 36.28184551 | R128: 8.803110797 | S128: 51.6944902 | T128: 23.29487894 | U128: 28.39961126 | V128: 228.3438834 | W128: 296.163525 | X128: 361.0634337 | Y128: 657.2269587 | Z128: 16.3625 | AA128: 55.24819439 | AB128: 36.28184551 | AC128: 55.24819439
A129: 2.561373199 | B129: 300 | C129: 203.5298 | D129: 300 | E129: 0.2 | F129: 980.2321099 | G129: 0.000265849316 | H129: 0.0004311031902 | I129: 203.5298 | J129: 0.03253463157 | K129: 2.561373199 | L129: 1922180.842 | M129: 0.0197558403 | N129: 0.9363396336 | O129: 0.9363396336 | P129: 22.56201922 | Q129: 36.58673496 | R129: 8.803110797 | S129: 52.21832266 | T129: 23.49835886 | U129: 28.7199638 | V129: 230.3384588 | W129: 301.261011 | X129: 368.2046641 | Y129: 669.4656751 | Z129: 16.5 | AA129: 54.76978234 | AB129: 36.58673496 | AC129: 54.76978234
A130: 2.582717975 | B130: 302.5 | C130: 203.5298 | D130: 300 | E130: 0.2 | F130: 980.2321099 | G130: 0.000265849316 | H130: 0.0004311031902 | I130: 203.5298 | J130: 0.03253463157 | K130: 2.582717975 | L130: 1938199.015 | M130: 0.01975420224 | N130: 0.9519313815 | O130: 0.9519313815 | P130: 22.75003605 | Q130: 36.89162442 | R130: 8.803110797 | S130: 52.74241244 | T130: 23.70196743 | U130: 29.04044501 | V130: 232.3342954 | W130: 306.4036388 | X130: 375.4160092 | Y130: 681.819648 | Z130: 16.6375 | AA130: 54.29928987 | AB130: 36.89162442 | AC130: 54.29928987
A131: 2.604062752 | B131: 305 | C131: 203.5298 | D131: 300 | E131: 0.2 | F131: 980.2321099 | G131: 0.000265849316 | H131: 0.0004311031902 | I131: 203.5298 | J131: 0.03253463157 | K131: 2.604062752 | L131: 1954217.189 | M131: 0.01975258936 | N131: 0.9676517898 | O131: 0.9676517898 | P131: 22.93805288 | Q131: 37.19651388 | R131: 8.803110797 | S131: 53.26675954 | T131: 23.90570467 | U131: 29.36105487 | V131: 234.3313932 | W131: 311.5914497 | X131: 382.6975101 | Y131: 694.2889598 | Z131: 16.775 | AA131: 53.8365222 | AB131: 37.19651388 | AC131: 53.8365222
A132: 2.625407529 | B132: 307.5 | C132: 203.5298 | D132: 300 | E132: 0.2 | F132: 980.2321099 | G132: 0.000265849316 | H132: 0.0004311031902 | I132: 203.5298 | J132: 0.03253463157 | K132: 2.625407529 | L132: 1970235.363 | M132: 0.01975100106 | N132: 0.9835008578 | O132: 0.9835008578 | P132: 23.1260697 | Q132: 37.50140334 | R132: 8.803110797 | S132: 53.79136396 | T132: 24.10957056 | U132: 29.6817934 | V132: 236.3297522 | W132: 316.8244849 | X132: 390.0492081 | Y132: 706.8736931 | Z132: 16.9125 | AA132: 53.38129092 | AB132: 37.50140334 | AC132: 53.38129092
A133: 2.646752305 | B133: 310 | C133: 203.5298 | D133: 300 | E133: 0.2 | F133: 980.2321099 | G133: 0.000265849316 | H133: 0.0004311031902 | I133: 203.5298 | J133: 0.03253463157 | K133: 2.646752305 | L133: 1986253.537 | M133: 0.01974943679 | N133: 0.9994785848 | O133: 0.9994785848 | P133: 23.31408653 | Q133: 37.8062928 | R133: 8.803110797 | S133: 54.3162257 | T133: 24.31356511 | U133: 30.00266058 | V133: 238.3293723 | W133: 322.1027857 | X133: 397.4711445 | Y133: 719.5739302 | Z133: 17.05 | AA133: 52.93341367 | AB133: 37.8062928 | AC133: 52.93341367
A134: 2.668097082 | B134: 312.5 | C134: 203.5298 | D134: 300 | E134: 0.2 | F134: 980.2321099 | G134: 0.000265849316 | H134: 0.0004311031902 | I134: 203.5298 | J134: 0.03253463157 | K134: 2.668097082 | L134: 2002271.71 | M134: 0.019747896 | N134: 1.01558497 | O134: 1.01558497 | P134: 23.50210336 | Q134: 38.11118225 | R134: 8.803110797 | S134: 54.84134475 | T134: 24.51768833 | U134: 30.32365643 | V134: 240.3302536 | W134: 327.4263933 | X134: 404.9633604 | Y134: 732.3897537 | Z134: 17.1875 | AA134: 52.49271395 | AB134: 38.11118225 | AC134: 52.49271395
A135: 2.689441859 | B135: 315 | C135: 203.5298 | D135: 300 | E135: 0.2 | F135: 980.2321099 | G135: 0.000265849316 | H135: 0.0004311031902 | I135: 203.5298 | J135: 0.03253463157 | K135: 2.689441859 | L135: 2018289.884 | M135: 0.01974637814 | N135: 1.031820013 | O135: 1.031820013 | P135: 23.69012018 | Q135: 38.41607171 | R135: 8.803110797 | S135: 55.36672113 | T135: 24.7219402 | U135: 30.64478093 | V135: 242.332396 | W135: 332.7953488 | X135: 412.5258971 | Y135: 745.3212459 | Z135: 17.325 | AA135: 52.05902084 | AB135: 38.41607171 | AC135: 52.05902084
A136: 2.710786635 | B136: 317.5 | C136: 203.5298 | D136: 300 | E136: 0.2 | F136: 980.2321099 | G136: 0.000265849316 | H136: 0.0004311031902 | I136: 203.5298 | J136: 0.03253463157 | K136: 2.710786635 | L136: 2034308.058 | M136: 0.0197448827 | N136: 1.048183714 | O136: 1.048183714 | P136: 23.87813701 | Q136: 38.72096117 | R136: 8.803110797 | S136: 55.89235481 | T136: 24.92632072 | U136: 30.96603409 | V136: 244.3357996 | W136: 338.2096936 | X136: 420.1587958 | Y136: 758.3684894 | Z136: 17.4625 | AA136: 51.63216883 | AB136: 38.72096117 | AC136: 51.63216883
A137: 2.732131412 | B137: 320 | C137: 203.5298 | D137: 300 | E137: 0.2 | F137: 980.2321099 | G137: 0.000265849316 | H137: 0.0004311031902 | I137: 203.5298 | J137: 0.03253463157 | K137: 2.732131412 | L137: 2050326.231 | M137: 0.01974340918 | N137: 1.064676071 | O137: 1.064676071 | P137: 24.06615384 | Q137: 39.02585063 | R137: 8.803110797 | S137: 56.41824581 | T137: 25.13082991 | U137: 31.2874159 | V137: 246.3404643 | W137: 343.6694688 | X137: 427.8620978 | Y137: 771.5315666 | Z137: 17.6 | AA137: 51.21199756 | AB137: 39.02585063 | AC137: 51.21199756
A138: 2.753476189 | B138: 322.5 | C138: 203.5298 | D138: 300 | E138: 0.2 | F138: 980.2321099 | G138: 0.000265849316 | H138: 0.0004311031902 | I138: 203.5298 | J138: 0.03253463157 | K138: 2.753476189 | L138: =(F138*K138*I138)/G138/1000 -> 2066344.405 | M138: =(1.14-2*LOG((E138/1000)/(I138/1000)+(21.25/L138^0.9)))^-2 -> 0.01974195709 | N138: =(0.5*F138*K138^2*D138/(I138/1000)*M138/100000) -> 1.081297084 | O138: =(0.5*F138*K138^2*D138/(I138/1000)*M138/100000) -> 1.081297084 | P138: 24.25417066 | Q138: 39.33074009 | R138: 8.803110797 | S138: 56.94439412 | T138: 25.33546775 | U138: 31.60892637 | V138: =T138*(F138/100) -> 248.3463901 | W138: =T138/3600/C$3*B138*100 -> 349.1747158 | X138: =U138/3600/C$3*B138*100 -> 435.6358443 | Y138: 784.81056 | Z138: 17.7375 | AA138: 50.79835165 | AB138: 39.33074009 | AC138: =AA138 -> 50.79835165
A139: =B139/J139/3600 -> 2.774820965 | B139: 325 | C139: =C138 -> 203.5298 | D139: 300 | E139: 0.2 | F139: 980.2321099 | G139: 0.000265849316 | H139: 0.0004311031902 | I139: 203.5298 | J139: 0.03253463157 | K139: 2.774820965 | L139: 2082362.579 | M139: 0.01974052596 | N139: 1.098046753 | O139: 1.098046753 | P139: 24.44218749 | Q139: =(B139/3600)*H139/2/PI()/G$4/0.000000000001*(LN(G$3/(C139/2000))+C$4)/100000 -> 39.63562954 | R139: 8.803110797 | S139: =O139+N139+P139+Q139-R139 -> 57.47079974 | T139: =N139+P139 -> 25.54023424 | U139: =O139+Q139-R139 -> 31.9305655 | V139: 250.353577 | W139: 354.7254756 | X139: 443.4800764 | Y139: =X139+W139 -> 798.205552 | Z139: 17.875 | AA139: 50.39108051 | AB139: =Q139 -> 39.63562954 | AC139: 50.39108051
A140: 2.796165742 | B140: 327.5 | C140: 203.5298 | D140: 300 | E140: 0.2 | F140: 980.2321099 | G140: 0.000265849316 | H140: 0.0004311031902 | I140: 203.5298 | J140: 0.03253463157 | K140: 2.796165742 | L140: 2098380.752 | M140: 0.01973911533 | N140: 1.114925077 | O140: 1.114925077 | P140: 24.63020432 | Q140: 39.940519 | R140: 8.803110797 | S140: 57.99746268 | T140: 25.74512939 | U140: 32.25233328 | V140: 252.3620251 | W140: 360.3217896 | X140: 451.3948355 | Y140: 811.7166251 | Z140: 18.0125 | AA140: 49.99003813 | AB140: 39.940519 | AC140: 49.99003813
A141: 2.817510519 | B141: 330 | C141: 203.5298 | D141: 300 | E141: 0.2 | F141: 980.2321099 | G141: 0.000265849316 | H141: 0.0004311031902 | I141: 203.5298 | J141: 0.03253463157 | K141: 2.817510519 | L141: 2114398.926 | M141: 0.01973772476 | N141: 1.131932055 | O141: 1.131932055 | P141: 24.81822114 | Q141: 40.24540846 | R141: 8.803110797 | S141: 58.52438292 | T141: 25.9501532 | U141: 32.57422972 | V141: 254.3717342 | W141: 365.963699 | X141: 459.3801627 | Y141: 825.3438617 | Z141: 18.15 | AA141: 49.59508293 | AB141: 40.24540846 | AC141: 49.59508293
A142: 2.838855295 | B142: 332.5 | C142: 203.5298 | D142: 300 | E142: 0.2 | F142: 980.2321099 | G142: 0.000265849316 | H142: 0.0004311031902 | I142: 203.5298 | J142: 0.03253463157 | K142: 2.838855295 | L142: 2130417.1 | M142: 0.01973635381 | N142: 1.149067687 | O142: 1.149067687 | P142: 25.00623797 | Q142: 40.55029792 | R142: 8.803110797 | S142: 59.05156047 | T142: 26.15530566 | U142: 32.89625481 | V142: 256.3827045 | W142: 371.6512449 | X142: 467.4360993 | Y142: 839.0873442 | Z142: 18.2875 | AA142: 49.20607761 | AB142: 40.55029792 | AC142: 49.20607761
A143: 2.860200072 | B143: 335 | C143: 203.5298 | D143: 300 | E143: 0.2 | F143: 980.2321099 | G143: 0.000265849316 | H143: 0.0004311031902 | I143: 203.5298 | J143: 0.03253463157 | K143: 2.860200072 | L143: 2146435.273 | M143: 0.01973500207 | N143: 1.166331972 | O143: 1.166331972 | P143: 25.1942548 | Q143: 40.85518738 | R143: 8.803110797 | S143: 59.57899532 | T143: 26.36058677 | U143: 33.21840855 | V143: 258.3949359 | W143: 377.3844687 | X143: 475.5626865 | Y143: 852.9471552 | Z143: 18.425 | AA143: 48.82288893 | AB143: 40.85518738 | AC143: 48.82288893
A144: 2.881544849 | B144: 337.5 | C144: 203.5298 | D144: 300 | E144: 0.2 | F144: 980.2321099 | G144: 0.000265849316 | H144: 0.0004311031902 | I144: 203.5298 | J144: 0.03253463157 | K144: 2.881544849 | L144: 2162453.447 | M144: 0.01973366912 | N144: 1.18372491 | O144: 1.18372491 | P144: 25.38227163 | Q144: 41.16007683 | R144: 8.803110797 | S144: 60.10668748 | T144: 26.56599653 | U144: 33.54069095 | V144: 260.4084284 | W144: 383.1634116 | X144: 483.7599656 | Y144: 866.9233771 | Z144: 18.5625 | AA144: 48.44538763 | AB144: 41.16007683 | AC144: 48.44538763
A145: 2.902889625 | B145: 340 | C145: 203.5298 | D145: 300 | E145: 0.2 | F145: 980.2321099 | G145: 0.000265849316 | H145: 0.0004311031902 | I145: 203.5298 | J145: 0.03253463157 | K145: 2.902889625 | L145: 2178471.621 | M145: 0.01973235457 | N145: 1.2012465 | O145: 1.2012465 | P145: 25.57028845 | Q145: 41.46496629 | R145: 8.803110797 | S145: 60.63463695 | T145: 26.77153495 | U145: 33.863102 | V145: 262.4231819 | W145: 388.9881147 | X145: 492.0279777 | Y145: 881.0160924 | Z145: 18.7 | AA145: 48.07344825 | AB145: 41.46496629 | AC145: 48.07344825
A146: 2.924234402 | B146: 342.5 | C146: 203.5298 | D146: 300 | E146: 0.2 | F146: 980.2321099 | G146: 0.000265849316 | H146: 0.0004311031902 | I146: 203.5298 | J146: 0.03253463157 | K146: 2.924234402 | L146: 2194489.794 | M146: 0.01973105804 | N146: 1.218896742 | O146: 1.218896742 | P146: 25.75830528 | Q146: 41.76985575 | R146: 8.803110797 | S146: 61.16284372 | T146: 26.97720202 | U146: 34.1856417 | V146: 264.4391966 | W146: 394.8586193 | X146: 500.3667641 | Y146: 895.2253835 | Z146: 18.8375 | AA146: 47.70694896 | AB146: 41.76985575 | AC146: 47.70694896
A147: 2.945579179 | B147: 345 | C147: 203.5298 | D147: 300 | E147: 0.2 | F147: 980.2321099 | G147: 0.000265849316 | H147: 0.0004311031902 | I147: 203.5298 | J147: 0.03253463157 | K147: 2.945579179 | L147: 2210507.968 | M147: 0.01972977915 | N147: 1.236675635 | O147: 1.236675635 | P147: 25.94632211 | Q147: 42.07474521 | R147: 8.803110797 | S147: 61.69130779 | T147: 27.18299774 | U147: 34.50831005 | V147: 266.4564723 | W147: 400.7749667 | X147: 508.7763661 | Y147: 909.5513328 | Z147: 18.975 | AA147: 47.34577151 | AB147: 42.07474521 | AC147: 47.34577151
A148: 2.966923955 | B148: 347.5 | C148: 203.5298 | D148: 300 | E148: 0.2 | F148: 980.2321099 | G148: 0.000265849316 | H148: 0.0004311031902 | I148: 203.5298 | J148: 0.03253463157 | K148: 2.966923955 | L148: 2226526.142 | M148: 0.01972851753 | N148: 1.254583179 | O148: 1.254583179 | P148: 26.13433893 | Q148: 42.37963467 | R148: 8.803110797 | S148: 62.22002916 | T148: 27.38892211 | U148: 34.83110705 | V148: 268.4750091 | W148: 406.737198 | X148: 517.2568248 | Y148: 923.9940228 | Z148: 19.1125 | AA148: 46.98980101 | AB148: 42.37963467 | AC148: 46.98980101
A149: 2.988268732 | B149: 350 | C149: 203.5298 | D149: 300 | E149: 0.2 | F149: 980.2321099 | G149: 0.000265849316 | H149: 0.0004311031902 | I149: 203.5298 | J149: 0.03253463157 | K149: 2.988268732 | L149: 2242544.315 | M149: 0.01972727284 | N149: 1.272619373 | O149: 1.272619373 | P149: 26.32235576 | Q149: 42.68452413 | R149: 8.803110797 | S149: 62.74900783 | T149: 27.59497513 | U149: 35.1540327 | V149: 270.494807 | W149: 412.7453545 | X149: 525.8081814 | Y149: 938.553536 | Z149: 19.25 | AA149: 46.63892588 | AB149: 42.68452413 | AC149: 46.63892588
A150: 3.009613509 | B150: 352.5 | C150: 203.5298 | D150: 300 | E150: 0.2 | F150: 980.2321099 | G150: 0.000265849316 | H150: 0.0004311031902 | I150: 203.5298 | J150: 0.03253463157 | K150: 3.009613509 | L150: 2258562.489 | M150: 0.01972604472 | N150: 1.290784217 | O150: 1.290784217 | P150: 26.51037259 | Q150: 42.98941358 | R150: 8.803110797 | S150: 63.27824381 | T150: 27.8011568 | U150: 35.477087 | V150: 272.5158659 | W150: 418.7994775 | X150: 534.4304773 | Y150: 953.2299548 | Z150: 19.3875 | AA150: 46.2930377 | AB150: 42.98941358 | AC150: 46.2930377
A151: 3.030958285 | B151: 355 | C151: 203.5298 | D151: 300 | E151: 0.2 | F151: 980.2321099 | G151: 0.000265849316 | H151: 0.0004311031902 | I151: 203.5298 | J151: 0.03253463157 | K151: 3.030958285 | L151: 2274580.663 | M151: 0.01972483285 | N151: 1.30907771 | O151: 1.30907771 | P151: 26.69838941 | Q151: 43.29430304 | R151: 8.803110797 | S151: 63.80773708 | T151: 28.00746712 | U151: 35.80026995 | V151: 274.5381859 | W151: 424.8996081 | X151: 543.1237536 | Y151: 968.0233617 | Z151: 19.525 | AA151: 45.95203109 | AB151: 43.29430304 | AC151: 45.95203109
A152: 3.052303062 | B152: 357.5 | C152: 203.5298 | D152: 300 | E152: 0.2 | F152: 980.2321099 | G152: 0.000265849316 | H152: 0.0004311031902 | I152: 203.5298 | J152: 0.03253463157 | K152: 3.052303062 | L152: 2290598.836 | M152: 0.0197236369 | N152: 1.327499853 | O152: 1.327499853 | P152: 26.88640624 | Q152: 43.5991925 | R152: 8.803110797 | S152: 64.33748765 | T152: 28.21390609 | U152: 36.12358155 | V152: 276.561767 | W152: 431.0457875 | X152: 551.8880515 | Y152: 982.9338391 | Z152: 19.6625 | AA152: 45.61580363 | AB152: 43.5991925 | AC152: 45.61580363
A153: 3.073647838 | B153: 360 | C153: 203.5298 | D153: 300 | E153: 0.2 | F153: 980.2321099 | G153: 0.000265849316 | H153: 0.0004311031902 | I153: 203.5298 | J153: 0.03253463157 | K153: 3.073647838 | L153: 2306617.01 | M153: 0.01972245655 | N153: 1.346050643 | O153: 1.346050643 | P153: 27.07442307 | Q153: 43.90408196 | R153: 8.803110797 | S153: 64.86749551 | T153: 28.42047371 | U153: 36.4470218 | V153: 278.5866091 | W153: 437.2380571 | X153: 560.7234124 | Y153: 997.9614694 | Z153: 19.8 | AA153: 45.28425575 | AB153: 43.90408196 | AC153: 45.28425575
A154: 3.094992615 | B154: =B153+2.5 -> 362.5 | C154: 203.5298 | D154: 300 | E154: 0.2 | F154: 980.2321099 | G154: 0.000265849316 | H154: 0.0004311031902 | I154: 203.5298 | J154: =PI()*(I154/2000)^2 -> 0.03253463157 | K154: =B154/J154/3600 -> 3.094992615 | L154: 2322635.184 | M154: 0.01972129149 | N154: 1.364730081 | O154: 1.364730081 | P154: =(B154/3600)*G154/2/PI()/G$4/0.000000000001*(LN(G$3/(C154/2000))+C$4)/100000 -> 27.26243989 | Q154: 44.20897142 | R154: =R153 -> 8.803110797 | S154: 65.39776067 | T154: 28.62716997 | U154: 36.7705907 | V154: 280.6127123 | W154: 443.4764579 | X154: 569.6298773 | Y154: 1013.106335 | Z154: =B154*(C$1-C$2)*1.1/1000 -> 19.9375 | AA154: =Z154/(W154/1000) -> 44.95729061 | AB154: 44.20897142 | AC154: 44.95729061
A155: 3.116337392 | B155: 365 | C155: =C154 -> 203.5298 | D155: 300 | E155: 0.2 | F155: 980.2321099 | G155: 0.000265849316 | H155: 0.0004311031902 | I155: 203.5298 | J155: 0.03253463157 | K155: 3.116337392 | L155: 2338653.358 | M155: 0.01972014142 | N155: 1.383538167 | O155: 1.383538167 | P155: 27.45045672 | Q155: 44.51386087 | R155: 8.803110797 | S155: 65.92828313 | T155: 28.83399489 | U155: 37.09428824 | V155: 282.6400765 | W155: 449.7610314 | X155: 578.6074876 | Y155: 1028.368519 | Z155: 20.075 | AA155: 44.63481405 | AB155: 44.51386087 | AC155: 44.63481405
A156: 3.137682168 | B156: 367.5 | C156: 203.5298 | D156: 300 | E156: 0.2 | F156: 980.2321099 | G156: 0.000265849316 | H156: 0.0004311031902 | I156: 203.5298 | J156: 0.03253463157 | K156: 3.137682168 | L156: 2354671.531 | M156: 0.01971900605 | N156: 1.4024749 | O156: 1.4024749 | P156: 27.63847355 | Q156: 44.81875033 | R156: 8.803110797 | S156: 66.45906288 | T156: 29.04094845 | U156: 37.41811443 | V156: 284.6687017 | W156: 456.0918186 | X156: 587.6562844 | Y156: 1043.748103 | Z156: 20.2125 | AA156: 44.31673443 | AB156: 44.81875033 | AC156: 44.31673443
A157: 3.159026945 | B157: 370 | C157: 203.5298 | D157: 300 | E157: 0.2 | F157: 980.2321099 | G157: 0.000265849316 | H157: 0.0004311031902 | I157: 203.5298 | J157: 0.03253463157 | K157: 3.159026945 | L157: 2370689.705 | M157: 0.01971788509 | N157: 1.421540279 | O157: 1.421540279 | P157: 27.82649037 | Q157: 45.12363979 | R157: 8.803110797 | S157: 66.99009992 | T157: 29.24803065 | U157: 37.74206927 | V157: 286.698588 | W157: 462.4688608 | X157: 596.776309 | Y157: 1059.24517 | Z157: 20.35 | AA157: 44.00296264 | AB157: 45.12363979 | AC157: 44.00296264
A158: 3.180371722 | B158: 372.5 | C158: 203.5298 | D158: 300 | E158: 0.2 | F158: 980.2321099 | G158: 0.000265849316 | H158: 0.0004311031902 | I158: 203.5298 | J158: 0.03253463157 | K158: 3.180371722 | L158: 2386707.879 | M158: 0.01971677827 | N158: 1.440734305 | O158: 1.440734305 | P158: 28.0145072 | Q158: 45.42852925 | R158: 8.803110797 | S158: 67.52139426 | T158: 29.45524151 | U158: 38.06615275 | V158: 288.7297353 | W158: 468.8921992 | X158: 605.9676026 | Y158: 1074.859802 | Z158: 20.4875 | AA158: 43.69341191 | AB158: 45.42852925 | AC158: 43.69341191
A159: 3.201716498 | B159: 375 | C159: 203.5298 | D159: 300 | E159: 0.2 | F159: 980.2321099 | G159: 0.000265849316 | H159: 0.0004311031902 | I159: 203.5298 | J159: 0.03253463157 | K159: 3.201716498 | L159: 2402726.052 | M159: 0.01971568532 | N159: 1.460056976 | O159: 1.460056976 | P159: 28.20252403 | Q159: 45.73341871 | R159: 8.803110797 | S159: 68.05294589 | T159: 29.662581 | U159: 38.39036488 | V159: 290.7621436 | W159: 475.3618751 | X159: 615.2302065 | Y159: 1090.592082 | Z159: 20.625 | AA159: 43.38799782 | AB159: 45.73341871 | AC159: 43.38799782
A160: 3.223061275 | B160: 377.5 | C160: 203.5298 | D160: 300 | E160: 0.2 | F160: 980.2321099 | G160: 0.000265849316 | H160: 0.0004311031902 | I160: 203.5298 | J160: 0.03253463157 | K160: 3.223061275 | L160: 2418744.226 | M160: 0.01971460596 | N160: 1.479508292 | O160: 1.479508292 | P160: 28.39054085 | Q160: 46.03830816 | R160: 8.803110797 | S160: 68.58475481 | T160: 29.87004915 | U160: 38.71470566 | V160: 292.795813 | W160: 481.8779296 | X160: 624.5641618 | Y160: 1106.442091 | Z160: 20.7625 | AA160: 43.08663818 | AB160: 46.03830816 | AC160: 43.08663818
A161: 3.244406052 | B161: 380 | C161: 203.5298 | D161: 300 | E161: 0.2 | F161: 980.2321099 | G161: 0.000265849316 | H161: 0.0004311031902 | I161: 203.5298 | J161: 0.03253463157 | K161: 3.244406052 | L161: 2434762.4 | M161: 0.01971353996 | N161: 1.499088253 | O161: 1.499088253 | P161: 28.57855768 | Q161: 46.34319762 | R161: 8.803110797 | S161: 69.11682101 | T161: 30.07764594 | U161: 39.03917508 | V161: 294.8307434 | W161: 488.4404041 | X161: 633.9695098 | Y161: 1122.409914 | Z161: 20.9 | AA161: 42.78925295 | AB161: 46.34319762 | AC161: 42.78925295
A162: 3.265750828 | B162: 382.5 | C162: 203.5298 | D162: 300 | E162: 0.2 | F162: 980.2321099 | G162: 0.000265849316 | H162: 0.0004311031902 | I162: 203.5298 | J162: 0.03253463157 | K162: 3.265750828 | L162: 2450780.573 | M162: 0.01971248705 | N162: 1.518796859 | O162: 1.518796859 | P162: 28.76657451 | Q162: 46.64808708 | R162: 8.803110797 | S162: 69.64914451 | T162: 30.28537137 | U162: 39.36377314 | V162: 296.8669348 | W162: 495.0493397 | X162: 643.4462917 | Y162: 1138.495631 | Z162: 21.0375 | AA162: 42.49576419 | AB162: 46.64808708 | AC162: 42.49576419
A163: 3.287095605 | B163: 385 | C163: 203.5298 | D163: 300 | E163: 0.2 | F163: 980.2321099 | G163: 0.000265849316 | H163: 0.0004311031902 | I163: 203.5298 | J163: 0.03253463157 | K163: 3.287095605 | L163: 2466798.747 | M163: 0.01971144699 | N163: 1.538634109 | O163: 1.538634109 | P163: 28.95459134 | Q163: 46.95297654 | R163: 8.803110797 | S163: 70.18172529 | T163: 30.49322544 | U163: 39.68849985 | V163: 298.9043872 | W163: 501.7047776 | X163: 652.9945488 | Y163: 1154.699326 | Z163: 21.175 | AA163: 42.20609599 | AB163: 46.95297654 | AC163: 42.20609599
A164: 3.308440382 | B164: 387.5 | C164: 203.5298 | D164: 300 | E164: 0.2 | F164: 980.2321099 | G164: 0.000265849316 | H164: 0.0004311031902 | I164: 203.5298 | J164: 0.03253463157 | K164: 3.308440382 | L164: 2482816.921 | M164: 0.01971041954 | N164: 1.558600002 | O164: 1.558600002 | P164: 29.14260816 | Q164: 47.257866 | R164: 8.803110797 | S164: 70.71456337 | T164: 30.70120816 | U164: 40.0133552 | V164: 300.9431006 | W164: 508.4067591 | X164: 662.6143222 | Y164: 1171.021081 | Z164: 21.3125 | AA164: 41.92017438 | AB164: 47.257866 | AC164: 41.92017438
A165: 3.329785158 | B165: 390 | C165: 203.5298 | D165: 300 | E165: 0.2 | F165: 980.2321099 | G165: 0.000265849316 | H165: 0.0004311031902 | I165: 203.5298 | J165: 0.03253463157 | K165: 3.329785158 | L165: 2498835.094 | M165: 0.01970940448 | N165: 1.578694539 | O165: 1.578694539 | P165: 29.33062499 | Q165: 47.56275545 | R165: 8.803110797 | S165: 71.24765872 | T165: 30.90931953 | U165: 40.3383392 | V165: 302.983075 | W165: 515.1553255 | X165: 672.3056533 | Y165: 1187.460979 | Z165: 21.45 | AA165: 41.63792732 | AB165: 47.56275545 | AC165: 41.63792732
A166: 3.351129935 | B166: 392.5 | C166: 203.5298 | D166: 300 | E166: 0.2 | F166: 980.2321099 | G166: 0.000265849316 | H166: 0.0004311031902 | I166: 203.5298 | J166: 0.03253463157 | K166: 3.351129935 | L166: 2514853.268 | M166: 0.01970840156 | N166: 1.598917718 | O166: 1.598917718 | P166: 29.51864182 | Q166: 47.86764491 | R166: 8.803110797 | S166: 71.78101137 | T166: 31.11755953 | U166: 40.66345183 | V166: 305.0243104 | W166: 521.9505178 | X166: 682.0685831 | Y166: 1204.019101 | Z166: 21.5875 | AA166: 41.35928457 | AB166: 47.86764491 | AC166: 41.35928457
A167: 3.372474712 | B167: 395 | C167: 203.5298 | D167: 300 | E167: 0.2 | F167: 980.2321099 | G167: 0.000265849316 | H167: 0.0004311031902 | I167: 203.5298 | J167: 0.03253463157 | K167: 3.372474712 | L167: 2530871.442 | M167: 0.01970741059 | N167: 1.61926954 | O167: 1.61926954 | P167: 29.70665864 | Q167: 48.17253437 | R167: 8.803110797 | S167: 72.3146213 | T167: 31.32592818 | U167: 40.98869311 | V167: 307.0668068 | W167: 528.7923774 | X167: 691.903153 | Y167: 1220.69553 | Z167: 21.725 | AA167: 41.0841777 | AB167: 48.17253437 | AC167: 41.0841777
A168: 3.393819488 | B168: 397.5 | C168: 203.5298 | D168: 300 | E168: 0.2 | F168: 980.2321099 | G168: 0.000265849316 | H168: 0.0004311031902 | I168: 203.5298 | J168: 0.03253463157 | K168: 3.393819488 | L168: 2546889.615 | M168: 0.01970643133 | N168: 1.639750004 | O168: 1.639750004 | P168: 29.89467547 | Q168: 48.47742383 | R168: 8.803110797 | S168: 72.84848851 | T168: 31.53442547 | U168: 41.31406303 | V168: 309.1105642 | W168: 535.6809455 | X168: 701.8094041 | Y168: 1237.49035 | Z168: 21.8625 | AA168: 40.81253997 | AB168: 48.47742383 | AC168: 40.81253997
A169: 3.415164265 | B169: 400 | C169: 203.5298 | D169: 300 | E169: 0.2 | F169: 980.2321099 | G169: 0.000265849316 | H169: 0.0004311031902 | I169: 203.5298 | J169: 0.03253463157 | K169: 3.415164265 | L169: 2562907.789 | M169: 0.01970546358 | N169: 1.66035911 | O169: 1.66035911 | P169: 30.0826923 | Q169: 48.78231329 | R169: 8.803110797 | S169: 73.382613 | T169: 31.74305141 | U169: 41.6395616 | V169: 311.1555826 | W169: 542.6162634 | X169: 711.7873778 | Y169: 1254.403641 | Z169: 22 | AA169: 40.54430633 | AB169: 48.78231329 | AC169: 40.54430633
A170: 3.436509042 | B170: 402.5 | C170: 203.5298 | D170: 300 | E170: 0.2 | F170: 980.2321099 | G170: 0.000265849316 | H170: 0.0004311031902 | I170: 203.5298 | J170: 0.03253463157 | K170: 3.436509042 | L170: 2578925.963 | M170: 0.01970450713 | N170: 1.681096857 | O170: 1.681096857 | P170: 30.27070912 | Q170: 49.08720274 | R170: 8.803110797 | S170: 73.91699478 | T170: 31.95180598 | U170: 41.9651888 | V170: 313.2018619 | W170: 549.5983721 | X170: 721.8371151 | Y170: 1271.435487 | Z170: 22.1375 | AA170: 40.27941334 | AB170: 49.08720274 | AC170: 40.27941334
A171: 3.457853818 | B171: 405 | C171: =C170 -> 203.5298 | D171: 300 | E171: 0.2 | F171: 980.2321099 | G171: 0.000265849316 | H171: 0.0004311031902 | I171: 203.5298 | J171: 0.03253463157 | K171: 3.457853818 | L171: 2594944.136 | M171: 0.01970356178 | N171: 1.701963245 | O171: 1.701963245 | P171: 30.45872595 | Q171: 49.3920922 | R171: 8.803110797 | S171: 74.45163384 | T171: 32.16068919 | U171: 42.29094465 | V171: 315.2494023 | W171: 556.627313 | X171: 731.9586574 | Y171: 1288.58597 | Z171: 22.275 | AA171: 40.01779913 | AB171: 49.3920922 | AC171: 40.01779913
A172: 3.479198595 | B172: 407.5 | C172: 203.5298 | D172: 300 | E172: 0.2 | F172: 980.2321099 | G172: 0.000265849316 | H172: 0.0004311031902 | I172: 203.5298 | J172: 0.03253463157 | K172: 3.479198595 | L172: 2610962.31 | M172: 0.01970262735 | N172: 1.722958273 | O172: 1.722958273 | P172: 30.64674278 | Q172: 49.69698166 | R172: 8.803110797 | S172: 74.98653019 | T172: 32.36970105 | U172: 42.61682914 | V172: 317.2982036 | W172: 563.7031273 | X172: 742.1520459 | Y172: 1305.855173 | Z172: 22.4125 | AA172: 39.75940334 | AB172: 49.69698166 | AC172: 39.75940334
A173: 3.500543372 | B173: 410 | C173: 203.5298 | D173: 300 | E173: 0.2 | F173: 980.2321099 | G173: 0.000265849316 | H173: 0.0004311031902 | I173: 203.5298 | J173: 0.03253463157 | K173: 3.500543372 | L173: 2626980.484 | M173: 0.01970170362 | N173: 1.744081942 | O173: 1.744081942 | P173: 30.8347596 | Q173: 50.00187112 | R173: 8.803110797 | S173: 75.52168381 | T173: 32.57884155 | U173: 42.94284226 | V173: 319.3482659 | W173: 570.8258561 | X173: 752.4173217 | Y173: 1323.243178 | Z173: 22.55 | AA173: 39.50416709 | AB173: 50.00187112 | AC173: 39.50416709
A174: 3.521888148 | B174: 412.5 | C174: 203.5298 | D174: 300 | E174: 0.2 | F174: 980.2321099 | G174: 0.000265849316 | H174: 0.0004311031902 | I174: 203.5298 | J174: 0.03253463157 | K174: 3.521888148 | L174: 2642998.657 | M174: 0.01970079043 | N174: 1.76533425 | O174: 1.76533425 | P174: 31.02277643 | Q174: 50.30676058 | R174: 8.803110797 | S174: 76.05709471 | T174: 32.78811068 | U174: 43.26898403 | V174: 321.3995891 | W174: 577.9955409 | X174: 762.7545262 | Y174: 1340.750067 | Z174: 22.6875 | AA174: 39.25203292 | AB174: 50.30676058 | AC174: 39.25203292
A175: 3.543232925 | B175: 415 | C175: 203.5298 | D175: 300 | E175: 0.2 | F175: 980.2321099 | G175: 0.000265849316 | H175: 0.0004311031902 | I175: 203.5298 | J175: 0.03253463157 | K175: 3.543232925 | L175: 2659016.831 | M175: 0.01969988758 | N175: 1.786715198 | O175: 1.786715198 | P175: 31.21079326 | Q175: 50.61165003 | R175: 8.803110797 | S175: 76.59276289 | T175: 32.99750846 | U175: 43.59525444 | V175: 323.4521734 | W175: 585.2122226 | X175: 773.1637005 | Y175: 1358.375923 | Z175: 22.825 | AA175: 39.00294477 | AB175: 50.61165003 | AC175: 39.00294477
A176: 3.564577702 | B176: 417.5 | C176: 203.5298 | D176: 300 | E176: 0.2 | F176: 980.2321099 | G176: 0.000265849316 | H176: 0.0004311031902 | I176: 203.5298 | J176: 0.03253463157 | K176: 3.564577702 | L176: 2675035.005 | M176: 0.01969899491 | N176: 1.808224786 | O176: 1.808224786 | P176: 31.39881008 | Q176: 50.91653949 | R176: 8.803110797 | S176: 77.12868835 | T176: 33.20703487 | U176: 43.92165348 | V176: 325.5060186 | W176: 592.4759427 | X176: 783.6448858 | Y176: 1376.120828 | Z176: 22.9625 | AA176: 38.75684791 | AB176: 50.91653949 | AC176: 38.75684791
A177: 3.585922478 | B177: 420 | C177: 203.5298 | D177: 300 | E177: 0.2 | F177: 980.2321099 | G177: 0.000265849316 | H177: 0.0004311031902 | I177: 203.5298 | J177: 0.03253463157 | K177: 3.585922478 | L177: 2691053.179 | M177: 0.01969811222 | N177: 1.829863012 | O177: 1.829863012 | P177: 31.58682691 | Q177: 51.22142895 | R177: 8.803110797 | S177: 77.66487109 | T177: 33.41668992 | U177: 44.24818116 | V177: 327.5611247 | W177: 599.7867422 | X177: 794.1981235 | Y177: 1393.984866 | Z177: 23.1 | AA177: 38.51368891 | AB177: 51.22142895 | AC177: 38.51368891
A178: 3.607267255 | B178: 422.5 | C178: 203.5298 | D178: 300 | E178: 0.2 | F178: 980.2321099 | G178: 0.000265849316 | H178: 0.0004311031902 | I178: 203.5298 | J178: 0.03253463157 | K178: 3.607267255 | L178: 2707071.352 | M178: 0.01969723937 | N178: 1.851629876 | O178: 1.851629876 | P178: 31.77484374 | Q178: 51.52631841 | R178: 8.803110797 | S178: 78.2013111 | T178: 33.62647361 | U178: 44.57483749 | V178: 329.6174918 | W178: 607.1446625 | X178: 804.8234546 | Y178: 1411.968117 | Z178: 23.2375 | AA178: 38.27341561 | AB178: 51.52631841 | AC178: 38.27341561
A179: 3.628612032 | B179: 425 | C179: 203.5298 | D179: 300 | E179: 0.2 | F179: 980.2321099 | G179: 0.000265849316 | H179: 0.0004311031902 | I179: 203.5298 | J179: 0.03253463157 | K179: 3.628612032 | L179: 2723089.526 | M179: 0.01969637617 | N179: 1.873525379 | O179: 1.873525379 | P179: 31.96286057 | Q179: 51.83120787 | R179: 8.803110797 | S179: 78.73800839 | T179: 33.83638594 | U179: 44.90162245 | V179: 331.6751199 | W179: 614.5497447 | X179: 815.5209205 | Y179: 1430.070665 | Z179: 23.375 | AA179: 38.03597707 | AB179: 51.83120787 | AC179: 38.03597707
A180: 3.649956808 | B180: 427.5 | C180: 203.5298 | D180: 300 | E180: 0.2 | F180: 980.2321099 | G180: 0.000265849316 | H180: 0.0004311031902 | I180: 203.5298 | J180: 0.03253463157 | K180: 3.649956808 | L180: 2739107.7 | M180: 0.01969552247 | N180: 1.89554952 | O180: 1.89554952 | P180: 32.15087739 | Q180: 52.13609732 | R180: 8.803110797 | S180: 79.27496296 | T180: 34.04642691 | U180: 45.22853605 | V180: 333.7340089 | W180: 622.0020301 | X180: 826.2905624 | Y180: 1448.292593 | Z180: 23.5125 | AA180: 37.80132357 | AB180: 52.13609732 | AC180: 37.80132357
A181: 3.671301585 | B181: 430 | C181: 203.5298 | D181: 300 | E181: 0.2 | F181: 980.2321099 | G181: 0.000265849316 | H181: 0.0004311031902 | I181: 203.5298 | J181: 0.03253463157 | K181: 3.671301585 | L181: 2755125.873 | M181: 0.01969467811 | N181: 1.917702298 | O181: 1.917702298 | P181: 32.33889422 | Q181: 52.44098678 | R181: 8.803110797 | S181: 79.8121748 | T181: 34.25659652 | U181: 45.55557828 | V181: 335.7941588 | W181: 629.5015599 | X181: 837.1324214 | Y181: 1466.633981 | Z181: 23.65 | AA181: 37.5694065 | AB181: 52.44098678 | AC181: 37.5694065
A182: 3.692646361 | B182: 432.5 | C182: 203.5298 | D182: 300 | E182: 0.2 | F182: 980.2321099 | G182: 0.000265849316 | H182: 0.0004311031902 | I182: 203.5298 | J182: 0.03253463157 | K182: 3.692646361 | L182: 2771144.047 | M182: 0.01969384293 | N182: 1.939983713 | O182: 1.939983713 | P182: 32.52691105 | Q182: 52.74587624 | R182: 8.803110797 | S182: 80.34964391 | T182: 34.46689476 | U182: 45.88274916 | V182: 337.8555697 | W182: 637.0483753 | X182: 848.0465389 | Y182: 1485.094914 | Z182: 23.7875 | AA182: 37.34017842 | AB182: 52.74587624 | AC182: 37.34017842
A183: 3.713991138 | B183: 435 | C183: 203.5298 | D183: 300 | E183: 0.2 | F183: 980.2321099 | G183: 0.000265849316 | H183: 0.0004311031902 | I183: 203.5298 | J183: 0.03253463157 | K183: 3.713991138 | L183: 2787162.221 | M183: 0.01969301678 | N183: 1.962393765 | O183: 1.962393765 | P183: 32.71492787 | Q183: 53.0507657 | R183: 8.803110797 | S183: 80.8873703 | T183: 34.67732164 | U183: 46.21004867 | V183: 339.9182416 | W183: 644.6425176 | X183: 859.032956 | Y183: 1503.675474 | Z183: 23.925 | AA183: 37.11359295 | AB183: 53.0507657 | AC183: 37.11359295
A184: 3.735335915 | B184: 437.5 | C184: 203.5298 | D184: 300 | E184: 0.2 | F184: 980.2321099 | G184: 0.000265849316 | H184: 0.0004311031902 | I184: 203.5298 | J184: 0.03253463157 | K184: 3.735335915 | L184: 2803180.394 | M184: 0.01969219952 | N184: 1.984932454 | O184: 1.984932454 | P184: 32.9029447 | Q184: 53.35565516 | R184: 8.803110797 | S184: 81.42535397 | T184: 34.88787715 | U184: 46.53747681 | V184: 341.9821743 | W184: 652.284028 | X184: 870.0917139 | Y184: 1522.375742 | Z184: 24.0625 | AA184: 36.88960479 | AB184: 53.35565516 | AC184: 36.88960479
A185: 3.756680691 | B185: 440 | C185: 203.5298 | D185: 300 | E185: 0.2 | F185: 980.2321099 | G185: 0.000265849316 | H185: 0.0004311031902 | I185: 203.5298 | J185: 0.03253463157 | K185: 3.756680691 | L185: 2819198.568 | M185: 0.019691391 | N185: 2.007599778 | O185: 2.007599778 | P185: 33.09096153 | Q185: 53.66054461 | R185: 8.803110797 | S185: 81.9635949 | T185: 35.0985613 | U185: 46.8650336 | V185: 344.047368 | W185: 659.9729476 | X185: 881.2228539 | Y185: 1541.195802 | Z185: 24.2 | AA185: 36.66816964 | AB185: 53.66054461 | AC185: 36.66816964
A186: 3.778025468 | B186: 442.5 | C186: 203.5298 | D186: 300 | E186: 0.2 | F186: 980.2321099 | G186: 0.000265849316 | H186: 0.0004311031902 | I186: 203.5298 | J186: 0.03253463157 | K186: 3.778025468 | L186: 2835216.742 | M186: 0.01969059107 | N186: 2.030395739 | O186: 2.030395739 | P186: 33.27897835 | Q186: 53.96543407 | R186: 8.803110797 | S186: 82.50209311 | T186: 35.30937409 | U186: 47.19271901 | V186: 346.1138227 | W186: 667.7093178 | X186: 892.4264173 | Y186: 1560.135735 | Z186: 24.3375 | AA186: 36.44924423 | AB186: 53.96543407 | AC186: 36.44924423
A187: 3.799370245 | B187: 445 | C187: =C186 -> 203.5298 | D187: 300 | E187: 0.2 | F187: 980.2321099 | G187: 0.000265849316 | H187: 0.0004311031902 | I187: 203.5298 | J187: 0.03253463157 | K187: 3.799370245 | L187: 2851234.915 | M187: 0.0196897996 | N187: 2.053320335 | O187: 2.053320335 | P187: 33.46699518 | Q187: 54.27032353 | R187: 8.803110797 | S187: 83.04084858 | T187: 35.52031552 | U187: 47.52053307 | V187: 348.1815382 | W187: 675.4931797 | X187: 903.7024451 | Y187: 1579.195625 | Z187: 24.475 | AA187: 36.23278626 | AB187: 54.27032353 | AC187: 36.23278626
A188: 3.820715021 | B188: 447.5 | C188: 203.5298 | D188: 300 | E188: 0.2 | F188: 980.2321099 | G188: 0.000265849316 | H188: 0.0004311031902 | I188: 203.5298 | J188: 0.03253463157 | K188: 3.820715021 | L188: 2867253.089 | M188: 0.01968901645 | N188: 2.076373567 | O188: 2.076373567 | P188: 33.65501201 | Q188: 54.57521299 | R188: 8.803110797 | S188: 83.57986133 | T188: 35.73138557 | U188: 47.84847576 | V188: 350.2505147 | W188: 683.3245745 | X188: 915.0509787 | Y188: 1598.375553 | Z188: 24.6125 | AA188: 36.01875436 | AB188: 54.57521299 | AC188: 36.01875436
A189: 3.842059798 | B189: 450 | C189: 203.5298 | D189: 300 | E189: 0.2 | F189: 980.2321099 | G189: 0.000265849316 | H189: 0.0004311031902 | I189: 203.5298 | J189: 0.03253463157 | K189: 3.842059798 | L189: 2883271.263 | M189: 0.01968824149 | N189: 2.099555434 | O189: 2.099555434 | P189: 33.84302883 | Q189: 54.88010245 | R189: 8.803110797 | S189: 84.11913135 | T189: 35.94258427 | U189: 48.17654708 | V189: 352.3207521 | W189: 691.2035436 | X189: 926.4720593 | Y189: 1617.675603 | Z189: 24.75 | AA189: 35.80710809 | AB189: 54.88010245 | AC189: 35.80710809
A190: 3.863404575 | B190: 452.5 | C190: 203.5298 | D190: 300 | E190: 0.2 | F190: 980.2321099 | G190: 0.000265849316 | H190: 0.0004311031902 | I190: 203.5298 | J190: 0.03253463157 | K190: 3.863404575 | L190: 2899289.436 | M190: 0.01968747459 | N190: 2.122865935 | O190: 2.122865935 | P190: 34.03104566 | Q190: 55.1849919 | R190: 8.803110797 | S190: 84.65865864 | T190: 36.1539116 | U190: 48.50474704 | V190: 354.3922505 | W190: 699.1301281 | X190: 937.9657281 | Y190: 1637.095856 | Z190: 24.8875 | AA190: 35.59780791 | AB190: 55.1849919 | AC190: 35.59780791
A191: 3.884749351 | B191: 455 | C191: 203.5298 | D191: 300 | E191: 0.2 | F191: 980.2321099 | G191: 0.000265849316 | H191: 0.0004311031902 | I191: 203.5298 | J191: 0.03253463157 | K191: 3.884749351 | L191: 2915307.61 | M191: 0.01968671562 | N191: 2.14630507 | O191: 2.14630507 | P191: 34.21906249 | Q191: 55.48988136 | R191: 8.803110797 | S191: 85.19844319 | T191: 36.36536756 | U191: 48.83307564 | V191: 356.4650097 | W191: 707.1043692 | X191: 949.5320263 | Y191: 1656.636395 | Z191: 25.025 | AA191: 35.39081512 | AB191: 55.48988136 | AC191: 35.39081512
A192: 3.906094128 | B192: 457.5 | C192: 203.5298 | D192: 300 | E192: 0.2 | F192: 980.2321099 | G192: 0.000265849316 | H192: 0.0004311031902 | I192: 203.5298 | J192: 0.03253463157 | K192: 3.906094128 | L192: 2931325.784 | M192: 0.01968596446 | N192: 2.16987284 | O192: 2.16987284 | P192: 34.40707931 | Q192: 55.79477082 | R192: 8.803110797 | S192: 85.73848502 | T192: 36.57695215 | U192: 49.16153286 | V192: 358.5390299 | W192: 715.1263081 | X192: 961.1709951 | Y192: 1676.297303 | Z192: 25.1625 | AA192: 35.1860919 | AB192: 55.79477082 | AC192: 35.1860919
A193: 3.927438905 | B193: 460 | C193: 203.5298 | D193: 300 | E193: 0.2 | F193: 980.2321099 | G193: 0.000265849316 | H193: 0.0004311031902 | I193: 203.5298 | J193: 0.03253463157 | K193: 3.927438905 | L193: 2947343.957 | M193: 0.01968522098 | N193: 2.193569244 | O193: 2.193569244 | P193: 34.59509614 | Q193: 56.09966028 | R193: 8.803110797 | S193: 86.27878411 | T193: 36.78866538 | U193: 49.49011873 | V193: 360.6143109 | W193: 723.1959862 | X193: 972.8826758 | Y193: 1696.078662 | Z193: 25.3 | AA193: 34.98360124 | AB193: 56.09966028 | AC193: 34.98360124
A194: 3.948783681 | B194: 462.5 | C194: 203.5298 | D194: 300 | E194: 0.2 | F194: 980.2321099 | G194: 0.000265849316 | H194: 0.0004311031902 | I194: 203.5298 | J194: 0.03253463157 | K194: 3.948783681 | L194: 2963362.131 | M194: 0.01968448507 | N194: 2.217394281 | O194: 2.217394281 | P194: 34.78311297 | Q194: 56.40454974 | R194: 8.803110797 | S194: 86.81934047 | T194: 37.00050725 | U194: 49.81883322 | V194: 362.6908529 | W194: 731.3134446 | X194: 984.6671096 | Y194: 1715.980554 | Z194: 25.4375 | AA194: 34.78330692 | AB194: 56.40454974 | AC194: 34.78330692
A195: 3.970128458 | B195: 465 | C195: 203.5298 | D195: 300 | E195: 0.2 | F195: 980.2321099 | G195: 0.000265849316 | H195: 0.0004311031902 | I195: 203.5298 | J195: 0.03253463157 | K195: 3.970128458 | L195: 2979380.305 | M195: 0.01968375661 | N195: 2.241347951 | O195: 2.241347951 | P195: 34.97112979 | Q195: 56.70943919 | R195: 8.803110797 | S195: 87.3601541 | T195: 37.21247775 | U195: 50.14767635 | V195: 364.7686558 | W195: 739.4787244 | X195: 996.5243377 | Y195: 1736.003062 | Z195: 25.575 | AA195: 34.58517352 | AB195: 56.70943919 | AC195: 34.58517352
A196: 3.991473235 | B196: 467.5 | C196: 203.5298 | D196: 300 | E196: 0.2 | F196: 980.2321099 | G196: 0.000265849316 | H196: 0.0004311031902 | I196: 203.5298 | J196: 0.03253463157 | K196: 3.991473235 | L196: 2995398.478 | M196: 0.01968303548 | N196: 2.265430255 | O196: 2.265430255 | P196: 35.15914662 | Q196: 57.01432865 | R196: 8.803110797 | S196: 87.90122499 | T196: 37.42457688 | U196: 50.47664811 | V196: 366.8477195 | W196: 747.6918671 | X196: 1008.454401 | Y196: 1756.146268 | Z196: 25.7125 | AA196: 34.38916636 | AB196: 57.01432865 | AC196: 34.38916636
A197: 4.012818011 | B197: 470 | C197: 203.5298 | D197: 300 | E197: 0.2 | F197: 980.2321099 | G197: 0.000265849316 | H197: 0.0004311031902 | I197: 203.5298 | J197: 0.03253463157 | K197: 4.012818011 | L197: 3011416.652 | M197: 0.01968232158 | N197: 2.289641191 | O197: 2.289641191 | P197: 35.34716345 | Q197: 57.31921811 | R197: 8.803110797 | S197: 88.44255314 | T197: 37.63680464 | U197: 50.8057485 | V197: 368.9280442 | W197: 755.9529137 | X197: 1020.457342 | Y197: 1776.410255 | Z197: 25.85 | AA197: 34.19525149 | AB197: 57.31921811 | AC197: 34.19525149
A198: 4.034162788 | B198: 472.5 | C198: 203.5298 | D198: 300 | E198: 0.2 | F198: 980.2321099 | G198: 0.000265849316 | H198: 0.0004311031902 | I198: 203.5298 | J198: 0.03253463157 | K198: 4.034162788 | L198: 3027434.826 | M198: 0.01968161479 | N198: 2.313980759 | O198: 2.313980759 | P198: 35.53518028 | Q198: 57.62410757 | R198: 8.803110797 | S198: 88.98413857 | T198: 37.84916103 | U198: 51.13497753 | V198: 371.0096298 | W198: 764.2619055 | X198: 1032.5332 | Y198: 1796.795106 | Z198: 25.9875 | AA198: 34.00339571 | AB198: 57.62410757 | AC198: 34.00339571
A199: 4.055507565 | B199: 475 | C199: 203.5298 | D199: 300 | E199: 0.2 | F199: 980.2321099 | G199: 0.000265849316 | H199: 0.0004311031902 | I199: 203.5298 | J199: 0.03253463157 | K199: 4.055507565 | L199: 3043453 | M199: 0.019680915 | N199: 2.33844896 | O199: 2.33844896 | P199: 35.7231971 | Q199: 57.92899703 | R199: 8.803110797 | S199: 89.52598125 | T199: 38.06164606 | U199: 51.46433519 | V199: 373.0924763 | W199: 772.6188837 | X199: 1044.682018 | Y199: 1817.300901 | Z199: 26.125 | AA199: 33.81356649 | AB199: 57.92899703 | AC199: 33.81356649
A200: 4.076852341 | B200: 477.5 | C200: 203.5298 | D200: 300 | E200: 0.2 | F200: 980.2321099 | G200: 0.000265849316 | H200: 0.0004311031902 | I200: 203.5298 | J200: 0.03253463157 | K200: 4.076852341 | L200: 3059471.173 | M200: 0.01968022211 | N200: 2.363045793 | O200: 2.363045793 | P200: 35.91121393 | Q200: 58.23388648 | R200: 8.803110797 | S200: 90.0680812 | T200: 38.27425972 | U200: 51.79382148 | V200: 375.1765836 | W200: 781.0238896 | X200: 1056.903836 | Y200: 1837.927725 | Z200: 26.2625 | AA200: 33.625732 | AB200: 58.23388648 | AC200: 33.625732
... 49 more rows

Sheet Flow section 2 (hidden)
B1: Tin | C1: ='Energy Prod & Cons'!C10 -> 135 | D1: [°C] | F1: dikte | G1: ='Energy Prod & Cons'!G14 -> 100 | H1: [m] | L1: COP cooling | R1: depth | S1: Temp | T1: Pressure | U1: w (mass frac) | V1: Rho(T,P) | W1: Rho(C,T,P) | X1: A | Y1: visc (C,T) | Z1: visc (C,T)
B2: Tuit | C2: ='Energy Prod & Cons'!C11 -> 85 | D2: [°C] | F2: perm | G2: ='Energy Prod & Cons'!G16 -> 150 | H2: [mD] | L2: Max Pinj | M2: ='Energy Prod & Cons'!G10*(0.135-('Flow section 2'!W4*9.8/100000)) -> 90.53111146 | N2: 0,025x diepte | R2: [m-mv] | S2: [°C] | T2: (MPa) | U2: [kg/kg] | V2: [g/cm³] | W2: [kg/m³] | X2: [-] | Y2: [kg/ms] | Z2: [cp]
B3: n | C3: ='Energy Prod & Cons'!G23 -> 0.65 | D3: [-] | F3: L | G3: ='Energy Prod & Cons'!G18 -> 1500 | H3: [m] | Q3: productie, reservoir | R3: ='Energy Prod & Cons'!G10 -> 2550 | S3: =C1 -> 135 | T3: =R3/100 -> 25.5 | U3: =C5/1000000 -> 0.05 | V3: =1+0.000001*(-80*S3-3.3*S3^2+0.00175*S3^3+489*T3-2*T3*S3+0.016*S3^2*T3-0.000013*S3^3*T3-0.333*T3^2-0.002*S3*T3^2) -> 0.9451757412 | W3: =(V3+U3*(0.668+0.44*U3+(0.000001*(300*T3-2400*T3*U3+(S3*(80+3*S3-3300*U3-13*T3+47*T3*U3))))))*1000 -> 980.2321099 | X3: =(0.42*(U3^0.8-0.17)^2+0.045)*S3^0.8 -> 2.410185461 | Y3: =(0.1+0.333*U3+(1.65+91.9*U3^3)*EXP(-X3))/1000 -> 0.000265849316 | Z3: =Y3*1000 -> 0.265849316
B4: skin | C4: ='Energy Prod & Cons'!G25 -> 0 | D4: [-] | F4: trans | G4: ='Energy Prod & Cons'!G17 -> 15 | H4: [Dm] | Q4: injectie | R4: =R3 -> 2550 | S4: =C2 -> 85 | T4: =R4/100 -> 25.5 | U4: =U3 -> 0.05 | V4: =1+0.000001*(-80*S4-3.3*S4^2+0.00175*S4^3+489*T4-2*T4*S4+0.016*S4^2*T4-0.000013*S4^3*T4-0.333*T4^2-0.002*S4*T4^2) -> 0.9809838606 | W4: =(V4+U4*(0.668+0.44*U4+(0.000001*(300*T4-2400*T4*U4+(S4*(80+3*S4-3300*U4-13*T4+47*T4*U4))))))*1000 -> 1015.281667 | X4: =(0.42*(U4^0.8-0.17)^2+0.045)*S4^0.8 -> 1.664633338 | Y4: =(0.1+0.333*U4+(1.65+91.9*U4^3)*EXP(-X4))/1000 -> 0.0004311031902 | Z4: =Y4*1000 -> 0.4311031902
B5: TDS | C5: ='Energy Prod & Cons'!G22 -> 50000 | D5: [ppm] | AB5: =W3/W4 -> 0.9654779969
A6: 1 | B6: 2 | C6: 3 | D6: 4 | E6: 5 | F6: 6 | G6: 7 | H6: 8 | I6: 9 | J6: 10 | K6: 11 | L6: 12 | M6: 13 | N6: 14 | O6: 15 | P6: 16 | Q6: 17 | R6: 18 | S6: 19 | T6: 20 | U6: 21 | V6: 22 | W6: 23 | X6: 24 | Y6: 25 | Z6: 26 | AA6: 27 | AB6: 28 | AC6: 29
A7: Flow | B7: Q | C7: diameter | D7: lengte | E7: K | F7: rho_l | G7: mu_l_prod | H7: mu_l_inj | I7: inw. dia. | J7: A | K7: v | L7: Re | M7: frictie getal | N7: dP_prod_frict | O7: dP_inj_fric | P7: dP_prod_form | Q7: dP_inj_form | R7: dgws | S7: dPtot | T7: dP ESP | U7: dP Booster | V7: ESP min depth | W7: Pe ESP | X7: Pe Booster | Y7: Pe pump tot | Z7: Pt | AA7: COP
A8: m/s (lower casing) | B8: [m3/h] | C8: [mm] | D8: [m] | E8: [mm] | F8: [kg/m3] | G8: [kg/ms] | H8: [kg/ms] | I8: [mm] | J8: [m2] | K8: [m/s] | L8: [-] | M8: [-] | N8: [bar] | O8: [bar] | P8: [bar] | Q8: [bar] | R8: [bar] | S8: [bar] | T8: [bar] | U8: [bar] | V8: [m[ | W8: [kWe] | X8: [kWe] | Y8: [kWe] | Z8: [MW] | AA8: [-] | AB8: Pinj | AC8: COP
B9: 0
A10: =B10/J10/3600 -> 0.08923385725 | B10: 2.5 | C10: ='Slimhole design'!AA33 -> 99.5426 | D10: ='Slimhole design'!D32-'Slimhole design'!D21 -> 1700 | E10: ='Energy Prod & Cons'!G21 -> 0.2 | F10: =W3 -> 980.2321099 | G10: =Y3 -> 0.000265849316 | H10: =Y4 -> 0.0004311031902 | I10: =C10 -> 99.5426 | J10: =PI()*(I10/2000)^2 -> 0.007782297727 | K10: =B10/J10/3600 -> 0.08923385725 | L10: =(F10*K10*I10)/G10/1000 -> 32751.5625 | M10: =(1.14-2*LOG((E10/1000)/(I10/1000)+(21.25/L10^0.9)))^-2 -> 0.02805411056 | N10: =(0.5*F10*K10^2*D10/(I10/1000)*M10/100000) -> 0.0186979807 | O10: =(0.5*F10*K10^2*D10/(I10/1000)*M10/100000) -> 0.0186979807 | P10: =(B10/3600)*G10/2/PI()/G$4/0.000000000001*(LN(G$3/(C10/2000))+C$4)/100000 -> 0.2020270699 | Q10: =(B10/3600)*H10/2/PI()/G$4/0.000000000001*(LN(G$3/(C10/2000))+C$4)/100000 -> 0.3276085704 | R10: ='Energy Prod & Cons'!G10*(1-'Flow section 2'!AB5)/10 -> 8.803110797 | S10: =O10+N10+P10+Q10-R10 -> -8.236079195 | T10: =N10+P10 -> 0.2207250506 | U10: =O10+Q10-R10 -> -8.456804246 | V10: =T10*(F10/100) -> 2.163617821 | W10: =T10/3600/C$3*B10*100 -> 0.02358173618 | X10: =U10/3600/C$3*B10*100 -> -0.9035047271 | Y10: =X10+W10 -> -0.879922991 | Z10: =B10*(C$1-C$2)*1.1/1000 -> 0.1375 | AA10: =Z10/(W10/1000) -> 5830.783576 | AB10: =Q10 -> 0.3276085704 | AC10: =AA10 -> 5830.783576
A11: =B11/J11/3600 -> 0.1784677145 | B11: =B10+2.5 -> 5 | C11: =C10 -> 99.5426 | D11: 1700 | E11: 0.2 | F11: 980.2321099 | G11: =G10 -> 0.000265849316 | H11: =H10 -> 0.0004311031902 | I11: 99.5426 | J11: =PI()*(I11/2000)^2 -> 0.007782297727 | K11: =B11/J11/3600 -> 0.1784677145 | L11: 65503.12501 | M11: 0.02611632076 | N11: 0.06962579842 | O11: 0.06962579842 | P11: =(B11/3600)*G11/2/PI()/G$4/0.000000000001*(LN(G$3/(C11/2000))+C$4)/100000 -> 0.4040541398 | Q11: =(B11/3600)*H11/2/PI()/G$4/0.000000000001*(LN(G$3/(C11/2000))+C$4)/100000 -> 0.6552171408 | R11: =R10 -> 8.803110797 | S11: =O11+N11+P11+Q11-R11 -> -7.60458792 | T11: =N11+P11 -> 0.4736799382 | U11: =O11+Q11-R11 -> -8.078267858 | V11: 4.643162853 | W11: 0.101213662 | X11: -1.726125611 | Y11: =X11+W11 -> -1.624911949 | Z11: =B11*(C$1-C$2)*1.1/1000 -> 0.275 | AA11: =Z11/(W11/1000) -> 2717.024506 | AB11: =Q11 -> 0.6552171408 | AC11: 2717.024506
A12: 0.2677015718 | B12: =B11+2.5 -> 7.5 | C12: 99.5426 | D12: 1700 | E12: 0.2 | F12: 980.2321099 | G12: 0.000265849316 | H12: 0.0004311031902 | I12: 99.5426 | J12: =PI()*(I12/2000)^2 -> 0.007782297727 | K12: =B12/J12/3600 -> 0.2677015718 | L12: 98254.68751 | M12: 0.02535696928 | N12: 0.1521030971 | O12: 0.1521030971 | P12: =(B12/3600)*G12/2/PI()/G$4/0.000000000001*(LN(G$3/(C12/2000))+C$4)/100000 -> 0.6060812097 | Q12: 0.9828257111 | R12: =R11 -> 8.803110797 | S12: -6.909997682 | T12: 0.7581843068 | U12: -7.668181989 | V12: 7.431966028 | W12: 0.2430077906 | X12: -2.457750637 | Y12: -2.214742847 | Z12: =B12*(C$1-C$2)*1.1/1000 -> 0.4125 | AA12: =Z12/(W12/1000) -> 1697.476443 | AB12: 0.9828257111 | AC12: 1697.476443
A13: 0.356935429 | B13: 10 | C13: 99.5426 | D13: 1700 | E13: 0.2 | F13: 980.2321099 | G13: 0.000265849316 | H13: 0.0004311031902 | I13: 99.5426 | J13: 0.007782297727 | K13: 0.356935429 | L13: 131006.25 | M13: 0.02494406544 | N13: 0.266002319 | O13: 0.266002319 | P13: 0.8081082796 | Q13: 1.310434282 | R13: 8.803110797 | S13: -6.152563598 | T13: 1.074110599 | U13: -7.226674196 | V13: 10.52877698 | W13: 0.4590216234 | X13: -3.088322306 | Y13: -2.629300683 | Z13: 0.55 | AA13: 1198.200634 | AB13: 1.310434282 | AC13: 1198.200634
A14: 0.4461692863 | B14: 12.5 | C14: 99.5426 | D14: 1700 | E14: 0.2 | F14: 980.2321099 | G14: 0.000265849316 | H14: 0.0004311031902 | I14: 99.5426 | J14: 0.007782297727 | K14: 0.4461692863 | L14: 163757.8125 | M14: 0.02468238711 | N14: 0.4112684279 | O14: 0.4112684279 | P14: 1.01013535 | Q14: 1.638042852 | R14: 8.803110797 | S14: -5.33239574 | T14: 1.421403777 | U14: -6.753799517 | V14: 13.93305624 | W14: 0.7592968897 | X14: -3.607798887 | Y14: -2.848501998 | Z14: 0.6875 | AA14: 905.4429293 | AB14: 1.638042852 | AC14: 905.4429293
A15: 0.5354031435 | B15: 15 | C15: 99.5426 | D15: 1700 | E15: 0.2 | F15: 980.2321099 | G15: 0.000265849316 | H15: 0.0004311031902 | I15: 99.5426 | J15: 0.007782297727 | K15: 0.5354031435 | L15: 196509.375 | M15: 0.02450085049 | N15: 0.5878707662 | O15: 0.5878707662 | P15: 1.212162419 | Q15: 1.965651422 | R15: 8.803110797 | S15: -4.449555423 | T15: 1.800033186 | U15: -6.249588609 | V15: 17.64450327 | W15: 1.153867427 | X15: -4.006146544 | Y15: -2.852279117 | Z15: 0.825 | AA15: 714.9868182 | AB15: 1.965651422 | AC15: 714.9868182
A16: 0.6246370008 | B16: 17.5 | C16: 99.5426 | D16: 1700 | E16: 0.2 | F16: 980.2321099 | G16: 0.000265849316 | H16: 0.0004311031902 | I16: 99.5426 | J16: 0.007782297727 | K16: 0.6246370008 | L16: 229260.9375 | M16: 0.0243671125 | N16: 0.7957897694 | O16: 0.7957897694 | P16: 1.414189489 | Q16: 2.293259993 | R16: 8.803110797 | S16: -3.504081776 | T16: 2.209979259 | U16: -5.714061035 | V16: 21.66292632 | W16: 1.652762266 | X16: -4.273336244 | Y16: -2.620573978 | Z16: 0.9625 | AA16: 582.3584067 | AB16: 2.293259993 | AC16: 582.3584067
A17: 0.713870858 | B17: 20 | C17: 99.5426 | D17: 1700 | E17: 0.2 | F17: 980.2321099 | G17: 0.000265849316 | H17: 0.0004311031902 | I17: 99.5426 | J17: 0.007782297727 | K17: 0.713870858 | L17: 262012.5 | M17: 0.02426426513 | N17: 1.035011845 | O17: 1.035011845 | P17: 1.616216559 | Q17: 2.620868563 | R17: 8.803110797 | S17: -2.496001985 | T17: 2.651228404 | U17: -5.147230389 | V17: 25.98819212 | W17: 2.266007183 | X17: -4.399342213 | Y17: -2.13333503 | Z17: 1.1 | AA17: 485.4353545 | AB17: 2.620868563 | AC17: 485.4353545
A18: 0.8031047153 | B18: 22.5 | C18: 99.5426 | D18: 1700 | E18: 0.2 | F18: 980.2321099 | G18: 0.000265849316 | H18: 0.0004311031902 | I18: 99.5426 | J18: 0.007782297727 | K18: 0.8031047153 | L18: 294764.0625 | M18: 0.02418257983 | N18: 1.305526982 | O18: 1.305526982 | P18: 1.818243629 | Q18: 2.948477133 | R18: 8.803110797 | S18: -1.42533607 | T18: 3.123770612 | U18: -4.549106681 | V18: 30.62020258 | W18: 3.003625588 | X18: -4.37414104 | Y18: -1.370515452 | Z18: 1.2375 | AA18: 412.0020834 | AB18: 2.948477133 | AC18: 412.0020834
A19: 0.8923385725 | B19: 25 | C19: 99.5426 | D19: 1700 | E19: 0.2 | F19: 980.2321099 | G19: 0.000265849316 | H19: 0.0004311031902 | I19: 99.5426 | J19: 0.007782297727 | K19: 0.8923385725 | L19: 327515.625 | M19: 0.0241160497 | N19: 1.607327493 | O19: 1.607327493 | P19: 2.020270699 | Q19: 3.276085704 | R19: 8.803110797 | S19: -0.2920994078 | T19: 3.627598192 | U19: -3.9196976 | V19: 35.5588823 | W19: 3.875639094 | X19: -4.187711111 | Y19: -0.3120720168 | Z19: 1.375 | AA19: 354.7801966 | AB19: 3.276085704 | AC19: 354.7801966
A20: 0.9815724298 | B20: 27.5 | C20: 99.5426 | D20: 1700 | E20: 0.2 | F20: 980.2321099 | G20: 0.000265849316 | H20: 0.0004311031902 | I20: 99.5426 | J20: 0.007782297727 | K20: 0.9815724298 | L20: 360267.1876 | M20: 0.0240607589 | N20: 1.940407277 | O20: 1.940407277 | P20: 2.222297769 | Q20: 3.603694274 | R20: 8.803110797 | S20: 0.9036958009 | T20: 4.162705046 | U20: -3.259009245 | V20: 40.80417151 | W20: 4.892067896 | X20: -3.830032233 | Y20: 1.062035663 | Z20: 1.5125 | AA20: 309.1739592 | AB20: 3.603694274 | AC20: 309.1739592
A21: 1.070806287 | B21: 30 | C21: 99.5426 | D21: 1700 | E21: 0.2 | F21: 980.2321099 | G21: 0.000265849316 | H21: 0.0004311031902 | I21: 99.5426 | J21: 0.007782297727 | K21: 1.070806287 | L21: 393018.7501 | M21: 0.02401404231 | N21: 2.304761373 | O21: 2.304761373 | P21: 2.424324839 | Q21: 3.931302845 | R21: 8.803110797 | S21: 2.162039633 | T21: 4.729086212 | U21: -2.567046579 | V21: 46.35602156 | W21: 6.062931041 | X21: -3.291085358 | Y21: 2.771845683 | Z21: 1.65 | AA21: 272.145599 | AB21: 3.931302845 | AC21: 272.145599
A22: 1.160040144 | B22: 32.5 | C22: 99.5426 | D22: 1700 | E22: 0.2 | F22: 980.2321099 | G22: 0.000265849316 | H22: 0.0004311031902 | I22: 99.5426 | J22: 0.007782297727 | K22: 1.160040144 | L22: 425770.3126 | M22: 0.02397402123 | N22: 2.700385662 | O22: 2.700385662 | P22: 2.626351909 | Q22: 4.258911415 | R22: 8.803110797 | S22: 3.48292385 | T22: 5.32673757 | U22: -1.843813721 | V22: 52.21439208 | W22: 7.398246625 | X22: -2.56085239 | Y22: 4.837394236 | Z22: 1.7875 | AA22: 241.611302 | AB22: 4.258911415 | AC22: 241.611302
A23: 1.249274002 | B23: 35 | C23: 99.5426 | D23: 1700 | E23: 0.2 | F23: 980.2321099 | G23: 0.000265849316 | H23: 0.0004311031902 | I23: 99.5426 | J23: 0.007782297727 | K23: 1.249274002 | L23: 458521.8751 | M23: 0.02393933212 | N23: 3.127276666 | O23: 3.127276666 | P23: 2.828378979 | Q23: 4.586519985 | R23: 8.803110797 | S23: 4.866341499 | T23: 5.955655645 | U23: -1.089314146 | V23: 58.37924899 | W23: 8.908031947 | X23: -1.62931603 | Y23: 7.278715917 | Z23: 1.925 | AA23: 216.0971145 | AB23: 4.586519985 | AC23: 216.0971145
A24: 1.338507859 | B24: 37.5 | C24: 99.5426 | D24: 1700 | E24: 0.2 | F24: 980.2321099 | G24: 0.000265849316 | H24: 0.0004311031902 | I24: 99.5426 | J24: 0.007782297727 | K24: 1.338507859 | L24: 491273.4376 | M24: 0.02390896068 | N24: 3.585431411 | O24: 3.585431411 | P24: 3.030406049 | Q24: 4.914128556 | R24: 8.803110797 | S24: 6.31228663 | T24: 6.61583746 | U24: -0.3035508302 | V24: 64.85056312 | W24: 10.60230362 | X24: -0.4864596638 | Y24: 10.11584396 | Z24: 2.0625 | AA24: 194.5331952 | AB24: 4.914128556 | AC24: 194.5331952
A25: 1.427741716 | B25: 40 | C25: 99.5426 | D25: 1700 | E25: 0.2 | F25: 980.2321099 | G25: 0.000265849316 | H25: 0.0004311031902 | I25: 99.5426 | J25: 0.007782297727 | K25: 1.427741716 | L25: 524025.0001 | M25: 0.02388213629 | N25: 4.07484732 | O25: 4.07484732 | P25: 3.232433118 | Q25: 5.241737126 | R25: 8.803110797 | S25: 7.820754087 | T25: 7.307280438 | U25: 0.513473649 | V25: 71.62830922 | W25: 12.49107767 | X25: 0.8777327333 | Y25: 13.36881041 | Z25: 2.2 | AA25: 176.1257161 | AB25: 5.241737126 | AC25: 176.1257161
A26: 1.516975573 | B26: 42.5 | C26: 99.5426 | D26: 1700 | E26: 0.2 | F26: 980.2321099 | G26: 0.000265849316 | H26: 0.0004311031902 | I26: 99.5426 | J26: 0.007782297727 | K26: 1.516975573 | L26: 556776.5626 | M26: 0.02385826273 | N26: 4.595522138 | O26: 4.595522138 | P26: 3.434460188 | Q26: 5.569345696 | R26: 8.803110797 | S26: 9.391739363 | T26: 8.029982326 | U26: 1.361757037 | V26: 78.71246518 | W26: 14.58436961 | X26: 2.47327667 | Y26: 17.05764628 | Z26: 2.3375 | AA26: 160.2743254 | AB26: 5.569345696 | AC26: 160.2743254
A27: 1.606209431 | B27: 45 | C27: =C26 -> 99.5426 | D27: 1700 | E27: 0.2 | F27: 980.2321099 | G27: 0.000265849316 | H27: 0.0004311031902 | I27: 99.5426 | J27: 0.007782297727 | K27: 1.606209431 | L27: 589528.1251 | M27: 0.02383687123 | N27: 5.147453875 | O27: 5.147453875 | P27: 3.636487258 | Q27: 5.896954267 | R27: 8.803110797 | S27: 11.02523848 | T27: 8.783941133 | U27: 2.241297344 | V27: 86.1030115 | W27: 16.89219449 | X27: 4.310187201 | Y27: 21.20238169 | Z27: 2.475 | AA27: 146.5173753 | AB27: 5.896954267 | AC27: 146.5173753
A28: 1.695443288 | B28: 47.5 | C28: 99.5426 | D28: 1700 | E28: 0.2 | F28: 980.2321099 | G28: 0.000265849316 | H28: 0.0004311031902 | I28: 99.5426 | J28: 0.007782297727 | K28: 1.695443288 | L28: 622279.6876 | M28: 0.02381758805 | N28: 5.730640761 | O28: 5.730640761 | P28: 3.838514328 | Q28: 6.224562837 | R28: 8.803110797 | S28: 12.72124789 | T28: 9.569155089 | U28: 3.152092801 | V28: 93.79993083 | W28: 19.42456695 | X28: 6.398478976 | Y28: 25.82304593 | Z28: 2.6125 | AA28: 134.4946328 | AB28: 6.224562837 | AC28: 134.4946328
A29: 1.784677145 | B29: 50 | C29: 99.5426 | D29: 1700 | E29: 0.2 | F29: 980.2321099 | G29: 0.000265849316 | H29: 0.0004311031902 | I29: 99.5426 | J29: 0.007782297727 | K29: 1.784677145 | L29: 655031.2501 | M29: 0.02380011144 | N29: 6.345081211 | O29: 6.345081211 | P29: 4.040541398 | Q29: 6.552171408 | R29: 8.803110797 | S29: 14.47976443 | T29: 10.38562261 | U29: 4.094141821 | V29: 101.8032076 | W29: 22.1915013 | X29: 8.748166285 | Y29: 30.93966759 | Z29: 2.75 | AA29: 123.921314 | AB29: 6.552171408 | AC29: 123.921314
A30: 1.873911002 | B30: 52.5 | C30: 99.5426 | D30: 1700 | E30: 0.2 | F30: 980.2321099 | G30: 0.000265849316 | H30: 0.0004311031902 | I30: 99.5426 | J30: 0.007782297727 | K30: 1.873911002 | L30: 687782.8126 | M30: 0.02378419501 | N30: 6.990773796 | O30: 6.990773796 | P30: 4.242568468 | Q30: 6.879779978 | R30: 8.803110797 | S30: 16.30078524 | T30: 11.23334226 | U30: 5.067442977 | V30: 110.1128279 | W30: 25.20301149 | X30: 11.36926309 | Y30: 36.57227458 | Z30: 2.8875 | AA30: 114.5696418 | AB30: 6.879779978 | AC30: 114.5696418
A31: 1.96314486 | B31: 55 | C31: 99.5426 | D31: 1700 | E31: 0.2 | F31: 980.2321099 | G31: 0.000265849316 | H31: 0.0004311031902 | I31: 99.5426 | J31: 0.007782297727 | K31: 1.96314486 | L31: 720534.3751 | M31: 0.02376963558 | N31: 7.667717224 | O31: 7.667717224 | P31: 4.444595538 | Q31: 7.207388548 | R31: 8.803110797 | S31: 18.18430774 | T31: 12.11231276 | U31: 6.071994975 | V31: 118.7287789 | W31: 28.46911119 | X31: 14.27178306 | Y31: 42.74089425 | Z31: 3.025 | AA31: 106.2555125 | AB31: 7.207388548 | AC31: 106.2555125
A32: 2.052378717 | B32: 57.5 | C32: 99.5426 | D32: 1700 | E32: 0.2 | F32: 980.2321099 | G32: 0.000265849316 | H32: 0.0004311031902 | I32: 99.5426 | J32: 0.007782297727 | K32: 2.052378717 | L32: 753285.9376 | M32: 0.02375626403 | N32: 8.375910315 | O32: 8.375910315 | P32: 4.646622608 | Q32: 7.534997119 | R32: 8.803110797 | S32: 20.13032956 | T32: 13.02253292 | U32: 7.107796637 | V32: 127.6510492 | W32: 31.99981381 | X32: 17.4657396 | Y32: 49.46555341 | Z32: 3.1625 | AA32: 98.82870004 | AB32: 7.534997119 | AC32: 98.82870004
A33: 2.141612574 | B33: 60 | C33: 99.5426 | D33: 1700 | E33: 0.2 | F33: 980.2321099 | G33: 0.000265849316 | H33: 0.0004311031902 | I33: 99.5426 | J33: 0.007782297727 | K33: 2.141612574 | L33: 786037.5001 | M33: 0.02374393842 | N33: 9.115351994 | O33: 9.115351994 | P33: 4.848649678 | Q33: 7.862605689 | R33: 8.803110797 | S33: 22.13884856 | T33: 13.96400167 | U33: 8.174846886 | V33: 136.8796282 | W33: 35.80513249 | X33: 20.96114586 | Y33: 56.76627835 | Z33: 3.3 | AA33: 92.16555757 | AB33: 7.862605689 | AC33: 92.16555757
A34: 2.230846431 | B34: 62.5 | C34: 99.5426 | D34: 1700 | E34: 0.2 | F34: 980.2321099 | G34: 0.000265849316 | H34: 0.0004311031902 | I34: 99.5426 | J34: 0.007782297727 | K34: 2.230846431 | L34: 818789.0626 | M34: 0.02373253875 | N34: 9.88604127 | O34: 9.88604127 | P34: 5.050676748 | Q34: 8.190214259 | R34: 8.803110797 | S34: 24.20986275 | T34: 14.93671802 | U34: 9.273144732 | V34: 146.4145062 | W34: 39.89508017 | X34: 24.76801478 | Y34: 64.66309495 | Z34: 3.4375 | AA34: 86.1635065 | AB34: 8.190214259 | AC34: 86.1635065
A35: 2.320080289 | B35: 65 | C35: 99.5426 | D35: 1700 | E35: 0.2 | F35: 980.2321099 | G35: 0.000265849316 | H35: 0.0004311031902 | I35: 99.5426 | J35: 0.007782297727 | K35: 2.320080289 | L35: 851540.6251 | M35: 0.02372196282 | N35: 10.68797723 | O35: 10.68797723 | P35: 5.252703818 | Q35: 8.51782283 | R35: 8.803110797 | S35: 26.34337031 | T35: 15.94068105 | U35: 10.40268926 | V35: 156.2556742 | W35: 44.27966958 | X35: 28.89635907 | Y35: 73.17602865 | Z35: 3.575 | AA35: 80.73682649 | AB35: 8.51782283 | AC35: 80.73682649
A36: 2.409314146 | B36: 67.5 | C36: 99.5426 | D36: 1700 | E36: 0.2 | F36: 980.2321099 | G36: 0.000265849316 | H36: 0.0004311031902 | I36: 99.5426 | J36: 0.007782297727 | K36: 2.409314146 | L36: 884292.1876 | M36: 0.02371212306 | N36: 11.52115904 | O36: 11.52115904 | P36: 5.454730887 | Q36: 8.8454314 | R36: 8.803110797 | S36: 28.53936957 | T36: 16.97588993 | U36: 11.56347964 | V36: 166.403124 | W36: 48.96891325 | X36: 33.35619127 | Y36: 82.32510452 | Z36: 3.7125 | AA36: 75.81340393 | AB36: 8.8454314 | AC36: 75.81340393
A37: 2.498548003 | B37: 70 | C37: 99.5426 | D37: 1700 | E37: 0.2 | F37: 980.2321099 | G37: 0.000265849316 | H37: 0.0004311031902 | I37: 99.5426 | J37: 0.007782297727 | K37: 2.498548003 | L37: 917043.7501 | M37: 0.02370294398 | N37: 12.38558591 | O37: 12.38558591 | P37: 5.656757957 | Q37: 9.173039971 | R37: 8.803110797 | S37: 30.79785895 | T37: 18.04234386 | U37: 12.75551508 | V37: 176.8568479 | W37: 53.97282353 | X37: 38.15752375 | Y37: 92.13034727 | Z37: 3.85 | AA37: 71.33219551 | AB37: 9.173039971 | AC37: 71.33219551
A38: 2.58778186 | B38: 72.5 | C38: 99.5426 | D38: 1700 | E38: 0.2 | F38: 980.2321099 | G38: 0.000265849316 | H38: 0.0004311031902 | I38: 99.5426 | J38: 0.007782297727 | K38: 2.58778186 | L38: 949795.3126 | M38: 0.02369436015 | N38: 13.28125711 | O38: 13.28125711 | P38: 5.858785027 | Q38: 9.500648541 | R38: 8.803110797 | S38: 33.11883699 | T38: 19.14004214 | U38: 13.97879486 | V38: 187.6168389 | W38: 59.30141261 | X38: 43.31036868 | Y38: 102.6117813 | Z38: 3.9875 | AA38: 67.24123127 | AB38: 9.500648541 | AC38: 67.24123127
A39: 2.677015718 | B39: 75 | C39: 99.5426 | D39: 1700 | E39: 0.2 | F39: 980.2321099 | G39: 0.000265849316 | H39: 0.0004311031902 | I39: 99.5426 | J39: 0.007782297727 | K39: 2.677015718 | L39: 982546.8751 | M39: 0.02368631456 | N39: 14.20817197 | O39: 14.20817197 | P39: 6.060812097 | Q39: 9.828257111 | R39: 8.803110797 | S39: 35.50230236 | T39: 20.26898407 | U39: 15.23331829 | V39: 198.6830902 | W39: 64.96469253 | X39: 48.8247381 | Y39: 113.7894306 | Z39: 4.125 | AA39: 63.49602899 | AB39: 9.828257111 | AC39: 63.49602899
A40: 2.766249575 | B40: 77.5 | C40: 99.5426 | D40: 1700 | E40: 0.2 | F40: 980.2321099 | G40: 0.000265849316 | H40: 0.0004311031902 | I40: 99.5426 | J40: 0.007782297727 | K40: 2.766249575 | L40: 1015298.438 | M40: 0.02367875732 | N40: 15.16632986 | O40: 15.16632986 | P40: 6.262839167 | Q40: 10.15586568 | R40: 8.803110797 | S40: 37.94825377 | T40: 21.42916902 | U40: 16.51908474 | V40: 210.0555957 | W40: 70.97267519 | X40: 54.71064391 | Y40: 125.6833191 | Z40: 4.2625 | AA40: 60.0583251 | AB40: 10.15586568 | AC40: 60.0583251
A41: 2.855483432 | B41: 80 | C41: 99.5426 | D41: 1700 | E41: 0.2 | F41: 980.2321099 | G41: 0.000265849316 | H41: 0.0004311031902 | I41: 99.5426 | J41: 0.007782297727 | K41: 2.855483432 | L41: 1048050 | M41: 0.02367164458 | N41: 16.15573017 | O41: 16.15573017 | P41: 6.464866237 | Q41: 10.48347425 | R41: 8.803110797 | S41: 40.45669004 | T41: 22.62059641 | U41: 17.83609363 | V41: 221.7343495 | W41: 77.33537234 | X41: 60.97809787 | Y41: 138.3134702 | Z41: 4.4 | AA41: 56.8950516 | AB41: 10.48347425 | AC41: 56.8950516
A42: 2.944717289 | B42: 82.5 | C42: 99.5426 | D42: 1700 | E42: 0.2 | F42: 980.2321099 | G42: 0.000265849316 | H42: 0.0004311031902 | I42: 99.5426 | J42: 0.007782297727 | K42: 2.944717289 | L42: 1080801.563 | M42: 0.02366493759 | N42: 17.17637236 | O42: 17.17637236 | P42: 6.666893307 | Q42: 10.81108282 | R42: 8.803110797 | S42: 43.02761005 | T42: 23.84326566 | U42: 19.18434438 | V42: 233.7193461 | W42: 84.06279561 | X42: 67.63711161 | Y42: 151.6999072 | Z42: 4.5375 | AA42: 53.97750535 | AB42: 10.81108282 | AC42: 53.97750535
A43: 3.033951147 | B43: 85 | C43: =C42 -> 99.5426 | D43: 1700 | E43: 0.2 | F43: 980.2321099 | G43: 0.000265849316 | H43: 0.0004311031902 | I43: 99.5426 | J43: 0.007782297727 | K43: 3.033951147 | L43: 1113553.125 | M43: 0.02365860206 | N43: 18.22825589 | O43: 18.22825589 | P43: 6.868920377 | Q43: 11.13869139 | R43: 8.803110797 | S43: 45.66101275 | T43: 25.09717627 | U43: 20.56383649 | V43: 246.0105805 | W43: 91.16495652 | X43: 74.69769664 | Y43: 165.8626532 | Z43: 4.675 | AA43: 51.28066944 | AB43: 11.13869139 | AC43: 51.28066944
A44: 3.123185004 | B44: 87.5 | C44: 99.5426 | D44: 1700 | E44: 0.2 | F44: 980.2321099 | G44: 0.000265849316 | H44: 0.0004311031902 | I44: 99.5426 | J44: 0.007782297727 | K44: 3.123185004 | L44: 1146304.688 | M44: 0.02365260745 | N44: 19.31138027 | O44: 19.31138027 | P44: 7.070947447 | Q44: 11.46629996 | R44: 8.803110797 | S44: 48.35689716 | T44: 26.38232772 | U44: 21.97456944 | V44: 258.6080477 | W44: 98.65186647 | X44: 82.16986436 | Y44: 180.8217308 | Z44: 4.8125 | AA44: 48.78265533 | AB44: 11.46629996 | AC44: 48.78265533
A45: 3.212418861 | B45: 90 | C45: 99.5426 | D45: 1700 | E45: 0.2 | F45: 980.2321099 | G45: 0.000265849316 | H45: 0.0004311031902 | I45: 99.5426 | J45: 0.007782297727 | K45: 3.212418861 | L45: 1179056.25 | M45: 0.02364692653 | N45: 20.42574504 | O45: 20.42574504 | P45: 7.272974517 | Q45: 11.79390853 | R45: 8.803110797 | S45: 51.11526233 | T45: 27.69871956 | U45: 23.41654278 | V45: 271.5117431 | W45: 106.5335368 | X45: 90.06362607 | Y45: 196.5971628 | Z45: 4.95 | AA45: 46.46424169 | AB45: 11.79390853 | AC45: 46.46424169
A46: 3.301652718 | B46: 92.5 | C46: 99.5426 | D46: 1700 | E46: 0.2 | F46: 980.2321099 | G46: 0.000265849316 | H46: 0.0004311031902 | I46: 99.5426 | J46: 0.007782297727 | K46: 3.301652718 | L46: 1211807.813 | M46: 0.0236415349 | N46: 21.57134975 | O46: 21.57134975 | P46: 7.475001587 | Q46: 12.1215171 | R46: 8.803110797 | S46: 53.93610739 | T46: 29.04635134 | U46: 24.88975606 | V46: 284.7216626 | W46: 114.8199786 | X46: 98.38899296 | Y46: 213.2089715 | Z46: 5.0875 | AA46: 44.30849111 | AB46: 12.1215171 | AC46: 44.30849111
A47: 3.390886576 | B47: 95 | C47: 99.5426 | D47: 1700 | E47: 0.2 | F47: 980.2321099 | G47: 0.000265849316 | H47: 0.0004311031902 | I47: 99.5426 | J47: 0.007782297727 | K47: 3.390886576 | L47: 1244559.375 | M47: 0.02363641065 | N47: 22.74819398 | O47: 22.74819398 | P47: 7.677028656 | Q47: 12.44912567 | R47: 8.803110797 | S47: 56.8194315 | T47: 30.42522264 | U47: 26.39420886 | V47: 298.2378018 | W47: 123.521203 | X47: 107.1559761 | Y47: 230.6771792 | Z47: 5.225 | AA47: 42.30042999 | AB47: 12.44912567 | AC47: 42.30042999
A48: 3.480120433 | B48: 97.5 | C48: 99.5426 | D48: 1700 | E48: 0.2 | F48: 980.2321099 | G48: 0.000265849316 | H48: 0.0004311031902 | I48: 99.5426 | J48: 0.007782297727 | K48: 3.480120433 | L48: 1277310.938 | M48: 0.02363153406 | N48: 23.95627734 | O48: 23.95627734 | P48: 7.879055726 | Q48: 12.77673424 | R48: 8.803110797 | S48: 59.76523385 | T48: 31.83533306 | U48: 27.92990079 | V48: 312.060157 | W48: 132.6472211 | X48: 116.3745866 | Y48: 249.0218077 | Z48: 5.3625 | AA48: 40.42677981 | AB48: 12.77673424 | AC48: 40.42677981
A49: 3.56935429 | B49: 100 | C49: 99.5426 | D49: 1700 | E49: 0.2 | F49: 980.2321099 | G49: 0.000265849316 | H49: 0.0004311031902 | I49: 99.5426 | J49: 0.007782297727 | K49: 3.56935429 | L49: 1310062.5 | M49: 0.02362688729 | N49: 25.19559944 | O49: 25.19559944 | P49: 8.081082796 | Q49: 13.10434282 | R49: 8.803110797 | S49: 62.7735137 | T49: 33.27668224 | U49: 29.49683146 | V49: 326.1887244 | W49: 142.2080438 | X49: 126.0548353 | Y49: 268.262879 | Z49: 5.5 | AA49: 38.67573068 | AB49: 13.10434282 | AC49: 38.67573068
A50: 3.658588147 | B50: 102.5 | C50: 99.5426 | D50: 1700 | E50: 0.2 | F50: 980.2321099 | G50: 0.000265849316 | H50: 0.0004311031902 | I50: 99.5426 | J50: 0.007782297727 | K50: 3.658588147 | L50: 1342814.063 | M50: 0.02362245422 | N50: 26.46615993 | O50: 26.46615993 | P50: 8.283109866 | Q50: 13.43195139 | R50: 8.803110797 | S50: 65.84427032 | T50: 34.7492698 | U50: 31.09500052 | V50: 340.6235005 | W50: 152.2136818 | X50: 136.206733 | Y50: 288.4204149 | Z50: 5.6375 | AA50: 37.03674948 | AB50: 13.43195139 | AC50: 37.03674948
A51: 3.747822005 | B51: 105 | C51: 99.5426 | D51: 1700 | E51: 0.2 | F51: 980.2321099 | G51: 0.000265849316 | H51: 0.0004311031902 | I51: 99.5426 | J51: 0.007782297727 | K51: 3.747822005 | L51: 1375565.625 | M51: 0.02361822019 | N51: 27.76795847 | O51: 27.76795847 | P51: 8.485136936 | Q51: 13.75955996 | R51: 8.803110797 | S51: 68.97750303 | T51: 36.2530954 | U51: 32.72440763 | V51: 355.364482 | W51: 162.674146 | X51: 146.8402906 | Y51: 309.5144367 | Z51: 5.775 | AA51: 35.50041688 | AB51: 13.75955996 | AC51: 35.50041688
A52: 3.837055862 | B52: 107.5 | C52: 99.5426 | D52: 1700 | E52: 0.2 | F52: 980.2321099 | G52: 0.000265849316 | H52: 0.0004311031902 | I52: 99.5426 | J52: 0.007782297727 | K52: 3.837055862 | L52: 1408317.188 | M52: 0.02361417187 | N52: 29.10099472 | O52: 29.10099472 | P52: 8.687164006 | Q52: 14.08716853 | R52: 8.803110797 | S52: 72.17321118 | T52: 37.78815873 | U52: 34.38505245 | V52: 370.4116656 | W52: 173.5994471 | X52: 157.9655187 | Y52: 331.5649659 | Z52: 5.9125 | AA52: 34.05828819 | AB52: 14.08716853 | AC52: 34.05828819
A53: 3.926289719 | B53: 110 | C53: 99.5426 | D53: 1700 | E53: 0.2 | F53: 980.2321099 | G53: 0.000265849316 | H53: 0.0004311031902 | I53: 99.5426 | J53: 0.007782297727 | K53: 3.926289719 | L53: 1441068.75 | M53: 0.02361029711 | N53: 30.46526838 | O53: 30.46526838 | P53: 8.889191076 | Q53: 14.4147771 | R53: 8.803110797 | S53: 75.43139413 | T53: 39.35445945 | U53: 36.07693468 | V53: 385.7650483 | W53: 184.9995957 | X53: 169.592428 | Y53: 354.5920237 | Z53: 6.05 | AA53: 32.70277417 | AB53: 14.4147771 | AC53: 32.70277417
A54: 4.015523576 | B54: 112.5 | C54: 99.5426 | D54: 1700 | E54: 0.2 | F54: 980.2321099 | G54: 0.000265849316 | H54: 0.0004311031902 | I54: 99.5426 | J54: 0.007782297727 | K54: 4.015523576 | L54: 1473820.313 | M54: 0.02360658479 | N54: 31.86077914 | O54: 31.86077914 | P54: 9.091218146 | Q54: 14.74238567 | R54: 8.803110797 | S54: 78.7520513 | T54: 40.95199729 | U54: 37.80005401 | V54: 401.4246271 | W54: 196.8846024 | X54: 181.7310289 | Y54: 378.6156313 | Z54: 6.1875 | AA54: 31.42703861 | AB54: 14.74238567 | AC54: 31.42703861
A55: 4.104757434 | B55: 115 | C55: 99.5426 | D55: 1700 | E55: 0.2 | F55: 980.2321099 | G55: 0.000265849316 | H55: 0.0004311031902 | I55: 99.5426 | J55: 0.007782297727 | K55: 4.104757434 | L55: 1506571.875 | M55: 0.02360302475 | N55: 33.28752673 | O55: 33.28752673 | P55: 9.293245216 | Q55: 15.06999424 | R55: 8.803110797 | S55: 82.13518212 | T55: 42.58077195 | U55: 39.55441017 | V55: 417.3903993 | W55: 209.2644775 | X55: 194.391332 | Y55: 403.6558096 | Z55: 6.325 | AA55: 30.22491 | AB55: 15.06999424 | AC55: 30.22491
A56: 4.193991291 | B56: 117.5 | C56: 99.5426 | D56: 1700 | E56: 0.2 | F56: 980.2321099 | G56: 0.000265849316 | H56: 0.0004311031902 | I56: 99.5426 | J56: 0.007782297727 | K56: 4.193991291 | L56: 1539323.438 | M56: 0.02359960764 | N56: 34.74551087 | O56: 34.74551087 | P56: 9.495272286 | Q56: 15.39760281 | R56: 8.803110797 | S56: 85.58078603 | T56: 44.24078315 | U56: 41.34000288 | V56: 433.6623621 | W56: 222.1492316 | X56: 207.5833478 | Y56: 429.7325794 | Z56: 6.4625 | AA56: 29.0908051 | AB56: 15.39760281 | AC56: 29.0908051
A57: 4.283225148 | B57: 120 | C57: 99.5426 | D57: 1700 | E57: 0.2 | F57: 980.2321099 | G57: 0.000265849316 | H57: 0.0004311031902 | I57: 99.5426 | J57: 0.007782297727 | K57: 4.283225148 | L57: 1572075 | M57: 0.02359632489 | N57: 36.23473129 | O57: 36.23473129 | P57: 9.697299355 | Q57: 15.72521138 | R57: 8.803110797 | S57: 89.08886251 | T57: 45.93203064 | U57: 43.15683187 | V57: 450.2405131 | W57: 235.5488751 | X57: 221.3170865 | Y57: 456.8659616 | Z57: 6.6 | AA57: 28.01966258 | AB57: 15.72521138 | AC57: 28.01966258
A58: 4.372459005 | B58: 122.5 | C58: 99.5426 | D58: 1700 | E58: 0.2 | F58: 980.2321099 | G58: 0.000265849316 | H58: 0.0004311031902 | I58: 99.5426 | J58: 0.007782297727 | K58: 4.372459005 | L58: 1604826.563 | M58: 0.02359316859 | N58: 37.75518774 | O58: 37.75518774 | P58: 9.899326425 | Q58: 16.05281995 | R58: 8.803110797 | S58: 92.65941106 | T58: 47.65451417 | U58: 45.00489689 | V58: 467.1248497 | W58: 249.4734182 | X58: 235.6025585 | Y58: 485.0759767 | Z58: 6.7375 | AA58: 27.00688534 | AB58: 16.05281995 | AC58: 27.00688534
A59: 4.461692863 | B59: 125 | C59: =C58 -> 99.5426 | D59: 1700 | E59: 0.2 | F59: 980.2321099 | G59: 0.000265849316 | H59: 0.0004311031902 | I59: 99.5426 | J59: 0.007782297727 | K59: 4.461692863 | L59: 1637578.125 | M59: 0.02359013145 | N59: 39.30687999 | O59: 39.30687999 | P59: 10.1013535 | Q59: 16.38042852 | R59: 8.803110797 | S59: 96.29243119 | T59: 49.40823348 | U59: 46.88419771 | V59: 484.3153695 | W59: 263.9328712 | X59: 250.4497741 | Y59: 514.3826453 | Z59: 6.875 | AA59: 26.04829012 | AB59: 16.38042852 | AC59: 26.04829012
A60: 4.55092672 | B60: 127.5 | C60: 99.5426 | D60: 1700 | E60: 0.2 | F60: 980.2321099 | G60: 0.000265849316 | H60: 0.0004311031902 | I60: 99.5426 | J60: 0.007782297727 | K60: 4.55092672 | L60: 1670329.688 | M60: 0.02358720675 | N60: 40.88980779 | O60: 40.88980779 | P60: 10.30338057 | Q60: 16.70803709 | R60: 8.803110797 | S60: 99.98792244 | T60: 51.19318836 | U60: 48.79473408 | V60: 501.8120704 | W60: 278.9372443 | X60: 265.8687434 | Y60: 544.8059877 | Z60: 7.0125 | AA60: 25.14006338 | AB60: 16.70803709 | AC60: 25.14006338
A61: 4.640160577 | B61: 130 | C61: 99.5426 | D61: 1700 | E61: 0.2 | F61: 980.2321099 | G61: 0.000265849316 | H61: 0.0004311031902 | I61: 99.5426 | J61: 0.007782297727 | K61: 4.640160577 | L61: 1703081.25 | M61: 0.02358438824 | N61: 42.50397093 | O61: 42.50397093 | P61: 10.50540764 | Q61: 17.03564566 | R61: 8.803110797 | S61: 103.7458844 | T61: 53.00937857 | U61: 50.73650579 | V61: 519.61495 | W61: 294.4965476 | X61: 281.8694766 | Y61: 576.3660242 | Z61: 7.15 | AA61: 24.27872265 | AB61: 17.03564566 | AC61: 24.27872265
A62: 4.729394434 | B62: 132.5 | C62: 99.5426 | D62: 1700 | E62: 0.2 | F62: 980.2321099 | G62: 0.000265849316 | H62: 0.0004311031902 | I62: 99.5426 | J62: 0.007782297727 | K62: 4.729394434 | L62: 1735832.813 | M62: 0.02358167015 | N62: 44.14936919 | O62: 44.14936919 | P62: 10.7074347 | Q62: 17.36325423 | R62: 8.803110797 | S62: 107.5663165 | T62: 54.8568039 | U62: 52.70951263 | V62: 537.7240063 | W62: 310.6207913 | X62: 298.4619839 | Y62: 609.0827752 | Z62: 7.2875 | AA62: 23.46108246 | AB62: 17.36325423 | AC62: 23.46108246
A63: 4.818628292 | B63: 135 | C63: 99.5426 | D63: 1700 | E63: 0.2 | F63: 980.2321099 | G63: 0.000265849316 | H63: 0.0004311031902 | I63: 99.5426 | J63: 0.007782297727 | K63: 4.818628292 | L63: 1768584.375 | M63: 0.02357904713 | N63: 45.82600237 | O63: 45.82600237 | P63: 10.90946177 | Q63: 17.6908628 | R63: 8.803110797 | S63: 111.4492185 | T63: 56.73546414 | U63: 54.71375437 | V63: 556.1392372 | W63: 327.3199854 | X63: 315.6562752 | Y63: 642.9762606 | Z63: 7.425 | AA63: 22.6842244 | AB63: 17.6908628 | AC63: 22.6842244
A64: 4.907862149 | B64: 137.5 | C64: 99.5426 | D64: 1700 | E64: 0.2 | F64: 980.2321099 | G64: 0.000265849316 | H64: 0.0004311031902 | I64: 99.5426 | J64: 0.007782297727 | K64: 4.907862149 | L64: 1801335.938 | M64: 0.02357651417 | N64: 47.53387025 | O64: 47.53387025 | P64: 11.11148884 | Q64: 18.01847137 | R64: 8.803110797 | S64: 115.3945899 | T64: 58.64535909 | U64: 56.74923082 | V64: 574.8606408 | W64: 344.60414 | X64: 333.4623606 | Y64: 678.0665006 | Z64: 7.5625 | AA64: 21.94547053 | AB64: 18.01847137 | AC64: 21.94547053
A65: 4.997096006 | B65: 140 | C65: 99.5426 | D65: 1700 | E65: 0.2 | F65: 980.2321099 | G65: 0.000265849316 | H65: 0.0004311031902 | I65: 99.5426 | J65: 0.007782297727 | K65: 4.997096006 | L65: 1834087.5 | M65: 0.02357406665 | N65: 49.27297265 | O65: 49.27297265 | P65: 11.31351591 | Q65: 18.34607994 | R65: 8.803110797 | S65: 119.4024304 | T65: 60.58648857 | U65: 58.8159418 | V65: 593.8882152 | W65: 362.4832649 | X65: 351.8902501 | Y65: 714.373515 | Z65: 7.7 | AA65: 21.24235998 | AB65: 18.34607994 | AC65: 21.24235998
A66: 5.086329863 | B66: 142.5 | C66: 99.5426 | D66: 1700 | E66: 0.2 | F66: 980.2321099 | G66: 0.000265849316 | H66: 0.0004311031902 | I66: 99.5426 | J66: 0.007782297727 | K66: 5.086329863 | L66: 1866839.063 | M66: 0.02357170024 | N66: 51.04330939 | O66: 51.04330939 | P66: 11.51554298 | Q66: 18.67368851 | R66: 8.803110797 | S66: 123.4727395 | T66: 62.55885237 | U66: 60.9138871 | V66: 613.2219586 | W66: 380.9673702 | X66: 370.9499535 | Y66: 751.9173237 | Z66: 7.8375 | AA66: 20.57262803 | AB66: 18.67368851 | AC66: 20.57262803
A67: 5.175563721 | B67: 145 | C67: 99.5426 | D67: 1700 | E67: 0.2 | F67: 980.2321099 | G67: 0.000265849316 | H67: 0.0004311031902 | I67: 99.5426 | J67: 0.007782297727 | K67: 5.175563721 | L67: 1899590.625 | M67: 0.02356941092 | N67: 52.84488028 | O67: 52.84488028 | P67: 11.71757005 | Q67: 19.00129708 | R67: 8.803110797 | S67: 127.6055169 | T67: 64.56245033 | U67: 63.04306656 | V67: 632.8618691 | W67: 400.0664657 | X67: 390.6514808 | Y67: 790.7179465 | Z67: 7.975 | AA67: 19.93418765 | AB67: 19.00129708 | AC67: 19.93418765
A68: 5.264797578 | B68: 147.5 | C68: 99.5426 | D68: 1700 | E68: 0.2 | F68: 980.2321099 | G68: 0.000265849316 | H68: 0.0004311031902 | I68: 99.5426 | J68: 0.007782297727 | K68: 5.264797578 | L68: 1932342.188 | M68: 0.0235671949 | N68: 54.67768514 | O68: 54.67768514 | P68: 11.91959712 | Q68: 19.32890565 | R68: 8.803110797 | S68: 131.8007623 | T68: 66.59728226 | U68: 65.20348 | V68: 652.8079451 | W68: 419.7905613 | X68: 411.0048419 | Y68: 830.7954031 | Z68: 8.1125 | AA68: 19.32511292 | AB68: 19.32890565 | AC68: 19.32511292
A69: 5.354031435 | B69: 150 | C69: 99.5426 | D69: 1700 | E69: 0.2 | F69: 980.2321099 | G69: 0.000265849316 | H69: 0.0004311031902 | I69: 99.5426 | J69: 0.007782297727 | K69: 5.354031435 | L69: 1965093.75 | M69: 0.02356504867 | N69: 56.54172381 | O69: 56.54172381 | P69: 12.12162419 | Q69: 19.65651422 | R69: 8.803110797 | S69: 136.0584752 | T69: 68.66334801 | U69: 67.39512724 | V69: 673.0601849 | W69: 440.1496667 | X69: 432.0200464 | Y69: 872.1697131 | Z69: 8.25 | AA69: 18.74362433 | AB69: 19.65651422 | AC69: 18.74362433
A70: 5.443265292 | B70: 152.5 | C70: 99.5426 | D70: 1700 | E70: 0.2 | F70: 980.2321099 | G70: 0.000265849316 | H70: 0.0004311031902 | I70: 99.5426 | J70: 0.007782297727 | K70: 5.443265292 | L70: 1997845.313 | M70: 0.02356296892 | N70: 58.43699613 | O70: 58.43699613 | P70: 12.32365126 | Q70: 19.98412279 | R70: 8.803110797 | S70: 140.3786555 | T70: 70.7606474 | U70: 69.61800813 | V70: 693.618587 | W70: 461.1537918 | X70: 453.7071043 | Y70: 914.8608961 | Z70: 8.3875 | AA70: 18.18807554 | AB70: 19.98412279 | AC70: 18.18807554
A71: 5.53249915 | B71: 155 | C71: 99.5426 | D71: 1700 | E71: 0.2 | F71: 980.2321099 | G71: 0.000265849316 | H71: 0.0004311031902 | I71: 99.5426 | J71: 0.007782297727 | K71: 5.53249915 | L71: 2030596.875 | M71: 0.02356095257 | N71: 60.36350194 | O71: 60.36350194 | P71: 12.52567833 | Q71: 20.31173136 | R71: 8.803110797 | S71: 144.7613028 | T71: 72.88918028 | U71: 71.87212251 | V71: 714.4831497 | W71: 482.8129463 | X71: 476.0760252 | Y71: 958.8889714 | Z71: 8.525 | AA71: 17.65694161 | AB71: 20.31173136 | AC71: 17.65694161
A72: 5.621733007 | B72: 157.5 | C72: 99.5426 | D72: 1700 | E72: 0.2 | F72: 980.2321099 | G72: 0.000265849316 | H72: 0.0004311031902 | I72: 99.5426 | J72: 0.007782297727 | K72: 5.621733007 | L72: 2063348.438 | M72: 0.0235589967 | N72: 62.32124108 | O72: 62.32124108 | P72: 12.7277054 | Q72: 20.63933993 | R72: 8.803110797 | S72: 149.2064167 | T72: 75.04894649 | U72: 74.15747022 | V72: 735.6538716 | W72: 505.1371398 | X72: 499.1368188 | Y72: 1004.273959 | Z72: 8.6625 | AA72: 17.14880835 | AB72: 20.63933993 | AC72: 17.14880835
A73: 5.710966864 | B73: 160 | C73: 99.5426 | D73: 1700 | E73: 0.2 | F73: 980.2321099 | G73: 0.000265849316 | H73: 0.0004311031902 | I73: 99.5426 | J73: 0.007782297727 | K73: 5.710966864 | L73: 2096100 | M73: 0.0235570986 | N73: 64.31021341 | O73: 64.31021341 | P73: 12.92973247 | Q73: 20.9669485 | R73: 8.803110797 | S73: 153.713997 | T73: 77.23994589 | U73: 76.47405112 | V73: 757.1307513 | W73: 528.1363821 | X73: 522.8994948 | Y73: 1051.035877 | Z73: 8.8 | AA73: 16.66236279 | AB73: 20.9669485 | AC73: 16.66236279
A74: 5.800200721 | B74: 162.5 | C74: 99.5426 | D74: 1700 | E74: 0.2 | F74: 980.2321099 | G74: 0.000265849316 | H74: 0.0004311031902 | I74: 99.5426 | J74: 0.007782297727 | K74: 5.800200721 | L74: =(F74*K74*I74)/G74/1000 -> 2128851.563 | M74: =(1.14-2*LOG((E74/1000)/(I74/1000)+(21.25/L74^0.9)))^-2 -> 0.02355525569 | N74: =(0.5*F74*K74^2*D74/(I74/1000)*M74/100000) -> 66.33041878 | O74: =(0.5*F74*K74^2*D74/(I74/1000)*M74/100000) -> 66.33041878 | P74: 13.13175954 | Q74: 21.29455707 | R74: 8.803110797 | S74: 158.2840434 | T74: 79.46217833 | U74: 78.82186506 | V74: =T74*(F74/100) -> 778.9137872 | W74: =T74/3600/C$3*B74*100 -> 551.8206828 | X74: =U74/3600/C$3*B74*100 -> 547.3740629 | Y74: 1099.194746 | Z74: 8.9375 | AA74: 16.19638458 | AB74: 21.29455707 | AC74: =AA74 -> 16.19638458
A75: =B75/J75/3600 -> 5.889434579 | B75: 165 | C75: =C74 -> 99.5426 | D75: 1700 | E75: 0.2 | F75: 980.2321099 | G75: 0.000265849316 | H75: 0.0004311031902 | I75: 99.5426 | J75: 0.007782297727 | K75: 5.889434579 | L75: 2161603.125 | M75: 0.02355346557 | N75: 68.38185705 | O75: 68.38185705 | P75: 13.33378661 | Q75: =(B75/3600)*H75/2/PI()/G$4/0.000000000001*(LN(G$3/(C75/2000))+C$4)/100000 -> 21.62216564 | R75: 8.803110797 | S75: =O75+N75+P75+Q75-R75 -> 162.9165556 | T75: =N75+P75 -> 81.71564367 | U75: =O75+Q75-R75 -> 81.2009119 | V75: 801.0029781 | W75: 576.2000515 | X75: 572.5705326 | Y75: =X75+W75 -> 1148.770584 | Z75: 9.075 | AA75: 15.74973827 | AB75: =Q75 -> 21.62216564 | AC75: 15.74973827
A76: 5.978668436 | B76: =B75+2.5 -> 167.5 | C76: 99.5426 | D76: 1700 | E76: 0.2 | F76: 980.2321099 | G76: 0.000265849316 | H76: 0.0004311031902 | I76: 99.5426 | J76: =PI()*(I76/2000)^2 -> 0.007782297727 | K76: =B76/J76/3600 -> 5.978668436 | L76: 2194354.688 | M76: 0.02355172595 | N76: 70.46452809 | O76: 70.46452809 | P76: =(B76/3600)*G76/2/PI()/G$4/0.000000000001*(LN(G$3/(C76/2000))+C$4)/100000 -> 13.53581368 | Q76: 21.94977422 | R76: =R75 -> 8.803110797 | S76: 167.6115333 | T76: 84.00034178 | U76: 83.61119151 | V76: 823.3983226 | W76: 601.2844978 | X76: 598.4989136 | Y76: 1199.783411 | Z76: =B76*(C$1-C$2)*1.1/1000 -> 9.2125 | AA76: =Z76/(W76/1000) -> 15.32136623 | AB76: 21.94977422 | AC76: 15.32136623
A77: 6.067902293 | B77: 170 | C77: 99.5426 | D77: 1700 | E77: 0.2 | F77: 980.2321099 | G77: 0.000265849316 | H77: 0.0004311031902 | I77: 99.5426 | J77: 0.007782297727 | K77: 6.067902293 | L77: 2227106.25 | M77: 0.0235500347 | N77: 72.57843177 | O77: 72.57843177 | P77: 13.73784075 | Q77: 22.27738279 | R77: 8.803110797 | S77: 172.3689763 | T77: 86.31627252 | U77: 86.05270376 | V77: 846.0998194 | W77: 627.0840311 | X77: 625.1692153 | Y77: 1252.253246 | Z77: 9.35 | AA77: 14.91028241 | AB77: 22.27738279 | AC77: 14.91028241
A78: 6.15713615 | B78: 172.5 | C78: 99.5426 | D78: 1700 | E78: 0.2 | F78: 980.2321099 | G78: 0.000265849316 | H78: 0.0004311031902 | I78: 99.5426 | J78: 0.007782297727 | K78: 6.15713615 | L78: 2259857.813 | M78: 0.0235483898 | N78: 74.72356795 | O78: 74.72356795 | P78: 13.93986782 | Q78: 22.60499136 | R78: 8.803110797 | S78: 177.1888843 | T78: 88.66343577 | U78: 88.52544851 | V78: 869.1074672 | W78: 653.6086611 | X78: 652.5914473 | Y78: 1306.200108 | Z78: 9.4875 | AA78: 14.51556652 | AB78: 22.60499136 | AC78: 14.51556652
A79: 6.246370008 | B79: 175 | C79: 99.5426 | D79: 1700 | E79: 0.2 | F79: 980.2321099 | G79: 0.000265849316 | H79: 0.0004311031902 | I79: 99.5426 | J79: 0.007782297727 | K79: 6.246370008 | L79: 2292609.375 | M79: 0.02354678932 | N79: 76.89993651 | O79: 76.89993651 | P79: 14.14189489 | Q79: 22.93259993 | R79: 8.803110797 | S79: 182.071257 | T79: 91.04183141 | U79: 91.02942564 | V79: 892.4212649 | W79: 680.8683973 | X79: 680.7756191 | Y79: 1361.644016 | Z79: 9.625 | AA79: 14.13635886 | AB79: 22.93259993 | AC79: 14.13635886
A80: 6.335603865 | B80: 177.5 | C80: 99.5426 | D80: 1700 | E80: 0.2 | F80: 980.2321099 | G80: 0.000265849316 | H80: 0.0004311031902 | I80: 99.5426 | J80: 0.007782297727 | K80: 6.335603865 | L80: 2325360.938 | M80: 0.02354523147 | N80: 79.10753734 | O80: 79.10753734 | P80: 14.34392196 | Q80: 23.2602085 | R80: 8.803110797 | S80: 187.0160943 | T80: 93.4514593 | U80: 93.56463504 | V80: 916.0412113 | W80: 708.873249 | X80: 709.7317401 | Y80: 1418.604989 | Z80: 9.7625 | AA80: 13.77185557 | AB80: 23.2602085 | AC80: 13.77185557
A81: 6.424837722 | B81: 180 | C81: 99.5426 | D81: 1700 | E81: 0.2 | F81: 980.2321099 | G81: 0.000265849316 | H81: 0.0004311031902 | I81: 99.5426 | J81: 0.007782297727 | K81: 6.424837722 | L81: 2358112.5 | M81: 0.02354371454 | N81: 81.3463703 | O81: 81.3463703 | P81: 14.54594903 | Q81: 23.58781707 | R81: 8.803110797 | S81: 192.0233959 | T81: 95.89231934 | U81: 96.13107657 | V81: 939.9673051 | W81: 737.6332257 | X81: 739.4698198 | Y81: 1477.103045 | Z81: 9.9 | AA81: 13.42130432 | AB81: 23.58781707 | AC81: 13.42130432
A82: 6.514071579 | B82: 182.5 | C82: 99.5426 | D82: 1700 | E82: 0.2 | F82: 980.2321099 | G82: 0.000265849316 | H82: 0.0004311031902 | I82: 99.5426 | J82: 0.007782297727 | K82: 6.514071579 | L82: 2390864.063 | M82: 0.0235422369 | N82: 83.6164353 | O82: 83.6164353 | P82: 14.7479761 | Q82: 23.91542564 | R82: 8.803110797 | S82: 197.0931615 | T82: 98.3644114 | U82: 98.72875014 | V82: 964.1995453 | W82: 767.1583368 | X82: 769.9998676 | Y82: 1537.158204 | Z82: 10.0375 | AA82: 13.08400042 | AB82: 23.91542564 | AC82: 13.08400042
A83: 6.603305437 | B83: 185 | C83: 99.5426 | D83: 1700 | E83: 0.2 | F83: 980.2321099 | G83: 0.000265849316 | H83: 0.0004311031902 | I83: 99.5426 | J83: 0.007782297727 | K83: 6.603305437 | L83: 2423615.625 | M83: 0.02354079703 | N83: 85.91773221 | O83: 85.91773221 | P83: 14.95000317 | Q83: 24.24303421 | R83: 8.803110797 | S83: 202.225391 | T83: 100.8677354 | U83: 101.3576556 | V83: 988.7379308 | W83: 797.4585917 | X83: 801.3318928 | Y83: 1598.790484 | Z83: 10.175 | AA83: 12.75928318 | AB83: 24.24303421 | AC83: 12.75928318
A84: 6.692539294 | B84: 187.5 | C84: 99.5426 | D84: 1700 | E84: 0.2 | F84: 980.2321099 | G84: 0.000265849316 | H84: 0.0004311031902 | I84: 99.5426 | J84: 0.007782297727 | K84: 6.692539294 | L84: 2456367.188 | M84: 0.02353939347 | N84: 88.25026094 | O84: 88.25026094 | P84: 15.15203024 | Q84: 24.57064278 | R84: 8.803110797 | S84: 207.4200841 | T84: 103.4022912 | U84: 104.0177929 | V84: 1013.582461 | W84: 828.5439998 | X84: 833.4759048 | Y84: 1662.019905 | Z84: 10.3125 | AA84: 12.44653272 | AB84: 24.57064278 | AC84: 12.44653272
A85: 6.781773151 | B85: 190 | C85: 99.5426 | D85: 1700 | E85: 0.2 | F85: 980.2321099 | G85: 0.000265849316 | H85: 0.0004311031902 | I85: 99.5426 | J85: 0.007782297727 | K85: 6.781773151 | L85: 2489118.75 | M85: 0.02353802483 | N85: 90.61402136 | O85: 90.61402136 | P85: 15.35405731 | Q85: 24.89825135 | R85: 8.803110797 | S85: 212.6772406 | T85: 105.9680787 | U85: 106.7091619 | V85: 1038.733133 | W85: 860.4245704 | X85: 866.441913 | Y85: 1726.866483 | Z85: 10.45 | AA85: 12.14516689 | AB85: 24.89825135 | AC85: 12.14516689
A86: 6.871007008 | B86: 192.5 | C86: 99.5426 | D86: 1700 | E86: 0.2 | F86: 980.2321099 | G86: 0.000265849316 | H86: 0.0004311031902 | I86: 99.5426 | J86: 0.007782297727 | K86: 6.871007008 | L86: 2521870.313 | M86: 0.02353668982 | N86: 93.00901338 | O86: 93.00901338 | P86: 15.55608438 | Q86: 25.22585992 | R86: 8.803110797 | S86: 217.9968603 | T86: 108.5650978 | U86: 109.4317625 | V86: 1064.189948 | W86: 893.1103128 | X86: 900.2399266 | Y86: 1793.350239 | Z86: 10.5875 | AA86: 11.85463861 | AB86: 25.22585992 | AC86: 11.85463861
A87: 6.960240866 | B87: 195 | C87: 99.5426 | D87: 1700 | E87: 0.2 | F87: 980.2321099 | G87: 0.000265849316 | H87: 0.0004311031902 | I87: 99.5426 | J87: 0.007782297727 | K87: 6.960240866 | L87: 2554621.875 | M87: 0.02353538719 | N87: 95.4352369 | O87: 95.4352369 | P87: 15.75811145 | Q87: 25.55346849 | R87: 8.803110797 | S87: 223.378943 | T87: 111.1933484 | U87: 112.1855946 | V87: 1089.952905 | W87: 926.6112363 | X87: 934.879955 | Y87: 1861.491191 | Z87: 10.725 | AA87: 11.57443335 | AB87: 25.55346849 | AC87: 11.57443335
A88: 7.049474723 | B88: 197.5 | C88: 99.5426 | D88: 1700 | E88: 0.2 | F88: 980.2321099 | G88: 0.000265849316 | H88: 0.0004311031902 | I88: 99.5426 | J88: 0.007782297727 | K88: 7.049474723 | L88: 2587373.438 | M88: 0.02353411575 | N88: 97.89269182 | O88: 97.89269182 | P88: 15.96013852 | Q88: 25.88107706 | R88: 8.803110797 | S88: 228.8234884 | T88: 113.8528303 | U88: 114.9706581 | V88: 1116.022001 | W88: 960.9373502 | X88: 970.3720074 | Y88: 1931.309358 | Z88: 10.8625 | AA88: 11.3040668 | AB88: 25.88107706 | AC88: 11.3040668
A89: 7.13870858 | B89: =B88+2.5 -> 200 | C89: 99.5426 | D89: 1700 | E89: 0.2 | F89: 980.2321099 | G89: 0.000265849316 | H89: 0.0004311031902 | I89: 99.5426 | J89: =PI()*(I89/2000)^2 -> 0.007782297727 | K89: =B89/J89/3600 -> 7.13870858 | L89: 2620125 | M89: 0.02353287437 | N89: 100.3813781 | O89: 100.3813781 | P89: =(B89/3600)*G89/2/PI()/G$4/0.000000000001*(LN(G$3/(C89/2000))+C$4)/100000 -> 16.16216559 | Q89: 26.20868563 | R89: =R88 -> 8.803110797 | S89: 234.3304965 | T89: 116.5435436 | U89: 117.7869529 | V89: 1142.397237 | W89: 996.0986636 | X89: 1006.726093 | Y89: 2002.824757 | Z89: =B89*(C$1-C$2)*1.1/1000 -> 11 | AA89: =Z89/(W89/1000) -> 11.04308278 | AB89: 26.20868563 | AC89: 11.04308278
A90: 7.227942437 | B90: =B89+2.5 -> 202.5 | C90: 99.5426 | D90: 1700 | E90: 0.2 | F90: 980.2321099 | G90: 0.000265849316 | H90: 0.0004311031902 | I90: 99.5426 | J90: =PI()*(I90/2000)^2 -> 0.007782297727 | K90: =B90/J90/3600 -> 7.227942437 | L90: 2652876.563 | M90: 0.02353166199 | N90: 102.9012955 | O90: 102.9012955 | P90: =(B90/3600)*G90/2/PI()/G$4/0.000000000001*(LN(G$3/(C90/2000))+C$4)/100000 -> 16.36419266 | Q90: 26.5362942 | R90: =R89 -> 8.803110797 | S90: 239.899967 | T90: 119.2654881 | U90: 120.6344789 | V90: 1169.078611 | W90: 1032.105186 | X90: 1043.952221 | Y90: 2076.057407 | Z90: =B90*(C$1-C$2)*1.1/1000 -> 11.1375 | AA90: =Z90/(W90/1000) -> 10.79105129 | AB90: 26.5362942 | AC90: 10.79105129
A91: 7.317176295 | B91: 205 | C91: =C90 -> 99.5426 | D91: 1700 | E91: 0.2 | F91: 980.2321099 | G91: 0.000265849316 | H91: 0.0004311031902 | I91: 99.5426 | J91: 0.007782297727 | K91: 7.317176295 | L91: 2685628.125 | M91: 0.02353047758 | N91: 105.452444 | O91: 105.452444 | P91: 16.56621973 | Q91: 26.86390277 | R91: 8.803110797 | S91: 245.5318998 | T91: 122.0186638 | U91: 123.513236 | V91: 1196.066122 | W91: 1068.966926 | X91: 1082.060401 | Y91: 2151.027327 | Z91: 11.275 | AA91: 10.54756674 | AB91: 26.86390277 | AC91: 10.54756674
A92: 7.406410152 | B92: 207.5 | C92: 99.5426 | D92: 1700 | E92: 0.2 | F92: 980.2321099 | G92: 0.000265849316 | H92: 0.0004311031902 | I92: 99.5426 | J92: 0.007782297727 | K92: 7.406410152 | L92: 2718379.688 | M92: 0.02352932017 | N92: 108.0348236 | O92: 108.0348236 | P92: 16.7682468 | Q92: 27.19151134 | R92: 8.803110797 | S92: 251.2262946 | T92: 124.8030704 | U92: 126.4232242 | V92: 1223.359771 | W92: 1106.693894 | X92: 1121.060642 | Y92: 2227.754535 | Z92: 11.4125 | AA92: 10.31224629 | AB92: 27.19151134 | AC92: 10.31224629
A93: 7.495644009 | B93: 210 | C93: 99.5426 | D93: 1700 | E93: 0.2 | F93: 980.2321099 | G93: 0.000265849316 | H93: 0.0004311031902 | I93: 99.5426 | J93: 0.007782297727 | K93: 7.495644009 | L93: 2751131.25 | M93: 0.02352818884 | N93: 110.6484342 | O93: 110.6484342 | P93: 16.97027387 | Q93: 27.51911991 | R93: 8.803110797 | S93: 256.9831513 | T93: 127.618708 | U93: 129.3644433 | V93: 1250.959554 | W93: 1145.296098 | X93: 1160.962952 | Y93: 2306.25905 | Z93: 11.55 | AA93: 10.08472833 | AB93: 27.51911991 | AC93: 10.08472833
A94: 7.584877866 | B94: 212.5 | C94: 99.5426 | D94: 1700 | E94: 0.2 | F94: 980.2321099 | G94: 0.000265849316 | H94: 0.0004311031902 | I94: 99.5426 | J94: 0.007782297727 | K94: 7.584877866 | L94: 2783882.813 | M94: 0.02352708268 | N94: 113.2932755 | O94: 113.2932755 | P94: 17.17230094 | Q94: 27.84672848 | R94: 8.803110797 | S94: 262.8024697 | T94: 130.4655765 | U94: 132.3368932 | V94: 1278.865473 | W94: 1184.783547 | X94: 1201.777342 | Y94: 2386.560889 | Z94: 11.6875 | AA94: 9.864671086 | AB94: 27.84672848 | AC94: 9.864671086
A95: 7.674111724 | B95: 215 | C95: 99.5426 | D95: 1700 | E95: 0.2 | F95: 980.2321099 | G95: 0.000265849316 | H95: 0.0004311031902 | I95: 99.5426 | J95: 0.007782297727 | K95: 7.674111724 | L95: 2816634.375 | M95: 0.02352600087 | N95: 115.9693477 | O95: 115.9693477 | P95: 17.37432801 | Q95: 28.17433705 | R95: 8.803110797 | S95: 268.6842497 | T95: 133.3436757 | U95: 135.340574 | V95: 1307.077526 | W95: 1225.166251 | X95: 1243.513821 | Y95: 2468.680072 | Z95: 11.825 | AA95: 9.651751335 | AB95: 28.17433705 | AC95: 9.651751335
A96: 7.763345581 | B96: 217.5 | C96: 99.5426 | D96: 1700 | E96: 0.2 | F96: 980.2321099 | G96: 0.000265849316 | H96: 0.0004311031902 | I96: 99.5426 | J96: 0.007782297727 | K96: 7.763345581 | L96: 2849385.938 | M96: 0.02352494259 | N96: 118.6766506 | O96: 118.6766506 | P96: 17.57635508 | Q96: 28.50194562 | R96: 8.803110797 | S96: 274.628491 | T96: 136.2530056 | U96: 138.3754854 | V96: 1335.595712 | W96: 1266.454219 | X96: 1286.182396 | Y96: 2552.636615 | Z96: 11.9625 | AA96: 9.445663191 | AB96: 28.50194562 | AC96: 9.445663191
A97: 7.852579438 | B97: 220 | C97: 99.5426 | D97: 1700 | E97: 0.2 | F97: 980.2321099 | G97: 0.000265849316 | H97: 0.0004311031902 | I97: 99.5426 | J97: 0.007782297727 | K97: 7.852579438 | L97: 2882137.5 | M97: 0.02352390707 | N97: 121.415184 | O97: 121.415184 | P97: 17.77838215 | Q97: 28.82955419 | R97: 8.803110797 | S97: 280.6351936 | T97: 139.1935662 | U97: 141.4416274 | V97: 1364.420031 | W97: 1308.65746 | X97: 1329.793078 | Y97: 2638.450538 | Z97: 12.1 | AA97: 9.246117011 | AB97: 28.82955419 | AC97: 9.246117011
A98: 7.941813295 | B98: 222.5 | C98: 99.5426 | D98: 1700 | E98: 0.2 | F98: 980.2321099 | G98: 0.000265849316 | H98: 0.0004311031902 | I98: 99.5426 | J98: 0.007782297727 | K98: 7.941813295 | L98: 2914889.063 | M98: 0.02352289356 | N98: 124.184948 | O98: 124.184948 | P98: 17.98040922 | Q98: 29.15716276 | R98: 8.803110797 | S98: 286.7043572 | T98: 142.1653572 | U98: 144.539 | V98: 1393.550481 | W98: 1351.785982 | X98: 1374.355876 | Y98: 2726.141858 | Z98: 12.2375 | AA98: 9.052838364 | AB98: 29.15716276 | AC98: 9.052838364
A99: 8.031047153 | B99: 225 | C99: 99.5426 | D99: 1700 | E99: 0.2 | F99: 980.2321099 | G99: 0.000265849316 | H99: 0.0004311031902 | I99: 99.5426 | J99: 0.007782297727 | K99: 8.031047153 | L99: 2947640.625 | M99: 0.02352190137 | N99: 126.9859425 | O99: 126.9859425 | P99: 18.18243629 | Q99: 29.48477133 | R99: 8.803110797 | S99: 292.8359818 | T99: 145.1683788 | U99: 147.667603 | V99: 1422.987062 | W99: 1395.849796 | X99: 1419.880798 | Y99: 2815.730594 | Z99: 12.375 | AA99: 8.865567081 | AB99: 29.48477133 | AC99: 8.865567081
A100: 8.12028101 | B100: 227.5 | C100: 99.5426 | D100: 1700 | E100: 0.2 | F100: 980.2321099 | G100: 0.000265849316 | H100: 0.0004311031902 | I100: 99.5426 | J100: 0.007782297727 | K100: 8.12028101 | L100: 2980392.188 | M100: 0.02352092982 | N100: 129.8181673 | O100: 129.8181673 | P100: 18.38446336 | Q100: 29.8123799 | R100: 8.803110797 | S100: 299.0300671 | T100: 148.2026307 | U100: 150.8274364 | V100: 1452.729774 | W100: 1440.858909 | X100: 1466.377854 | Y100: 2907.236764 | Z100: 12.5125 | AA100: 8.684056376 | AB100: 29.8123799 | AC100: 8.684056376
A101: 8.209514867 | B101: 230 | C101: 99.5426 | D101: 1700 | E101: 0.2 | F101: 980.2321099 | G101: 0.000265849316 | H101: 0.0004311031902 | I101: 99.5426 | J101: 0.007782297727 | K101: 8.209514867 | L101: 3013143.75 | M101: 0.02351997825 | N101: 132.6816225 | O101: 132.6816225 | P101: 18.58649043 | Q101: 30.13998847 | R101: 8.803110797 | S101: 305.2866131 | T101: 151.2681129 | U101: 154.0185002 | V101: 1482.778615 | W101: 1486.823332 | X101: 1513.857053 | Y101: 3000.680385 | Z101: 12.65 | AA101: 8.508072026 | AB101: 30.13998847 | AC101: 8.508072026
A102: 8.298748724 | B102: 232.5 | C102: 99.5426 | D102: 1700 | E102: 0.2 | F102: 980.2321099 | G102: 0.000265849316 | H102: 0.0004311031902 | I102: 99.5426 | J102: 0.007782297727 | K102: 8.298748724 | L102: 3045895.313 | M102: 0.02351904605 | N102: 135.5763079 | O102: 135.5763079 | P102: 18.7885175 | Q102: 30.46759705 | R102: 8.803110797 | S102: 311.6056195 | T102: 154.3648254 | U102: 157.2407941 | V102: 1513.133585 | W102: 1533.753073 | X102: 1562.328403 | Y102: 3096.081476 | Z102: 12.7875 | AA102: 8.33739161 | AB102: 30.46759705 | AC102: 8.33739161
A103: 8.387982582 | B103: 235 | C103: 99.5426 | D103: 1700 | E103: 0.2 | F103: 980.2321099 | G103: 0.000265849316 | H103: 0.0004311031902 | I103: 99.5426 | J103: 0.007782297727 | K103: 8.387982582 | L103: 3078646.875 | M103: 0.02351813262 | N103: 138.5022235 | O103: 138.5022235 | P103: 18.99054457 | Q103: 30.79520562 | R103: 8.803110797 | S103: 317.9870863 | T103: 157.492768 | U103: 160.4943183 | V103: 1543.794683 | W103: 1581.65814 | X103: 1611.801914 | Y103: 3193.460055 | Z103: 12.925 | AA103: 8.171803799 | AB103: 30.79520562 | AC103: 8.171803799
A104: 8.477216439 | B104: 237.5 | C104: 99.5426 | D104: 1700 | E104: 0.2 | F104: 980.2321099 | G104: 0.000265849316 | H104: 0.0004311031902 | I104: 99.5426 | J104: 0.007782297727 | K104: 8.477216439 | L104: 3111398.438 | M104: 0.0235172374 | N104: 141.4593691 | O104: 141.4593691 | P104: 19.19257164 | Q104: 31.12281419 | R104: 8.803110797 | S104: 324.4310133 | T104: 160.6519408 | U104: 163.7790725 | V104: 1574.761909 | W104: 1630.548544 | X104: 1662.287595 | Y104: 3292.836139 | Z104: 13.0625 | AA104: 8.011107702 | AB104: 31.12281419 | AC104: 8.011107702
A105: 8.566450296 | B105: 240 | C105: 99.5426 | D105: 1700 | E105: 0.2 | F105: 980.2321099 | G105: 0.000265849316 | H105: 0.0004311031902 | I105: 99.5426 | J105: 0.007782297727 | K105: 8.566450296 | L105: 3144150 | M105: 0.02351635982 | N105: 144.4477448 | O105: 144.4477448 | P105: 19.39459871 | Q105: 31.45042276 | R105: 8.803110797 | S105: 330.9374003 | T105: 163.8423435 | U105: 167.0950568 | V105: 1606.035261 | W105: 1680.434293 | X105: 1713.795454 | Y105: 3394.229747 | Z105: 13.2 | AA105: 7.855112251 | AB105: 31.45042276 | AC105: 7.855112251
A106: 8.655684153 | B106: 242.5 | C106: 99.5426 | D106: 1700 | E106: 0.2 | F106: 980.2321099 | G106: 0.000265849316 | H106: 0.0004311031902 | I106: 99.5426 | J106: 0.007782297727 | K106: 8.655684153 | L106: 3176901.563 | M106: 0.02351549937 | N106: 147.4673505 | O106: 147.4673505 | P106: 19.59662578 | Q106: 31.77803133 | R106: 8.803110797 | S106: 337.5062473 | T106: 167.0639763 | U106: 170.442271 | V106: 1637.61474 | W106: 1731.325395 | X106: 1766.335501 | Y106: 3497.660896 | Z106: 13.3375 | AA106: 7.703635629 | AB106: 31.77803133 | AC106: 7.703635629
A107: 8.744918011 | B107: 245 | C107: =C106 -> 99.5426 | D107: 1700 | E107: 0.2 | F107: 980.2321099 | G107: 0.000265849316 | H107: 0.0004311031902 | I107: 99.5426 | J107: 0.007782297727 | K107: 8.744918011 | L107: 3209653.125 | M107: 0.02351465555 | N107: 150.5181861 | O107: 150.5181861 | P107: 19.79865285 | Q107: 32.1056399 | R107: 8.803110797 | S107: 344.1375541 | T107: 170.3168389 | U107: 173.8207152 | V107: 1669.500344 | W107: 1783.231861 | X107: 1819.917744 | Y107: 3603.149605 | Z107: 13.475 | AA107: 7.556504736 | AB107: 32.1056399 | AC107: 7.556504736
A108: 8.834151868 | B108: 247.5 | C108: 99.5426 | D108: 1700 | E108: 0.2 | F108: 980.2321099 | G108: 0.000265849316 | H108: 0.0004311031902 | I108: 99.5426 | J108: 0.007782297727 | K108: 8.834151868 | L108: 3242404.688 | M108: 0.02351382786 | N108: 153.6002515 | O108: 153.6002515 | P108: 20.00067992 | Q108: 32.43324847 | R108: 8.803110797 | S108: 350.8313206 | T108: 173.6009314 | U108: 177.2303892 | V108: 1701.692073 | W108: 1836.163698 | X108: 1874.552193 | Y108: 3710.715891 | Z108: 13.6125 | AA108: 7.413554694 | AB108: 32.43324847 | AC108: 7.413554694
